Workbook

Sheet LDC Info
Z3: 1 | AA3: Alectra Utilities Corporation-Brampton Rate Zone
Z4: 2 | AA4: Alectra Utilities Corporation-Enersource Rate Zone
Z5: 3 | AA5: Alectra Utilities Corporation-Horizon Utilities Rate Zone
Z6: 4 | AA6: Alectra Utilities Corporation-PowerStream Rate Zone
Z7: 5 | AA7: Alectra Utilities Corporation-Guelph Rate Zone
Z8: 6 | AA8: Algoma Power Inc.
Z9: 7 | AA9: Atikokan Hydro Inc.
Z10: 8 | AA10: Bluewater Power Distribution Corporation
Z11: 9 | AA11: Brantford Power Inc.
Z12: 10 | AA12: Burlington Hydro Inc.
Z13: 11 | AA13: Canadian Niagara Power Inc.
D14: Utility Name | E14: Greater Sudbury Hydro Inc. | Z14: 12 | AA14: Centre Wellington Hydro Ltd.
Z15: 13 | AA15: Chapleau Public Utilities Corporation
D16: Assigned EB Number | E16: EB-2019-0037 | Z16: 14 | AA16: Cooperative Hydro Embrun Inc.
Z17: 15 | AA17: E.L.K. Energy Inc.
D18: Name of Contact and Title | E18: Tiija Luttrell CPA, CA Supervisor - Regulatory | Z18: 16 | AA18: Elexicon Energy Inc.-Whitby Rate Zone
Z19: 17 | AA19: Elexicon Energy Inc.-Veridian Rate Zone
D20: Phone Number | E20: 705-675-0514 ext. 2357 | Z20: 18 | AA20: Energy+ Inc.-For Former Brant County Power Service Area
Z21: 19 | AA21: Energy+ Inc.-For Former Cambridge and North Dumfries Hydro Service Area
D22: Email Address | E22: tiija.luttrell@gsuinc.ca | Z22: 20 | AA22: Entegrus Powerlines Inc.-For Entegrus-Main Rate Zone
Z23: 21 | AA23: Entegrus Powerlines Inc.-For Former St. Thomas Energy Rate Zone
D24: Test Year | E24: 2020 | Z24: 22 | AA24: ENWIN Utilities Ltd.
Z25: 23 | AA25: EPCOR Electricity Distribution Ontario Inc.
D26: Bridge Year | E26: =IF(ISBLANK(E24), "", E24-1) -> 2019 | Z26: 24 | AA26: ERTH Power Corporation - ERTH Power Main Rate Zone
Z27: 25 | AA27: ERTH POWER CORPORATION – GODERICH RATE ZONE
D28: Last Rebasing Year | E28: 2013 | Z28: 26 | AA28: Espanola Regional Hydro Distribution Corporation
Z29: 27 | AA29: Essex Powerlines Corporation
A30: Identify the accounting standard used for the test year | Z30: 28 | AA30: Festival Hydro Inc.
E31: MIFRS | Z31: 29 | AA31: Fort Frances Power Corporation
Z32: 30 | AA32: Greater Sudbury Hydro Inc.
A33: ="Did "& E14 &" update its depreciation and capitalization policies?" -> Did Greater Sudbury Hydro Inc. update its depreciation and capitalization policies? | Z33: 31 | AA33: Grimsby Power Incorporated
E34: Yes | Z34: 32 | AA34: Halton Hills Hydro Inc.
Z35: 33 | AA35: Hearst Power Distribution Co. Ltd.
A36: If "yes" to cell E34, were the changes in policies reflected in a prior rebasing application? | Z36: 34 | AA36: Hydro 2000 Inc.
E37: Yes | Z37: 35 | AA37: Hydro Hawkesbury Inc.
Z38: 36 | AA38: Hydro One Networks Inc.
A39: ="When did "&E14&" update its actual depreciation and capitalization policies?" -> When did Greater Sudbury Hydro Inc. update its actual depreciation and capitalization policies? | Z39: 37 | AA39: Hydro One Networks Inc.-Former Haldimand County Hydro Inc. Service Area
E40: 2001-01-01 | F40: 2013 | Z40: 38 | AA40: Hydro One Networks Inc.-Former Norfolk Power Distribution Inc. Service Area
Z41: 39 | AA41: Hydro One Networks Inc.-Former Woodstock Hydro Services Inc. Service Area
A42: Identify the year the applicant adopted IFRS for financial reporting purposes | Z42: 40 | AA42: Hydro One Remote Communites Inc.
E43: 2015 | Z43: 41 | AA43: Hydro Ottawa Limited
Z44: 42 | AA44: InnPower Corporation
Z45: 43 | AA45: Kingston Hydro Corporation
A46: ="Is " & E14 & " applying for cost recovery for the test and/or future year(s) for Green Energy initiatives?" -> Is Greater Sudbury Hydro Inc. applying for cost recovery for the test and/or future year(s) for Green Energy initiatives? | Z46: 44 | AA46: Kitchener-Wilmot Hydro Inc.
E47: No | Z47: 45 | AA47: Lakefront Utilities Inc.
Z48: 46 | AA48: Lakeland Power Distribution Ltd.
A49: ="Is " & E14 & " an embedded distributor?" -> Is Greater Sudbury Hydro Inc. an embedded distributor? | E49: Yes | Z49: 47 | AA49: Lakeland Power Distribution Ltd.-Parry Sound Service Area
Z50: 48 | AA50: London Hydro Inc.
Z51: 49 | AA51: Milton Hydro Distribution Inc.
B52: Notes | Z52: 50 | AA52: Newmarket-Tay Power Distribution Ltd.-For Former Midland Power Utility Rate Zone
Z53: 51 | AA53: Newmarket-Tay Power Distribution Ltd.-For Newmarket-Tay Power Main Rate Zone
C54: Pale green cells represent input cells. | Z54: 52 | AA54: Niagara Peninsula Energy Inc.
Z55: 53 | AA55: Niagara-on-the-Lake Hydro Inc.
C56: Pale blue cells represent drop-down lists. The applicant should select the appropriate item from the drop-down list. | Z56: 54 | AA56: North Bay Hydro Distribution Limited
Z57: 55 | AA57: Northern Ontario Wires Inc.
C58: White cells contain fixed values, automatically generated values or formulae. | N58: =IF(LEN($G58)>1, (SUMPRODUCT(--($C$81:$C$1003=$C58),--($A$81:$A$1003=$D58), --($B$81:$B$1003=$B58&"_TOTAL"), $L$1:$L$889)), "") ->  | O58: =IF(LEN($G58)>1, (SUMPRODUCT(--($C$81:$C$1003=$C58),--($A$81:$A$1003=$D58), --($B$81:$B$1003=$B58&"_TOTAL"), $M$1:$M$889)), "") ->  | Z58: 56 | AA58: Oakville Hydro Electricity Distribution Inc.
Z59: 57 | AA59: Orangeville Hydro Limited
Z60: 58 | AA60: Orillia Power Distribution Corporation
Z61: 59 | AA61: Oshawa PUC Networks Inc.
Z62: 60 | AA62: Ottawa River Power Corporation
Z63: 61 | AA63: Peterborough Distribution Incorporated
Z64: 62 | AA64: PUC Distribution Inc.
Z65: 63 | AA65: Renfrew Hydro Inc.
Z66: 64 | AA66: Rideau St. Lawrence Distribution Inc.
Z67: 65 | AA67: Sioux Lookout Hydro Inc.
Z68: 66 | AA68: Synergy North Corporation-Kenora Rate Zone
Z69: 67 | AA69: Synergy North Corporation-Thunder Bay Rate Zone
Z70: 68 | AA70: Tillsonburg Hydro Inc.
Z71: 69 | AA71: Toronto Hydro-Electric System Limited
Z72: 70 | AA72: Wasaga Distribution Inc.
Z73: 71 | AA73: Waterloo North Hydro Inc.
Z74: 72 | AA74: Welland Hydro-Electric System Corp.
Z75: 73 | AA75: Wellington North Power Inc.
Z76: 74 | AA76: Westario Power Inc.
Z77: 75

Sheet Index
A15: 1 | B15: LDC Information Sheet | E15: 20 | F15: App.2-G: Service Reliability Indicators
A16: 2 | B16: Index | E16: 21 | F16: App.2-H: Other Operating Revenue (TO BE UPDATED AT THE DRAFT RATE ORDER STAGE)
A17: 3 | B17: Cost of Service Application Flowchart | E17: 22 | F17: App.2-I: Load Forecast CDM Adjustment Workform
A18: 4 | B18: List of Key References | E18: 23 | F18: App.2-IA: Load Forecast Data Instructions
A19: 5 | B19: App.2-A: List of Requested Approvals | E19: 24 | F19: App.2-IB: Actual and Forecast Load and Customer Data
A20: 6 | B20: App.2-AA: Capital Projects Table | E20: 25 | F20: App.2-JA: OM&A Summary Analysis (TO BE UPDATED AT THE DRAFT RATE ORDER STAGE)
A21: 7 | B21: App.2-AB: Capital Expenditures (TO BE UPDATED AT THE DRAFT RATE ORDER STAGE) | E21: 26 | F21: App.2-JB: Recoverable OM&A Cost Driver Table
A22: 8 | B22: App. 2-AC: Customer Engagement Worksheet | E22: 27 | F22: App.2-JC: OM&A Programs Table
A23: 9 | B23: App.2-B: General Accounting Instructions | E23: 28 | F23: App.2-K: Employee Costs (TO BE UPDATED AT THE DRAFT RATE ORDER STAGE)
A24: 10 | B24: App.2-BA: Fixed Asset Continuity Schedule | E24: 29 | F24: App.2-L: Recoverable OM&A Cost per Customer and per FTE
A25: 11 | B25: Appendix 2-BB: Service Life Comparison | E25: 30 | F25: App.2-M: Regulatory Costs Schedule (TO BE UPDATED AT THE DRAFT RATE ORDER STAGE)
A26: 12 | B26: App.2-C_DepExp: Depreciation and Amortization Expense | E26: 31 | F26: App.2-N: Shared Services and Corporate Cost Allocation
A27: 13 | B27: App.2-D: Overhead Expenses | E27: 32 | F27: App.2-OA: Capital Structure and Cost of Capital
A28: 14 | B28: App.2-EA: Account 1575 PP&E Deferral Account (2015 IFRS Adopters) - CONTACT OEB STAFF IF TAB REQUIRED | E28: 33 | F28: App.2-OB: Debt Instruments
A29: 15 | B29: App.2-EB: Account 1576 - Accounting Changes Under CGAAP (2012 Changes) - CONTACT OEB STAFF IF TAB REQUIRED | E29: 34 | F29: App.2-Q: Cost of Serving Embedded Distributor(s)
A30: 16 | B30: App.2-EC: Account 1576 - Accounting Changes Under CGAAP (2013 Changes) - CONTACT OEB STAFF IF TAB REQUIRED | E30: 35 | F30: App.2-R: Loss Factors
A31: 17 | B31: App.2-FA: Renewable Generation Connection Investment Summary (TO BE UPDATED AT THE DRAFT RATE ORDER STAGE) | E31: 36 | F31: App.2-S: Stranded Meter Treatment
A32: 18 | B32: App.2-FB: Calculation of Renewable Generation Connection Direct Benefits/Provincial Amount: Renewable Enabling Improvement Investments (TO BE UPDATED AT THE DRAFT RATE ORDER STAGE) | E32: 37 | F32: App.2-Y: Transition to MIFRS Summary Impact - CONTACT OEB STAFF IF TAB REQUIRED
A33: 19 | B33: App.2-FC: Calculation of Renewable Generation Connection Direct Benefits/Provincial Amount: Renewable Expansion Investments (TO BE UPDATED AT THE DRAFT RATE ORDER STAGE) | E33: 38 | F33: App.2-YA: One-Time Incremental IFRS Transition Costs - CONTACT OEB STAFF IF TAB REQUIRED
E34: 39 | F34: App.2-Z: Commodity Expense
A42: Note: | B42: Appendices for the Tariff of Rates and Charges at Current and Proposed Rates, and for the Bill Impacts are now in a separate spreadsheet model. These appendices were formerly 2-Z and 2-W.

Sheet COS Flowchart
B4: Cost of Service Rate Application Schematic
B6: The Cost of Service Rate Application Schematic is a flowchart that is included as a guide for the components of an application. The schematic demonstrates how demand and costs interrelate to derive the revenue requirement and how the revenue requirement is allocated between classes and through fixed/variable splits to derive rates that will be compensatory for the annual revenue requirement, based on the the forecasted demand. There is no form to be filled out; therefore, this Schedule is not required to be filed.

Sheet List of Key References
B2: List of Key References
A4: A list of key references for understanding the Filing Requirements has been embedded in the document below. To access the list of references and associated hyperlinks double-click the icon below.

Sheet App.2-A_Requested_Approvals
G1: File Number: | H1: =EBNUMBER -> EB-2019-0037
G2: Exhibit: | H2: 1
G3: Tab: | H3: 3
G4: Schedule: | H4: 23
G5: Page: | H5: 1
G7: Date: | H7: 2019-10-31
B9: Appendix 2-A
B10: List of Requested Approvals
B12: The distributor must fill out the following sheet with the complete list of specific approvals requested and relevant section(s) of the legislation must be provided. All approvals, including accounting orders (deferral and variance accounts) new rate classes, revised specific service charges or retail service charges which the applicant is seeking, must be separately identified, as well being clearly documented in the appropriate sections of the application.
B14: Additional requests may be added by copying and pasting blank input rows, as needed.
B16: If additional requests arise, or requested approvals are removed, during the processing of the application, the distributor should update this list.
B18: =CONCATENATE('LDC Info'!E14," is seeking the following approvals in this application:") -> Greater Sudbury Hydro Inc. is seeking the following approvals in this application:
B20: 1 | F20: Approval to charge distribution rates effective May 1, 2020 to recover a base revenue requirement of $27,396,127 which includes a revenue deficiency of $3,860,553 as detailed in Exhibit 6. The schedule of proposed rates is detailed in Exhibit 8.
B22: 2 | F22: Approval of the Distribution System Plan included in Exhibit 2.
B24: 3 | F24: Approval of the proposed loss factor included in Exhibit 8.
B26: 4 | F26: Approval to adjust the Retail Transmission Rates - Network and Connection, and the Low Voltage charges as calculated in Exhibit 8.
B28: 5 | F28: Approval of the rate riders for disposition of the Group 1 & Group 2 Deferral and Variance Accounts as detailed in Exhibit 9.
B30: 6 | F30: Approval of the rate rider for a one-year disposition of the Lost Revenue Adjustment Mechanism Variance Account ("LRAMVA") for lost revenue as presented in Exhibits 4 and 9.
B32: 7 | F32: Approval of the request for new Group 2 Account - 1508 - Other Regulatory Assets, Sub-Account OPEB Actuarial Gains & Losses as detailed in Exhibit 9.
B34: 8 | F34: Approval of the Advanced Capital Module ("ACM") treatment for the 2021-2024 station rebuilds (Cressey, Moonlight, Marttila, Paris)
B36: 9 | F36: Approval to charge Retail Service Charges as detailed in Exhibit 8.
B38: 10 | F38: Approval to charge the Specific Service Charges as detailed in Exhibit 8.
B40: 11 | F40: Approval to charge the Board's updated Pole Attachment Charge, effective May 1, 2020.

Sheet App.2-AA_Capital Projects
I1: File Number: | J1: =EBNUMBER -> EB-2019-0037
I2: Exhibit: | J2: 2
I3: Tab: | J3: 2
I4: Schedule: | J4: 2
I5: Page: | J5: 2
I7: Date: | J7: 2019-10-31
A9: Appendix 2-AA
A10: Capital Projects Table
A13: Projects | B13: 2013 | C13: 2014 | D13: =E13-1 -> 2015 | E13: =F13-1 -> 2016 | F13: =G13-1 -> 2017 | G13: =BridgeYear - 1 -> 2018 | H13: =BridgeYear & " Bridge Year" -> 2019 Bridge Year | I13: =TestYear & " Test Year" -> 2020 Test Year
A14: Reporting Basis | B14: CGAAP | C14: CGAAP | D14: MIFRS | E14: MIFRS | F14: MIFRS | G14: MIFRS | H14: MIFRS | I14: MIFRS
A15: System Access
A16: Meter Installations | C16: ='[23]Wiresco 10 Capital CP,WC'!$R$12 -> 117774.82 | D16: =[24]Sheet1!$J$5 -> 152796.29 | E16: =[25]Sheet1!$J$5 -> 176066.88 | G16: =[26]Sheet1!$K$55 -> 120023.62 | H16: ='[27]2019'!$V$3 -> 124862 | I16: ='[27]2020'!$J$3 -> 174862
A17: Overhead Services | C17: ='[23]Wiresco 10 Capital CP,WC'!$R$35 -> 138646.17 | D17: =[24]Sheet1!$J$25 -> 129536.86 | E17: =[25]Sheet1!$J$21 -> 170918.58 | F17: =[28]Sheet1!$J$24 -> 133408.6037 | G17: =[26]Sheet1!$K$34 -> 140168.23 | H17: ='[27]2019'!$V$8 -> 150500 | I17: ='[27]2020'!$J$9 -> 150500
A18: System Betterment | B18: =[29]Sheet1!$K$12/3 -> 150947.9167 | C18: ='[23]Wiresco 10 Capital CP,WC'!$R$27*0.2 -> 50576.714 | D18: =[24]Sheet1!$J$20/3 -> 252250.99 | E18: =[25]Sheet1!$J$17/3 -> 177298.54 | F18: =[28]Sheet1!$J$22/3 -> 326146.0758 | G18: =[26]Sheet1!$K$36/3 -> 158156.1 | H18: ='[27]2019'!$V$7 -> 114911 | I18: ='[27]2020'!$J$8 -> 114911
A19: Underground Services | C19: ='[23]Wiresco 10 Capital CP,WC'!$R$36 -> 119099.43 | E19: =[25]Sheet1!$J$22 -> 146179.19 | F19: =[28]Sheet1!$J$25 -> 117965.029 | H19: ='[27]2019'!$V$9 -> 122400 | I19: ='[27]2020'!$J$10 -> 122400
A20: City Roadwork | B20: =[29]Sheet1!$J$16 -> 484101.3 | C20: ='[23]Wiresco 10 Capital CP,WC'!$R$37 -> 360001.59 | E20: =[25]Sheet1!$J$23 -> 153024.37 | F20: =[28]Sheet1!$J$26 -> 159247.4827 | G20: =[26]Sheet1!$K$20 -> 172057.87 | H20: ='[27]2019'!$V$10 -> 275000 | I20: ='[27]2020'!$J$11 -> 275000
A21: Coppercliff Gardens Rebuild | B21: =[29]Sheet1!$J$52 -> 135831.69
A22: Sub-Total | B22: =SUM(B16:B21) -> 770880.9067 | C22: =SUM(C16:C21) -> 786098.724 | D22: =SUM(D16:D21) -> 534584.14 | E22: =SUM(E16:E21) -> 823487.56 | F22: 736767.1912 | G22: =SUM(G16:G21) -> 590405.82 | H22: 787673 | I22: 837673
A23: System Renewal
A24: Failed Transformers | B24: =[29]Sheet1!$J$8 -> 207883.85 | C24: ='[23]Wiresco 10 Capital CP,WC'!$R$15 -> 173492.06 | D24: =[24]Sheet1!$J$9 -> 552324.97 | E24: =[25]Sheet1!$J$7 -> 438521.67 | F24: =[28]Sheet1!$J$7 -> 230948.63 | G24: =[26]Sheet1!$K$46 -> 533204 | H24: ='[27]2019'!$W$5 -> 350000 | I24: ='[27]2020'!$K$5 -> 350000
A25: System Betterment | B25: =[29]Sheet1!$K$12/3 -> 150947.9167 | C25: ='[23]Wiresco 10 Capital CP,WC'!$R$27*0.7 -> 177018.499 | D25: =[24]Sheet1!$J$20/3 -> 252250.99 | E25: =[25]Sheet1!$J$17/3 -> 177298.54 | F25: =[28]Sheet1!$J$22/3 -> 326146.0758 | G25: =[26]Sheet1!$K$36/3 -> 158156.1 | H25: ='[27]2019'!$W$7 -> 402188.5 | I25: ='[27]2020'!$K$8 -> 402188.5
A26: Major Substation Repairs | B26: =[29]Sheet1!$J$10 -> 332235.78 | C26: ='[23]Wiresco 10 Capital CP,WC'!$U$19 -> 639556.46 | D26: =[24]Sheet1!$K$15 -> 302638.19 | E26: =[25]Sheet1!$K$14 -> 760378.77 | H26: ='[27]2019'!$W$6 -> 300000 | I26: ='[27]2020'!$K$6 -> 180000
A27: Emergency Plant Maintenance | C27: ='[23]Wiresco 10 Capital CP,WC'!$R$14 -> 279054.34 | E27: =[25]Sheet1!$J$6 -> 234113.96 | F27: =[28]Sheet1!$J$6 -> 509595.08 | G27: =[26]Sheet1!$K$45 -> 577726.27 | H27: ='[27]2019'!$W$4 -> 326547 | I27: ='[27]2020'!$K$4 -> 326547
A28: Vanier Lane Road | B28: =[29]Sheet1!$J$20 -> 458279.94
A29: Algonquin Rebuild | B29: =[29]Sheet1!$J$23 -> 150049.67
A30: Sunnyside | B30: =[29]Sheet1!$J$25 -> 402030.86
A31: West Nip 4 to 12 Conversion | B31: =[29]Sheet1!$J$26 -> 178744.73
A32: Pole Replacements | B32: =[29]Sheet1!$J$27 -> 136290.68
A33: Pine St- 4kV Rebuild | B33: =[29]Sheet1!$J$29 -> 173084.86
A34: Beatty | B34: =[29]Sheet1!$J$30 -> 354547.17
A35: Copper Cliff Rebuild/ Evans Road Rebuild | B35: =[29]Sheet1!$J$31 -> 167470.53
A36: 3F7 | C36: ='[23]Wiresco 10 Capital CP,WC'!$R$46 -> 126563.42
A37: 3F10 | C37: ='[23]Wiresco 10 Capital CP,WC'!$R$47 -> 121589.28
A38: Lo-Ellen Park Rebuild | C38: ='[23]Wiresco 10 Capital CP,WC'!$R$48 -> 116006.37
A39: Vanier Lane Rebuild - Phase 2 | C39: ='[23]Wiresco 10 Capital CP,WC'!$R$49 -> 296054.86
A40: Woodbine / Agincourt | C40: ='[23]Wiresco 10 Capital CP,WC'!$R$51 -> 546967.16
A41: Harju/ Pennala | C41: ='[23]Wiresco 10 Capital CP,WC'!$R$52 -> 151066.14
A42: West Nip 4 to 12 Conversion | C42: ='[23]Wiresco 10 Capital CP,WC'!$R$55 -> 476225.63
A43: Raft LK | C43: ='[23]Wiresco 10 Capital CP,WC'!$R$72 -> 140240.79
A44: Chapman/Stafford Rebuild | D44: =[24]Sheet1!$J$35 -> 133235.28
A45: Beverly Drive Rebuild | D45: =[24]Sheet1!$J$44 -> 172245.34
A46: Griffith St. | D46: =[24]Sheet1!$J$47 -> 117525.96
A47: Crescent Park/ Gordon Ac Rebuild | D47: =[24]Sheet1!$J$49 -> 178424.81
A48: Brebeuf Front Lot | D48: =[24]Sheet1!$J$50 -> 368772.97
A49: Mcdonell/Rix Falconbridge | D49: =[24]Sheet1!$J$52 -> 155287.84
A50: Voltage Conversion/Tear Down in West Nip | D50: =[24]Sheet1!$J$53 -> 352628.43
A51: West Nipissing (MS37) | E51: =[25]Sheet1!$J$16 -> 162575.59
A52: Fourth Ave Minnow Lake | E52: =[25]Sheet1!$J$36 -> 154002.61
A53: Bloor St | E53: =[25]Sheet1!$J$37 -> 221473.48
A54: Ester (Long Lake Rd to Treeview) | E54: =[25]Sheet1!$J$39 -> 130207.97
A55: Lavoie St. | E55: =[25]Sheet1!$J$40 -> 245046.89
A56: Mountview Cres | E56: =[25]Sheet1!$J$41 -> 139340.31
A57: Struthers St. | E57: =[25]Sheet1!$J$45 -> 166650.66
A58: Hay St. (Cache Bay) | E58: =[25]Sheet1!$J$46 -> 116572.4
A59: Rear Line Marymount to St. Anne's Rd | E59: =[25]Sheet1!$J$49 -> 199933.8
A60: Mildred St. | E60: =[25]Sheet1!$J$50 -> 176165.67
A61: Madeleine St | E61: =[25]Sheet1!$J$51 -> 118303.61
A62: Martin Ave | E62: =[25]Sheet1!$J$53 -> 115207.49
A63: Somers St. | E63: =[25]Sheet1!$J$54 -> 187907.23
A64: Cressey Station Voltage Conversion | E64: =[25]Sheet1!$J$62 -> 138065.5
A65: Coniston Edward Station | F65: =[28]Sheet1!$J$14 -> 293714.97
A66: Hudson St. 11F5 | F66: =[28]Sheet1!$J$41 -> 122682.0191
A67: Lansing Ave. | F67: =[28]Sheet1!$J$53 -> 354269.7602
A68: Croatia Road 20F5 | F68: =[28]Sheet1!$J$56 -> 174998.4302
A69: Jarvi/Lammi's/Hannah Lake Rd 20F3 | F69: =[28]Sheet1!$J$57 -> 366948.5355
A70: West Nipissing Voltage Conversion | F70: =[28]Sheet1!$J$58 -> 140045.4999
A71: Lasalle Park Manor Underground | F71: =[28]Sheet1!$J$64 -> 395943.1634
A72: Holland Road - 2017 | F72: =[28]Sheet1!$J$66 -> 204197.1349
A73: Lincoln Road Rebuild | F73: =[28]Sheet1!$J$67 -> 134536.7597
A74: Tedman | F74: =[28]Sheet1!$J$33 -> 175290.1116
A75: 9M4 Transfer Conductors (Martindale Pioneer Rd.) | G75: =[26]Sheet1!$K$15 -> 470104.15
A76: Kathleen Voltage Conversion | G76: =[26]Sheet1!$K$31 -> 515434.17
A77: Clearwater Lake Road | G77: =[26]Sheet1!$K$16 -> 295360.01
A78: Copper Cliff 25F4 | G78: =[26]Sheet1!$K$19 -> 925622.25
A79: Fourth Avenue Coniston 31F1 | G79: =[26]Sheet1!$K$25 -> 234908.55
A80: Kathleen Station MS2 | G80: =[26]Sheet1!$K$68 -> 3324675.62
A81: West Nipissing4-12kvconver | G81: =[26]Sheet1!$K$42 -> 119794.78
A82: Ferguson Avenue | H82: ='[27]2019'!$W$28 -> 198336
A83: Capreol Rebuild | H83: ='[27]2019'!$W$14 -> 1723622
A84: Regent Voltage Conversion | H84: ='[27]2019'!$W$15 -> 382732
A85: Cressey Voltage Conversion | H85: ='[27]2019'!$W$16 -> 570474
A86: MS30/MS31 Grounding Improvements/ Switching | H86: ='[27]2019'!$W$21 -> 178158
A87: Hawthorne (Vine to Beatrice) | H87: ='[27]2019'!$W$23 -> 147964
A88: Dew Drop Rd | H88: ='[27]2019'!$W$24 -> 404781
A89: Dennis St (S19363 to S18985) | H89: ='[27]2019'!$W$25 -> 473741
A90: West Nipissing; Waterfront Dr. Rebuild | H90: ='[27]2019'!$W$33 -> 258343
A91: Tedman Voltage Conversion | H91: ='[27]2019'!$W$17 -> 758543
A92: Gemmell MS11 (T1) | H92: ='[27]2019'!$W$19 -> 150000 | I92: ='[27]2020'!$K$16 -> 2333837
A93: Cressey MS3 Rebuild/Voltage Conversion | I93: ='[30]2020'!$K$17+'[30]2020'!$K$18+'[30]2020'!$K$19+'[30]2020'!$K$21 -> 1305701
A94: Battery Bank Replacements | I94: ='[27]2020'!$K$7 -> 120000
A95: Pole Rebuilds | I95: ='[27]2020'!$K$26+'[30]2020'!$K$27+'[30]2020'!$K$34 -> 494292
A96: Cable Testing/Rejuvenation | I96: ='[27]2020'!$K$29 -> 100462
A98: Sub-Total | B98: =SUM(B24:B97) -> 2711565.987 | C98: 3243835.009 | D98: 2585334.78 | E98: 3881766.15 | F98: 3429316.17 | G98: 7154985.9 | H98: 6625429.5 | I98: 5613027.5
A99: System Service
A100: System Betterment | B100: =[29]Sheet1!$K$12/3 -> 150947.9167 | C100: ='[23]Wiresco 10 Capital CP,WC'!$R$27*0.1 -> 25288.357 | D100: =[24]Sheet1!$J$20/3 -> 252250.99 | E100: =[25]Sheet1!$J$17/3 -> 177298.54 | F100: =[28]Sheet1!$J$22/3 -> 326146.0758 | G100: =[26]Sheet1!$K$36/3 -> 158156.1 | H100: ='[30]2019'!$X$7 -> 57455.5 | I100: ='[30]2020'!$L$8 -> 57455.5
A101: Southlane Road | B101: =[29]Sheet1!$J$28 -> 332002.35
A102: 44KV Motorized Switches | B102: =[29]Sheet1!$J$36 -> 508534.83
A103: Cambrian Heights Dr-UG Extension to College Boreal | C103: ='[23]Wiresco 10 Capital CP,WC'!$R$65 -> 166093.87
A104: 44KV Motorized Switches/VBM | C104: ='[23]Wiresco 10 Capital CP,WC'!$R$79 -> 330211.82
A105: West Nipissing (MS37) | D105: =[24]Sheet1!$J$19 -> 188459.52
A106: Bancroft 44kv Extension | D106: =[24]Sheet1!$J$39 -> 450885.82
A107: Lasalle MS7 Relay Upgrades | F107: =[28]Sheet1!$J$18 -> 155748.15
A108: 11F7 - Falconbridge Rd to Moonlight Ave; New Ckt | F108: =[28]Sheet1!$J$31 -> 138081.0325
A109: Lorne @ Martindale Ave; Complete 12kV and 44kV Feeder Ties | F109: =[28]Sheet1!$J$32 -> 130188.8905
A110: Melvin to Kathleen MS; New 44kV Ckt/Rebuild | F110: =[28]Sheet1!$J$37 -> 563481.0281
A111: 2017 44KV To Coniston (Allan/Edward) | F111: =[28]Sheet1!$J$62 -> 1051713.477
A112: Sunnyside Rebuild | G112: =[26]Sheet1!$K$38 -> 526832.9
A113: Dash MS19 T1/T2 Relay Upgrades;Purchase Equipment | H113: ='[27]2019'!$X$20 -> 295000
A114: Continue 44kV build down Government Rd to Hwy 17 - Coniston 31F2 | H114: ='[27]2019'!$X$29 -> 343797
A115: West Nipissing Voltage Conversion | I115: ='[30]2020'!$K$28 -> 89177
A116: Cressey MS3 Rebuild/Voltage Conversion | I116: ='[27]2020'!$L$20 -> 191285
A117: Gemmell MS 11 | I117: ='[27]2020'!$L$22+'[30]2020'!$L$23 -> 532440
A118: 9M2 Extension | I118: ='[27]2020'!$L$24 -> 464138
A119: Sunnyside 12 kV Feeder Relocation | I119: ='[27]2020'!$L$25 -> 346811
A121: Sub-Total | B121: =SUM(B100:B120) -> 991485.0967 | C121: 521594.047 | D121: 891596.33 | E121: 177298.54 | F121: 2365358.653 | G121: 684989 | H121: 696252.5 | I121: 1681306.5
A122: General Plant
A123: Vehicles | B123: =[29]Sheet1!$J$39 -> 533800 | C123: ='[23]Wiresco 10 Capital CP,WC'!$R$82 -> 225666.97 | D123: =[24]Sheet1!$J$62 -> 756834.45 | E123: =[25]Sheet1!$J$30 -> 202408.42 | F123: =[28]Sheet1!$J$80 -> 743656.04 | G123: =[26]Sheet1!$K$62 -> 212220.07 | H123: ='[27]2019'!$Y$37 -> 450000 | I123: ='[27]2020'!$M$32 -> 450000
A124: Building | B124: =[29]Sheet1!$J$38 -> 176905.89 | C124: ='[23]Wiresco 10 Capital CP,WC'!$R$81 -> 1364322.62 | D124: =[24]Sheet1!$J$60 -> 1312438.19 | E124: =[25]Sheet1!$J$28 -> 1342565.08 | H124: ='[27]2019'!$Y$36 -> 465000 | I124: ='[27]2020'!$M$31 -> 300000
A125: Control Room Electronic Mapping | B125: =[29]Sheet1!$J$47 -> 367398.68
A126: Tools and Equipment | E126: =[25]Sheet1!$J$29 -> 116135.34
A127: Enterprise Bus | H127: ='[27]2019'!$Y$40 -> 150000
A128: Outage Management System (OMS) | I128: ='[27]2020'!$M$30 -> 400000
A131: Sub-Total | B131: =SUM(B123:B130) -> 1078104.57 | C131: 1589989.59 | D131: 2069272.64 | E131: 1661108.84 | F131: 743656.04 | G131: 212220.07 | H131: 1065000 | I131: 1150000
A132: Miscellaneous | B132: =[29]Sheet1!$J$65 -> 673596.28 | C132: 1250069 | D132: =[24]Sheet1!$J$74 -> 1554539.322 | E132: =[25]Sheet1!$J$85 -> 1199430.06 | F132: =SUM([28]Sheet1!$J$10:$J$13,[28]Sheet1!$J$17,[28]Sheet1!$J$19,[28]Sheet1!$J$23,[28]Sheet1!$J$27:$J$28,[28]Sheet1!$J$36,[28]Sheet1!$J$38:$J$40,[28]Sheet1!$J$42:$J$51,[28]Sheet1!$J$55,[28]Sheet1!$J$59:$J$61,[28]Sheet1!$J$63,[28]Sheet1!$J$68:$J$75,[28]Sheet1!$J$78:$J$79,[28]Sheet1!$J$81,[28]Sheet1!$J$84:$J$88) -> 1439848.373 | G132: =SUM([26]Sheet1!$K$6:$K$8,[26]Sheet1!$K$11:$K$13,[26]Sheet1!$K$17:$K$18,[26]Sheet1!$K$29,[26]Sheet1!$K$32:$K$33,[26]Sheet1!$K$39:$K$41,[26]Sheet1!$K$52,[26]Sheet1!$K$57:$K$61,[26]Sheet1!$K$65:$K$67,[26]Sheet1!$K$69:$K$72) -> 1007375.49 | H132: ='[27]2019'!$X$18+'[27]2019'!$X$22+'[27]2019'!$W$26+'[27]2019'!$W$27+'[27]2019'!$X$30+'[27]2019'!$X$31+'[27]2019'!$W$32+'[27]2019'!$Y$39+'[27]2019'!$Y$38 -> 383617 | I132: ='[27]2020'!$L$14+'[27]2020'!$M$15+'[27]2020'!$M$33 -> 133000
A133: Total | B133: =SUMPRODUCT(--($A15:$A132="Sub-Total"), B$15:B$132)+B132 -> 6225632.84 | C133: 7391586.37 | D133: 7635327.212 | E133: =SUMPRODUCT(--($A15:$A132="Sub-Total"), E$15:E$132)+E132 -> 7743091.15 | F133: 8714946.428 | G133: 9649976.28 | H133: 9557972 | I133: 9415007
A134: Less Renewable Generation Facility Assets and Other Non-Rate-Regulated Utility Assets (input as negative)
A135: Total | B135: =B133+B134 -> 6225632.84 | C135: 7391586.37 | D135: 7635327.212 | E135: 7743091.15 | F135: 8714946.428 | G135: 9649976.28 | H135: 9557972 | I135: 9415007
A137: Notes:
A139: 1 Please provide a breakdown of the major components of each capital project undertaken in each year. Please ensure that all projects below the materiality threshold are included in the miscellaneous line. Add more projects as required.
A140: 2 The applicant should group projects appropriately and avoid presentations that result in classification of significant components of the capital budget in the miscellaneous category.

Sheet App.2-AB_Capital Expenditures
AE1: File Number: | AG1: =EBNUMBER -> EB-2019-0037
AE2: Exhibit: | AG2: 2
AE3: Tab: | AG3: 2
AE4: Schedule: | AG4: 2
A5: TO BE UPDATED AT THE DRAFT RATE ORDER STAGE | AE5: Page: | AG5: 1
AE7: Date: | AG7: 2019-10-31
A9: Appendix 2-AB
A10: Table 2 - Capital Expenditure Summary from Chapter 5 Consolidated Distribution System Plan Filing Requirements
A11: First year of Forecast Period:
A12: =TestYear -> 2020
A13: CATEGORY | B13: Historical Period (previous plan1 & actual) | AC13: Forecast Period (planned)
B14: =E14-1 -> 2011 | E14: =H14-1 -> 2012 | H14: =K14-1 -> 2013 | K14: =N14-1 -> 2014 | N14: =Q14-1 -> 2015 | Q14: =T14-1 -> 2016 | T14: =W14-1 -> 2017 | W14: =Z14-1 -> 2018 | Z14: =AC14-1 -> 2019 | AC14: =A12 -> 2020 | AD14: =AC14+1 -> 2021 | AE14: =AD14+1 -> 2022 | AF14: =AE14+1 -> 2023 | AG14: =AF14+1 -> 2024
B15: Plan | C15: Actual | D15: Var | E15: Plan | F15: Actual | G15: Var | H15: Plan | I15: Actual | J15: Var | K15: Plan | L15: Actual | M15: Var | N15: Plan | O15: Actual | P15: Var | Q15: Plan | R15: Actual | S15: Var | T15: Plan | U15: Actual | V15: Var | W15: Plan | X15: Actual | Y15: Var | Z15: Plan | AA15: Actual2 | AB15: Var
B16: $ '000 | D16: % | E16: $ '000 | G16: % | H16: $ '000 | J16: % | K16: $ '000 | M16: % | N16: $ '000 | P16: % | Q16: $ '000 | S16: % | T16: $ '000 | V16: % | W16: $ '000 | Y16: % | Z16: $ '000 | AB16: % | AC16: $ '000
A17: System Access | D17: =IF(ISERROR((C17-B17)/B17),"--",(C17-B17)/B17) -> -- | G17: =IF(ISERROR((F17-E17)/E17),"--",(F17-E17)/E17) -> -- | H17: =[29]Sheet1!$M$5 -> 1594.256333 | I17: =[29]Sheet1!$N$5 -> 2122.171477 | J17: =IF(ISERROR((I17-H17)/H17),"--",(I17-H17)/H17) -> 0.3311356727 | K17: ='[23]Wiresco 10 Capital CP,WC'!$W$12/1000 -> 1979.082333 | L17: ='[23]Wiresco 10 Capital CP,WC'!$X$12/1000 -> 1724.18383 | M17: =IF(ISERROR((L17-K17)/K17),"--",(L17-K17)/K17) -> -0.1287963108 | N17: =[31]COMBINED!$D$16 -> 1757.222207 | O17: =[31]COMBINED!$E$16 -> 2027.948607 | P17: =IF(ISERROR((O17-N17)/N17),"--",(O17-N17)/N17) -> 0.1540649777 | Q17: =[31]COMBINED!$G$16 -> 1502.66506 | R17: =[31]COMBINED!$H$16 -> 1906.764663 | S17: =IF(ISERROR((R17-Q17)/Q17),"--",(R17-Q17)/Q17) -> 0.2689219402 | T17: =[31]COMBINED!$J$16 -> 1544.191333 | U17: =[31]COMBINED!$K$16 -> 1643.241468 | V17: =IF(ISERROR((U17-T17)/T17),"--",(U17-T17)/T17) -> 0.06414369308 | W17: =[31]COMBINED!$M$16 -> 1644.091667 | X17: =[31]COMBINED!$N$16 -> 1999.569427 | Y17: =IF(ISERROR((X17-W17)/W17),"--",(X17-W17)/W17) -> 0.2162152921 | Z17: =[31]COMBINED!$P$16 -> 1882.773 | AA17: =[32]Report!$R$6/1000 -> 1514.735563 | AB17: =IF(ISERROR((AA17-Z17)/Z17),"--",(AA17-Z17)/Z17) -> -0.1954762665 | AC17: =([33]FORECAST!$C$7+1082000)/1000 -> 1919.673 | AD17: =([33]FORECAST!$D$7+[33]FORECAST!$D$20)/1000 -> 1951.06846 | AE17: =([33]FORECAST!$E$7+[33]FORECAST!$E$20)/1000 -> 1982.8794 | AF17: =([33]FORECAST!$F$7+[33]FORECAST!$F$20)/1000 -> 2015.2134 | AG17: =([33]FORECAST!$G$7+[33]FORECAST!$G$20)/1000 -> 2048.5214
A18: System Renewal | D18: =IF(ISERROR((C18-B18)/B18),"--",(C18-B18)/B18) -> -- | G18: =IF(ISERROR((F18-E18)/E18),"--",(F18-E18)/E18) -> -- | H18: =[29]Sheet1!$M$6 -> 5846.221333 | I18: =[29]Sheet1!$N$6 -> 3044.198477 | J18: =IF(ISERROR((I18-H18)/H18),"--",(I18-H18)/H18) -> -0.4792878505 | K18: ='[23]Wiresco 10 Capital CP,WC'!$W$13/1000 -> 3960.991173 | L18: ='[23]Wiresco 10 Capital CP,WC'!$X$13/1000 -> 4197.45507 | M18: =IF(ISERROR((L18-K18)/K18),"--",(L18-K18)/K18) -> 0.05969816299 | N18: =[31]COMBINED!$D$17 -> 3677.994067 | O18: =[31]COMBINED!$E$17 -> 3540.895507 | P18: =IF(ISERROR((O18-N18)/N18),"--",(O18-N18)/N18) -> -0.03727536193 | Q18: =[31]COMBINED!$G$17 -> 5277.014 | R18: =[31]COMBINED!$H$17 -> 4587.666833 | S18: =IF(ISERROR((R18-Q18)/Q18),"--",(R18-Q18)/Q18) -> -0.1306320519 | T18: =[31]COMBINED!$J$17 -> 5053.992333 | U18: =[31]COMBINED!$K$17 -> 4246.791069 | V18: =IF(ISERROR((U18-T18)/T18),"--",(U18-T18)/T18) -> -0.1597155696 | W18: =[31]COMBINED!$M$17 -> 7780.071667 | X18: =[31]COMBINED!$N$17 -> 7537.580657 | Y18: =IF(ISERROR((X18-W18)/W18),"--",(X18-W18)/W18) -> -0.03116822317 | Z18: =[31]COMBINED!$P$17 -> 6772.3465 | AA18: =[32]Report!$R$7/1000 -> 4340.388633 | AB18: =IF(ISERROR((AA18-Z18)/Z18),"--",(AA18-Z18)/Z18) -> -0.3591012165 | AC18: =([33]FORECAST!$C$8)/1000 -> 5702.2045 | AD18: =[33]FORECAST!$D$8/1000 -> 9009.08493 | AE18: =[33]FORECAST!$E$8/1000 -> 6871.3909 | AF18: =[33]FORECAST!$F$8/1000 -> 7448.9184 | AG18: =[33]FORECAST!$G$8/1000 -> 8164.4989
A19: System Service | D19: -- | G19: -- | H19: =[29]Sheet1!$M$7 -> 2088.204333 | I19: =[29]Sheet1!$N$7 -> 1051.062997 | J19: -0.4966665954 | K19: ='[23]Wiresco 10 Capital CP,WC'!$W$14/1000 -> 1148.734573 | L19: ='[23]Wiresco 10 Capital CP,WC'!$X$14/1000 -> 595.1503 | M19: -0.4819079065 | N19: =[31]COMBINED!$D$18 -> 897.3761667 | O19: =[31]COMBINED!$E$18 -> 1076.880577 | P19: 0.2000325133 | Q19: =[31]COMBINED!$G$18 -> 371.07 | R19: =[31]COMBINED!$H$18 -> 364.1639933 | S19: -0.0186110617 | T19: =[31]COMBINED!$J$18 -> 1798.527333 | U19: =[31]COMBINED!$K$18 -> 2587.034902 | V19: 0.4384184519 | W19: =[31]COMBINED!$M$18 -> 1024.694667 | X19: =[31]COMBINED!$N$18 -> 934.0105567 | Y19: -0.08849866497 | Z19: =[31]COMBINED!$P$18 -> 842.9525 | AA19: =[32]Report!$R$8/1000 -> 856.0867633 | AB19: 0.0155812615 | AC19: =[33]FORECAST!$C$9/1000 -> 1610.1295 | AD19: =[33]FORECAST!$D$9/1000 -> 874.39661 | AE19: =[33]FORECAST!$E$9/1000 -> 656.7767 | AF19: =[33]FORECAST!$F$9/1000 -> 737.9722 | AG19: =[33]FORECAST!$G$9/1000 -> 80.1917
A20: General Plant | D20: -- | G20: -- | H20: =[29]Sheet1!$M$8 -> 2427.714 | I20: =[29]Sheet1!$N$8 -> 1255.53157 | J20: -0.4828338223 | K20: ='[23]Wiresco 10 Capital CP,WC'!$W$15/1000 -> 2316.71139 | L20: ='[23]Wiresco 10 Capital CP,WC'!$X$15/1000 -> 1753.02812 | M20: -0.2433118223 | N20: =[31]COMBINED!$D$19 -> 3171.10493 | O20: =[31]COMBINED!$E$19 -> 2246.07265 | P20: -0.2917066134 | Q20: =[31]COMBINED!$G$19 -> 1932.38657 | R20: =[31]COMBINED!$H$19 -> 1767.49366 | S20: -0.08533122335 | T20: =[31]COMBINED!$J$19 -> 1727.072 | U20: =[31]COMBINED!$K$19 -> 995.27213 | V20: -0.42372285 | W20: =[31]COMBINED!$M$19 -> 999.106 | X20: =[31]COMBINED!$N$19 -> 414.83975 | Y20: -0.5847890514 | Z20: =[31]COMBINED!$P$19 -> 1155 | AA20: =[32]Report!$R$9/1000 -> 853.64187 | AB20: -0.2609161299 | AC20: =([33]FORECAST!$C$10)/1000 -> 1265 | AD20: =[33]FORECAST!$D$10/1000 -> 907 | AE20: =[33]FORECAST!$E$10/1000 -> 1384.34 | AF20: =[33]FORECAST!$F$10/1000 -> 902.027 | AG20: =[33]FORECAST!$G$10/1000 -> 1020.067
A21: TOTAL EXPENDITURE | B21: =SUM(B17:B20) -> 0 | C21: =SUM(C17:C20) -> 0 | D21: -- | E21: =SUM(E17:E20) -> 0 | F21: =SUM(F17:F20) -> 0 | G21: -- | H21: =SUM(H17:H20) -> 11956.396 | I21: =SUM(I17:I20) -> 7472.96452 | J21: -0.374981849 | K21: =SUM(K17:K20) -> 9405.51947 | L21: =SUM(L17:L20) -> 8269.81732 | M21: -0.1207484769 | N21: =SUM(N17:N20) -> 9503.69737 | O21: =SUM(O17:O20) -> 8891.79734 | P21: -0.06438547085 | Q21: 9083.13563 | R21: 8626.08915 | S21: -0.05031813887 | T21: 10123.783 | U21: 9472.33957 | V21: -0.0643478263 | W21: 11447.964 | X21: 10886.00039 | Y21: -0.04908852002 | Z21: 10653.072 | AA21: 7564.85283 | AB21: -0.289890012 | AC21: 10497.007 | AD21: 12741.55 | AE21: 10895.387 | AF21: 11104.131 | AG21: =SUM(AG17:AG20) -> 11313.279
A22: Capital Contributions | D22: -- | G22: -- | H22: =[29]Sheet1!$M$10 -> -703.79 | I22: =[29]Sheet1!$N$10 -> -1247.33168 | J22: 0.7723066256 | K22: ='[23]Wiresco 10 Capital CP,WC'!$W$18/1000 -> -850.978 | L22: ='[23]Wiresco 10 Capital CP,WC'!$X$18/1000 -> -878.23047 | M22: 0.03202488196 | N22: =[31]COMBINED!$D$21 -> -743.96729 | O22: =[31]COMBINED!$E$21 -> -1256.470128 | P22: 0.6888781871 | Q22: =[31]COMBINED!$G$21 -> -711.352 | R22: =[31]COMBINED!$H$21 -> -882.998 | S22: 0.2412954487 | T22: =[31]COMBINED!$J$21 -> -706.021 | U22: =[31]COMBINED!$K$21 -> -757.3931424 | V22: 0.0727629099 | W22: =[31]COMBINED!$M$21 -> -965 | X22: =[31]COMBINED!$N$21 -> -1236.02411 | Y22: 0.280854 | Z22: =[31]COMBINED!$P$21 -> -1095.1 | AA22: =[32]Report!$R$11/1000 -> -763.771365 | AB22: -0.3025555977 | AC22: =[31]COMBINED!$S$21 -> -1082.1 | AD22: =-[33]FORECAST!$D$20/1000 -> -1102.1 | AE22: =-[33]FORECAST!$E$20/1000 -> -1122.5 | AF22: =-[33]FORECAST!$F$20/1000 -> -1143.304 | AG22: =-[33]FORECAST!$G$20/1000 -> -1164.512
A23: Net Capital Expenditures | D23: -- | G23: -- | H23: =H21+H22 -> 11252.606 | I23: =I21+I22 -> 6225.63284 | J23: -0.4467385742 | K23: =K21+K22 -> 8554.54147 | L23: =L21+L22 -> 7391.58685 | M23: -0.1359458744 | N23: =N21+N22 -> 8759.73008 | O23: =O21+O22 -> 7635.327212 | P23: -0.1283604469 | Q23: =Q21+Q22 -> 8371.78363 | R23: =R21+R22 -> 7743.09115 | S23: -0.07509659922 | T23: =T21+T22 -> 9417.762 | U23: =U21+U22 -> 8714.946428 | V23: -0.07462660157 | W23: =W21+W22 -> 10482.964 | X23: =X21+X22 -> 9649.97628 | Y23: -0.07946108753 | Z23: =Z21+Z22 -> 9557.972 | AA23: =AA21+AA22 -> 6801.081465 | AB23: -0.2884388587 | AC23: =AC21+AC22 -> 9414.907 | AD23: =AD21+AD22 -> 11639.45 | AE23: =AE21+AE22 -> 9772.887 | AF23: =AF21+AF22 -> 9960.827 | AG23: =AG21+AG22 -> 10148.767
A24: System O&M | D24: -- | G24: -- | H24: ='[34]OM&A Only -Jamie for linking'!$L$67/1000 -> 7988.294 | I24: ='[34]OM&A Only -Jamie for linking'!$K$67/1000 -> 7349.98571 | J24: -0.07990545791 | K24: =(6156700+1961027)/1000 -> 8117.727 | L24: ='[34]OM&A Only -Jamie for linking'!$J$67/1000 -> 6672.32937 | M24: -0.1780544763 | N24: =[31]COMBINED!$D$23 -> 8543.593 | O24: =[31]COMBINED!$E$23 -> 7498.65464 | P24: -0.1223066642 | Q24: =[31]COMBINED!$G$23 -> 8988.568 | R24: =[31]COMBINED!$H$23 -> 7543.23658 | S24: -0.1607966274 | T24: =[31]COMBINED!$J$23 -> 8381.501 | U24: =[31]COMBINED!$K$23 -> 7666.72622 | V24: -0.08528004471 | W24: =[31]COMBINED!$M$23 -> 8785.923 | X24: =[31]COMBINED!$N$23 -> 7578.67165 | Y24: -0.1374074585 | Z24: =[31]COMBINED!$P$23 -> 7890.434 | AA24: =(4830683+1168125)/1000 -> 5998.808 | AB24: -0.2397366229 | AC24: =[33]FORECAST!$C$12 -> 9141.039 | AD24: =[33]FORECAST!$D$12 -> 9323.85978 | AE24: =[33]FORECAST!$E$12 -> 9510.336976 | AF24: =[33]FORECAST!$F$12 -> 9700.543715 | AG24: =[33]FORECAST!$G$12 -> 9894.554589
A26: Notes to the Table:
A27: 1. Historical “previous plan” data is not required unless a plan has previously been filed. However, use the last OEB-approved, at least on a Total (Capital) Expenditure basis for the last cost of service rebasing year, and the applicant should include their planned budget in each subsequent historical year up to and including the Bridge Year.
A28: 2. Indicate the number of months of 'actual' data included in the last year of the Historical Period (normally a 'bridge' year):
A30: Explanatory Notes on Variances (complete only if applicable)
A31: Notes on shifts in forecast vs. historical budgets by category
A32: Refer to Exhibit 2, Tab 2, Schedule 2 for variance analysis.
A34: Notes on year over year Plan vs. Actual variances for Total Expenditures
A35: Refer to Exhibit 2, Tab 2, Schedule 2 for variance analysis.
A37: Notes on Plan vs. Actual variance trends for individual expenditure categories
A38: Refer to Exhibit 2, Tab 2, Schedule 2 for variance analysis.

Sheet Hidden_CAPEX (hidden)
A1: Utility Name | B1: EB Number | C1: Test Year | D1: Bridge Year | E1: Last Rebasing Year | F1: Category | G1: Year | H1: Plan | I1: Actual
A2: ='LDC Info'!$E$14 -> Greater Sudbury Hydro Inc. | B2: =EBNUMBER -> EB-2019-0037 | C2: =TestYear -> 2020 | D2: =BridgeYear -> 2019 | E2: =RebaseYear -> 2013 | F2: System Access | G2: ='App.2-AB_Capital Expenditures'!B14 -> 2011 | H2: ='App.2-AB_Capital Expenditures'!B17 -> 0 | I2: ='App.2-AB_Capital Expenditures'!C17 -> 0
A3: ='LDC Info'!$E$14 -> Greater Sudbury Hydro Inc. | B3: EB-2019-0037 | C3: 2020 | D3: 2019 | E3: 2013 | F3: System Renewal | G3: ='App.2-AB_Capital Expenditures'!B14 -> 2011 | H3: ='App.2-AB_Capital Expenditures'!B18 -> 0 | I3: ='App.2-AB_Capital Expenditures'!C18 -> 0
A4: ='LDC Info'!$E$14 -> Greater Sudbury Hydro Inc. | B4: EB-2019-0037 | C4: 2020 | D4: 2019 | E4: 2013 | F4: System Service | G4: ='App.2-AB_Capital Expenditures'!B14 -> 2011 | H4: ='App.2-AB_Capital Expenditures'!B19 -> 0 | I4: ='App.2-AB_Capital Expenditures'!C19 -> 0
A5: ='LDC Info'!$E$14 -> Greater Sudbury Hydro Inc. | B5: EB-2019-0037 | C5: 2020 | D5: 2019 | E5: 2013 | F5: General Plant | G5: ='App.2-AB_Capital Expenditures'!B14 -> 2011 | H5: ='App.2-AB_Capital Expenditures'!B20 -> 0 | I5: ='App.2-AB_Capital Expenditures'!C20 -> 0
A6: ='LDC Info'!$E$14 -> Greater Sudbury Hydro Inc. | B6: EB-2019-0037 | C6: 2020 | D6: 2019 | E6: 2013 | F6: Total Expenditure | G6: ='App.2-AB_Capital Expenditures'!B14 -> 2011 | H6: ='App.2-AB_Capital Expenditures'!B21 -> 0 | I6: ='App.2-AB_Capital Expenditures'!C21 -> 0
A7: ='LDC Info'!$E$14 -> Greater Sudbury Hydro Inc. | B7: EB-2019-0037 | C7: 2020 | D7: 2019 | E7: 2013 | F7: Capital Contributions | G7: ='App.2-AB_Capital Expenditures'!B14 -> 2011 | H7: ='App.2-AB_Capital Expenditures'!B22 -> 0 | I7: ='App.2-AB_Capital Expenditures'!C22 -> 0
A8: ='LDC Info'!$E$14 -> Greater Sudbury Hydro Inc. | B8: EB-2019-0037 | C8: 2020 | D8: 2019 | E8: 2013 | F8: Net Capital Expenditures | G8: ='App.2-AB_Capital Expenditures'!B14 -> 2011 | H8: ='App.2-AB_Capital Expenditures'!B23 -> 0 | I8: ='App.2-AB_Capital Expenditures'!C23 -> 0
A9: ='LDC Info'!$E$14 -> Greater Sudbury Hydro Inc. | B9: EB-2019-0037 | C9: 2020 | D9: 2019 | E9: 2013 | F9: System O&M | G9: ='App.2-AB_Capital Expenditures'!B14 -> 2011 | H9: ='App.2-AB_Capital Expenditures'!B24 -> 0 | I9: ='App.2-AB_Capital Expenditures'!C24 -> 0
A10: ='LDC Info'!$E$14 -> Greater Sudbury Hydro Inc. | B10: EB-2019-0037 | C10: 2020 | D10: 2019 | E10: 2013 | F10: System Access | G10: ='App.2-AB_Capital Expenditures'!E14 -> 2012 | H10: ='App.2-AB_Capital Expenditures'!E17 -> 0 | I10: ='App.2-AB_Capital Expenditures'!F17 -> 0
A11: ='LDC Info'!$E$14 -> Greater Sudbury Hydro Inc. | B11: EB-2019-0037 | C11: 2020 | D11: 2019 | E11: 2013 | F11: System Renewal | G11: ='App.2-AB_Capital Expenditures'!E14 -> 2012 | H11: ='App.2-AB_Capital Expenditures'!E18 -> 0 | I11: ='App.2-AB_Capital Expenditures'!F18 -> 0
A12: ='LDC Info'!$E$14 -> Greater Sudbury Hydro Inc. | B12: EB-2019-0037 | C12: 2020 | D12: 2019 | E12: 2013 | F12: System Service | G12: ='App.2-AB_Capital Expenditures'!E14 -> 2012 | H12: ='App.2-AB_Capital Expenditures'!E19 -> 0 | I12: ='App.2-AB_Capital Expenditures'!F19 -> 0
A13: ='LDC Info'!$E$14 -> Greater Sudbury Hydro Inc. | B13: EB-2019-0037 | C13: 2020 | D13: 2019 | E13: 2013 | F13: General Plant | G13: ='App.2-AB_Capital Expenditures'!E14 -> 2012 | H13: ='App.2-AB_Capital Expenditures'!E20 -> 0 | I13: ='App.2-AB_Capital Expenditures'!F20 -> 0
A14: ='LDC Info'!$E$14 -> Greater Sudbury Hydro Inc. | B14: EB-2019-0037 | C14: 2020 | D14: 2019 | E14: 2013 | F14: Total Expenditure | G14: ='App.2-AB_Capital Expenditures'!E14 -> 2012 | H14: ='App.2-AB_Capital Expenditures'!E21 -> 0 | I14: ='App.2-AB_Capital Expenditures'!F21 -> 0
A15: ='LDC Info'!$E$14 -> Greater Sudbury Hydro Inc. | B15: EB-2019-0037 | C15: 2020 | D15: 2019 | E15: 2013 | F15: Capital Contributions | G15: ='App.2-AB_Capital Expenditures'!E14 -> 2012 | H15: ='App.2-AB_Capital Expenditures'!E22 -> 0 | I15: ='App.2-AB_Capital Expenditures'!F22 -> 0
A16: ='LDC Info'!$E$14 -> Greater Sudbury Hydro Inc. | B16: EB-2019-0037 | C16: 2020 | D16: 2019 | E16: 2013 | F16: Net Capital Expenditures | G16: ='App.2-AB_Capital Expenditures'!E14 -> 2012 | H16: ='App.2-AB_Capital Expenditures'!E23 -> 0 | I16: ='App.2-AB_Capital Expenditures'!F23 -> 0
A17: ='LDC Info'!$E$14 -> Greater Sudbury Hydro Inc. | B17: EB-2019-0037 | C17: 2020 | D17: 2019 | E17: 2013 | F17: System O&M | G17: ='App.2-AB_Capital Expenditures'!E14 -> 2012 | H17: ='App.2-AB_Capital Expenditures'!E24 -> 0 | I17: ='App.2-AB_Capital Expenditures'!F24 -> 0
A18: ='LDC Info'!$E$14 -> Greater Sudbury Hydro Inc. | B18: EB-2019-0037 | C18: 2020 | D18: 2019 | E18: 2013 | F18: System Access | G18: ='App.2-AB_Capital Expenditures'!H14 -> 2013 | H18: ='App.2-AB_Capital Expenditures'!H17 -> 1594.256333 | I18: ='App.2-AB_Capital Expenditures'!I17 -> 2122.171477
A19: ='LDC Info'!$E$14 -> Greater Sudbury Hydro Inc. | B19: EB-2019-0037 | C19: 2020 | D19: 2019 | E19: 2013 | F19: System Renewal | G19: ='App.2-AB_Capital Expenditures'!H14 -> 2013 | H19: ='App.2-AB_Capital Expenditures'!H18 -> 5846.221333 | I19: ='App.2-AB_Capital Expenditures'!I18 -> 3044.198477
A20: ='LDC Info'!$E$14 -> Greater Sudbury Hydro Inc. | B20: EB-2019-0037 | C20: 2020 | D20: 2019 | E20: 2013 | F20: System Service | G20: ='App.2-AB_Capital Expenditures'!H14 -> 2013 | H20: ='App.2-AB_Capital Expenditures'!H19 -> 2088.204333 | I20: ='App.2-AB_Capital Expenditures'!I19 -> 1051.062997
A21: ='LDC Info'!$E$14 -> Greater Sudbury Hydro Inc. | B21: EB-2019-0037 | C21: 2020 | D21: 2019 | E21: 2013 | F21: General Plant | G21: ='App.2-AB_Capital Expenditures'!H14 -> 2013 | H21: ='App.2-AB_Capital Expenditures'!H20 -> 2427.714 | I21: ='App.2-AB_Capital Expenditures'!I20 -> 1255.53157
A22: ='LDC Info'!$E$14 -> Greater Sudbury Hydro Inc. | B22: EB-2019-0037 | C22: 2020 | D22: 2019 | E22: 2013 | F22: Total Expenditure | G22: ='App.2-AB_Capital Expenditures'!H14 -> 2013 | H22: ='App.2-AB_Capital Expenditures'!H21 -> 11956.396 | I22: ='App.2-AB_Capital Expenditures'!I21 -> 7472.96452
A23: ='LDC Info'!$E$14 -> Greater Sudbury Hydro Inc. | B23: EB-2019-0037 | C23: 2020 | D23: 2019 | E23: 2013 | F23: Capital Contributions | G23: ='App.2-AB_Capital Expenditures'!H14 -> 2013 | H23: ='App.2-AB_Capital Expenditures'!H22 -> -703.79 | I23: ='App.2-AB_Capital Expenditures'!I22 -> -1247.33168
A24: ='LDC Info'!$E$14 -> Greater Sudbury Hydro Inc. | B24: EB-2019-0037 | C24: 2020 | D24: 2019 | E24: 2013 | F24: Net Capital Expenditures | G24: ='App.2-AB_Capital Expenditures'!H14 -> 2013 | H24: ='App.2-AB_Capital Expenditures'!H23 -> 11252.606 | I24: ='App.2-AB_Capital Expenditures'!I23 -> 6225.63284
A25: ='LDC Info'!$E$14 -> Greater Sudbury Hydro Inc. | B25: EB-2019-0037 | C25: 2020 | D25: 2019 | E25: 2013 | F25: System O&M | G25: ='App.2-AB_Capital Expenditures'!H14 -> 2013 | H25: ='App.2-AB_Capital Expenditures'!H24 -> 7988.294 | I25: ='App.2-AB_Capital Expenditures'!I24 -> 7349.98571
A26: ='LDC Info'!$E$14 -> Greater Sudbury Hydro Inc. | B26: EB-2019-0037 | C26: 2020 | D26: 2019 | E26: 2013 | F26: System Access | G26: ='App.2-AB_Capital Expenditures'!K14 -> 2014 | H26: ='App.2-AB_Capital Expenditures'!K17 -> 1979.082333 | I26: ='App.2-AB_Capital Expenditures'!L17 -> 1724.18383
A27: ='LDC Info'!$E$14 -> Greater Sudbury Hydro Inc. | B27: EB-2019-0037 | C27: 2020 | D27: 2019 | E27: 2013 | F27: System Renewal | G27: ='App.2-AB_Capital Expenditures'!K14 -> 2014 | H27: ='App.2-AB_Capital Expenditures'!K18 -> 3960.991173 | I27: ='App.2-AB_Capital Expenditures'!L18 -> 4197.45507
A28: ='LDC Info'!$E$14 -> Greater Sudbury Hydro Inc. | B28: EB-2019-0037 | C28: 2020 | D28: 2019 | E28: 2013 | F28: System Service | G28: ='App.2-AB_Capital Expenditures'!K14 -> 2014 | H28: ='App.2-AB_Capital Expenditures'!K19 -> 1148.734573 | I28: ='App.2-AB_Capital Expenditures'!L19 -> 595.1503
A29: ='LDC Info'!$E$14 -> Greater Sudbury Hydro Inc. | B29: EB-2019-0037 | C29: 2020 | D29: 2019 | E29: 2013 | F29: General Plant | G29: ='App.2-AB_Capital Expenditures'!K14 -> 2014 | H29: ='App.2-AB_Capital Expenditures'!K20 -> 2316.71139 | I29: ='App.2-AB_Capital Expenditures'!L20 -> 1753.02812
A30: ='LDC Info'!$E$14 -> Greater Sudbury Hydro Inc. | B30: EB-2019-0037 | C30: 2020 | D30: 2019 | E30: 2013 | F30: Total Expenditure | G30: ='App.2-AB_Capital Expenditures'!K14 -> 2014 | H30: ='App.2-AB_Capital Expenditures'!K21 -> 9405.51947 | I30: ='App.2-AB_Capital Expenditures'!L21 -> 8269.81732
A31: ='LDC Info'!$E$14 -> Greater Sudbury Hydro Inc. | B31: EB-2019-0037 | C31: 2020 | D31: 2019 | E31: 2013 | F31: Capital Contributions | G31: ='App.2-AB_Capital Expenditures'!K14 -> 2014 | H31: ='App.2-AB_Capital Expenditures'!K22 -> -850.978 | I31: ='App.2-AB_Capital Expenditures'!L22 -> -878.23047
A32: ='LDC Info'!$E$14 -> Greater Sudbury Hydro Inc. | B32: EB-2019-0037 | C32: 2020 | D32: 2019 | E32: 2013 | F32: Net Capital Expenditures | G32: ='App.2-AB_Capital Expenditures'!K14 -> 2014 | H32: ='App.2-AB_Capital Expenditures'!K23 -> 8554.54147 | I32: ='App.2-AB_Capital Expenditures'!L23 -> 7391.58685
A33: ='LDC Info'!$E$14 -> Greater Sudbury Hydro Inc. | B33: EB-2019-0037 | C33: 2020 | D33: 2019 | E33: 2013 | F33: System O&M | G33: ='App.2-AB_Capital Expenditures'!K14 -> 2014 | H33: ='App.2-AB_Capital Expenditures'!K24 -> 8117.727 | I33: ='App.2-AB_Capital Expenditures'!L24 -> 6672.32937
A34: ='LDC Info'!$E$14 -> Greater Sudbury Hydro Inc. | B34: =EBNUMBER -> EB-2019-0037 | C34: =TestYear -> 2020 | D34: =BridgeYear -> 2019 | E34: =RebaseYear -> 2013 | F34: System Access | G34: ='App.2-AB_Capital Expenditures'!N14 -> 2015 | H34: ='App.2-AB_Capital Expenditures'!N17 -> 1757.222207 | I34: ='App.2-AB_Capital Expenditures'!O17 -> 2027.948607
A35: ='LDC Info'!$E$14 -> Greater Sudbury Hydro Inc. | B35: EB-2019-0037 | C35: 2020 | D35: 2019 | E35: 2013 | F35: System Renewal | G35: ='App.2-AB_Capital Expenditures'!N14 -> 2015 | H35: ='App.2-AB_Capital Expenditures'!N18 -> 3677.994067 | I35: ='App.2-AB_Capital Expenditures'!O18 -> 3540.895507
A36: ='LDC Info'!$E$14 -> Greater Sudbury Hydro Inc. | B36: EB-2019-0037 | C36: 2020 | D36: 2019 | E36: 2013 | F36: System Service | G36: ='App.2-AB_Capital Expenditures'!N14 -> 2015 | H36: ='App.2-AB_Capital Expenditures'!N19 -> 897.3761667 | I36: ='App.2-AB_Capital Expenditures'!O19 -> 1076.880577
A37: ='LDC Info'!$E$14 -> Greater Sudbury Hydro Inc. | B37: EB-2019-0037 | C37: 2020 | D37: 2019 | E37: 2013 | F37: General Plant | G37: ='App.2-AB_Capital Expenditures'!N14 -> 2015 | H37: ='App.2-AB_Capital Expenditures'!N20 -> 3171.10493 | I37: ='App.2-AB_Capital Expenditures'!O20 -> 2246.07265
A38: ='LDC Info'!$E$14 -> Greater Sudbury Hydro Inc. | B38: EB-2019-0037 | C38: 2020 | D38: 2019 | E38: 2013 | F38: Total Expenditure | G38: ='App.2-AB_Capital Expenditures'!N14 -> 2015 | H38: ='App.2-AB_Capital Expenditures'!N21 -> 9503.69737 | I38: ='App.2-AB_Capital Expenditures'!O21 -> 8891.79734
A39: ='LDC Info'!$E$14 -> Greater Sudbury Hydro Inc. | B39: EB-2019-0037 | C39: 2020 | D39: 2019 | E39: 2013 | F39: Capital Contributions | G39: ='App.2-AB_Capital Expenditures'!N14 -> 2015 | H39: ='App.2-AB_Capital Expenditures'!N22 -> -743.96729 | I39: ='App.2-AB_Capital Expenditures'!O22 -> -1256.470128
A40: ='LDC Info'!$E$14 -> Greater Sudbury Hydro Inc. | B40: EB-2019-0037 | C40: 2020 | D40: 2019 | E40: 2013 | F40: Net Capital Expenditures | G40: ='App.2-AB_Capital Expenditures'!N14 -> 2015 | H40: ='App.2-AB_Capital Expenditures'!N23 -> 8759.73008 | I40: ='App.2-AB_Capital Expenditures'!O23 -> 7635.327212
A41: ='LDC Info'!$E$14 -> Greater Sudbury Hydro Inc. | B41: EB-2019-0037 | C41: 2020 | D41: 2019 | E41: 2013 | F41: System O&M | G41: ='App.2-AB_Capital Expenditures'!N14 -> 2015 | H41: ='App.2-AB_Capital Expenditures'!N24 -> 8543.593 | I41: ='App.2-AB_Capital Expenditures'!O24 -> 7498.65464
A42: ='LDC Info'!$E$14 -> Greater Sudbury Hydro Inc. | B42: EB-2019-0037 | C42: 2020 | D42: 2019 | E42: 2013 | F42: System Access | G42: ='App.2-AB_Capital Expenditures'!Q14 -> 2016 | H42: ='App.2-AB_Capital Expenditures'!Q17 -> 1502.66506 | I42: ='App.2-AB_Capital Expenditures'!R17 -> 1906.764663
A43: ='LDC Info'!$E$14 -> Greater Sudbury Hydro Inc. | B43: EB-2019-0037 | C43: 2020 | D43: 2019 | E43: 2013 | F43: System Renewal | G43: ='App.2-AB_Capital Expenditures'!Q14 -> 2016 | H43: ='App.2-AB_Capital Expenditures'!Q18 -> 5277.014 | I43: ='App.2-AB_Capital Expenditures'!R18 -> 4587.666833
A44: ='LDC Info'!$E$14 -> Greater Sudbury Hydro Inc. | B44: EB-2019-0037 | C44: 2020 | D44: 2019 | E44: 2013 | F44: System Service | G44: ='App.2-AB_Capital Expenditures'!Q14 -> 2016 | H44: ='App.2-AB_Capital Expenditures'!Q19 -> 371.07 | I44: ='App.2-AB_Capital Expenditures'!R19 -> 364.1639933
A45: ='LDC Info'!$E$14 -> Greater Sudbury Hydro Inc. | B45: EB-2019-0037 | C45: 2020 | D45: 2019 | E45: 2013 | F45: General Plant | G45: ='App.2-AB_Capital Expenditures'!Q14 -> 2016 | H45: ='App.2-AB_Capital Expenditures'!Q20 -> 1932.38657 | I45: ='App.2-AB_Capital Expenditures'!R20 -> 1767.49366
A46: ='LDC Info'!$E$14 -> Greater Sudbury Hydro Inc. | B46: EB-2019-0037 | C46: 2020 | D46: 2019 | E46: 2013 | F46: Total Expenditure | G46: ='App.2-AB_Capital Expenditures'!Q14 -> 2016 | H46: ='App.2-AB_Capital Expenditures'!Q21 -> 9083.13563 | I46: ='App.2-AB_Capital Expenditures'!R21 -> 8626.08915
A47: ='LDC Info'!$E$14 -> Greater Sudbury Hydro Inc. | B47: EB-2019-0037 | C47: 2020 | D47: 2019 | E47: 2013 | F47: Capital Contributions | G47: ='App.2-AB_Capital Expenditures'!Q14 -> 2016 | H47: ='App.2-AB_Capital Expenditures'!Q22 -> -711.352 | I47: ='App.2-AB_Capital Expenditures'!R22 -> -882.998
A48: ='LDC Info'!$E$14 -> Greater Sudbury Hydro Inc. | B48: EB-2019-0037 | C48: 2020 | D48: 2019 | E48: 2013 | F48: Net Capital Expenditures | G48: ='App.2-AB_Capital Expenditures'!Q14 -> 2016 | H48: ='App.2-AB_Capital Expenditures'!Q23 -> 8371.78363 | I48: ='App.2-AB_Capital Expenditures'!R23 -> 7743.09115
A49: ='LDC Info'!$E$14 -> Greater Sudbury Hydro Inc. | B49: EB-2019-0037 | C49: 2020 | D49: 2019 | E49: 2013 | F49: System O&M | G49: ='App.2-AB_Capital Expenditures'!Q14 -> 2016 | H49: ='App.2-AB_Capital Expenditures'!Q24 -> 8988.568 | I49: ='App.2-AB_Capital Expenditures'!R24 -> 7543.23658
A50: ='LDC Info'!$E$14 -> Greater Sudbury Hydro Inc. | B50: EB-2019-0037 | C50: 2020 | D50: 2019 | E50: 2013 | F50: System Access | G50: ='App.2-AB_Capital Expenditures'!T14 -> 2017 | H50: ='App.2-AB_Capital Expenditures'!T17 -> 1544.191333 | I50: ='App.2-AB_Capital Expenditures'!U17 -> 1643.241468
A51: ='LDC Info'!$E$14 -> Greater Sudbury Hydro Inc. | B51: EB-2019-0037 | C51: 2020 | D51: 2019 | E51: 2013 | F51: System Renewal | G51: ='App.2-AB_Capital Expenditures'!T14 -> 2017 | H51: ='App.2-AB_Capital Expenditures'!T18 -> 5053.992333 | I51: ='App.2-AB_Capital Expenditures'!U18 -> 4246.791069
A52: ='LDC Info'!$E$14 -> Greater Sudbury Hydro Inc. | B52: EB-2019-0037 | C52: 2020 | D52: 2019 | E52: 2013 | F52: System Service | G52: ='App.2-AB_Capital Expenditures'!T14 -> 2017 | H52: ='App.2-AB_Capital Expenditures'!T19 -> 1798.527333 | I52: ='App.2-AB_Capital Expenditures'!U19 -> 2587.034902
A53: ='LDC Info'!$E$14 -> Greater Sudbury Hydro Inc. | B53: EB-2019-0037 | C53: 2020 | D53: 2019 | E53: 2013 | F53: General Plant | G53: ='App.2-AB_Capital Expenditures'!T14 -> 2017 | H53: ='App.2-AB_Capital Expenditures'!T20 -> 1727.072 | I53: ='App.2-AB_Capital Expenditures'!U20 -> 995.27213
A54: ='LDC Info'!$E$14 -> Greater Sudbury Hydro Inc. | B54: EB-2019-0037 | C54: 2020 | D54: 2019 | E54: 2013 | F54: Total Expenditure | G54: ='App.2-AB_Capital Expenditures'!T14 -> 2017 | H54: ='App.2-AB_Capital Expenditures'!T21 -> 10123.783 | I54: ='App.2-AB_Capital Expenditures'!U21 -> 9472.33957
A55: ='LDC Info'!$E$14 -> Greater Sudbury Hydro Inc. | B55: EB-2019-0037 | C55: 2020 | D55: 2019 | E55: 2013 | F55: Capital Contributions | G55: ='App.2-AB_Capital Expenditures'!T14 -> 2017 | H55: ='App.2-AB_Capital Expenditures'!T22 -> -706.021 | I55: ='App.2-AB_Capital Expenditures'!U22 -> -757.3931424
A56: ='LDC Info'!$E$14 -> Greater Sudbury Hydro Inc. | B56: EB-2019-0037 | C56: 2020 | D56: 2019 | E56: 2013 | F56: Net Capital Expenditures | G56: ='App.2-AB_Capital Expenditures'!T14 -> 2017 | H56: ='App.2-AB_Capital Expenditures'!T23 -> 9417.762 | I56: ='App.2-AB_Capital Expenditures'!U23 -> 8714.946428
A57: ='LDC Info'!$E$14 -> Greater Sudbury Hydro Inc. | B57: EB-2019-0037 | C57: 2020 | D57: 2019 | E57: 2013 | F57: System O&M | G57: ='App.2-AB_Capital Expenditures'!T14 -> 2017 | H57: ='App.2-AB_Capital Expenditures'!T24 -> 8381.501 | I57: ='App.2-AB_Capital Expenditures'!U24 -> 7666.72622
A58: ='LDC Info'!$E$14 -> Greater Sudbury Hydro Inc. | B58: EB-2019-0037 | C58: 2020 | D58: 2019 | E58: 2013 | F58: System Access | G58: ='App.2-AB_Capital Expenditures'!W14 -> 2018 | H58: ='App.2-AB_Capital Expenditures'!W17 -> 1644.091667 | I58: ='App.2-AB_Capital Expenditures'!X17 -> 1999.569427
A59: ='LDC Info'!$E$14 -> Greater Sudbury Hydro Inc. | B59: EB-2019-0037 | C59: 2020 | D59: 2019 | E59: 2013 | F59: System Renewal | G59: ='App.2-AB_Capital Expenditures'!W14 -> 2018 | H59: ='App.2-AB_Capital Expenditures'!W18 -> 7780.071667 | I59: ='App.2-AB_Capital Expenditures'!X18 -> 7537.580657
A60: ='LDC Info'!$E$14 -> Greater Sudbury Hydro Inc. | B60: EB-2019-0037 | C60: 2020 | D60: 2019 | E60: 2013 | F60: System Service | G60: ='App.2-AB_Capital Expenditures'!W14 -> 2018 | H60: ='App.2-AB_Capital Expenditures'!W19 -> 1024.694667 | I60: ='App.2-AB_Capital Expenditures'!X19 -> 934.0105567
A61: ='LDC Info'!$E$14 -> Greater Sudbury Hydro Inc. | B61: EB-2019-0037 | C61: 2020 | D61: 2019 | E61: 2013 | F61: General Plant | G61: ='App.2-AB_Capital Expenditures'!W14 -> 2018 | H61: ='App.2-AB_Capital Expenditures'!W20 -> 999.106 | I61: ='App.2-AB_Capital Expenditures'!X20 -> 414.83975
A62: ='LDC Info'!$E$14 -> Greater Sudbury Hydro Inc. | B62: EB-2019-0037 | C62: 2020 | D62: 2019 | E62: 2013 | F62: Total Expenditure | G62: ='App.2-AB_Capital Expenditures'!W14 -> 2018 | H62: ='App.2-AB_Capital Expenditures'!W21 -> 11447.964 | I62: ='App.2-AB_Capital Expenditures'!X21 -> 10886.00039
A63: ='LDC Info'!$E$14 -> Greater Sudbury Hydro Inc. | B63: EB-2019-0037 | C63: 2020 | D63: 2019 | E63: 2013 | F63: Capital Contributions | G63: ='App.2-AB_Capital Expenditures'!W14 -> 2018 | H63: ='App.2-AB_Capital Expenditures'!W22 -> -965 | I63: ='App.2-AB_Capital Expenditures'!X22 -> -1236.02411
A64: ='LDC Info'!$E$14 -> Greater Sudbury Hydro Inc. | B64: EB-2019-0037 | C64: 2020 | D64: 2019 | E64: 2013 | F64: Net Capital Expenditures | G64: ='App.2-AB_Capital Expenditures'!W14 -> 2018 | H64: ='App.2-AB_Capital Expenditures'!W23 -> 10482.964 | I64: ='App.2-AB_Capital Expenditures'!X23 -> 9649.97628
A65: ='LDC Info'!$E$14 -> Greater Sudbury Hydro Inc. | B65: EB-2019-0037 | C65: 2020 | D65: 2019 | E65: 2013 | F65: System O&M | G65: ='App.2-AB_Capital Expenditures'!W14 -> 2018 | H65: ='App.2-AB_Capital Expenditures'!W24 -> 8785.923 | I65: ='App.2-AB_Capital Expenditures'!X24 -> 7578.67165
A66: ='LDC Info'!$E$14 -> Greater Sudbury Hydro Inc. | B66: =EBNUMBER -> EB-2019-0037 | C66: =TestYear -> 2020 | D66: =BridgeYear -> 2019 | E66: =RebaseYear -> 2013 | F66: System Access | G66: ='App.2-AB_Capital Expenditures'!Z14 -> 2019 | H66: ='App.2-AB_Capital Expenditures'!Z17 -> 1882.773 | I66: ='App.2-AB_Capital Expenditures'!AA17 -> 1514.735563
A67: ='LDC Info'!$E$14 -> Greater Sudbury Hydro Inc. | B67: EB-2019-0037 | C67: 2020 | D67: 2019 | E67: 2013 | F67: System Renewal | G67: ='App.2-AB_Capital Expenditures'!Z14 -> 2019 | H67: ='App.2-AB_Capital Expenditures'!Z18 -> 6772.3465 | I67: ='App.2-AB_Capital Expenditures'!AA18 -> 4340.388633
A68: ='LDC Info'!$E$14 -> Greater Sudbury Hydro Inc. | B68: EB-2019-0037 | C68: 2020 | D68: 2019 | E68: 2013 | F68: System Service | G68: ='App.2-AB_Capital Expenditures'!Z14 -> 2019 | H68: ='App.2-AB_Capital Expenditures'!Z19 -> 842.9525 | I68: ='App.2-AB_Capital Expenditures'!AA19 -> 856.0867633
A69: ='LDC Info'!$E$14 -> Greater Sudbury Hydro Inc. | B69: EB-2019-0037 | C69: 2020 | D69: 2019 | E69: 2013 | F69: General Plant | G69: ='App.2-AB_Capital Expenditures'!Z14 -> 2019 | H69: ='App.2-AB_Capital Expenditures'!Z20 -> 1155 | I69: ='App.2-AB_Capital Expenditures'!AA20 -> 853.64187
A70: ='LDC Info'!$E$14 -> Greater Sudbury Hydro Inc. | B70: EB-2019-0037 | C70: 2020 | D70: 2019 | E70: 2013 | F70: Total Expenditure | G70: ='App.2-AB_Capital Expenditures'!Z14 -> 2019 | H70: ='App.2-AB_Capital Expenditures'!Z21 -> 10653.072 | I70: ='App.2-AB_Capital Expenditures'!AA21 -> 7564.85283
A71: ='LDC Info'!$E$14 -> Greater Sudbury Hydro Inc. | B71: EB-2019-0037 | C71: 2020 | D71: 2019 | E71: 2013 | F71: Capital Contributions | G71: ='App.2-AB_Capital Expenditures'!Z14 -> 2019 | H71: ='App.2-AB_Capital Expenditures'!Z22 -> -1095.1 | I71: ='App.2-AB_Capital Expenditures'!AA22 -> -763.771365
A72: ='LDC Info'!$E$14 -> Greater Sudbury Hydro Inc. | B72: EB-2019-0037 | C72: 2020 | D72: 2019 | E72: 2013 | F72: Net Capital Expenditures | G72: ='App.2-AB_Capital Expenditures'!Z14 -> 2019 | H72: ='App.2-AB_Capital Expenditures'!Z23 -> 9557.972 | I72: ='App.2-AB_Capital Expenditures'!AA23 -> 6801.081465
A73: ='LDC Info'!$E$14 -> Greater Sudbury Hydro Inc. | B73: EB-2019-0037 | C73: 2020 | D73: 2019 | E73: 2013 | F73: System O&M | G73: ='App.2-AB_Capital Expenditures'!Z14 -> 2019 | H73: ='App.2-AB_Capital Expenditures'!Z24 -> 7890.434 | I73: ='App.2-AB_Capital Expenditures'!AA24 -> 5998.808
A74: ='LDC Info'!$E$14 -> Greater Sudbury Hydro Inc. | B74: EB-2019-0037 | C74: 2020 | D74: 2019 | E74: 2013 | F74: System Access | G74: ='App.2-AB_Capital Expenditures'!AC14 -> 2020 | H74: ='App.2-AB_Capital Expenditures'!AC17 -> 1919.673
A75: ='LDC Info'!$E$14 -> Greater Sudbury Hydro Inc. | B75: EB-2019-0037 | C75: 2020 | D75: 2019 | E75: 2013 | F75: System Renewal | G75: ='App.2-AB_Capital Expenditures'!AC14 -> 2020 | H75: ='App.2-AB_Capital Expenditures'!AC18 -> 5702.2045
A76: ='LDC Info'!$E$14 -> Greater Sudbury Hydro Inc. | B76: EB-2019-0037 | C76: 2020 | D76: 2019 | E76: 2013 | F76: System Service | G76: ='App.2-AB_Capital Expenditures'!AC14 -> 2020 | H76: ='App.2-AB_Capital Expenditures'!AC19 -> 1610.1295
A77: ='LDC Info'!$E$14 -> Greater Sudbury Hydro Inc. | B77: EB-2019-0037 | C77: 2020 | D77: 2019 | E77: 2013 | F77: General Plant | G77: ='App.2-AB_Capital Expenditures'!AC14 -> 2020 | H77: ='App.2-AB_Capital Expenditures'!AC20 -> 1265
A78: ='LDC Info'!$E$14 -> Greater Sudbury Hydro Inc. | B78: EB-2019-0037 | C78: 2020 | D78: 2019 | E78: 2013 | F78: Total Expenditure | G78: ='App.2-AB_Capital Expenditures'!AC14 -> 2020 | H78: ='App.2-AB_Capital Expenditures'!AC21 -> 10497.007
A79: ='LDC Info'!$E$14 -> Greater Sudbury Hydro Inc. | B79: EB-2019-0037 | C79: 2020 | D79: 2019 | E79: 2013 | F79: Capital Contributions | G79: ='App.2-AB_Capital Expenditures'!AC14 -> 2020 | H79: ='App.2-AB_Capital Expenditures'!AC22 -> -1082.1
A80: ='LDC Info'!$E$14 -> Greater Sudbury Hydro Inc. | B80: EB-2019-0037 | C80: 2020 | D80: 2019 | E80: 2013 | F80: Net Capital Expenditures | G80: ='App.2-AB_Capital Expenditures'!AC14 -> 2020 | H80: ='App.2-AB_Capital Expenditures'!AC23 -> 9414.907
A81: ='LDC Info'!$E$14 -> Greater Sudbury Hydro Inc. | B81: EB-2019-0037 | C81: 2020 | D81: 2019 | E81: 2013 | F81: System O&M | G81: ='App.2-AB_Capital Expenditures'!AC14 -> 2020 | H81: ='App.2-AB_Capital Expenditures'!AC24 -> 9141.039
A82: ='LDC Info'!$E$14 -> Greater Sudbury Hydro Inc. | B82: EB-2019-0037 | C82: 2020 | D82: 2019 | E82: 2013 | F82: System Access | G82: ='App.2-AB_Capital Expenditures'!AD14 -> 2021 | H82: ='App.2-AB_Capital Expenditures'!AD17 -> 1951.06846
A83: ='LDC Info'!$E$14 -> Greater Sudbury Hydro Inc. | B83: EB-2019-0037 | C83: 2020 | D83: 2019 | E83: 2013 | F83: System Renewal | G83: ='App.2-AB_Capital Expenditures'!AD14 -> 2021 | H83: ='App.2-AB_Capital Expenditures'!AD18 -> 9009.08493
A84: ='LDC Info'!$E$14 -> Greater Sudbury Hydro Inc. | B84: EB-2019-0037 | C84: 2020 | D84: 2019 | E84: 2013 | F84: System Service | G84: ='App.2-AB_Capital Expenditures'!AD14 -> 2021 | H84: ='App.2-AB_Capital Expenditures'!AD19 -> 874.39661
A85: ='LDC Info'!$E$14 -> Greater Sudbury Hydro Inc. | B85: EB-2019-0037 | C85: 2020 | D85: 2019 | E85: 2013 | F85: General Plant | G85: ='App.2-AB_Capital Expenditures'!AD14 -> 2021 | H85: ='App.2-AB_Capital Expenditures'!AD20 -> 907
A86: ='LDC Info'!$E$14 -> Greater Sudbury Hydro Inc. | B86: EB-2019-0037 | C86: 2020 | D86: 2019 | E86: 2013 | F86: Total Expenditure | G86: ='App.2-AB_Capital Expenditures'!AD14 -> 2021 | H86: ='App.2-AB_Capital Expenditures'!AD21 -> 12741.55
A87: ='LDC Info'!$E$14 -> Greater Sudbury Hydro Inc. | B87: EB-2019-0037 | C87: 2020 | D87: 2019 | E87: 2013 | F87: Capital Contributions | G87: ='App.2-AB_Capital Expenditures'!AD14 -> 2021 | H87: ='App.2-AB_Capital Expenditures'!AD22 -> -1102.1
A88: ='LDC Info'!$E$14 -> Greater Sudbury Hydro Inc. | B88: EB-2019-0037 | C88: 2020 | D88: 2019 | E88: 2013 | F88: Net Capital Expenditures | G88: ='App.2-AB_Capital Expenditures'!AD14 -> 2021 | H88: ='App.2-AB_Capital Expenditures'!AD23 -> 11639.45
A89: ='LDC Info'!$E$14 -> Greater Sudbury Hydro Inc. | B89: EB-2019-0037 | C89: 2020 | D89: 2019 | E89: 2013 | F89: System O&M | G89: ='App.2-AB_Capital Expenditures'!AD14 -> 2021 | H89: ='App.2-AB_Capital Expenditures'!AD24 -> 9323.85978
A90: ='LDC Info'!$E$14 -> Greater Sudbury Hydro Inc. | B90: EB-2019-0037 | C90: 2020 | D90: 2019 | E90: 2013 | F90: System Access | G90: ='App.2-AB_Capital Expenditures'!AE14 -> 2022 | H90: ='App.2-AB_Capital Expenditures'!AE17 -> 1982.8794
A91: ='LDC Info'!$E$14 -> Greater Sudbury Hydro Inc. | B91: EB-2019-0037 | C91: 2020 | D91: 2019 | E91: 2013 | F91: System Renewal | G91: ='App.2-AB_Capital Expenditures'!AE14 -> 2022 | H91: ='App.2-AB_Capital Expenditures'!AE18 -> 6871.3909
A92: ='LDC Info'!$E$14 -> Greater Sudbury Hydro Inc. | B92: EB-2019-0037 | C92: 2020 | D92: 2019 | E92: 2013 | F92: System Service | G92: ='App.2-AB_Capital Expenditures'!AE14 -> 2022 | H92: ='App.2-AB_Capital Expenditures'!AE19 -> 656.7767
A93: ='LDC Info'!$E$14 -> Greater Sudbury Hydro Inc. | B93: EB-2019-0037 | C93: 2020 | D93: 2019 | E93: 2013 | F93: General Plant | G93: ='App.2-AB_Capital Expenditures'!AE14 -> 2022 | H93: ='App.2-AB_Capital Expenditures'!AE20 -> 1384.34
A94: ='LDC Info'!$E$14 -> Greater Sudbury Hydro Inc. | B94: EB-2019-0037 | C94: 2020 | D94: 2019 | E94: 2013 | F94: Total Expenditure | G94: ='App.2-AB_Capital Expenditures'!AE14 -> 2022 | H94: ='App.2-AB_Capital Expenditures'!AE21 -> 10895.387
A95: ='LDC Info'!$E$14 -> Greater Sudbury Hydro Inc. | B95: EB-2019-0037 | C95: 2020 | D95: 2019 | E95: 2013 | F95: Capital Contributions | G95: ='App.2-AB_Capital Expenditures'!AE14 -> 2022 | H95: ='App.2-AB_Capital Expenditures'!AE22 -> -1122.5
A96: ='LDC Info'!$E$14 -> Greater Sudbury Hydro Inc. | B96: EB-2019-0037 | C96: 2020 | D96: 2019 | E96: 2013 | F96: Net Capital Expenditures | G96: ='App.2-AB_Capital Expenditures'!AE14 -> 2022 | H96: ='App.2-AB_Capital Expenditures'!AE23 -> 9772.887
A97: ='LDC Info'!$E$14 -> Greater Sudbury Hydro Inc. | B97: EB-2019-0037 | C97: 2020 | D97: 2019 | E97: 2013 | F97: System O&M | G97: ='App.2-AB_Capital Expenditures'!AE14 -> 2022 | H97: ='App.2-AB_Capital Expenditures'!AE24 -> 9510.336976
A98: ='LDC Info'!$E$14 -> Greater Sudbury Hydro Inc. | B98: =EBNUMBER -> EB-2019-0037 | C98: =TestYear -> 2020 | D98: =BridgeYear -> 2019 | E98: =RebaseYear -> 2013 | F98: System Access | G98: ='App.2-AB_Capital Expenditures'!AF14 -> 2023 | H98: ='App.2-AB_Capital Expenditures'!AF17 -> 2015.2134
A99: ='LDC Info'!$E$14 -> Greater Sudbury Hydro Inc. | B99: EB-2019-0037 | C99: 2020 | D99: 2019 | E99: 2013 | F99: System Renewal | G99: ='App.2-AB_Capital Expenditures'!AF14 -> 2023 | H99: ='App.2-AB_Capital Expenditures'!AF18 -> 7448.9184
A100: ='LDC Info'!$E$14 -> Greater Sudbury Hydro Inc. | B100: EB-2019-0037 | C100: 2020 | D100: 2019 | E100: 2013 | F100: System Service | G100: ='App.2-AB_Capital Expenditures'!AF14 -> 2023 | H100: ='App.2-AB_Capital Expenditures'!AF19 -> 737.9722
A101: ='LDC Info'!$E$14 -> Greater Sudbury Hydro Inc. | B101: EB-2019-0037 | C101: 2020 | D101: 2019 | E101: 2013 | F101: General Plant | G101: ='App.2-AB_Capital Expenditures'!AF14 -> 2023 | H101: ='App.2-AB_Capital Expenditures'!AF20 -> 902.027
A102: ='LDC Info'!$E$14 -> Greater Sudbury Hydro Inc. | B102: EB-2019-0037 | C102: 2020 | D102: 2019 | E102: 2013 | F102: Total Expenditure | G102: ='App.2-AB_Capital Expenditures'!AF14 -> 2023 | H102: ='App.2-AB_Capital Expenditures'!AF21 -> 11104.131
A103: ='LDC Info'!$E$14 -> Greater Sudbury Hydro Inc. | B103: EB-2019-0037 | C103: 2020 | D103: 2019 | E103: 2013 | F103: Capital Contributions | G103: ='App.2-AB_Capital Expenditures'!AF14 -> 2023 | H103: ='App.2-AB_Capital Expenditures'!AF22 -> -1143.304
A104: ='LDC Info'!$E$14 -> Greater Sudbury Hydro Inc. | B104: EB-2019-0037 | C104: 2020 | D104: 2019 | E104: 2013 | F104: Net Capital Expenditures | G104: ='App.2-AB_Capital Expenditures'!AF14 -> 2023 | H104: ='App.2-AB_Capital Expenditures'!AF23 -> 9960.827
A105: ='LDC Info'!$E$14 -> Greater Sudbury Hydro Inc. | B105: EB-2019-0037 | C105: 2020 | D105: 2019 | E105: 2013 | F105: System O&M | G105: ='App.2-AB_Capital Expenditures'!AF14 -> 2023 | H105: ='App.2-AB_Capital Expenditures'!AF24 -> 9700.543715
A106: ='LDC Info'!$E$14 -> Greater Sudbury Hydro Inc. | B106: EB-2019-0037 | C106: 2020 | D106: 2019 | E106: 2013 | F106: System Access | G106: ='App.2-AB_Capital Expenditures'!AG14 -> 2024 | H106: ='App.2-AB_Capital Expenditures'!AG17 -> 2048.5214
A107: ='LDC Info'!$E$14 -> Greater Sudbury Hydro Inc. | B107: EB-2019-0037 | C107: 2020 | D107: 2019 | E107: 2013 | F107: System Renewal | G107: ='App.2-AB_Capital Expenditures'!AG14 -> 2024 | H107: ='App.2-AB_Capital Expenditures'!AG18 -> 8164.4989
A108: ='LDC Info'!$E$14 -> Greater Sudbury Hydro Inc. | B108: EB-2019-0037 | C108: 2020 | D108: 2019 | E108: 2013 | F108: System Service | G108: ='App.2-AB_Capital Expenditures'!AG14 -> 2024 | H108: ='App.2-AB_Capital Expenditures'!AG19 -> 80.1917
A109: ='LDC Info'!$E$14 -> Greater Sudbury Hydro Inc. | B109: EB-2019-0037 | C109: 2020 | D109: 2019 | E109: 2013 | F109: General Plant | G109: ='App.2-AB_Capital Expenditures'!AG14 -> 2024 | H109: ='App.2-AB_Capital Expenditures'!AG20 -> 1020.067
A110: ='LDC Info'!$E$14 -> Greater Sudbury Hydro Inc. | B110: EB-2019-0037 | C110: 2020 | D110: 2019 | E110: 2013 | F110: Total Expenditure | G110: ='App.2-AB_Capital Expenditures'!AG14 -> 2024 | H110: ='App.2-AB_Capital Expenditures'!AG21 -> 11313.279
A111: ='LDC Info'!$E$14 -> Greater Sudbury Hydro Inc. | B111: EB-2019-0037 | C111: 2020 | D111: 2019 | E111: 2013 | F111: Capital Contributions | G111: ='App.2-AB_Capital Expenditures'!AG14 -> 2024 | H111: ='App.2-AB_Capital Expenditures'!AG22 -> -1164.512
A112: ='LDC Info'!$E$14 -> Greater Sudbury Hydro Inc. | B112: EB-2019-0037 | C112: 2020 | D112: 2019 | E112: 2013 | F112: Net Capital Expenditures | G112: ='App.2-AB_Capital Expenditures'!AG14 -> 2024 | H112: ='App.2-AB_Capital Expenditures'!AG23 -> 10148.767
A113: ='LDC Info'!$E$14 -> Greater Sudbury Hydro Inc. | B113: EB-2019-0037 | C113: 2020 | D113: 2019 | E113: 2013 | F113: System O&M | G113: ='App.2-AB_Capital Expenditures'!AG14 -> 2024 | H113: ='App.2-AB_Capital Expenditures'!AG24 -> 9894.554589

Sheet App.2-AC_Customer Engagement
B1: File Number: | C1: =EBNUMBER -> EB-2019-0037
B2: Exhibit: | C2: 1
B3: Tab: | C3: 6
B4: Schedule: | C4: 1
B5: Page: | C5: 1
B7: Date: | C7: 2019-10-31
A9: Appendix 2-AC
A10: Customer Engagement Activities Summary
A12: Provide a list of customer engagement activities | B12: Provide a list of customer needs and preferences identified through each engagement activity | C12: Actions taken to respond to identified needs and preferences. If no action was taken, explain why.
A13: Conservation Program Customer Engagement Activities
A14: Conservation department staff attended and sponsored/supported many public events, both residential and small business focused, to increase awareness and recruit participants. Attended public events and business conferences, most often with a booth set up, such as Sudbury's Home Show, Sudbury's Earth Festival, Chamber of Commerce small business breakfast, Downtown Business Improvement Association's Annual General Meeting, partnered with EarthCare Sudbury and presented at Bridges to Better Business Conference. Staffed a booth on a Saturday for our clothesline giveaway at popular shopping centers, staffed a booth at Health Sciences North, and Tom Davies Square, two of our major employers in Sudbury. E-blast to customers, in several cases lists were focused on high consumption customers, with the intention to reach electrically heated homes. In Northern Ontario our climate is winter peaking for electricity so leading up to and through the winter several promotional emails were sent using e-blast software to promote Conservation programs to residential, small business and commercial customers such as AffordAbility Fund, GreenON Fund, Small Business Lighting, Clothesline Giveaway, and more. Other marketing tactics used were Automated Voice Recorder which left a prerecorded voicemail, an eblast promotion and written letter sent to a select recipient list, a printed letter, printed posters with rip-off phone number tags. (See Exhibits 1, Tab 6, Schedule 1, Attachment 2) | B14: E-blast Analytics indicate customers deem sending information via an e-blast was an acceptable method of communication for this purpose, and that there is a desire for e-blast-style communication. Open rates are consistently between 55%-60%, Click-thru rate: 9%-12%, Bounce Rate: <10%, Unsubscribers: 0.2%-1% One of the most successful tools we employed was Instant Voice Recording which has now been adopted by several LDCs in the province as well as Hydro One. GSHi's (e-blast and letter) recipient list was customized and targeted in scope, allowing us to speak to customers who may be most interested in receiving the correspondence, such as high consumption customers who would benefit most from the message. GSHi believes the benefits of the content in the email message, combined with the ease and flexibility with which the customer can decide to open and read the message, results in a satisfactory way to communicate with our customer base regarding energy-saving incentive programs. GSHi social media accounts have also been a successful channel to flow information, with much interaction and engagement (comments, shares, likes). GSHi created a door hanger to be left on the neighbouring doors of homes to participants in the program | C14: At the start of the clothesline giveaway program, there was a large effort required by GSHi customers to sign up and participate. GSHi decided to change the methods to see if improved accessibility increased the uptake. Our wide variety of Engagement Activities are listed to the left, and the result was very positive. GSHi has been invited twice to speak with the Board of Trustees of the Affordability Fund Trust (AFT) Program, due to our successful engagement with our customers. Our campaigns resulted in GSHi being ranked in the top five in all of Ontario for the total number of customers who signed up for the program. One of the most successful tools GSHi employed was Instant Voice Recording which, as a result, has since been adopted by several LDCs in the province, including Hydro One. GSHi will continue to use our social media accounts to flow information because it is an easy way to interact and engage (comments, shares, likes) with out customers in their own time, when its conveneint for them to do so. The door hanger GSHi created and had printed generated conversation between neighbours and worked well to create trust in the program and reach any customers who don't use the internet. Going to where our customers live, work, and play, made it easier for customers to engage with us and participate in the varities of programs offered. Our Conservation team began to reach out to various locations and employers where large numbers of our customers would congregate, and organized booths during high traffic periods.
A15: GHSi organized and hosted multiple lunches and breakfasts with local contractors to educate and provide information as to how Save on Energy incentive programs can increase their sales. (See Exhibits 1, Tab 6, Schedule 1, Attachment 2) | B15: Contractors rely on the expertise of the Conservation team to flow the information out to the contractors. The contractors could then use the program information as a sales vehicle to boost their business as well. Working with the local contractors is another channel for customers to receive information, and make energy-saving upgrades. | C15: We found contractors appreciated the opportunity to learn about program upgrades, so they could in turn educate their customers (also our customers) and have an opportunity to offer the work with a incentive attached. The IESO offered to hold sales training for contractors featuring Steven Dixon and Mark Jewel, who combined their approaches to selling energy efficiency to come up with a one day workshop. Contractors learned how to engage their customers with energy efficient options and how to think outside the box with their sales pitches. In the past, this type of training was only offered in major centers such as Toronto and Ottawa, therefore GSHI jumped at the chance to bring this type of training to Sudbury. We engaged our trade allies with emails and then followed up with a personal phone call and were able to have over 40 people attend the workshop. The IESO did this in four locations, including Toronto, London, Niagara and Sudbury and the contractor had to cover the cost themselves. GSHI’s workshop had over 40 in attendance, second only to Toronto.
A16: Focus group conducted with residential electricity customers in advance of the HEAR Pilot Program, moderated by OraclePoll Research. The groups were randomly selected pre-pilot among residential customers with electrically heated homes. This was part of the pilot program developed under the Customer First collaboration. (Jan, 2015). (See Exhibits 1, Tab 6, Schedule 1, Attachment 2) | B16: Information collected in the research assisted in the development of the program’s marketing and communication messaging and overall strategy. We were able to hone in on the preferences of participants regarding name, offering, and appearance of materials. | C16: The H.E.A.R. Pilot Program was named as a result of the focus group inputs, and the offerings were fine tuned, also with the consultation results in mind.
A17: Promotional materials. graphics, and and FAQ sheet were devloped to promote and educate customers regarding Customer Service, Billing, and Conservation Programs/Initiatives. For those customers who receive a bill in the mail, we used brochures, direct mail, radio ads, print, online newspapers, and social media. For those customers not recieving a paper bill, GSHi communicated using our developed graphics on the GSU MyAccount web portal. GSHi also revised the information on our websites. (See Exhibits 1, Tab 6, Schedule 1, Attachment 2) | B17: Though elements of the artwork and messaging were prescribed by the various program providers, GSHi consulted front line and customer service staff to help determine the best channels of distribution and format where options were available to us. | C17: GSHi found that communicating with our customers in ways convenient to them facilitated program adoption and knowledge. This meant using a wide variety of channels and methods to capture our target audience.
A18: Residential and Small Business Focus Groups. Focus groups were divided into residential and small business customers, moderated by Oraclepoll Research. The purpose of the A/B style content presented in the focus groups was to listen and assess genuine customer reactions to stated preferences and priorities. Insights were also gathered as to the actions already being taken to reduce consumption by residential and business customers. GSHi gauged customer reactions to the programs available, assed the range of views held by GSHi customers on Conservation programs, and gathered information to help determine the most effective way to reach customers with information about incentive programs. (See Exhibits 1, Tab 6, Schedule 1, Attachment 2) | B18: The results of the focus groups indicated more education and assistance was needed in implementing energy-saving equipment and practices due to the amount of knowledge required. Customers said they would like to see more real-world comparisons and examples in advertising, as well as information communicated in a compact and digestible format, such as bulleted liists. | C18: Based on the findings from the focus group, GSHi adjusted for and incorporated these preferences when designing outbound marketing materials for each participating demographic. Examples included are a Small Business Lighting Brochure, and promotional photography was arranged to be taken at a Sudbury family residential home.
A19: Greater Sudbury Hydro Inc Ongoing Customer Engagement Activities
A20: Residential and Business Transactional Customer Surveys . Conducted on a weekly basis, facilitated by Oraclepoll Research. | B20: These surveys are an ongoing effort for customers to give feedback on their most recent interaction with GSHi. Surveys are reviewed and results | C20: Survey results are reviewed by respective departments, and those scores neutral or unsatisfactory are investigated more closely and acted upon if necessary. These results are posted on a corporate level as a part of our ISO QMS system, and in GSHi's quarterly management meetings.
A21: Research-based Customer DSP Consultation (2016). GSHi hired research group Decision Partners to conduct in-depth telephone interviews with 28 total customers from all of GSHi's rate classes to secure feedback on initial draft of its DSP in 2016. Interviews were structured so as to gain insight on customer perceptions of GSHi as a service provider, issues of highest priority for customers over the coming years, and their thoughts on the appropriateness of investments as presented in the DSP draft. | B21: When asked to cite their top priorities for the utility, customers consistently suggested: • maintaining the distribution infrastructure; • maintaining reliability; and • controlling cost. Investments in the renewal of aging assets, a primary driver of investment increases in the DSP, were seen as somewhat or very critical by most of the customers surveyed. Customers also expressed high confidence in GSHi’s ability to provide safe, reliable and cost-effective electricity by implementing its proposed DSP. Although Decision Partners recommended that GSHi stay the course with its proposed DSP, the group also noted that additional feedback provided by interviewees indicated a need to further enhance consultation by filling knowledge gaps and better communicating the context around proposed investments. Specifically, Decision Partners recommended that GSHi communicate with customers about: • Their bill – and specifically the portion that comes from distribution. • The importance of ongoing maintenance and upgrading of the system – explain not just what needs to be done, but why – and how this work benefits customers (e.g., to prevent and reduce the duration of disruptions). • What capital investments have been completed recently, what are planned, and how the work has been prioritized. • What is being done to keep costs reasonable and affordable, and what costs incurred by customers are beyond GSHi’s control. | C21: GSHi further refined its DSP to ensure appropriate investments were made in system renewal activities to ensure reliable service to customers, while also reducing costs in other areas in an effort to keep cost increases within reasonable limits. GSHi also considered customer feedback regarding the need for further education on the distribution system—how it functions, how it is maintained, and how rates are set—and created additional communications material to fill knowledge gaps in advance of and during the 2nd phase of DSP consultation.
A22: DSP Quantitative Survey. GSHi worked with Decision Partners on Phase 2 of the DSP Consultation to create and conduct a customer web survey between May 3 and June 14, 2019. The web survey was designed to better explain GSHi’s priorities with respect to managing the distribution system, gather feedback on the investments proposed in the DSP (which had been revised based on feedback received in Phase I consultation), and to reach out to a greater number of customers. | B22: The web survey received 1854 responses. The overwhelming majority of respondents (just shy of 99%) were residential customers. Survey results: • Reliable service and controlled costs were once again shown to be two of the highest priorities for customers. • When asked about the criticality of investments in each area of the DSP, nearly all survey respondents rated investments as “Very” or “Somewhat” critical. • When asked about the appropriateness of the level of investments proposed in the DSP, nearly all survey respondents rated investments in each of the areas as “Very” or “Somewhat” appropriate. • When asked to provide their assessment of the expenditures and resulting bill impacts as described, nearly all customers (90%) rated the overall level of investment as “Very” (55%) or “Somewhat” (35%) Appropriate. • When asked to rate their confidence that GSHi will continue to provide safe, reliable, cost effective electricity by implementing the investments associated with the DSP, nearly all customers (91%) said they have a “High Degree of Confidence” (60%) or “Medium Degree of Confidence” (31%). | C22: After carefully considering the outcomes of the enhanced customer consultation process and the candid feedback provided, GSHi is confident in saying that its 2019-2024 DSP has received a strong endorsement from its customers. Moving forward, GSHi will continue to listen to, learn from and educate its customers to ensure their needs are met.
A23: Annual Customer Satisfaction Survey conducted by Oraclepoll Research. | B23: These surveys, and the interpretation of results provided in each of Oraclepoll’s summary reports, has allowed GSHi to see its operations through the eyes of its customers to better understand what services and organizational qualities they value, as well as where they experience pain points in their relationship with the utility. Key findings have included customers reinforcing that they want a balance between reliability and cost, more conservation initiatives and increased digital and automated communications. | C23: Project planning reflects the insights and identified priorities expressed in the annual survey. 2020-2024 DSP has taken this feedback into consideration and reflects the input received from our customers.
A24: Customer Consultation and Communication for significant Capital Projects. Robust consultation is undertaken to ensure customers understand the rationale behind the proposed renewal projects and multiple opportunities to offer feedback and share concerns are available. This consultation process includes: - distribution of brochures via various methods in the area served by the substation, which includes an overview of the project, timeline, budget and FAQs - a page on GSHi's website focused specifically on the project with photos, including a form for feedback or questions - media interviews to discuss the details and plans for the project - Open House Information Sessions in effected neighbourhood where public would have the opportunity to meet with GSHi staff and discuss the project in greater detail (See Exhibits 1, Tab 6, Schedule 1, Attachment 2) | B24: Observations: Attendance at Open House events is generally low, but GSHi believes that result is due to the positive tone of the project, and the combination of direct mail literature on the project (including FAQs), the website page with feedback form, and media interviews, all of which contribute to the understanding of the project. | C24: GSHi continuously improves, evaluates and adjusts communication practices to engage with its customers. GSHi works closely with City Councillors in the affected wards to help spread the information and increase understanding and will continue to consider the demographics of the area to determine the appropriate engagement efforts.
A25: Safety Awareness Initiatives. Examples include: OEB/ ESA Safety Survey, conducted every second year in our community by Oracle Poll Research mandated by the OEB in collaboration with the ESA. This survey provides insight and direction as to the understanding in our community surrounding electrical safety issues. Other initiatives: GSHi S.A.F.E. Team Committee, volunteer committee of interested and engaged staff who promote safety in home and workplace through various staff-led initiatives Electricity Safety and Conservation - each year visits 2 or 3 elementary schools in our community to teach about electricity and electrical safety. Master of Disaster Summer Camp, 2018 Social Media posts, website info, and media releases Spring Locates awareness media campaign Fall streetlight media campaign (See Exhibits 1, Tab 6, Schedule 1, Attachment 2) | B25: GSHi continues to hear from our stakeholders that safety is a priority. Our corporate culture focuses on safety for our staff, our customers and our community. | C25: OEB/ESA Safety Survey results: 74% 2015/2016 80% 2017/2018 No public incidents of serious electrical accidents in the past 5 years.
A26: Collaboration with Local Community Partners on Emergency Preparedness Planning | B26: Through several significant weather events, as well as other events that impact the public on a wide scale, such as vehicle collisions with utility poles, we have identified the need to make communications more seamless and cohesive with all emergency management agencies in the communities we serve. | C26: GSHi initiated and hosted meetings with police, fire, senior city officials, to strengthen partnerships and streamline the execution of necessary activities in emergency situations. Commitment from all levels of the organization to plan, practice, and execute.
A27: Unplanned Outage Communication in development | B27: GSHi recognizes that social media is a way we can communicate with customers who are being effected by an unplanned outage, and reduce the number of calls coming in to Customer Service, Control Room and to our Answering Service. Over the last year, 5 out of our top 10 search queries include search terms with the word "Sudbury" and "outage" in it. | C27: Automated ARC GIS live outage map currently in development. Project led by Innovation Office and incorporates collaboration between Engineering, Operations, Control Room, Communications, and GIS.
A28: Online Presence, ease of access to information. Google search listings, Google profile, website, Facebook page, Twitter account, Instagram account (See Exhibits 1, Tab 6, Schedule 1, Attachment 2) | B28: Tracking main online platform metrics to gauge interaction with GSHi's online presence has helped GSHi to recognize that customers access information in a variety of ways. Our customer base is varied and wide spread. This makes it important to use a broad approach to GSHi's online presence so that we are reaching the most customers possible by communicating in ways relevant to them. Our Google listing receives approximately 12,000 views per month, 25.5% of customer base. Our website receives approximately 7,500 visits per month, 15.9% of customer base. Facebook page: 2,349 followers, 4.9% of customer base (active 2013) Twitter account has 3,923 followers, 8.3% of customer base (active since 2013). Instagram followers: 683, 1.4% (active since 2016). | C28: GSHi continually works to improve its online presence, building relationships with customers online through photos, videos, posts, and other interactions.
A29: Digital Marketing Communications (See Exhibits 1, Tab 6, Schedule 1, Attachment 2) | B29: With an average of 2,100 sessions and 7,500 page views per month, GSHi understands that our website is an important resource and point of contact for many customers. GSHi pays close attention to data measured from our website, such as how customers are using the site, to ensure relevant information is available and to provide customers with the most seamless experience possible. Metrics which are closely tracked include number of visitors, number of new visitors, frequently visited pages, behavior of visitors, landing pages, exit pages and search terms. The Annual Customer Satisfaction Survey indicates customers satisfaction with GSHi online communications steadily increases. Online Web Forms In an effort to continue to expand on opportunities for GSHi's customers to choose how they would best like to communicate with GSHi, there are forms that are always available on the website for general contact and to report a streetlight in need of repair. GSHi has also used forms as a way to request feedback on particular projects that were high profile and capital intensive, such as substation renewal projects. GSHi receives an average of 35 general contact forms per month, and 10 streetlight maintenance request forms per month. MyAccount Online Portal is used as a way to communicate consumption and billing information. Customers who have registered for paperless billing will not receive bill inserts or paper notices, the messages are sent via online web portal. | C29: These analytics help to guide our revisions to the site, such as making informed decisions based on which pages are visited most, least and search engine optimization. We use our social media channels for two-way communication with our customers regarding safety, events and initiatives of public interest, conservation, outages/ restoration, seasonal preparation, Time of Use periods, electricity rate changes, pilot programs and promotional content and contests. We measure and track our results to continuously make an effort to communicate with our customers and community in the places, channels and at the times that they desire. GSHi continuously monitors and evaluates customer feedback provided on the forms and social media, and makes adjustments accordingly.
A30: Employee Volunteerism and Corporate Goodwill/ Donations Festival of Lights at Science North Canadian Cancer Society Relay for Life Hanging of flags on light posts for Coniston, Capreol Assistance provided with bucket truck to Up Here Festival, 2017 Rainbow Routes/ Junction Creek Stewardship, support for neighbourhood initiatives Blue Door Cafe, Elgin Street Mission Threads for Life (See Exhibits 1, Tab 6, Schedule 1, Attachment 2) | B30: GSHi is a critical partner in the community and understands its role and responsibility to all of its stakeholders. | C30: GSHi responds to requests from community organizations and partners who are looking for support.
A31: Engagement with Municipal and Provincial candidate interviews Since 2014 GSHi leadership has extended invitations to municipal and provincial election candidates to meet and learn about the electrical industry and GSHi operations. | B31: Recognized opportunity to educate our community leaders about our operations and the distribution system, provide an opportunity to ask any questions. GSHi understands that by educating them, they in turn can help to educate the wider public through their conversations. | C31: GSHi has found that these initiatives open the channels the communication and facilitate healthy political relationships.
A33: Note: Use "ALT-ENTER" to go to the next line within a cell

Sheet App.2-B_Acctg Instructions
A1: General Instructions to MIFRS Appendices
A2: Types of Schedules to File
A4: The purpose of this tab is to provide general instructions. The specific instructions to each appendix are listed in footnotes of each appendix.
A6: The typical applicant is expected to have made capitalization and depreciation policy changes under CGAAP as permitted by the OEB on January 1, 2012 or mandated by the OEB by January 1, 2013, and adopted IFRS for reporting purposes on January 1, 2015 (transition date January 1, 2014). Most distributors filing for 2020 rates have rebased with these accounting changes reflected in a prior rebasing application. If that is the case, information relating to pre-accounting policy changes is not generally required. Some distributors may have rebased under MIFRS. If that is the case, information related to the accounting standard used prior to IFRS is not generally required. The information to be provided by applicants will depend on when the accounting policy changes were made and when they last rebased. In general, applicants should provide the following information in the appendices:
E9: Reflecting Accounting Policy Changes in Current Application | G9: Reflected Accounting Policy Changes in Prior Application3 | H9: Rebased under MIFRS in Prior Application3
E10: Accounting Policy Changes in 2012 and Adopted IFRS in 2015 | F10: Accounting Policy Changes in 2013 and Adopted IFRS in 2015 | G10: Adopted IFRS in 2015 | H10: IFRS Since 2015
A11: Information to be filed in 2019 CoS Application | B11: 2020 | C11: Test | E11: MIFRS | F11: MIFRS | G11: MIFRS | H11: MIFRS
B12: 2019 | C12: Bridge | E12: MIFRS | F12: MIFRS | G12: MIFRS | H12: MIFRS
B13: 2018 | C13: Historical | E13: MIFRS | F13: MIFRS | G13: MIFRS | H13: MIFRS
B14: 2017 | C14: Historical | E14: MIFRS | F14: MIFRS | G14: MIFRS | H14: MIFRS
B15: 2016 | C15: Historical | E15: MIFRS | F15: MIFRS | G15: MIFRS | H15: MIFRS
B16: 2015 | C16: Historical | E16: MIFRS and Revised CGAAP1 | F16: MIFRS and Revised CGAAP1 | G16: MIFRS and Revised CGAAP1 | H16: N/A
B17: 2014 | C17: Historical | E17: Revised CGAAP | F17: CGAAP and Revised CGAAP2 | G17: N/A | H17: N/A
B18: 2013 | C18: Historical | E18: CGAAP and Revised CGAAP2 | F18: N/A | G18: N/A | H18: N/A
A20: 1) For the transition year (2014), the applicant may file two appendices, one under Revised CGAAP and one under MIFRS, depending on the materiality of impacts. See the specific instructions under each appendix below for further details.
A21: 2) For applicants that are reflecting accounting policy changes for the first time in a rebasing application, the applicant must file two appendices in the year that the applicant implemented changes to its capitalization and depreciation policies (2012 or 2013), one before and one after the policy changes.
A22: 3) Applicants should provide CGAAP and Revised CGAAP schedules (i.e. as indicated in the first two columns of the above table) to support balances in Account 1576 if the account has yet to be disposed of.
A25: Appendix 2-BA - Fixed Asset Schedule
A27: Applicants are to provide Appendix 2-BA in accordance with the years and corresponding accounting standards noted in the above table to provide a year over year continuity in fixed assets.
A28: If this is the first application where the applicant is rebasing under MIFRS, the applicant should file two appendices, one under Revised CGAAP and one under MIFRS for the transition year (2014), if the change between Revised CGAAP and MIFRS is material. If the change from the accounting standards is not material, the applicant may choose to only provide one appendix under MIFRS. However, the applicant must also indicate the fixed asset net book value balance under Revised CGAAP, the total dollar value of the change and explain why it is not material.
A32: The applicant must establish the continuity of historical cost for gross assets and accumulated depreciation by asset class by ensuring that the opening balance in the year agrees to the closing balance in the prior year.
A35: Appendix 2-Cx - Depreciation and Amortization
A37: Applicants are to provide Appendix 2-C in accordance with the years and corresponding accounting standards listed in the above table.
A38: Appendix 2-C is to be used under all of the scenarios presented in the table above. In the appendix, the applicant will need to indicate which scenario applies. The appendix is to be duplicated for each year and for each accounting standard required as per the above table.
A39: Depreciation accounting policy changes were mandated by the OEB by January 1, 2013. In general, no further changes to an applicant's depreciation policy (i.e. assets' service lives) are expected after the OEB mandated changes by January 1, 2013, unless a change is determined to be necessary in accordance with the depreciation review required under IFRS. If the applicant has made any changes to its depreciation policy subsequent to the OEB mandated changes, for the year of the change, applicants must quantify the change in depreciation. If there are significant changes to multiple asset classes, the applicant must complete Appendix 2-C before and after the change. Applicants must also explain the nature of the change, the reason for the change, quantify the impact of the change.
A41: Appendix 2-E - Account 1575, IFRS-CGAAP Transitional PP&E Amounts (2-EA), Account 1576, Accounting Changes Under CGAAP (2-EB, 2-EC) CONTACT OEB STAFF IF TAB REQUIRED
A43: 1) For an applicant that has a balance in Account 1576 to dispose:
A44: · | B44: If an applicant changed capitalization and depreciation policies effective January 1, 2012, the applicant must complete Appendix 2-EB
A45: · | B45: If an applicant changed capitalization and depreciation policies effective January 1, 2013, the applicant must complete Appendix 2-EC
A47: 2) For an applicant that has a balance in Account 1575 to dispose:
A48: · | B48: The applicant must complete 2-EA
A49: If the applicant did not make any further PP&E accounting policy changes beyond the capitalization and depreciation policy changes as mandated by the OEB by January 1, 2013 (i.e. no further changes made on transition to IFRS), the applicant must indicate this and does not need to complete Appendix 2-EA.
A53: Appendix 2-Y - Summary of Impacts to Revenue Requirement from Transition to MIFRS CONTACT OEB STAFF IF TAB REQUIRED
A55: Applicants must complete Appendix 2-Y if this is the first rebasing application under MIFRS. An applicant must provide a summary of the dollar impacts of MIFRS to each component of the revenue requirement (e.g. rate base, operating costs, etc.), including the overall impact on the proposed revenue requirement. Accordingly, the applicant must identify financial differences and resulting revenue requirement impacts arising from the adoption of MIFRS as compared to CGAAP. If the applicant is reflecting the changes in capitalization and depreciation policies for the first time in a rebasing application as well, then a comparison between MIFRS and CGAAP before the change in accounting policies should be completed. If the applicant changed capitalization and depreciation policies and reflected these changes in a prior rebasing application, then a comparison between MIFRS and CGAAP after the change in accounting policies should be completed.

Sheet App.2-BA_Fixed Asset Cont
L1: File Number: | M1: =EBNUMBER -> EB-2019-0037
L2: Exhibit: | M2: 4
L3: Tab: | M3: 8
L4: Schedule: | M4: 1
L5: Page: | M5: 1
L7: Date: | M7: 2019-10-31
A9: Appendix 2-BA
A10: Fixed Asset Continuity Schedule 1
E12: Accounting Standard | F12: CGAAP
E13: Year | F13: 2013
D15: Cost | I15: Accumulated Depreciation
A16: CCA Class 2 | B16: OEB Account 3 | C16: Description 3 | D16: Opening Balance | E16: Smart Meter Adjustment to Opening Balance | F16: Additions 4 | G16: Disposals 6 | H16: Closing Balance | I16: Opening Balance | J16: Smart Meter Acc Amort Adj to Opening Balance | K16: Additions | L16: Disposals 6 | M16: Closing Balance | N16: Net Book Value
B17: 1609 | C17: Capital Contributions Paid | H17: =D17+E17+F17+G17 -> 0 | M17: =I17+K17+L17 -> 0 | N17: =H17+M17 -> 0
B18: 1610 | C18: Miscellaneous Intangible Plant | H18: =D18+E18+F18+G18 -> 0 | N18: 0
A19: 12 | B19: 1611 | C19: Computer Software (Formally known as Account 1925) | D19: ='[35]Cont''y WIRES 2013'!$F$24 -> 2651922.59 | E19: ='[35]Cont''y WIRES 2013'!$K$24 -> 244892 | F19: ='[35]Cont''y WIRES 2013'!$G$24+43359 -> 144772.57 | H19: 3041587.16 | I19: =-'[35]Cont''y WIRES 2013'!$R$24 -> -2124828.796 | J19: =-'[35]Cont''y WIRES 2013'!$T$24 -> -83269 | K19: =-'[35]Cont''y WIRES 2013'!$S$24 -> -291999.289 | M19: =I19+J19+K19+L19 -> -2500097.085 | N19: 541490.075
A20: CEC | B20: 1612 | C20: Land Rights (Formally known as Account 1906) | F20: ='[35]Cont''y WIRES 2013'!$O$32 -> 9044.52 | H20: 9044.52 | M20: =I20+J20+K20+L20 -> 0 | N20: 9044.52
A21: N/A | B21: 1805 | C21: Land | D21: ='[35]Cont''y WIRES 2013'!$F$9 -> 858551.46 | F21: ='[35]Cont''y WIRES 2013'!$G$9 -> 26005.55 | H21: 884557.01 | M21: 0 | N21: 884557.01
A22: 47 | B22: 1808 | C22: Buildings | D22: ='[35]Cont''y WIRES 2013'!$F$10+'[35]Cont''y WIRES 2013'!$F$11 -> 10129356.54 | F22: ='[35]Cont''y WIRES 2013'!$G$11 -> 227203.48 | H22: 10356560.02 | I22: =-'[35]Cont''y WIRES 2013'!$R$10-'[35]Cont''y WIRES 2013'!$R$11 -> -4624660.514 | K22: =-'[35]Cont''y WIRES 2013'!$S$10-'[35]Cont''y WIRES 2013'!$S$11 -> -250763.0864 | M22: -4875423.601 | N22: 5481136.419
A23: 13 | B23: 1810 | C23: Leasehold Improvements | H23: 0 | M23: 0 | N23: 0
A24: 47 | B24: 1815 | C24: Transformer Station Equipment >50 kV | H24: 0 | M24: 0 | N24: 0
A25: 47 | B25: 1820 | C25: Distribution Station Equipment <50 kV | D25: ='[35]Cont''y WIRES 2013'!$F$12 -> 17547705.69 | F25: ='[35]Cont''y WIRES 2013'!$G$12 -> 359532.43 | H25: 17907238.12 | I25: -11226788 | K25: =-'[35]Cont''y WIRES 2013'!$S$12 -> -218937.9287 | M25: -11445725.93 | N25: 6461512.191
A26: 47 | B26: 1825 | C26: Storage Battery Equipment | H26: 0 | M26: 0 | N26: 0
A27: 47 | B27: 1830 | C27: Poles, Towers & Fixtures | D27: ='[35]Cont''y WIRES 2013'!$F$17 -> 19238774.11 | F27: ='[35]Cont''y WIRES 2013'!$G$17+'[35]Cont''y WIRES 2013'!$I$17 -> 1205309.5 | H27: 20444083.61 | I27: =-'[35]Cont''y WIRES 2013'!$R$17 -> -9065588.333 | K27: =-'[35]Cont''y WIRES 2013'!$S$17 -> -362173.9197 | M27: -9427762.253 | N27: 11016321.36
A28: 47 | B28: 1835 | C28: Overhead Conductors & Devices | D28: ='[35]Cont''y WIRES 2013'!$F$15+'[35]Cont''y WIRES 2013'!$F$13 -> 42056154.02 | F28: ='[35]Cont''y WIRES 2013'!$G$15+'[35]Cont''y WIRES 2013'!$I$15+'[35]Cont''y WIRES 2013'!$G$13 -> 1001409.42 | H28: 43057563.44 | I28: =-'[35]Cont''y WIRES 2013'!$R$15-'[35]Cont''y WIRES 2013'!$R$13 -> -28314245.02 | K28: =-'[35]Cont''y WIRES 2013'!$S$13-'[35]Cont''y WIRES 2013'!$S$15 -> -553772.3282 | M28: -28868017.35 | N28: 14189546.09
A29: 47 | B29: 1840 | C29: Underground Conduit | D29: ='[35]Cont''y WIRES 2013'!$F$18 -> 20841499.54 | F29: ='[35]Cont''y WIRES 2013'!$G$18 -> 670006.09 | H29: 21511505.63 | I29: =-'[35]Cont''y WIRES 2013'!$R$18 -> -12176064.9 | K29: =-'[35]Cont''y WIRES 2013'!$S$18 -> -233875.3607 | M29: -12409940.26 | N29: 9101565.373
A30: 47 | B30: 1845 | C30: Underground Conductors & Devices | D30: ='[35]Cont''y WIRES 2013'!$F$14+'[35]Cont''y WIRES 2013'!$F$19 -> 21270551.89 | F30: =+'[35]Cont''y WIRES 2013'!$G$19+'[35]Cont''y WIRES 2013'!$I$19+'[35]Cont''y WIRES 2013'!$G$14 -> 615323.2 | H30: 21885875.09 | I30: =-'[35]Cont''y WIRES 2013'!$R$19-'[35]Cont''y WIRES 2013'!$R$14 -> -11662374.44 | K30: =-'[35]Cont''y WIRES 2013'!$S$14-'[35]Cont''y WIRES 2013'!$S$19 -> -412720.5329 | M30: -12075094.97 | N30: 9810780.116
A31: 47 | B31: 1850 | C31: Line Transformers | D31: ='[35]Cont''y WIRES 2013'!$F$21 -> 29393619.99 | F31: ='[35]Cont''y WIRES 2013'!$G$21 -> 1030063.19 | H31: 30423683.18 | I31: =-'[35]Cont''y WIRES 2013'!$R$21 -> -17956843.74 | K31: =-'[35]Cont''y WIRES 2013'!$S$21 -> -464862.2881 | M31: -18421706.03 | N31: 12001977.15
A32: 47 | B32: 1855 | C32: Services (Overhead & Underground) | D32: ='[35]Cont''y WIRES 2013'!$F$16+'[35]Cont''y WIRES 2013'!$F$20 -> 12342929.8 | F32: ='[35]Cont''y WIRES 2013'!$G$16+'[35]Cont''y WIRES 2013'!$G$20 -> 1068304.96 | H32: 13411234.76 | I32: =-'[35]Cont''y WIRES 2013'!$R$20-'[35]Cont''y WIRES 2013'!$R$16 -> -6500462.136 | K32: =-'[35]Cont''y WIRES 2013'!$S$20-'[35]Cont''y WIRES 2013'!$S$16 -> -213035.7644 | M32: -6713497.9 | N32: 6697736.86
A33: 47 | B33: 1860 | C33: Meters (includes Smart Meters) | D33: ='[35]Cont''y WIRES 2013'!$F$22 -> 8935155.45 | E33: ='[35]Cont''y WIRES 2013'!$K$22 -> 6519180.42 | F33: ='[35]Cont''y WIRES 2013'!$G$22 -> 107883.42 | H33: 15562219.29 | I33: =-'[35]Cont''y WIRES 2013'!$R$22 -> -6817799.923 | J33: =-'[35]Cont''y WIRES 2013'!$T$22 -> -1047669 | K33: =-'[35]Cont''y WIRES 2013'!$S$22 -> -485966.902 | M33: -8351435.825 | N33: 7210783.465
A34: 47 | B34: 1860 | C34: Meters (Stranded Meter Adjustment) | E34: ='[35]Cont''y WIRES 2013'!$M$22 -> -7076701.298 | H34: -7076701.298 | J34: =-'[35]Cont''y WIRES 2013'!$U$22 -> 5868347 | M34: 5868347 | N34: -1208354.298
A35: N/A | B35: 1905 | C35: Land | H35: 0 | M35: 0 | N35: 0
A36: 47 | B36: 1908 | C36: Buildings & Fixtures | H36: 0 | M36: 0 | N36: 0
A37: 13 | B37: 1910 | C37: Leasehold Improvements | H37: 0 | M37: 0 | N37: 0
A38: 8 | B38: 1915 | C38: Office Furniture & Equipment (10 years) | D38: ='[35]Cont''y WIRES 2013'!$F$29 -> 44314.56 | F38: ='[35]Cont''y WIRES 2013'!$G$29 -> 31740 | H38: 76054.56 | I38: =-'[35]Cont''y WIRES 2013'!$R$29 -> -41713.5695 | K38: =-'[35]Cont''y WIRES 2013'!$S$29 -> -2525.5185 | M38: -44239.088 | N38: 31815.472
A39: 8 | B39: 1915 | C39: Office Furniture & Equipment (5 years) | H39: 0 | M39: 0 | N39: 0
A40: 10 | B40: 1920 | C40: Computer Equipment - Hardware | D40: ='[35]Cont''y WIRES 2013'!$F$23 -> 162987.72 | E40: ='[35]Cont''y WIRES 2013'!$K$23 -> 204815 | F40: ='[35]Cont''y WIRES 2013'!$G$23 -> 341012.65 | H40: 708815.37 | I40: =-'[35]Cont''y WIRES 2013'!$R$23 -> -47096.116 | J40: =-'[35]Cont''y WIRES 2013'!$T$23 -> -101801 | K40: =-'[35]Cont''y WIRES 2013'!$S$23 -> -107661.809 | M40: -256558.925 | N40: 452256.445
A41: 45 | B41: 1920 | C41: Computer Equip.-Hardware(Post Mar. 22/04) | H41: 0 | M41: 0 | N41: 0
A42: 45.1 | B42: 1920 | C42: Computer Equip.-Hardware(Post Mar. 19/07) | H42: 0 | M42: 0 | N42: 0
A43: 10 | B43: 1930 | C43: Transportation Equipment | D43: ='[35]Cont''y WIRES 2013'!$F$26 -> 5258637.36 | F43: ='[35]Cont''y WIRES 2013'!$G$26 -> 533800 | G43: ='[35]Cont''y WIRES 2013'!$M$26 -> -72016.18 | H43: 5720421.18 | I43: =-'[35]Cont''y WIRES 2013'!$R$26 -> -3864504.766 | K43: =-'[35]Cont''y WIRES 2013'!$S$26-'[35]Cont''y WIRES 2013'!$T$26 -> -159278.0704 | M43: -4023782.837 | N43: 1696638.343
A44: 8 | B44: 1935 | C44: Stores Equipment | H44: 0 | M44: 0 | N44: 0
A45: 8 | B45: 1940 | C45: Tools, Shop & Garage Equipment | D45: ='[35]Cont''y WIRES 2013'!$F$25 -> 1961496.07 | E45: ='[35]Cont''y WIRES 2013'!$K$25 -> 16502 | F45: ='[35]Cont''y WIRES 2013'!$G$25 -> 77672.09 | H45: 2055670.16 | I45: =-'[35]Cont''y WIRES 2013'!$R$25 -> -1467290.827 | J45: =-'[35]Cont''y WIRES 2013'!$T$25 -> -4125 | K45: =-'[35]Cont''y WIRES 2013'!$S$25 -> -88606.4235 | M45: -1560022.251 | N45: 495647.909
A46: 8 | B46: 1945 | C46: Measurement & Testing Equipment | H46: 0 | M46: 0 | N46: 0
A47: 8 | B47: 1950 | C47: Power Operated Equipment | H47: 0 | M47: 0 | N47: 0
A48: 8 | B48: 1955 | C48: Communications Equipment | D48: ='[35]Cont''y WIRES 2013'!$F$31+'[35]Cont''y WIRES 2013'!$F$28 -> 2262458.79 | F48: =+'[35]Cont''y WIRES 2013'!$G$28 -> 912 | H48: 2263370.79 | I48: =-'[35]Cont''y WIRES 2013'!$R$28-'[35]Cont''y WIRES 2013'!$R$31 -> -1307813.078 | K48: =-'[35]Cont''y WIRES 2013'!$S$31-'[35]Cont''y WIRES 2013'!$S$28 -> -82180.0667 | M48: -1389993.145 | N48: 873377.6453
A49: 8 | B49: 1955 | C49: Communication Equipment (Smart Meters) | H49: 0 | M49: 0 | N49: 0
A50: 8 | B50: 1960 | C50: Miscellaneous Equipment | H50: 0 | M50: 0 | N50: 0
A51: 47 | B51: 1970 | C51: Load Management Controls Customer Premises | H51: 0 | M51: 0 | N51: 0
A52: 47 | B52: 1975 | C52: Load Management Controls Utility Premises | H52: 0 | M52: 0 | N52: 0
A53: 47 | B53: 1980 | C53: System Supervisor Equipment | D53: ='[35]Cont''y WIRES 2013'!$F$27 -> 1573528.65 | F53: ='[35]Cont''y WIRES 2013'!$G$27 -> 59389.24 | H53: 1632917.89 | I53: =-'[35]Cont''y WIRES 2013'!$R$27 -> -1274629.688 | K53: =-'[35]Cont''y WIRES 2013'!$S$27 -> -26377.4899 | M53: -1301007.178 | N53: 331910.7125
A54: 47 | B54: 1985 | C54: Miscellaneous Fixed Assets | D54: ='[35]Cont''y WIRES 2013'!$F$30 -> 42116.86 | H54: 42116.86 | I54: =-'[35]Cont''y WIRES 2013'!$R$30 -> -42116.858 | M54: -42116.858 | N54: 0.001999999993
A55: 47 | B55: 1990 | C55: Other Tangible Property | H55: 0 | M55: 0 | N55: 0
A56: 47 | B56: 1995 | C56: Contributions & Grants | D56: =-'[36] 2013-12 YE FINAL CONTINUITY '!$B$29 -> -15309085.01 | F56: =-'[36] 2013-12 YE FINAL CONTINUITY '!$D$29 -> -1247332.07 | H56: -16556417.08 | I56: ='[36] 2013-12 YE FINAL CONTINUITY '!$K$29 -> 4003411.222 | K56: ='[36] 2013-12 YE FINAL CONTINUITY '!$M$29 -> 364313.2647 | M56: 4367724.487 | N56: -12188692.59
A57: 47 | B57: 2440 | C57: Deferred Revenue5 | D57: 0 | H57: 0 | I57: 0 | M57: 0 | N57: 0
B58: 1330 | C58: WIP - Capital Inventory | D58: 1127820 | F58: 616758 | H58: 1744578 | M58: 0 | N58: 1744578
B59: 2055 | C59: Work in Process | D59: ='[35]Cont''y WIRES 2013'!$F$33 -> 544624.94 | F59: =339354+41672+3 -> 381029 | G59: =-393864-138984-40777 -> -573625 | H59: 352028.94 | M59: 0 | N59: 352028.94
H60: 0 | M60: 0 | N60: 0
C61: Sub-Total | D61: =SUM(D17:D60) -> 182935121 | E61: =SUM(E17:E60) -> -91311.8776 | F61: =SUM(F17:F60) -> 7259839.24 | G61: =SUM(G17:G60) -> -645641.18 | H61: =SUM(H17:H60) -> 189458007.2 | I61: =SUM(I17:I60) -> -114511409.5 | J61: 4631483 | K61: -3590423.513 | L61: 0 | M61: =SUM(M17:M60) -> -113470350 | N61: 75987657.21
C62: Less Socialized Renewable Energy Generation Investments (input as negative) | H62: =D62+F62+G62 -> 0 | M62: =I62+K62+L62 -> 0 | N62: =H62+M62 -> 0
C63: Less Other Non Rate-Regulated Utility Assets (input as negative) | D63: -129739 | H63: =D63+F63+G63 -> -129739 | I63: 64281 | K63: 25948 | M63: =I63+K63+L63 -> 90229 | N63: =H63+M63 -> -39510
C64: Total PP&E | D64: =SUM(D61:D63) -> 182805382 | E64: -91311.8776 | F64: 7259839.24 | G64: -645641.18 | H64: 189328268.2 | I64: -114447128.5 | J64: =SUM(J61:J63) -> 4631483 | K64: =SUM(K61:K63) -> -3564475.513 | L64: =SUM(L61:L63) -> 0 | M64: =SUM(M61:M63) -> -113380121 | N64: =SUM(N61:N63) -> 75948147.21
C65: Depreciation Expense adj. from gain or loss on the retirement of assets (pool of like assets), if applicable6
C66: Total | I66: =K64+I65 -> -3564475.513
C67: Net of WIP and Cap Inv 1330 and 2055 | D67: =D64-D59-D58 -> 181132937.1 | E67: =E64-E59-E58 -> -91311.8776 | H67: =H64-H59-H58 -> 187231661.3 | I67: =I64-I59-I58 -> -114447128.5 | J67: =J64-J59-J58 -> 4631483 | N67: =N64-N59-N58 -> 73851540.27
H69: Less: Fully Allocated Depreciation
A70: 10 | C70: Transportation | H70: Transportation | J70: =K43 -> -159278.0704
A71: 8 | C71: Stores Equipment | H71: Stores Equipment | J71: =K45 -> -88606.4235
H72: Net Depreciation | J72: =I66-J70-J71 -> -3316591.019
E75: Accounting Standard | F75: CGAAP
E76: Year | F76: 2014
D78: Cost | H78: Accumulated Depreciation
A79: CCA Class 2 | B79: OEB Account 3 | C79: Description 3 | D79: Opening Balance | E79: IFRS Adjustments | F79: Additions 4 | G79: Disposals 6 | H79: Closing Balance | I79: Opening Balance | J79: IFRS Adjustments | K79: Additions | L79: Disposals 6 | M79: Closing Balance | N79: Net Book Value
B80: 1609 | C80: Capital Contributions Paid | D80: =H17 -> 0 | H80: =D80+F80+G80+E80 -> 0 | I80: =M17 -> 0 | M80: =I80+K80+L80 -> 0 | N80: =H80+M80 -> 0
B81: 1610 | C81: Miscellaneous Intangible Plant | D81: 0 | H81: 0 | N81: =H81+M81 -> 0
A82: 12 | B82: 1611 | C82: Computer Software (Formally known as Account 1925) | D82: 3041587.16 | F82: ='[37]Cont''y WIRES 2014 '!$I$24 -> 48679.24 | H82: 3090266.4 | I82: =M19 -> -2500097.085 | K82: =-'[37]Cont''y WIRES 2014 '!$T$24 -> -274849.137 | M82: =I82+J82+K82+L82 -> -2774946.222 | N82: =H82+M82 -> 315320.178
A83: CEC | B83: 1612 | C83: Land Rights (Formally known as Account 1906) | D83: 9044.52 | F83: ='[37]Cont''y WIRES 2014 '!$I$32 -> 13654.66 | H83: 22699.18 | I83: 0 | M83: =I83+J83+K83+L83 -> 0 | N83: 22699.18
A84: N/A | B84: 1805 | C84: Land | D84: 884557.01 | F84: ='[37]Cont''y WIRES 2014 '!$I$9 -> 23467.2 | H84: 908024.21 | I84: 0 | M84: 0 | N84: 908024.21
A85: 47 | B85: 1808 | C85: Buildings | D85: 10356560.02 | F85: ='[37]Cont''y WIRES 2014 '!$I$11 -> 1483777.61 | H85: 11840337.63 | I85: -4875423.601 | K85: =-'[37]Cont''y WIRES 2014 '!$T$10-'[37]Cont''y WIRES 2014 '!$T$11-216 -> -307418.8734 | M85: -5182842.474 | N85: 6657495.156
A86: 13 | B86: 1810 | C86: Leasehold Improvements | D86: 0 | H86: 0 | I86: 0 | M86: 0 | N86: 0
A87: 47 | B87: 1815 | C87: Transformer Station Equipment >50 kV | D87: 0 | H87: 0 | I87: 0 | M87: 0 | N87: 0
A88: 47 | B88: 1820 | C88: Distribution Station Equipment <50 kV | D88: 17907238.12 | F88: ='[37]Cont''y WIRES 2014 '!$I$12 -> 404330.35 | H88: 18311568.47 | I88: -11445725.93 | K88: =-'[37]Cont''y WIRES 2014 '!$T$12+'[37]Cont''y WIRES 2014 '!$AA$12 -> -222693.1553 | M88: -11668419.08 | N88: 6643149.386
A89: 47 | B89: 1825 | C89: Storage Battery Equipment | D89: 0 | H89: =D89+F89+G89+E89 -> 0 | I89: 0 | M89: 0 | N89: 0
A90: 47 | B90: 1830 | C90: Poles, Towers & Fixtures | D90: 20444083.61 | F90: ='[37]Cont''y WIRES 2014 '!$I$17 -> 1247407.61 | H90: 21691491.22 | I90: -9427762.253 | K90: =-'[37]Cont''y WIRES 2014 '!$T$17 -> -392464.6538 | M90: -9820226.906 | N90: 11871264.31
A91: 47 | B91: 1835 | C91: Overhead Conductors & Devices | D91: 43057563.44 | E91: =-'[38]2014 12 YE Continuity'!$B$10-'[38]2014 12 YE Continuity'!$B$27 -> -4174040.17 | F91: ='[37]Cont''y WIRES 2014 '!$I$15+'[37]Cont''y WIRES 2014 '!$I$13 -> 761569.38 | H91: 39645092.65 | I91: -28868017.35 | J91: ='[38]2014 12 YE Continuity'!$K$10+'[38]2014 12 YE Continuity'!$K$27 -> 1073729.63 | K91: =-'[37]Cont''y WIRES 2014 '!$T$15-'[37]Cont''y WIRES 2014 '!$T$13+'[38]2014 12 YE Continuity'!$U$10+'[38]2014 12 YE Continuity'!$U$27 -> -470865.5126 | M91: -28265153.23 | N91: 11379939.42
A92: 47 | B92: 1840 | C92: Underground Conduit | D92: 21511505.63 | F92: ='[37]Cont''y WIRES 2014 '!$I$18+25 -> 634436.62 | H92: 22145942.25 | I92: -12409940.26 | K92: =-'[37]Cont''y WIRES 2014 '!$T$18 -> -246919.5378 | M92: =I92+J92+K92+L92 -> -12656859.8 | N92: 9489082.455
A93: 47 | B93: 1845 | C93: Underground Conductors & Devices | D93: 21885875.09 | E93: =-'[38]2014 12 YE Continuity'!$B$13 -> -7654665.96 | F93: ='[37]Cont''y WIRES 2014 '!$I$19 -> 676224.89 | H93: 14907434.02 | I93: -12075094.97 | J93: ='[38]2014 12 YE Continuity'!$K$13 -> 2103983.737 | K93: =-'[37]Cont''y WIRES 2014 '!$T$19-'[37]Cont''y WIRES 2014 '!$T$14+'[38]2014 12 YE Continuity'!$U$13 -> -258623.3686 | M93: =I93+J93+K93+L93 -> -10229734.61 | N93: 4677699.415
A94: 47 | B94: 1850 | C94: Line Transformers | D94: 30423683.18 | E94: =-'[38]2014 12 YE Continuity'!$B$21-'[38]2014 12 YE Continuity'!$B$17 -> -4664179.63 | F94: ='[37]Cont''y WIRES 2014 '!$I$21 -> 1397762.85 | H94: 27157266.4 | I94: -18421706.03 | J94: ='[38]2014 12 YE Continuity'!$K$17+'[38]2014 12 YE Continuity'!$K$21 -> 1162596.409 | K94: =-'[37]Cont''y WIRES 2014 '!$T$21+'[38]2014 12 YE Continuity'!$U$21 -> -389939.8636 | M94: =I94+J94+K94+L94 -> -17649049.49 | N94: 9508216.914
A95: 47 | B95: 1855 | C95: Services (Overhead & Underground) | D95: 13411234.76 | F95: ='[37]Cont''y WIRES 2014 '!$I$16+'[37]Cont''y WIRES 2014 '!$I$20 -> 1078440.8 | H95: 14489675.56 | I95: -6713497.9 | K95: =-'[37]Cont''y WIRES 2014 '!$T$20-'[37]Cont''y WIRES 2014 '!$T$16 -> -239870.0864 | M95: -6953367.987 | N95: 7536307.573
A96: 47 | B96: 1860 | C96: Meters | D96: =H33+H34 -> 8485517.992 | E96: =-'[38]2014 12 YE Continuity'!$B$25 -> -63531.32 | F96: ='[37]Cont''y WIRES 2014 '!$I$22+371 -> 81419.98 | H96: 8503406.652 | I96: =M33+M34 -> -2483088.825 | J96: ='[38]2014 12 YE Continuity'!$K$25 -> 27414.7106 | K96: =-'[37]Cont''y WIRES 2014 '!$T$22+'[38]2014 12 YE Continuity'!$U$25 -> -489325.6062 | M96: -2944999.72 | N96: 5558406.932
A97: 47 | B97: 1860 | C97: Meters (Smart Meters) | H97: 0 | M97: 0 | N97: 0
A98: N/A | B98: 1905 | C98: Land | D98: 0 | H98: 0 | I98: 0 | M98: 0 | N98: 0
A99: 47 | B99: 1908 | C99: Buildings & Fixtures | D99: 0 | H99: 0 | I99: 0 | M99: 0 | N99: 0
A100: 13 | B100: 1910 | C100: Leasehold Improvements | D100: 0 | H100: 0 | I100: 0 | M100: 0 | N100: 0
A101: 8 | B101: 1915 | C101: Office Furniture & Equipment (10 years) | D101: 76054.56 | H101: 76054.56 | I101: -44239.088 | K101: =-'[37]Cont''y WIRES 2014 '!$T$29 -> -4005.236 | M101: -48244.324 | N101: 27810.236
A102: 8 | B102: 1915 | C102: Office Furniture & Equipment (5 years) | D102: 0 | H102: 0 | I102: 0 | M102: 0 | N102: 0
A103: 10 | B103: 1920 | C103: Computer Equipment - Hardware | D103: 708815.37 | F103: ='[37]Cont''y WIRES 2014 '!$I$23 -> 29499.09 | H103: 738314.46 | I103: -256558.925 | K103: =-'[37]Cont''y WIRES 2014 '!$T$23+'[37]Cont''y WIRES 2014 '!$AA$23 -> -138699.575 | M103: -395258.5 | N103: 343055.96
A104: 45 | B104: 1920 | C104: Computer Equip.-Hardware(Post Mar. 22/04) | D104: 0 | H104: 0 | I104: 0 | M104: 0 | N104: 0
A105: 45.1 | B105: 1920 | C105: Computer Equip.-Hardware(Post Mar. 19/07) | D105: 0 | H105: 0 | I105: 0 | M105: 0 | N105: 0
A106: 10 | B106: 1930 | C106: Transportation Equipment | D106: 5720421.18 | F106: ='[37]Cont''y WIRES 2014 '!$I$26 -> 225666.97 | G106: ='[37]Cont''y WIRES 2014 '!$N$26 -> -273292.32 | H106: 5672795.83 | I106: -4023782.837 | K106: =-'[37]Cont''y WIRES 2014 '!$T$26 -> -221239.1915 | L106: =-'[37]Cont''y WIRES 2014 '!$U$26 -> 345308.5 | M106: -3899713.528 | N106: 1773082.302
A107: 8 | B107: 1935 | C107: Stores Equipment | D107: 0 | H107: 0 | I107: 0 | M107: 0 | N107: 0
A108: 8 | B108: 1940 | C108: Tools, Shop & Garage Equipment | D108: 2055670.16 | F108: ='[37]Cont''y WIRES 2014 '!$I$25 -> 85031.51 | H108: 2140701.67 | I108: -1560022.251 | K108: =-'[37]Cont''y WIRES 2014 '!$T$25 -> -94957.1025 | M108: -1654979.353 | N108: 485722.3165
A109: 8 | B109: 1945 | C109: Measurement & Testing Equipment | D109: 0 | H109: 0 | I109: 0 | M109: 0 | N109: 0
A110: 8 | B110: 1950 | C110: Power Operated Equipment | D110: 0 | H110: 0 | I110: 0 | M110: 0 | N110: 0
A111: 8 | B111: 1955 | C111: Communications Equipment | D111: 2263370.79 | F111: ='[37]Cont''y WIRES 2014 '!$I$28 -> 64352.36 | H111: 2327723.15 | I111: -1389993.145 | K111: =-'[37]Cont''y WIRES 2014 '!$T$28-'[37]Cont''y WIRES 2014 '!$T$31 -> -81422.5247 | M111: -1471415.669 | N111: 856307.4806
A112: 8 | B112: 1955 | C112: Communication Equipment (Smart Meters) | D112: 0 | H112: 0 | I112: 0 | M112: 0 | N112: 0
A113: 8 | B113: 1960 | C113: Miscellaneous Equipment | D113: 0 | H113: 0 | I113: 0 | M113: 0 | N113: 0
A114: 47 | B114: 1970 | C114: Load Management Controls Customer Premises | D114: 0 | H114: 0 | I114: 0 | M114: 0 | N114: 0
A115: 47 | B115: 1975 | C115: Load Management Controls Utility Premises | D115: 0 | H115: 0 | I115: 0 | M115: 0 | N115: 0
A116: 47 | B116: 1980 | C116: System Supervisor Equipment | D116: 1632917.89 | F116: ='[37]Cont''y WIRES 2014 '!$I$27 -> 94893.97 | H116: 1727811.86 | I116: -1301007.178 | K116: =-'[37]Cont''y WIRES 2014 '!$T$27 -> -28749.83915 | M116: -1329757.017 | N116: 398054.8433
A117: 47 | B117: 1985 | C117: Miscellaneous Fixed Assets | D117: 42116.86 | H117: 42116.86 | I117: -42116.858 | M117: -42116.858 | N117: 0.001999999993
A118: 47 | B118: 1990 | C118: Other Tangible Property | D118: 0 | H118: 0 | I118: 0 | M118: 0 | N118: 0
A119: 47 | B119: 1995 | C119: Contributions & Grants | D119: -16556417.08 | E119: ='[38]2014 12 YE Continuity'!$B$10+'[38]2014 12 YE Continuity'!$B$27+'[38]2014 12 YE Continuity'!$B$13+'[38]2014 12 YE Continuity'!$B$17+'[38]2014 12 YE Continuity'!$B$21+'[38]2014 12 YE Continuity'!$B$25 -> 16556417.08 | H119: 0 | I119: 4367724.487 | J119: =-'[38]2014 12 YE Continuity'!$K$10-'[38]2014 12 YE Continuity'!$K$13-'[38]2014 12 YE Continuity'!$K$17-'[38]2014 12 YE Continuity'!$K$21-'[38]2014 12 YE Continuity'!$K$25-'[38]2014 12 YE Continuity'!$K$27 -> -4367724.487 | K119: ='[38]2014 12 YE Continuity'!$M$31-'[38]2014 12 YE Continuity'!$U$31 -> -0.04489523877 | M119: -0.0448952397 | N119: -0.0448952397
A120: 47 | B120: 2440 | C120: Deferred Revenue5 | D120: 0 | F120: =-'[38]2014 12 YE Continuity'!$D$31 -> -898556.67 | H120: -898556.67 | I120: 0 | M120: 0 | N120: -898556.67
B121: 1330 | C121: WIP - Capital Inventory | D121: 1744578 | G121: -388438 | H121: 1356140 | I121: 0 | M121: 0 | N121: 1356140
B122: 2055 | C122: Work in Process | D122: 352028.94 | F122: =313258+21194+337 -> 334789 | G122: =-10356-2292-226614-41090-97312-759 -> -378423 | H122: 308394.94 | I122: 0 | M122: 0 | N122: 308394.94
D123: 0 | H123: 0 | I123: 0 | M123: 0 | N123: 0
C124: Sub-Total | D124: =SUM(D80:D123) -> 189458007.2 | E124: =SUM(E80:E123) -> 0 | F124: 7786847.42 | G124: -1040153.32 | H124: 196204701.3 | I124: -113470350 | J124: =SUM(J80:J123) -> 0 | K124: =SUM(K80:K123) -> -3862043.308 | L124: 345308.5 | M124: -116987084.8 | N124: 79217616.5
C125: Less Socialized Renewable Energy Generation Investments (input as negative) | H125: =D125+F125+G125 -> 0 | M125: =I125+K125+L125 -> 0 | N125: =H125+M125 -> 0
C126: Less Other Non Rate-Regulated Utility Assets (input as negative) | D126: =H63 -> -129739 | H126: =D126+F126+G126 -> -129739 | I126: =M63 -> 90229 | K126: 25948 | M126: =I126+K126+L126 -> 116177 | N126: =H126+M126 -> -13562
C127: Total PP&E | D127: =SUM(D124:D126) -> 189328268.2 | F127: 7786847.42 | G127: -1040153.32 | H127: 196074962.3 | I127: -113380121 | K127: -3836095.308 | L127: 345308.5 | M127: -116870907.8 | N127: 79204054.5
C128: Depreciation Expense adj. from gain or loss on the retirement of assets (pool of like assets), if applicable6
C129: Total | I129: =K127+I128 -> -3836095.308
C130: Net of WIP and Cap Inv 1330 and 2055 | D130: =D127-D122-D121 -> 187231661.3 | H130: =H127-H122-H121 -> 194410427.4 | N130: =N127-N122-N121 -> 77539519.56
H132: Less: Fully Allocated Depreciation
A133: 10 | C133: Transportation | H133: Transportation | J133: =K106 -> -221239.1915
A134: 8 | C134: Stores Equipment | H134: Stores Equipment | J134: =K108 -> -94957.1025
H135: Net Depreciation | J135: =I129-J133-J134 -> -3519899.014
E138: Accounting Standard | F138: MIFRS
E139: Year | F139: 2015
D141: Cost | I141: Accumulated Depreciation
A142: CCA Class 2 | B142: OEB Account 3 | C142: Description 3 | D142: Opening Balance | E142: Additions 4 | F142: Disposals 6 | G142: Adjustment through RE | H142: Closing Balance | I142: Opening Balance | J142: Additions | K142: Disposals 6 | L142: Adjustment through RE | M142: Closing Balance | N142: Net Book Value
B143: 1609 | C143: Capital Contributions Paid | D143: =H80 -> 0 | H143: =D143+E143+F143 -> 0 | I143: =M80 -> 0 | M143: =I143+J143+K143+L143 -> 0 | N143: =H143+M143 -> 0
B144: 1610 | C144: Miscellaneous Intangible Plant | D144: 0 | H144: =D144+E144+F144 -> 0 | N144: 0
A145: 12 | B145: 1611 | C145: Computer Software (Formally known as Account 1925) | D145: 3090266.4 | E145: ='[39]Cont''y WIRES 2015'!$M$24 -> 114872.93 | H145: =D145+E145+F145+G145 -> 3205139.33 | I145: =M82 -> -2774946.222 | J145: =-'[39]Cont''y WIRES 2015'!$AH$24 -> -189312.84 | M145: =I145+J145+K145+L145 -> -2964259.062 | N145: 240880.268
A146: CEC | B146: 1612 | C146: Land Rights (Formally known as Account 1906) | D146: 22699.18 | E146: ='[39]Cont''y WIRES 2015'!$M$32 -> 13433.49 | H146: =D146+E146+F146+G146 -> 36132.67 | I146: 0 | M146: 0 | N146: 36132.67
A147: N/A | B147: 1805 | C147: Land | D147: 908024.21 | E147: ='[39]Cont''y WIRES 2015'!$M$9 -> 32054.59 | H147: 940078.8 | I147: 0 | M147: 0 | N147: 940078.8
A148: 47 | B148: 1808 | C148: Buildings | D148: 11840337.63 | E148: ='[39]Cont''y WIRES 2015'!$M$10+'[39]Cont''y WIRES 2015'!$M$11 -> 1320993.71 | G148: ='[39]Cont''y WIRES 2015'!$I$10+'[39]Cont''y WIRES 2015'!$J$10+'[39]Cont''y WIRES 2015'!$I$11+'[39]Cont''y WIRES 2015'!$J$11 -> -183692.47 | H148: 12977638.87 | I148: -5182842.474 | J148: =-'[39]Cont''y WIRES 2015'!$AH$10-'[39]Cont''y WIRES 2015'!$AH$11 -> -378626.4554 | L148: =-('[39]Cont''y WIRES 2015'!$AA$10+'[39]Cont''y WIRES 2015'!$AB$10+'[39]Cont''y WIRES 2015'!$AC$10+'[39]Cont''y WIRES 2015'!$AD$10+'[39]Cont''y WIRES 2015'!$AE$10+'[39]Cont''y WIRES 2015'!$AA$11+'[39]Cont''y WIRES 2015'!$AB$11+'[39]Cont''y WIRES 2015'!$AC$11+'[39]Cont''y WIRES 2015'!$AD$11+'[39]Cont''y WIRES 2015'!$AE$11) -> -86242.64426 | M148: -5647711.574 | N148: 7329927.296
A149: 13 | B149: 1810 | C149: Leasehold Improvements | D149: 0 | H149: 0 | I149: 0 | M149: 0 | N149: 0
A150: 47 | B150: 1815 | C150: Transformer Station Equipment >50 kV | D150: 0 | H150: 0 | I150: 0 | M150: 0 | N150: 0
A151: 47 | B151: 1820 | C151: Distribution Station Equipment <50 kV | D151: 18311568.47 | E151: ='[39]Cont''y WIRES 2015'!$M$12 -> 163382.27 | G151: ='[39]Cont''y WIRES 2015'!$I$12+'[39]Cont''y WIRES 2015'!$J$12 -> -1431637.09 | H151: 17043313.65 | I151: -11668419.08 | J151: =-'[39]Cont''y WIRES 2015'!$AH$12 -> -371810.8159 | L151: =-('[39]Cont''y WIRES 2015'!$AA$12+'[39]Cont''y WIRES 2015'!$AB$12+'[39]Cont''y WIRES 2015'!$AC$12+'[39]Cont''y WIRES 2015'!$AD$12+'[39]Cont''y WIRES 2015'!$AE$12) -> 755572.6651 | M151: -11284657.23 | N151: 5758656.415
A152: 47 | B152: 1825 | C152: Storage Battery Equipment | D152: 0 | H152: 0 | I152: 0 | M152: 0 | N152: 0
A153: 47 | B153: 1830 | C153: Poles, Towers & Fixtures | D153: 21691491.22 | E153: ='[39]Cont''y WIRES 2015'!$M$17 -> 1620239.18 | F153: ='[39]Cont''y WIRES 2015'!$S$17 -> -254178.83 | H153: 23057551.57 | I153: -9820226.906 | J153: =-'[39]Cont''y WIRES 2015'!$AH$17-859 -> -428839.5029 | K153: =-'[39]Cont''y WIRES 2015'!$AI$17 -> 188408.68 | M153: -10060657.73 | N153: 12996893.84
A154: 47 | B154: 1835 | C154: Overhead Conductors & Devices | D154: 39645092.65 | E154: ='[39]Cont''y WIRES 2015'!$M$13+'[39]Cont''y WIRES 2015'!$M$15 -> 723791.35 | F154: ='[39]Cont''y WIRES 2015'!$S$13+'[39]Cont''y WIRES 2015'!$S$15 -> -617562.55 | H154: 39751321.45 | I154: -28265153.23 | J154: =-'[39]Cont''y WIRES 2015'!$AH$13-'[39]Cont''y WIRES 2015'!$AH$15-368+'[40] Cont Continuity for 2015 YE'!$Q$11-'[40] Cont Continuity for 2015 YE'!$O$11+'[40] Cont Continuity for 2015 YE'!$Q$28 -> -486604.7445 | K154: =-'[39]Cont''y WIRES 2015'!$AI$13-'[39]Cont''y WIRES 2015'!$AI$15 -> 504083.11 | M154: -28247674.86 | N154: 11503646.59
A155: 47 | B155: 1840 | C155: Underground Conduit | D155: 22145942.25 | E155: ='[39]Cont''y WIRES 2015'!$M$18 -> 576755.81 | F155: ='[39]Cont''y WIRES 2015'!$S$18 -> -25317.65 | H155: 22697380.41 | I155: -12656859.8 | J155: =-'[39]Cont''y WIRES 2015'!$AH$18 -> -259530.2445 | K155: =-'[39]Cont''y WIRES 2015'!$AI$18 -> 17605.6 | M155: -12898784.44 | N155: 9798595.97
A156: 47 | B156: 1845 | C156: Underground Conductors & Devices | D156: 14907434.02 | E156: ='[39]Cont''y WIRES 2015'!$M$19+'[39]Cont''y WIRES 2015'!$M$14 -> 615640.24 | F156: ='[39]Cont''y WIRES 2015'!$S$19 -> -236725.78 | H156: 15286348.48 | I156: -10229734.61 | J156: =-'[39]Cont''y WIRES 2015'!$AH$14-'[39]Cont''y WIRES 2015'!$AH$19+'[40] Cont Continuity for 2015 YE'!$Q$14-'[40] Cont Continuity for 2015 YE'!$O$14-'[39]Cont''y WIRES 2015'!$AJ$19 -> -278978.2688 | K156: =-'[39]Cont''y WIRES 2015'!$AI$19 -> 163290.03 | M156: -10345422.84 | N156: 4940925.636
A157: 47 | B157: 1850 | C157: Line Transformers | D157: 27157266.4 | E157: ='[39]Cont''y WIRES 2015'!$M$21 -> 1362816.64 | F157: ='[39]Cont''y WIRES 2015'!$S$21 -> -1006677.05 | H157: 27513405.99 | I157: -17649049.49 | J157: =-'[39]Cont''y WIRES 2015'!$AH$21+'[40] Cont Continuity for 2015 YE'!$Q$18-'[40] Cont Continuity for 2015 YE'!$O$18+'[40] Cont Continuity for 2015 YE'!$Q$22-'[40] Cont Continuity for 2015 YE'!$O$22 -> -416435.2957 | K157: =-'[39]Cont''y WIRES 2015'!$AI$21 -> 772801.84 | M157: -17292682.94 | N157: 10220723.05
A158: 47 | B158: 1855 | C158: Services (Overhead & Underground) | D158: 14489675.56 | E158: ='[39]Cont''y WIRES 2015'!$M$20+'[39]Cont''y WIRES 2015'!$M$16 -> 1147044.94 | F158: ='[39]Cont''y WIRES 2015'!$S$16+'[39]Cont''y WIRES 2015'!$S$20 -> -155181.51 | H158: 15481538.99 | I158: -6953367.987 | J158: =-'[39]Cont''y WIRES 2015'!$AH$20-'[39]Cont''y WIRES 2015'!$AH$16 -> -268102.7087 | K158: =-'[39]Cont''y WIRES 2015'!$AI$16-'[39]Cont''y WIRES 2015'!$AI$20 -> 111440.37 | M158: -7110030.325 | N158: 8371508.665
A159: 47 | B159: 1860 | C159: Meters | D159: 8503406.652 | E159: ='[39]Cont''y WIRES 2015'!$M$22 -> 161684.28 | H159: 8665090.932 | I159: -2944999.72 | J159: =-'[39]Cont''y WIRES 2015'!$AH$22+'[40] Cont Continuity for 2015 YE'!$Q$26-'[40] Cont Continuity for 2015 YE'!$O$26 -> -494932.9342 | M159: -3439932.655 | N159: 5225158.278
A160: 47 | B160: 1860 | C160: Meters (Smart Meters) | H160: 0 | M160: 0 | N160: 0
A161: N/A | B161: 1905 | C161: Land | D161: 0 | H161: 0 | I161: 0 | M161: 0 | N161: 0
A162: 47 | B162: 1908 | C162: Buildings & Fixtures | D162: 0 | H162: 0 | I162: 0 | M162: 0 | N162: 0
A163: 13 | B163: 1910 | C163: Leasehold Improvements | D163: 0 | H163: 0 | I163: 0 | M163: 0 | N163: 0
A164: 8 | B164: 1915 | C164: Office Furniture & Equipment (10 years) | D164: 76054.56 | H164: 76054.56 | I164: -48244.324 | J164: =-'[39]Cont''y WIRES 2015'!$AH$29 -> -4005.236 | M164: -52249.56 | N164: 23805
A165: 8 | B165: 1915 | C165: Office Furniture & Equipment (5 years) | D165: 0 | H165: 0 | I165: 0 | M165: 0 | N165: 0
A166: 10 | B166: 1920 | C166: Computer Equipment - Hardware | D166: 738314.46 | H166: 738314.46 | I166: -395258.5 | J166: =-'[39]Cont''y WIRES 2015'!$AH$23 -> -127484.792 | M166: -522743.292 | N166: 215571.168
A167: 45 | B167: 1920 | C167: Computer Equip.-Hardware(Post Mar. 22/04) | D167: 0 | H167: 0 | I167: 0 | M167: 0 | N167: 0
A168: 45.1 | B168: 1920 | C168: Computer Equip.-Hardware(Post Mar. 19/07) | D168: 0 | H168: 0 | I168: 0 | M168: 0 | N168: 0
A169: 10 | B169: 1930 | C169: Transportation Equipment | D169: 5672795.83 | E169: ='[39]Cont''y WIRES 2015'!$M$26 -> 756834.45 | F169: ='[39]Cont''y WIRES 2015'!$S$26 -> -373284.46 | H169: 6056345.82 | I169: -3899713.528 | J169: =-'[39]Cont''y WIRES 2015'!$AH$26 -> -268827.2601 | K169: =-'[39]Cont''y WIRES 2015'!$AI$26-'[39]Cont''y WIRES 2015'!$AL$26 -> 301266.84 | M169: -3867273.948 | N169: 2189071.872
A170: 8 | B170: 1935 | C170: Stores Equipment | D170: 0 | H170: 0 | I170: 0 | M170: 0 | N170: 0
A171: 8 | B171: 1940 | C171: Tools, Shop & Garage Equipment | D171: 2140701.67 | E171: ='[39]Cont''y WIRES 2015'!$M$25 -> 69666.34 | H171: 2210368.01 | I171: -1654979.353 | J171: =-'[39]Cont''y WIRES 2015'!$AH$25 -> -97477.771 | M171: -1752457.124 | N171: 457910.8855
A172: 8 | B172: 1945 | C172: Measurement & Testing Equipment | D172: 0 | H172: 0 | I172: 0 | M172: 0 | N172: 0
A173: 8 | B173: 1950 | C173: Power Operated Equipment | D173: 0 | H173: 0 | I173: 0 | M173: 0 | N173: 0
A174: 8 | B174: 1955 | C174: Communications Equipment | D174: 2327723.15 | E174: ='[39]Cont''y WIRES 2015'!$M$28 -> 5085.73 | H174: 2332808.88 | I174: -1471415.669 | J174: =-'[39]Cont''y WIRES 2015'!$AH$28-'[39]Cont''y WIRES 2015'!$AH$31 -> -84894.4292 | M174: -1556310.099 | N174: 776498.7814
A175: 8 | B175: 1955 | C175: Communication Equipment (Smart Meters) | D175: 0 | H175: 0 | I175: 0 | M175: 0 | N175: 0
A176: 8 | B176: 1960 | C176: Miscellaneous Equipment | D176: 0 | H176: 0 | I176: 0 | M176: 0 | N176: 0
A177: 47 | B177: 1970 | C177: Load Management Controls Customer Premises | D177: 0 | H177: 0 | I177: 0 | M177: 0 | N177: 0
A178: 47 | B178: 1975 | C178: Load Management Controls Utility Premises | D178: 0 | H178: 0 | I178: 0 | M178: 0 | N178: 0
A179: 47 | B179: 1980 | C179: System Supervisor Equipment | D179: 1727811.86 | E179: ='[39]Cont''y WIRES 2015'!$M$27 -> 207501.11 | H179: 1935312.97 | I179: -1329757.017 | J179: =-'[39]Cont''y WIRES 2015'!$AH$27 -> -36309.71615 | M179: -1366066.733 | N179: 569246.2372
A180: 47 | B180: 1985 | C180: Miscellaneous Fixed Assets | D180: 42116.86 | H180: 42116.86 | I180: -42116.858 | M180: -42116.858 | N180: 0.001999999993
A181: 47 | B181: 1990 | C181: Other Tangible Property | D181: 0 | H181: 0 | I181: 0 | M181: 0 | N181: 0
A182: 47 | B182: 1995 | C182: Contributions & Grants | D182: 0 | H182: 0 | I182: -0.0448952397 | J182: ='[40] Cont Continuity for 2015 YE'!$Q$32-'[40] Cont Continuity for 2015 YE'!$O$32-'[40] Cont Continuity for 2015 YE'!$Q$11-'[40] Cont Continuity for 2015 YE'!$Q$14-'[40] Cont Continuity for 2015 YE'!$Q$18-'[40] Cont Continuity for 2015 YE'!$Q$22-'[40] Cont Continuity for 2015 YE'!$Q$26-'[40] Cont Continuity for 2015 YE'!$Q$28+'[40] Cont Continuity for 2015 YE'!$O$11+'[40] Cont Continuity for 2015 YE'!$O$14+'[40] Cont Continuity for 2015 YE'!$O$18+'[40] Cont Continuity for 2015 YE'!$O$22+'[40] Cont Continuity for 2015 YE'!$O$26 -> 2.442845926e-11 | M182: -0.04489523967 | N182: -0.04489523967
A183: 47 | B183: 2440 | C183: Deferred Revenue5 | D183: -898556.67 | E183: =-'[41] Cont Continuity for 2015 YE'!$C$34 -> -1327041.44 | H183: -2225598.11 | I183: 0 | J183: ='[41] Cont Continuity for 2015 YE'!$H$34+'[40] Cont Continuity for 2015 YE'!$O$32 -> 53364.78569 | M183: 53364.78569 | N183: -2172233.324
B184: 1330 | C184: WIP - Capital Inventory | D184: 1356140 | F184: -152509 | H184: 1203631 | I184: 0 | M184: 0 | N184: 1203631
B185: 2055 | C185: Work in Process | D185: 308394.94 | E185: 375715 | F185: ='[39]Cont''y WIRES 2015'!$S$33 -> -371955.46 | H185: 312154.48 | I185: 0 | M185: 0 | N185: 312154.48
D186: 0 | H186: =D186+E186+F186 -> 0 | I186: 0 | M186: 0 | N186: 0
C187: Sub-Total | D187: =SUM(D143:D186) -> 196204701.3 | E187: 7940470.62 | F187: -3193392.29 | G187: =SUM(G143:G186) -> -1615329.56 | H187: 199336450.1 | I187: -116987084.8 | J187: -4138808.229 | K187: 2058896.47 | L187: =SUM(L145:L185) -> 669330.0208 | M187: =SUM(M143:M186) -> -118397666.5 | N187: =SUM(N143:N186) -> 80938783.53
C188: Less Socialized Renewable Energy Generation Investments (input as negative) | H188: =D188+E188+F188 -> 0 | M188: =I188+J188+K188 -> 0 | N188: =H188+M188 -> 0
C189: Less Other Non Rate-Regulated Utility Assets (input as negative) | D189: =H126 -> -129739 | H189: =D189+E189+F189 -> -129739 | I189: =M126 -> 116177 | J189: 13562 | M189: =I189+J189+K189 -> 129739 | N189: =H189+M189 -> 0
C190: Total PP&E | D190: =SUM(D187:D189) -> 196074962.3 | E190: 7940470.62 | F190: -3193392.29 | G190: -1615329.56 | H190: 199206711.1 | I190: -116870907.8 | J190: =SUM(J187:J189) -> -4125246.229 | K190: 2058896.47 | L190: 669330.0208 | M190: =SUM(M187:M189) -> -118267927.5 | N190: =SUM(N187:N189) -> 80938783.53
C191: Depreciation Expense adj. from gain or loss on the retirement of assets (pool of like assets), if applicable6
C192: Total | I192: =J190+I191 -> -4125246.229
C193: Net of WIP and Cap Inv 1330 and 2055 | D193: =D190-D185-D184 -> 194410427.4 | H193: =H190-H185-H184 -> 197690925.6 | N193: =N190-N185-N184 -> 79422998.05
H195: Less: Fully Allocated Depreciation
A196: 10 | C196: Transportation | H196: Transportation | J196: =J169 -> -268827.2601
A197: 8 | C197: Stores Equipment | H197: Stores Equipment | J197: =J171 -> -97477.771
B198: 2440 | C198: Less Deferred Revenue included in 4245 Other Revenue | J198: =J183 -> 53364.78569
H199: Net Depreciation | J199: =I192-J196-J197-J198 -> -3812305.984
E202: Accounting Standard | F202: MIFRS
E203: Year | F203: 2016
D205: Cost | I205: Accumulated Depreciation
A206: CCA Class 2 | B206: OEB Account 3 | C206: Description 3 | D206: Opening Balance | E206: Additions 4 | F206: Disposals 6 | G206: Closing Balance | H206: Opening Balance | I206: Additions | J206: Disposals 6 | K206: Closing Balance | L206: Net Book Value
B207: 1609 | C207: Capital Contributions Paid | K207: =H207+I207+J207 -> 0 | L207: =G207+K207 -> 0
B208: 1610 | C208: Miscellaneous Intangible Plant | L208: 0
A209: 12 | B209: 1611 | C209: Computer Software (Formally known as Account 1925) | D209: =H145 -> 3205139.33 | E209: ='[42]Wires conty 2016 YE'!$K$29 -> 13239.43 | G209: =D209+E209+F209 -> 3218378.76 | H209: =M145 -> -2964259.062 | I209: =-'[42]Wires conty 2016 YE'!$V$29 -> -100191.39 | K209: -3064450.452 | L209: 153928.308
A210: CEC | B210: 1612 | C210: Land Rights (Formally known as Account 1906) | D210: 36132.67 | E210: ='[42]Wires conty 2016 YE'!$K$38 -> 9045.7 | G210: 45178.37 | H210: 0 | K210: 0 | L210: 45178.37
A211: N/A | B211: 1805 | C211: Land | D211: 940078.8 | G211: 940078.8 | H211: 0 | K211: 0 | L211: 940078.8
A212: 47 | B212: 1808 | C212: Buildings | D212: 12977638.87 | E212: ='[42]Wires conty 2016 YE'!$K$10+'[42]Wires conty 2016 YE'!$K$11 -> 1397010.08 | G212: 14374648.95 | H212: -5647711.574 | I212: =-'[42]Wires conty 2016 YE'!$V$10-'[42]Wires conty 2016 YE'!$V$11 -> -381661.11 | K212: -6029372.684 | L212: 8345276.266
A213: 13 | B213: 1810 | C213: Leasehold Improvements | D213: 0 | G213: 0 | H213: 0 | K213: 0 | L213: 0
A214: 47 | B214: 1815 | C214: Transformer Station Equipment >50 kV | D214: 0 | G214: 0 | H214: 0 | K214: 0 | L214: 0
A215: 47 | B215: 1820 | C215: Distribution Station Equipment <50 kV | D215: 17043313.65 | E215: ='[42]Wires conty 2016 YE'!$K$12 -> 564645.04 | G215: 17607958.69 | H215: -11284657.23 | I215: =-'[42]Wires conty 2016 YE'!$V$12 -> -373750.38 | K215: -11658407.61 | L215: 5949551.075
A216: 47 | B216: 1825 | C216: Storage Battery Equipment | D216: 0 | G216: 0 | H216: 0 | K216: 0 | L216: 0
... 293 more rows

Sheet Appendix 2-BB Service Life
N1: File Number: | P1: ='LDC Info'!E16 -> EB-2019-0037
N2: Exhibit:
N3: Tab:
N4: Schedule:
N5: Page:
N7: Date:
A9: Appendix 2-BB
A10: Service Life Comparison
A11: Table F-1 from Kinetrics Report1
C15: Asset Details | F15: Useful Life | J15: USoA Account Number | K15: USoA Account Description | L15: Current | N15: Proposed | P15: Outside Range of Min, Max TUL?
A16: Parent* | B16: # | C16: Category| Component | Type | F16: MIN UL | G16: TUL | H16: MAX UL | L16: Years | M16: Rate | N16: Years | O16: Rate | P16: Below Min TUL | Q16: Above Max TUL
A17: OH | B17: 1 | C17: Fully Dressed Wood Poles | D17: Overall | F17: 35 | G17: 45 | H17: 75 | M17: =IF(ISERROR(1/L17), "", 1/L17) ->  | O17: =IF(ISERROR(1/N17), "", 1/N17) ->  | P17: =IF(ISBLANK(N17),"",IF(N17<F17,"Yes","No")) ->  | Q17: =IF(ISBLANK(N17),"",IF(N17>H17,"Yes","No")) -> 
D18: Cross Arm | E18: Wood | F18: 20 | G18: 40 | H18: 55 | M18: =IF(ISERROR(1/L18), "", 1/L18) ->  | O18: =IF(ISERROR(1/N18), "", 1/N18) ->  | P18: =IF(ISBLANK(N18),"",IF(N18<F18,"Yes","No")) ->  | Q18: =IF(ISBLANK(N18),"",IF(N18>H18,"Yes","No")) -> 
E19: Steel | F19: 30 | G19: 70 | H19: 95
B20: 2 | C20: Fully Dressed Concrete Poles | D20: Overall | F20: 50 | G20: 60 | H20: 80
D21: Cross Arm | E21: Wood | F21: 20 | G21: 40 | H21: 55
E22: Steel | F22: 30 | G22: 70 | H22: 95
B23: 3 | C23: Fully Dressed Steel Poles | D23: Overall | F23: 60 | G23: 60 | H23: 80
D24: Cross Arm | E24: Wood | F24: 20 | G24: 40 | H24: 55
E25: Steel | F25: 30 | G25: 70 | H25: 95
B26: 4 | C26: OH Line Switch | F26: 30 | G26: 45 | H26: 55
B27: 5 | C27: OH Line Switch Motor | F27: 15 | G27: 25 | H27: 25
B28: 6 | C28: OH Line Switch RTU | F28: 15 | G28: 20 | H28: 20
B29: 7 | C29: OH Integral Switches | F29: 35 | G29: 45 | H29: 60
B30: 8 | C30: OH Conductors | F30: 50 | G30: 60 | H30: 75
B31: 9 | C31: OH Transformers & Voltage Regulators | F31: 30 | G31: 40 | H31: 60
B32: 10 | C32: OH Shunt Capacitor Banks | F32: 25 | G32: 30 | H32: 40
B33: 11 | C33: Reclosers | F33: 25 | G33: 40 | H33: 55
A34: TS & MS | B34: 12 | C34: Power Transformers | D34: Overall | F34: 30 | G34: 45 | H34: 60
D35: Bushing | F35: 10 | G35: 20 | H35: 30
D36: Tap Changer | F36: 20 | G36: 30 | H36: 60
B37: 13 | C37: Station Service Transformer | F37: 30 | G37: 45 | H37: 55
B38: 14 | C38: Station Grounding Transformer | F38: 30 | G38: 40 | H38: 40
B39: 15 | C39: Station DC System | D39: Overall | F39: 10 | G39: 20 | H39: 30
D40: Battery Bank | F40: 10 | G40: 15 | H40: 15
D41: Charger | F41: 20 | G41: 20 | H41: 30
B42: 16 | C42: Station Metal Clad Switchgear | D42: Overall | F42: 30 | G42: 40 | H42: 60
D43: Removable Breaker | F43: 25 | G43: 40 | H43: 60
B44: 17 | C44: Station Independent Breakers | F44: 35 | G44: 45 | H44: 65
B45: 18 | C45: Station Switch | F45: 30 | G45: 50 | H45: 60
B46: 19 | C46: Electromechanical Relays | F46: 25 | G46: 35 | H46: 50
B47: 20 | C47: Solid State Relays | F47: 10 | G47: 30 | H47: 45
B48: 21 | C48: Digital & Numeric Relays | F48: 15 | G48: 20 | H48: 20
B49: 22 | C49: Rigid Busbars | F49: 30 | G49: 55 | H49: 60
B50: 23 | C50: Steel Structure | F50: 35 | G50: 50 | H50: 90
A51: UG | B51: 24 | C51: Primary Paper Insulated Lead Covered (PILC) Cables | F51: 60 | G51: 65 | H51: 75
B52: 25 | C52: Primary Ethylene-Propylene Rubber (EPR) Cables | F52: 20 | G52: 25 | H52: 25
B53: 26 | C53: Primary Non-Tree Retardant (TR) Cross Linked Polyethylene (XLPE) Cables Direct Buried | F53: 20 | G53: 25 | H53: 30
B54: 27 | C54: Primary Non-TR XLPE Cables in Duct | F54: 20 | G54: 25 | H54: 30
B55: 30 | C55: Secondary PILC Cables | F55: 70 | G55: 75 | H55: 80
B56: 31 | C56: Secondary Cables Direct Buried | F56: 25 | G56: 35 | H56: 40
B57: 32 | C57: Secondary Cables in Duct | F57: 35 | G57: 40 | H57: 60
B58: 33 | C58: Network Tranformers | D58: Overall | F58: 20 | G58: 35 | H58: 50
D59: Protector | F59: 20 | G59: 35 | H59: 40
B60: 34 | C60: Pad-Mounted Transformers | F60: 25 | G60: 40 | H60: 45
B61: 35 | C61: Submersible/Vault Transformers | F61: 25 | G61: 35 | H61: 45
B62: 36 | C62: UG Foundation | F62: 35 | G62: 55 | H62: 70
B63: 37 | C63: UG Vaults | D63: Overall | F63: 40 | G63: 60 | H63: 80
D64: Roof | F64: 20 | G64: 30 | H64: 45
B65: 38 | C65: UG Vault Switches | F65: 20 | G65: 35 | H65: 50
B66: 39 | C66: Pad-Mounted Switchgear | F66: 20 | G66: 30 | H66: 45
B67: 40 | C67: Ducts | F67: 30 | G67: 50 | H67: 85
B68: 41 | C68: Concrete Encased Duct Banks | F68: 35 | G68: 55 | H68: 80
B69: 42 | C69: Cable Chambers | F69: 50 | G69: 60 | H69: 80
A70: S | B70: 43 | C70: Remote SCADA | F70: 15 | G70: 20 | H70: 30
A73: Table F-2 from Kinetrics Report1
C75: Asset Details | F75: Useful Life Range | J75: USoA Account Number | K75: USoA Account Description | L75: Current | N75: Proposed | P75: Outside Range of Min, Max TUL?
B76: # | C76: Category| Component | Type | L76: Years | M76: Rate | N76: Years | O76: Rate | P76: Below Min Range | Q76: Above Max Range
B77: 1 | C77: Office Equipment | F77: 5 | G77: 15 | M77: =IF(ISERROR(1/L77), "", 1/L77) ->  | O77: =IF(ISERROR(1/N77), "", 1/N77) ->  | P77: =IF(ISBLANK(N77),"",IF(N77<F77,"Yes","No")) ->  | Q77: =IF(ISBLANK(N77),"",IF(N77>G77,"Yes","No")) -> 
B78: 2 | C78: Vehicles | D78: Trucks & Buckets | F78: 5 | G78: 15 | M78: =IF(ISERROR(1/L78), "", 1/L78) ->  | O78: =IF(ISERROR(1/N78), "", 1/N78) ->  | P78: =IF(ISBLANK(N78),"",IF(N78<F78,"Yes","No")) ->  | Q78: =IF(ISBLANK(N78),"",IF(N78>G78,"Yes","No")) -> 
D79: Trailers | F79: 5 | G79: 20
D80: Vans | F80: 5 | G80: 10
B81: 3 | C81: Administrative Buildings | F81: 50 | G81: 75
B82: 4 | C82: Leasehold Improvements | F82: Lease dependent | P82: =IF(ISBLANK(N82),"",IF(N82<F82,"Yes","No")) ->  | Q82: =IF(ISBLANK(N82),"",IF(N82>G82,"Yes","No")) -> 
B83: 5 | C83: Station Buildings | D83: Station Buildings | F83: 50 | G83: 75
D84: Parking | F84: 25 | G84: 30
D85: Fence | F85: 25 | G85: 60
D86: Roof | F86: 20 | G86: 30
B87: 6 | C87: Computer Equipment | D87: Hardware | F87: 3 | G87: 5
D88: Software | F88: 2 | G88: 5
B89: 7 | C89: Equipment | D89: Power Operated | F89: 5 | G89: 10
D90: Stores | F90: 5 | G90: 10
D91: Tools, Shop, Garage Equipment | F91: 5 | G91: 10
D92: Measurement & Testing Equipment | F92: 5 | G92: 10
B93: 8 | C93: Communication | D93: Towers | F93: 60 | G93: 70
D94: Wireless | F94: 2 | G94: 10
B95: 9 | C95: Residential Energy Meters | F95: 25 | G95: 35
B96: 10 | C96: Industrial/Commercial Energy Meters | F96: 25 | G96: 35
B97: 11 | C97: Wholesale Energy Meters | F97: 15 | G97: 30
B98: 12 | C98: Current & Potential Transformer (CT & PT) | F98: 35 | G98: 50
B99: 13 | C99: Smart Meters | F99: 5 | G99: 15
B100: 14 | C100: Repeaters - Smart Metering | F100: 10 | G100: 15
B101: 15 | C101: Data Collectors - Smart Metering | F101: 15 | G101: 20
A104: * TS & MS = Transformer and Municipal Stations UG = Underground Systems S = Monitoring and Control Systems
A106: Note 1: | B106: Tables F-1 and F-2 above are to be used as a reference in order to complete columns J, K, L and N.
B107: See pages 17-19 of Kinetrics Report

Sheet App.2-C_DepExp
R2: File Number: | S2: EB-2019-0037
R3: Exhibit: | S3: 4
R4: Tab: | S4: 8
R5: Schedule: | S5: 1
R6: Page: | S6: 2
R8: Date: | S8: 2019-10-31
A9: Appendix 2-C | Y9: CGAAP
A10: Depreciation and Amortization Expense | Y10: Revised CGAAP
Y11: MIFRS
A12: This appendix is to be completed in conjunction with the accounting instructions in Appendix 2-B
A14: Scenario that applies | C14: Applicable Years and Accounting Standard | R14: Year Reflected in Schedule Below | S14: Accounting Standard Reflected in Schedule Below | Y14: 2012
A15: Rebasing for the first time with depreciation policy changes made in 2012. | C15: ="This appendix must be duplicated and completed for the years 2012 to " & TestYear & ". The appendix for 2012 is to be completed under CGAAP (prior to changes in depreciation policies)." &" The appendix for 2012 to 2014 must be completed under Revised CGAAP (after changes in depreciation policies). The appendix for 2014 to " & TestYear & " is to be completed under MIFRS (2014 if changes to MIFRS are material)." -> This appendix must be duplicated and completed for the years 2012 to 2020. The appendix for 2012 is to be completed under CGAAP (prior to changes in depreciation policies). The appendix for 2012 to 2014 must be completed under Revised CGAAP (after changes in depreciation policies). The appendix for 2014 to 2020 is to be completed under MIFRS (2014 if changes to MIFRS are material). | Y15: 2013
A16: Rebasing for the first time with depreciation policy changes made in 2013. | C16: ="This appendix must be duplicated and completed for the years 2013 to " & TestYear & ". The appendix for 2013 is to be completed under CGAAP (prior to changes in depreciation policies)."&" The appendix for 2013 to 2014 must be completed under Revised CGAAP (after changes in depreciation policies). The appendix for 2014 to " & TestYear & " is to be completed under MIFRS (2014 if changes to MIFRS are material)." -> This appendix must be duplicated and completed for the years 2013 to 2020. The appendix for 2013 is to be completed under CGAAP (prior to changes in depreciation policies). The appendix for 2013 to 2014 must be completed under Revised CGAAP (after changes in depreciation policies). The appendix for 2014 to 2020 is to be completed under MIFRS (2014 if changes to MIFRS are material). | Y16: 2014
A17: Already rebased with depreciation policy changes in a prior rate application and rebasing MIFRS for the first time. | C17: ="This appendix must be completed for 2014 to " & TestYear & ". The appendix for 2014 is to be completed under Revised CGAAP (after changes in depreciation policies)."&" The appendix for 2014 to " & TestYear & " is to be completed under MIFRS (2014 if changes to MIFRS are material)." -> This appendix must be completed for 2014 to 2020. The appendix for 2014 is to be completed under Revised CGAAP (after changes in depreciation policies). The appendix for 2014 to 2020 is to be completed under MIFRS (2014 if changes to MIFRS are material). | Y17: 2015
A18: Already rebased under MIFRS in a prior rate application | C18: ="This appendix must be completed under MIFRS for each year for the earlier of: 1) all historical years back to its last rebasing; or 2) at least three years of historical actuals, in addition to Bridge Year and Test Year forecasts." -> This appendix must be completed under MIFRS for each year for the earlier of: 1) all historical years back to its last rebasing; or 2) at least three years of historical actuals, in addition to Bridge Year and Test Year forecasts. | R18: 2013 | S18: MIFRS | Y18: 2016
Y19: 2017
A20: 2013 | C20: Book Values | J20: Service Lives | N20: Depreciation Expense | Y20: 2018
A21: Account | B21: Description | C21: Opening Net Book Value of Existing Assets as at Date of Policy Change (Jan. 1) 1 | D21: Less Fully Depreciated 7 | E21: Net Amount of Existing Assets Before Policy Change to be Depreciated | F21: Opening Gross Book Value of Assets Acquired After Policy Change 2 | G21: Less Fully Depreciated 8 | H21: Net Amount of Assets Acquired After Policy Change to be Depreciated | I21: Current Year Additions | J21: Average Remaining Life of Assets Existing Before Policy Change 3 | K21: Depreciation Rate Assets Acquired After Policy Change | L21: Life of Assets Acquired After Policy Change 4 | M21: Depreciation Rate on New Additions | N21: Depreciation Expense on Assets Existing Before Policy Change | O21: Depreciation Expense on Assets Acquired After Policy Change | P21: Depreciation Expense on Current Year Additions 5 | Q21: Total Current Year Depreciation Expense | R21: Depreciation Expense per Appendix 2-BA Fixed Assets, Column J | S21: Variance 6
C22: a | D22: b | E22: c = a-b | F22: d | G22: e | H22: f = d- e | I22: g | J22: h | K22: i = 1/h | L22: j | M22: k = 1/j | N22: l = c/h | O22: m = f/j | P22: n = g*0.5/j | Q22: o = l+m+n | R22: p | S22: q = p-o
A23: 1611 | B23: Computer Software (Formally known as Account 1925) | C23: ='[35]Cont''y WIRES 2013'!$F$24 -> 2651922.59 | D23: ='[35]Cont''y WIRES 2013'!$R$24 -> 2124828.796 | E23: =C23-D23 -> 527093.794 | H23: =F23-G23 -> 0 | I23: ='[35]Other GSH Assets'!$B$234 -> 101413.57 | J23: =E23/SUM('[35]Other GSH Assets'!$X$228:$X$233) -> 1.870069046 | K23: =IF(J23=0,0,1/J23) -> 0.5347396141 | L23: 5 | M23: =IF(L23=0,0,1/L23) -> 0.2 | N23: =IF(J23=0,0,+E23/J23) -> 281857.932 | O23: =IF(L23=0,0,+H23/L23) -> 0 | P23: =IF(L23=0,0,+(I23*0.5)/L23) -> 10141.357 | Q23: =IF(ISERROR(+N23+O23+P23), 0, +N23+O23+P23) -> 291999.289 | R23: =-'[56]App.2-BA_Fixed Asset Cont 2013'!L18 -> 291999.289 | S23: =IF(ISERROR(+R23-122), 0, +R23-Q23) -> 0
A24: 1612 | B24: Land Rights (Formally known as Account 1906) | E24: =C24-D24 -> 0 | H24: =F24-G24 -> 0 | I24: ='App.2-BA_Fixed Asset Cont'!F20 -> 9044.52 | K24: =IF(J24=0,0,1/J24) -> 0 | M24: =IF(L24=0,0,1/L24) -> 0 | N24: =IF(J24=0,0,+E24/J24) -> 0 | O24: =IF(L24=0,0,+H24/L24) -> 0 | P24: =IF(L24=0,0,+(I24*0.5)/L24) -> 0 | Q24: =IF(ISERROR(+N24+O24+P24), 0, +N24+O24+P24) -> 0 | R24: =-'[56]App.2-BA_Fixed Asset Cont 2013'!L19 -> 0 | S24: =IF(ISERROR(+R24-122), 0, +R24-Q24) -> 0
A25: 1805 | B25: Land | C25: ='[35]Cont''y WIRES 2013'!$F$9 -> 858551.46 | D25: ='[35]Cont''y WIRES 2013'!$R$9 -> 0 | E25: 858551.46 | H25: 0 | I25: ='[56]App.2-BA_Fixed Asset Cont 2013'!F20 -> 26005.55 | K25: 0 | M25: =IF(L25=0,0,1/L25) -> 0 | N25: 0 | O25: =IF(L25=0,0,+H25/L25) -> 0 | P25: 0 | Q25: 0 | R25: =-'[56]App.2-BA_Fixed Asset Cont 2013'!L20 -> 0 | S25: 0
A26: 1808 | B26: Buildings | C26: ='[35]Cont''y WIRES 2013'!$F$10+'[35]Cont''y WIRES 2013'!$F$11 -> 10129356.54 | D26: ='[35]Cont''y WIRES 2013'!$F$10+'[35]Cont''y WIRES 2013'!$R$11 -> 9390523.526 | E26: 738833.0143 | H26: 0 | I26: ='[56]App.2-BA_Fixed Asset Cont 2013'!F21 -> 227203.48 | J26: =E26/(SUM([35]Building!$AA$8:$AA$75)+SUM('[35]Building 2008 renos'!$AA$9:$AA$13)) -> 3.038094153 | K26: =IF(J26=0,0,1/J26) -> 0.3291537226 | L26: 15 | M26: 0.06666666667 | N26: 243189.637 | O26: 0 | P26: =IF(L26=0,0,+(I26*0.5)/L26) -> 7573.449333 | Q26: 250763.0864 | R26: =-'[56]App.2-BA_Fixed Asset Cont 2013'!L21 -> 250763.0864 | S26: =IF(ISERROR(+R26-122), 0, +R26-Q26) -> 2.910383046e-11
A27: 1810 | B27: Leasehold Improvements | E27: 0 | H27: 0 | I27: ='[56]App.2-BA_Fixed Asset Cont 2013'!F22 -> 0 | K27: 0 | M27: 0 | N27: 0 | O27: 0 | P27: 0 | Q27: 0 | R27: =-'[56]App.2-BA_Fixed Asset Cont 2013'!L22 -> 0 | S27: 0
A28: 1815 | B28: Transformer Station Equipment >50 kV | E28: 0 | H28: 0 | I28: ='[56]App.2-BA_Fixed Asset Cont 2013'!F23 -> 0 | K28: 0 | M28: 0 | N28: 0 | O28: 0 | P28: 0 | Q28: 0 | R28: =-'[56]App.2-BA_Fixed Asset Cont 2013'!L23 -> 0 | S28: 0
A29: 1820 | B29: Distribution Station Equipment <50 kV | C29: ='[35]Cont''y WIRES 2013'!$F$12 -> 17547705.69 | D29: ='[35]Cont''y WIRES 2013'!$R$12 -> 11226787.93 | E29: 6320917.764 | H29: 0 | I29: ='[56]App.2-BA_Fixed Asset Cont 2013'!F24 -> 359532.43 | J29: =E29/(SUM('[35]Substation New UL'!$W$81:$W$132)+'[35]Substation New UL'!$W$136+'[35]Substation New UL'!$W$137) -> 29.42156698 | K29: 0.03398867234 | L29: 45 | M29: 0.02222222222 | N29: 214839.6028 | O29: 0 | P29: 3994.804778 | Q29: 218834.4076 | R29: =-'[56]App.2-BA_Fixed Asset Cont 2013'!L24 -> 218937.9287 | S29: 103.5211405
A30: 1825 | B30: Storage Battery Equipment | E30: 0 | H30: 0 | I30: ='[56]App.2-BA_Fixed Asset Cont 2013'!F25 -> 0 | K30: 0 | M30: 0 | N30: 0 | O30: 0 | P30: 0 | Q30: 0 | R30: =-'[56]App.2-BA_Fixed Asset Cont 2013'!L25 -> 0 | S30: 0
A31: 1830 | B31: Poles, Towers & Fixtures | C31: ='[35]Cont''y WIRES 2013'!$F$17 -> 19238774.11 | D31: ='[35]Cont''y WIRES 2013'!$R$17 -> 9065588.333 | E31: 10173185.78 | H31: 0 | I31: ='[56]App.2-BA_Fixed Asset Cont 2013'!F26 -> 1205309.5 | J31: =E31/'[35]06-03'!$S$26 -> 29.3188219 | K31: =IF(J31=0,0,1/J31) -> 0.03410778248 | L31: 40 | M31: 0.025 | N31: 346984.8077 | O31: 0 | P31: 15066.36875 | Q31: =IF(ISERROR(+N31+O31+P31), 0, +N31+O31+P31) -> 362051.1764 | R31: =-'[56]App.2-BA_Fixed Asset Cont 2013'!L26 -> 362173.9197 | S31: 122.74325
A32: 1835 | B32: Overhead Conductors & Devices (40 yr) | C32: ='[35]Cont''y WIRES 2013'!$F$15 -> 32287397.02 | D32: ='[35]Cont''y WIRES 2013'!$R$15 -> 21602233.69 | E32: 10685163.33 | H32: 0 | I32: ='[35]06-01'!$P$39 -> 606347.22 | J32: =E32/SUM('[35]06-01'!$T$14:$T$38) -> 23.93764651 | K32: 0.04177520123 | L32: 40 | M32: 0.025 | N32: 446374.8481 | O32: 0 | P32: =IF(L32=0,0,+(I32*0.5)/L32) -> 7579.34025 | Q32: 453954.1883 | R32: =-'[56]App.2-BA_Fixed Asset Cont 2013'!L27-'[35]04-01'!$T$29 -> 454076.9316 | S32: 122.74325
A33: 1835 | B33: Overhead Conductors & Devices (50 yr) | C33: ='[35]Cont''y WIRES 2013'!$F$13 -> 9768757 | D33: ='[35]Cont''y WIRES 2013'!$R$13 -> 6712011.325 | E33: 3056745.675 | H33: 0 | I33: ='[35]04-01'!$O$26 -> 390152.47 | J33: =E33/SUM('[35]04-01'!$T$14:$T$25) -> 31.90961608 | K33: 0.03133851556 | L33: 50 | M33: 0.02 | N33: =IF(J33=0,0,+E33/J33) -> 95793.87188 | O33: 0 | P33: =IF(L33=0,0,+(I33*0.5)/L33) -> 3901.5247 | Q33: 99695.39658 | R33: ='[35]04-01'!$T$29 -> 99695.39658 | S33: 0
A34: 1840 | B34: Underground Conduit | C34: ='[35]Cont''y WIRES 2013'!$F$18 -> 20841499.54 | D34: ='[35]Cont''y WIRES 2013'!$R$18 -> 12176064.9 | E34: 8665434.643 | H34: 0 | I34: ='[56]App.2-BA_Fixed Asset Cont 2013'!F28 -> 670006.09 | J34: =E34/'[35]07-01'!$S$36 -> 38.14426415 | K34: 0.0262162614 | L34: 50 | M34: =IF(L34=0,0,1/L34) -> 0.02 | N34: 227175.2998 | O34: 0 | P34: 6700.0609 | Q34: 233875.3607 | R34: =-'[56]App.2-BA_Fixed Asset Cont 2013'!L28 -> 233875.3607 | S34: 0
A35: 1845 | B35: Underground Conductors & Devices | C35: ='[35]Cont''y WIRES 2013'!$F$14+'[35]Cont''y WIRES 2013'!$F$19 -> 21270551.89 | D35: ='[35]Cont''y WIRES 2013'!$R$14+'[35]Cont''y WIRES 2013'!$R$19 -> 11662374.44 | E35: 9608177.449 | H35: 0 | I35: ='[56]App.2-BA_Fixed Asset Cont 2013'!F29 -> 615323.2 | J35: =E35/('[35]05-01'!$T$22+SUM('[35]07-02'!$T$14:$T$33)) -> 23.74378325 | K35: 0.04211628743 | L35: 40 | M35: 0.025 | N35: 404660.7631 | O35: 0 | P35: 7691.54 | Q35: 412352.3031 | R35: =-'[56]App.2-BA_Fixed Asset Cont 2013'!L29 -> 412720.5329 | S35: 368.22975
A36: 1850 | B36: Line Transformers | C36: ='[35]Cont''y WIRES 2013'!$F$21 -> 29393619.99 | D36: ='[35]Cont''y WIRES 2013'!$R$21 -> 17956843.74 | E36: 11436776.25 | H36: 0 | I36: ='[56]App.2-BA_Fixed Asset Cont 2013'!F30 -> 1030063.19 | J36: =E36/'[35]08-01 & 09-01'!$S$71 -> 25.30335815 | K36: 0.03952044602 | L36: 40 | M36: 0.025 | N36: 451986.4983 | O36: 0 | P36: 12875.78988 | Q36: 464862.2881 | R36: =-'[56]App.2-BA_Fixed Asset Cont 2013'!L30 -> 464862.2881 | S36: 0
A37: 1855 | B37: Services (Overhead & Underground) | C37: ='[35]Cont''y WIRES 2013'!$F$20+'[35]Cont''y WIRES 2013'!$F$16 -> 12342929.8 | D37: ='[35]Cont''y WIRES 2013'!$R$20+'[35]Cont''y WIRES 2013'!$R$16 -> 6500462.136 | E37: 5842467.664 | H37: 0 | I37: ='[56]App.2-BA_Fixed Asset Cont 2013'!F31 -> 1068304.96 | J37: =E37/('[35]06-02'!$T$26+'[35]07-03'!$T$21+'[35]07-03'!$T$18+'[35]07-03'!$T$19) -> 29.25886688 | K37: 0.03417767352 | L37: 40 | M37: 0.025 | N37: 199681.9524 | O37: 0 | P37: 13353.812 | Q37: 213035.7644 | R37: =-'[56]App.2-BA_Fixed Asset Cont 2013'!L31 -> 213035.7644 | S37: 2.910383046e-11
A38: 1860 | B38: Meters | C38: ='[35]Cont''y WIRES 2013'!$F$22 -> 8935155.45 | D38: ='[35]Cont''y WIRES 2013'!$R$22 -> 6817799.923 | E38: 2117355.527 | H38: 0 | I38: ='[56]App.2-BA_Fixed Asset Cont 2013'!F32 -> 107883.42 | J38: =E38/('[35]1860 Meters for Continuity'!$B$161-'[35]1860 Meters for Continuity'!$L$152) -> 4.389477099 | K38: 0.2278175686 | L38: 15 | M38: 0.06666666667 | N38: =IF(J38=0,0,+E38/J38) -> 482370.788 | O38: 0 | P38: 3596.114 | Q38: 485966.902 | R38: =-'[56]App.2-BA_Fixed Asset Cont 2013'!L32 -> 485966.902 | S38: 0
A39: 1860 | B39: Meters (Smart Meters) | E39: 0 | H39: 0 | I39: ='[56]App.2-BA_Fixed Asset Cont 2013'!F33 -> 0 | K39: 0 | M39: 0 | N39: 0 | O39: 0 | P39: 0 | Q39: 0 | R39: =-'[56]App.2-BA_Fixed Asset Cont 2013'!L33 -> 0 | S39: 0
A40: 1905 | B40: Land | E40: 0 | H40: 0 | I40: ='[56]App.2-BA_Fixed Asset Cont 2013'!F34 -> 0 | K40: 0 | M40: 0 | N40: 0 | O40: 0 | P40: 0 | Q40: 0 | R40: =-'[56]App.2-BA_Fixed Asset Cont 2013'!L34 -> 0 | S40: 0
A41: 1908 | B41: Buildings & Fixtures | E41: 0 | H41: 0 | I41: ='[56]App.2-BA_Fixed Asset Cont 2013'!F35 -> 0 | K41: 0 | M41: 0 | N41: 0 | O41: 0 | P41: 0 | Q41: 0 | R41: =-'[56]App.2-BA_Fixed Asset Cont 2013'!L35 -> 0 | S41: 0
A42: 1910 | B42: Leasehold Improvements | E42: 0 | H42: 0 | I42: ='[56]App.2-BA_Fixed Asset Cont 2013'!F36 -> 0 | K42: 0 | M42: 0 | N42: 0 | O42: 0 | P42: 0 | Q42: 0 | R42: =-'[56]App.2-BA_Fixed Asset Cont 2013'!L36 -> 0 | S42: 0
A43: 1915 | B43: Office Furniture & Equipment (10 years) | C43: ='[35]Cont''y WIRES 2013'!$F$29 -> 44314.56 | D43: ='[35]Cont''y WIRES 2013'!$R$29 -> 41713.5695 | E43: 2600.9905 | H43: 0 | I43: ='[56]App.2-BA_Fixed Asset Cont 2013'!F37 -> 31740 | J43: =E43/SUM('[35]Other GSH Assets'!$X$118:$X$119) -> 2.77137904 | K43: 0.360831191 | L43: 10 | M43: 0.1 | N43: 938.5185 | O43: 0 | P43: 1587 | Q43: 2525.5185 | R43: =-'[56]App.2-BA_Fixed Asset Cont 2013'!L37 -> 2525.5185 | S43: 0
A44: 1915 | B44: Office Furniture & Equipment (5 years) | E44: 0 | H44: 0 | I44: ='[56]App.2-BA_Fixed Asset Cont 2013'!F38 -> 0 | K44: 0 | M44: 0 | N44: 0 | O44: 0 | P44: 0 | Q44: 0 | R44: =-'[56]App.2-BA_Fixed Asset Cont 2013'!L38 -> 0 | S44: 0
A45: 1920 | B45: Computer Equipment - Hardware | C45: ='[35]Cont''y WIRES 2013'!$F$23 -> 162987.72 | D45: ='[35]Cont''y WIRES 2013'!$R$23 -> 47096.116 | E45: 115891.604 | H45: 0 | I45: ='[56]App.2-BA_Fixed Asset Cont 2013'!F39 -> 341012.65 | J45: =E45/(SUM('[35]Other GSH Assets'!$X$188:$X$191)) -> 1.575458768 | K45: =IF(J45=0,0,1/J45) -> 0.6347357484 | L45: 5 | M45: 0.2 | N45: 73560.544 | O45: 0 | P45: 34101.265 | Q45: 107661.809 | R45: =-'[56]App.2-BA_Fixed Asset Cont 2013'!L39 -> 107661.809 | S45: 0
A46: 1920 | B46: Computer Equip.-Hardware(Post Mar. 22/04) | E46: 0 | H46: 0 | I46: ='[56]App.2-BA_Fixed Asset Cont 2013'!F40 -> 0 | K46: 0 | M46: 0 | N46: 0 | O46: 0 | P46: 0 | Q46: 0 | R46: =-'[56]App.2-BA_Fixed Asset Cont 2013'!L40 -> 0 | S46: 0
A47: 1920 | B47: Computer Equip.-Hardware(Post Mar. 19/07) | E47: 0 | H47: 0 | I47: ='[56]App.2-BA_Fixed Asset Cont 2013'!F41 -> 0 | K47: 0 | M47: 0 | N47: 0 | O47: 0 | P47: 0 | Q47: 0 | R47: =-'[56]App.2-BA_Fixed Asset Cont 2013'!L41 -> 0 | S47: 0
A48: 1930 | B48: Transportation Equipment | C48: ='[35]Cont''y WIRES 2013'!$F$26 -> 5258637.36 | D48: ='[35]Cont''y WIRES 2013'!$R$26 -> 3864504.766 | E48: 1394132.594 | H48: 0 | I48: ='[56]App.2-BA_Fixed Asset Cont 2013'!F42 -> 533800 | J48: =E48/(SUM('[35]Veh 2013 '!$J$12:$J$119)-72016) -> 10.17343366 | K48: 0.09829522984 | L48: 12 | M48: 0.08333333333 | N48: 137036.5837 | O48: 0 | P48: 22241.66667 | Q48: 159278.2504 | R48: =-'[56]App.2-BA_Fixed Asset Cont 2013'!L42 -> 159278.0704 | S48: -0.18
A49: 1935 | B49: Stores Equipment | E49: 0 | H49: 0 | I49: ='[56]App.2-BA_Fixed Asset Cont 2013'!F43 -> 0 | K49: 0 | M49: 0 | N49: 0 | O49: 0 | P49: 0 | Q49: 0 | R49: =-'[56]App.2-BA_Fixed Asset Cont 2013'!L43 -> 0 | S49: 0
A50: 1940 | B50: Tools, Shop & Garage Equipment | C50: ='[35]Cont''y WIRES 2013'!$F$25 -> 1961496.07 | D50: ='[35]Cont''y WIRES 2013'!$R$25 -> 1467290.827 | E50: 494205.2425 | H50: 0 | I50: ='[56]App.2-BA_Fixed Asset Cont 2013'!F44 -> 77672.09 | J50: =E50/(SUM('[35]Other GSH Assets'!$X$24:$X$33)) -> 5.833201118 | K50: 0.171432457 | L50: 10 | M50: 0.1 | N50: 84722.819 | O50: 0 | P50: 3883.6045 | Q50: 88606.4235 | R50: =-'[56]App.2-BA_Fixed Asset Cont 2013'!L44 -> 88606.4235 | S50: 0
A51: 1945 | B51: Measurement & Testing Equipment | E51: 0 | H51: 0 | I51: ='[56]App.2-BA_Fixed Asset Cont 2013'!F45 -> 0 | K51: 0 | M51: 0 | N51: 0 | O51: 0 | P51: 0 | Q51: 0 | R51: =-'[56]App.2-BA_Fixed Asset Cont 2013'!L45 -> 0 | S51: 0
A52: 1950 | B52: Power Operated Equipment | E52: 0 | H52: 0 | I52: ='[56]App.2-BA_Fixed Asset Cont 2013'!F46 -> 0 | K52: 0 | M52: 0 | N52: 0 | O52: 0 | P52: 0 | Q52: 0 | R52: =-'[56]App.2-BA_Fixed Asset Cont 2013'!L46 -> 0 | S52: 0
A53: 1955 | B53: Communications Equipment | C53: ='[35]Cont''y WIRES 2013'!$F$31+'[35]Cont''y WIRES 2013'!$F$28 -> 2262458.79 | D53: ='[35]Cont''y WIRES 2013'!$R$31+'[35]Cont''y WIRES 2013'!$R$28 -> 1307813.078 | E53: 954645.712 | H53: 0 | I53: ='[56]App.2-BA_Fixed Asset Cont 2013'!F47 -> 912 | J53: =E53/(SUM([35]SubSecurity!$Q$8:$Q$16)+SUM('[35]Wires-fibre'!$Q$5:$Q$12)) -> 11.62296111 | K53: 0.08603659522 | L53: 10 | M53: =IF(L53=0,0,1/L53) -> 0.1 | N53: 82134.4667 | O53: 0 | P53: 45.6 | Q53: 82180.0667 | R53: =-'[56]App.2-BA_Fixed Asset Cont 2013'!L47 -> 82180.0667 | S53: 0
A54: 1955 | B54: Communication Equipment (Smart Meters) | E54: 0 | H54: 0 | I54: ='[56]App.2-BA_Fixed Asset Cont 2013'!F48 -> 0 | K54: 0 | M54: 0 | N54: 0 | O54: 0 | P54: 0 | Q54: 0 | R54: =-'[56]App.2-BA_Fixed Asset Cont 2013'!L48 -> 0 | S54: 0
A55: 1960 | B55: Miscellaneous Equipment | E55: 0 | H55: 0 | I55: ='[56]App.2-BA_Fixed Asset Cont 2013'!F49 -> 0 | K55: 0 | M55: 0 | N55: 0 | O55: 0 | P55: 0 | Q55: 0 | R55: =-'[56]App.2-BA_Fixed Asset Cont 2013'!L49 -> 0 | S55: 0
A56: 1970 | B56: Load Management Controls Customer Premises | E56: 0 | H56: 0 | I56: ='[56]App.2-BA_Fixed Asset Cont 2013'!F50 -> 0 | K56: 0 | M56: 0 | N56: 0 | O56: 0 | P56: 0 | Q56: 0 | R56: =-'[56]App.2-BA_Fixed Asset Cont 2013'!L50 -> 0 | S56: 0
A57: 1975 | B57: Load Management Controls Utility Premises | E57: 0 | H57: 0 | I57: ='[56]App.2-BA_Fixed Asset Cont 2013'!F51 -> 0 | K57: 0 | M57: 0 | N57: 0 | O57: 0 | P57: 0 | Q57: 0 | R57: =-'[56]App.2-BA_Fixed Asset Cont 2013'!L51 -> 0 | S57: 0
A58: 1980 | B58: System Supervisor Equipment | C58: ='[35]Cont''y WIRES 2013'!$F$27 -> 1573528.65 | D58: ='[35]Cont''y WIRES 2013'!$R$27 -> 1274629.688 | E58: 298898.9624 | H58: 0 | I58: ='[56]App.2-BA_Fixed Asset Cont 2013'!F52 -> 59389.24 | J58: =E58/SUM('[35]Other GSH Assets'!$X$71:$X$86) -> 12.81074915 | K58: =IF(J58=0,0,1/J58) -> 0.07805944745 | L58: 20 | M58: 0.05 | N58: 23331.88785 | O58: 0 | P58: =IF(L58=0,0,+(I58*0.5)/L58) -> 1484.731 | Q58: 24816.61885 | R58: =-'[56]App.2-BA_Fixed Asset Cont 2013'!L52 -> 26377.4899 | S58: 1560.871051
A59: 1985 | B59: Miscellaneous Fixed Assets | C59: ='[35]Cont''y WIRES 2013'!$F$30 -> 42116.86 | D59: ='[35]Cont''y WIRES 2013'!$R$30 -> 42116.858 | E59: 0.001999999993 | H59: 0 | I59: ='[56]App.2-BA_Fixed Asset Cont 2013'!F53 -> 0 | K59: 0 | M59: 0 | N59: 0 | O59: 0 | P59: 0 | Q59: 0 | R59: =-'[56]App.2-BA_Fixed Asset Cont 2013'!L53 -> 0 | S59: 0
A60: 1990 | B60: Other Tangible Property | E60: 0 | H60: 0 | I60: ='[56]App.2-BA_Fixed Asset Cont 2013'!F54 -> 0 | K60: 0 | M60: 0 | N60: 0 | O60: 0 | P60: 0 | Q60: 0 | R60: =-'[56]App.2-BA_Fixed Asset Cont 2013'!L54 -> 0 | S60: 0
A61: 1995 | B61: Contributions & Grants | C61: =-'[36] 2013-12 YE FINAL CONTINUITY '!$G$29 -> -16556417.08 | D61: =-'[36] 2013-12 YE FINAL CONTINUITY '!$O$29 -> -4367724.487 | E61: -12188692.59 | H61: 0 | J61: =-E61/'[36] 2013-12 YE FINAL CONTINUITY '!$M$29 -> 33.45662586 | K61: 0.02988944564 | M61: 0 | N61: -364313.2647 | O61: 0 | P61: 0 | Q61: -364313.2647 | R61: =-'App.2-BA_Fixed Asset Cont'!K56 -> -364313.2647 | S61: -5.820766091e-11
A62: 2440 | B62: Deferred Revenue | E62: 0 | H62: 0 | J62: =-E62/'[36] 2013-12 YE FINAL CONTINUITY '!$M$29 -> 0 | K62: 0 | M62: 0 | N62: 0 | O62: 0 | P62: 0 | Q62: 0 | S62: 0
B63: Other Non Rate Regulated Assets | C63: ='App.2-BA_Fixed Asset Cont'!D63 -> -129739 | D63: =-'App.2-BA_Fixed Asset Cont'!I63 -> -64281 | E63: =C63-D63 -> -65458 | H63: 0 | J63: =-E63/'App.2-BA_Fixed Asset Cont'!K63 -> 2.522660706 | K63: 0.3964068563 | M63: 0 | N63: =IF(J63=0,0,+E63/J63) -> -25948 | O63: 0 | P63: 0 | Q63: -25948 | R63: =-'App.2-BA_Fixed Asset Cont'!K63 -> -25948 | S63: 3.637978807e-12
B64: Total | C64: =SUM(C23:C63) -> 179885605 | D64: =SUM(D23:D63) -> 118848678.2 | E64: =SUM(E23:E63) -> 61036926.85 | F64: =SUM(F23:F61) -> 0 | G64: =SUM(G23:G61) -> 0 | H64: =SUM(H23:H61) -> 0 | I64: =SUM(I23:I63) -> 7461115.58 | N64: =SUM(N23:N63) -> 3406379.556 | O64: =SUM(O23:O61) -> 0 | P64: =SUM(P23:P63) -> 155818.0288 | Q64: =SUM(Q23:Q63) -> 3562197.585 | R64: =SUM(R23:R63) -> 3564475.513 | S64: =SUM(S23:S63) -> 2277.928442
A68: 2014 | C68: Book Values | J68: Service Lives | N68: Depreciation Expense | Y68: 2018
A69: Account | B69: Description | C69: Opening Net Book Value of Existing Assets as at Date of Policy Change (Jan. 1) 1 | D69: Less Fully Depreciated 7 | E69: Net Amount of Existing Assets Before Policy Change to be Depreciated | F69: Opening Gross Book Value of Assets Acquired After Policy Change 2 | G69: Less Fully Depreciated 8 | H69: Net Amount of Assets Acquired After Policy Change to be Depreciated | I69: Current Year Additions | J69: Average Remaining Life of Assets Existing Before Policy Change 3 | K69: Depreciation Rate Assets Acquired After Policy Change | L69: Life of Assets Acquired After Policy Change 4 | M69: Depreciation Rate on New Additions | N69: Depreciation Expense on Assets Existing Before Policy Change | O69: Depreciation Expense on Assets Acquired After Policy Change | P69: Depreciation Expense on Current Year Additions 5 | Q69: Total Current Year Depreciation Expense | R69: Depreciation Expense per Appendix 2-BA Fixed Assets, Column J | S69: Variance 6
C70: a | D70: b | E70: c = a-b | F70: d | G70: e | H70: f = d- e | I70: g | J70: h | K70: i = 1/h | L70: j | M70: k = 1/j | N70: l = c/h | O70: m = f/j | P70: n = g*0.5/j | Q70: o = l+m+n | R70: p | S70: q = p-o
A71: 1611 | B71: Computer Software (Formally known as Account 1925) | C71: =C23 -> 2651922.59 | D71: 2124828.796 | E71: =C71-D71 -> 527093.794 | F71: =I23 -> 101413.57 | H71: =F71-G71 -> 101413.57 | I71: ='App.2-BA_Fixed Asset Cont'!F82 -> 48679.24 | J71: =E71/SUM('[37]Other GSH Assets'!$Y$235:$Y$238) -> 2.110920955 | K71: =IF(J71=0,0,1/J71) -> 0.473726881 | L71: 5 | M71: =IF(L71=0,0,1/L71) -> 0.2 | N71: =IF(J71=0,0,+E71/J71) -> 249698.499 | O71: =IF(L71=0,0,+H71/L71) -> 20282.714 | P71: =IF(L71=0,0,+(I71*0.5)/L71) -> 4867.924 | Q71: =IF(ISERROR(+N71+O71+P71), 0, +N71+O71+P71) -> 274849.137 | R71: =-'App.2-BA_Fixed Asset Cont'!K82 -> 274849.137 | S71: =IF(ISERROR(+R71-122), 0, +R71-Q71) -> 0
A72: 1612 | B72: Land Rights (Formally known as Account 1906) | C72: 0 | D72: 0 | E72: =C72-D72 -> 0 | F72: 9044.52 | H72: =F72-G72 -> 9044.52 | I72: ='App.2-BA_Fixed Asset Cont'!F83 -> 13654.66 | J72: ='[56]App.2-C_DepExp 2013'!J68 -> 0 | K72: =IF(J72=0,0,1/J72) -> 0 | L72: 0 | M72: =IF(L72=0,0,1/L72) -> 0 | N72: =IF(J72=0,0,+E72/J72) -> 0 | O72: =IF(L72=0,0,+H72/L72) -> 0 | P72: =IF(L72=0,0,+(I72*0.5)/L72) -> 0 | Q72: =IF(ISERROR(+N72+O72+P72), 0, +N72+O72+P72) -> 0 | R72: =-'App.2-BA_Fixed Asset Cont'!K83 -> 0 | S72: =IF(ISERROR(+R72-122), 0, +R72-Q72) -> 0
A73: 1805 | B73: Land | C73: 858551.46 | D73: 0 | E73: 858551.46 | F73: 26005.55 | H73: 26005.55 | I73: ='App.2-BA_Fixed Asset Cont'!F84 -> 23467.2 | J73: ='[56]App.2-C_DepExp 2013'!J69 -> 0 | K73: 0 | L73: 0 | M73: 0 | N73: 0 | O73: =IF(L73=0,0,+H73/L73) -> 0 | P73: 0 | Q73: 0 | R73: =-'App.2-BA_Fixed Asset Cont'!K84 -> 0 | S73: 0
A74: 1808 | B74: Buildings | C74: 10129356.54 | D74: 9390523.526 | E74: 738833.0143 | F74: 227203.48 | H74: 227203.48 | I74: ='App.2-BA_Fixed Asset Cont'!F85 -> 1483777.61 | J74: =E74/(SUM('[37]Building 2008 renos'!$AB$9:$AB$13)+SUM([37]Building!$AB$8:$AB$77)) -> 3.045519374 | K74: 0.3283512193 | L74: 15 | M74: 0.06666666667 | N74: =IF(J74=0,0,+E74/J74) -> 242596.7211 | O74: =IF(L74=0,0,+H74/L74) -> 15146.89867 | P74: =IF(L74=0,0,+(I74*0.5)/L74) -> 49459.25367 | Q74: 307202.8734 | R74: =-'App.2-BA_Fixed Asset Cont'!K85 -> 307418.8734 | S74: =IF(ISERROR(+R74-122), 0, +R74-Q74) -> 216
A75: 1810 | B75: Leasehold Improvements | C75: 0 | D75: 0 | E75: 0 | F75: 0 | H75: 0 | I75: ='App.2-BA_Fixed Asset Cont'!F86 -> 0 | J75: ='[56]App.2-C_DepExp 2013'!J71 -> 0 | K75: 0 | L75: 0 | M75: 0 | N75: 0 | O75: 0 | P75: =IF(L75=0,0,+(I75*0.5)/L75) -> 0 | Q75: 0 | R75: =-'App.2-BA_Fixed Asset Cont'!K86 -> 0 | S75: 0
A76: 1815 | B76: Transformer Station Equipment >50 kV | C76: 0 | D76: 0 | E76: 0 | F76: 0 | H76: 0 | I76: ='App.2-BA_Fixed Asset Cont'!F87 -> 0 | J76: ='[56]App.2-C_DepExp 2013'!J72 -> 0 | K76: 0 | L76: 0 | M76: 0 | N76: 0 | O76: 0 | P76: 0 | Q76: 0 | R76: =-'App.2-BA_Fixed Asset Cont'!K87 -> 0 | S76: 0
A77: 1820 | B77: Distribution Station Equipment <50 kV | C77: 17547705.69 | D77: 11226787.93 | E77: 6320917.764 | F77: 359532.43 | H77: 359532.43 | I77: ='App.2-BA_Fixed Asset Cont'!F88 -> 404330.35 | J77: =E77/(SUM('[37]Substation New UL'!$X$81:$X$132)+'[37]Substation New UL'!$X$138) -> 30.09279393 | K77: 0.0332305469 | L77: 45 | M77: 0.02222222222 | N77: =IF(J77=0,0,+E77/J77) -> 210047.5542 | O77: =IF(L77=0,0,+H77/L77) -> 7989.609556 | P77: 4492.559444 | Q77: =IF(ISERROR(+N77+O77+P77), 0, +N77+O77+P77) -> 222529.7232 | R77: =-'App.2-BA_Fixed Asset Cont'!K88 -> 222693.1553 | S77: 163.4320722
A78: 1825 | B78: Storage Battery Equipment | C78: 0 | D78: 0 | E78: 0 | F78: 0 | H78: 0 | I78: ='App.2-BA_Fixed Asset Cont'!F89 -> 0 | J78: ='[56]App.2-C_DepExp 2013'!J74 -> 0 | K78: 0 | L78: 0 | M78: 0 | N78: 0 | O78: 0 | P78: 0 | Q78: 0 | R78: =-'App.2-BA_Fixed Asset Cont'!K89 -> 0 | S78: 0
A79: 1830 | B79: Poles, Towers & Fixtures | C79: 19238774.11 | D79: 9065588.333 | E79: 10173185.78 | F79: 1205309.5 | H79: 1205309.5 | I79: ='App.2-BA_Fixed Asset Cont'!F90 -> 1247407.61 | J79: =J31 -> 29.3188219 | K79: 0.03410778248 | L79: 40 | M79: 0.025 | N79: 346984.8077 | O79: =IF(L79=0,0,+H79/L79) -> 30132.7375 | P79: 15592.59512 | Q79: 392710.1403 | R79: =-'App.2-BA_Fixed Asset Cont'!K90 -> 392464.6538 | S79: -245.4865
A80: 1835 | B80: Overhead Conductors & Devices (40 yr) | C80: =C32-'[38]2014 12 YE Continuity'!$AC$10-'[38]2014 12 YE Continuity'!$AC$27 -> 29187086.48 | D80: =D32 -> 21602233.69 | E80: 7584852.786 | F80: 606347.22 | H80: 606347.22 | I80: ='[37]06-01'!$J$40 -> 432271.56 | J80: =E80/[57]Sheet1!$B$22 -> 22.08664309 | K80: 0.04527623305 | L80: 40 | M80: 0.025 | N80: =IF(J80=0,0,+E80/J80) -> 343413.5624 | O80: =IF(L80=0,0,+H80/L80) -> 15158.6805 | P80: 5403.3945 | Q80: =IF(ISERROR(+N80+O80+P80), 0, +N80+O80+P80) -> 363975.6374 | R80: =-'App.2-BA_Fixed Asset Cont'!K91-106890 -> 363975.5126 | S80: -0.12484171
A81: 1835 | B81: Overhead Conductors & Devices (50 yr) | C81: =C33 -> 9768757 | D81: 6712011.325 | E81: 3056745.675 | F81: 390152.47 | H81: 390152.47 | I81: ='[37]04-01'!$P$27 -> 329297.82 | J81: =J33 -> 31.90961608 | K81: 0.03133851556 | L81: 50 | M81: 0.02 | N81: =IF(J81=0,0,+E81/J81) -> 95793.87188 | O81: 7803.0494 | P81: 3292.9782 | Q81: 106889.8995 | R81: 106890 | S81: 0.1005228925
A82: 1840 | B82: Underground Conduit | C82: =C34 -> 20841499.54 | D82: 12176064.9 | E82: 8665434.643 | F82: 670006.09 | H82: 670006.09 | I82: ='App.2-BA_Fixed Asset Cont'!F92 -> 634436.62 | J82: =J34 -> 38.14426415 | K82: 0.0262162614 | L82: 50 | M82: 0.02 | N82: 227175.2998 | O82: 13400.1218 | P82: 6344.3662 | Q82: 246919.7878 | R82: =-'App.2-BA_Fixed Asset Cont'!K92 -> 246919.5378 | S82: -0.25
A83: 1845 | B83: Underground Conductors & Devices | C83: =C35-'[38]2014 12 YE Continuity'!$AC$13 -> 15719869.67 | D83: 11662374.44 | E83: 4057495.226 | F83: 615323.2 | H83: 615323.2 | I83: ='App.2-BA_Fixed Asset Cont'!F93 -> 676224.89 | J83: =E83/[57]Sheet1!$B$10 -> 17.22755022 | K83: =IF(J83=0,0,1/J83) -> 0.05804655841 | L83: 40 | M83: 0.025 | N83: 235523.6337 | O83: =IF(L83=0,0,+H83/L83) -> 15383.08 | P83: 8452.811125 | Q83: 259359.5248 | R83: =-'App.2-BA_Fixed Asset Cont'!K93 -> 258623.3686 | S83: -736.1561645
A84: 1850 | B84: Line Transformers | C84: =C36-'[38]2014 12 YE Continuity'!$AC$17-'[38]2014 12 YE Continuity'!$AC$21 -> 25892036.77 | D84: 17956843.74 | E84: 7935193.025 | F84: 1030063.19 | H84: 1030063.19 | I84: ='App.2-BA_Fixed Asset Cont'!F94 -> 1397762.85 | J84: =E84/[57]Sheet1!$B$34 -> 22.88670569 | K84: 0.04369348798 | L84: 40 | M84: 0.025 | N84: 346716.2611 | O84: 25751.57975 | P84: 17472.03563 | Q84: 389939.8765 | R84: =-'App.2-BA_Fixed Asset Cont'!K94 -> 389939.8636 | S84: -0.01283688226
A85: 1855 | B85: Services (Overhead & Underground) | C85: =C37 -> 12342929.8 | D85: 6500462.136 | E85: 5842467.664 | F85: 1068304.96 | H85: 1068304.96 | I85: ='App.2-BA_Fixed Asset Cont'!F95 -> 1078440.8 | J85: =J37 -> 29.25886688 | K85: 0.03417767352 | L85: 40 | M85: 0.025 | N85: 199681.9524 | O85: 26707.624 | P85: 13480.51 | Q85: 239870.0864 | R85: =-'App.2-BA_Fixed Asset Cont'!K95 -> 239870.0864 | S85: 0
A86: 1860 | B86: Meters | C86: =C38-'[38]2014 12 YE Continuity'!$W$25 -> 8900387.993 | D86: 6817799.923 | E86: 2082588.071 | F86: 107883.42 | H86: 107883.42 | I86: ='App.2-BA_Fixed Asset Cont'!F96 -> 81419.98 | J86: =E86/(('[35]1860 Meters for Continuity'!$B$161-'[35]1860 Meters for Continuity'!$L$152)-'[38] 2013-12 YE FINAL CONTINUITY '!$M$25) -> 4.340146178 | K86: 0.2304069861 | L86: 15 | M86: 0.06666666667 | N86: 479842.8406 | O86: 7192.228 | P86: =IF(L86=0,0,+(I86*0.5)/L86) -> 2713.999333 | Q86: 489749.0679 | R86: =-'App.2-BA_Fixed Asset Cont'!K96 -> 489325.6062 | S86: -423.4617787
A87: 1860 | B87: Meters (Smart Meters) | C87: =C39 -> 0 | D87: 0 | E87: 0 | F87: 0 | H87: 0 | I87: ='App.2-BA_Fixed Asset Cont'!F98 -> 0 | J87: ='[56]App.2-C_DepExp 2013'!J83 -> 0 | K87: 0 | L87: 0 | M87: 0 | N87: 0 | O87: 0 | P87: =IF(L87=0,0,+(I87*0.5)/L87) -> 0 | Q87: 0 | R87: =-'App.2-BA_Fixed Asset Cont'!K98 -> 0 | S87: 0
A88: 1905 | B88: Land | C88: 0 | D88: 0 | E88: 0 | F88: 0 | H88: 0 | I88: ='App.2-BA_Fixed Asset Cont'!F99 -> 0 | J88: ='[56]App.2-C_DepExp 2013'!J84 -> 0 | K88: 0 | L88: 0 | M88: 0 | N88: 0 | O88: 0 | P88: 0 | Q88: 0 | R88: =-'App.2-BA_Fixed Asset Cont'!K99 -> 0 | S88: 0
A89: 1908 | B89: Buildings & Fixtures | C89: 0 | D89: 0 | E89: 0 | F89: 0 | H89: 0 | I89: ='App.2-BA_Fixed Asset Cont'!F100 -> 0 | J89: ='[56]App.2-C_DepExp 2013'!J85 -> 0 | K89: 0 | L89: 0 | M89: 0 | N89: 0 | O89: 0 | P89: 0 | Q89: 0 | R89: =-'App.2-BA_Fixed Asset Cont'!K100 -> 0 | S89: 0
A90: 1910 | B90: Leasehold Improvements | C90: 0 | D90: 0 | E90: 0 | F90: 0 | H90: 0 | I90: ='App.2-BA_Fixed Asset Cont'!F101 -> 0 | J90: ='[56]App.2-C_DepExp 2013'!J86 -> 0 | K90: 0 | L90: 0 | M90: 0 | N90: 0 | O90: 0 | P90: 0 | Q90: 0 | S90: 0
A91: 1915 | B91: Office Furniture & Equipment (10 years) | C91: 44314.56 | D91: 41713.5695 | E91: 2600.9905 | F91: 31740 | H91: 31740 | I91: ='App.2-BA_Fixed Asset Cont'!F102 -> 0 | J91: =E91/'[37]Other GSH Assets'!$Y$122 -> 3.129063828 | K91: 0.3195844045 | L91: 10 | M91: 0.1 | N91: 831.236 | O91: 3174 | P91: 0 | Q91: 4005.236 | R91: =-'App.2-BA_Fixed Asset Cont'!K101 -> 4005.236 | S91: 0
A92: 1915 | B92: Office Furniture & Equipment (5 years) | C92: 0 | D92: 0 | E92: 0 | F92: 0 | H92: 0 | J92: ='[56]App.2-C_DepExp 2013'!J88 -> 0 | K92: 0 | L92: 0 | M92: 0 | N92: 0 | O92: 0 | P92: 0 | Q92: 0 | R92: =-'App.2-BA_Fixed Asset Cont'!K102 -> 0 | S92: 0
A93: 1920 | B93: Computer Equipment - Hardware | C93: 162987.72 | D93: 47096.116 | E93: 115891.604 | F93: 341012.65 | H93: 341012.65 | I93: ='App.2-BA_Fixed Asset Cont'!F103 -> 29499.09 | J93: =E93/SUM('[37]Other GSH Assets'!$Y$193:$Y$196) -> 1.643921467 | K93: 0.6083015643 | L93: 5 | M93: 0.2 | N93: 70497.044 | O93: 68202.53 | P93: 2949.909 | Q93: 141649.483 | R93: =-'App.2-BA_Fixed Asset Cont'!K103 -> 138699.575 | S93: -2949.908
A94: 1920 | B94: Computer Equip.-Hardware(Post Mar. 22/04) | C94: 0 | D94: 0 | E94: 0 | F94: 0 | H94: 0 | I94: ='App.2-BA_Fixed Asset Cont'!F104 -> 0 | J94: ='[56]App.2-C_DepExp 2013'!J90 -> 0 | K94: 0 | L94: 0 | M94: 0 | N94: 0 | O94: 0 | P94: 0 | Q94: 0 | R94: =-'App.2-BA_Fixed Asset Cont'!K104 -> 0 | S94: 0
A95: 1920 | B95: Computer Equip.-Hardware(Post Mar. 19/07) | C95: 0 | D95: 0 | E95: 0 | F95: 0 | H95: 0 | I95: ='App.2-BA_Fixed Asset Cont'!F105 -> 0 | J95: ='[56]App.2-C_DepExp 2013'!J91 -> 0 | K95: 0 | L95: 0 | M95: 0 | N95: 0 | O95: 0 | P95: 0 | Q95: 0 | R95: =-'App.2-BA_Fixed Asset Cont'!K105 -> 0 | S95: 0
A96: 1930 | B96: Transportation Equipment (12 year) | C96: 5258637.36 | D96: =D48+13467.6+27498.96+43028.6+5110.92+211561.2+5110.92 -> 4170282.966 | E96: =C96-D96 -> 1088354.394 | F96: 533800 | H96: =F96-G96 -> 533800 | I96: ='App.2-BA_Fixed Asset Cont'!F106-162041 -> 63625.97 | J96: =E96/SUM('[37]Veh 2014'!$J$10:$J$105) -> 6.720093719 | K96: 0.1488074485 | L96: 12 | M96: 0.08333333333 | N96: 161955.2404 | O96: =IF(L96=0,0,+H96/L96) -> 44483.33333 | P96: 2651.082083 | Q96: 209089.6558 | R96: =-'App.2-BA_Fixed Asset Cont'!K106-10128 -> 211111.1915 | S96: 2021.535739
A97: 1930 | B97: Transportation Equipment (8 year) | C97: 0 | E97: =C97-D97 -> 0 | F97: 0 | H97: =F97-G97 -> 0 | I97: 162041 | K97: 0 | L97: 8 | M97: 0.125 | N97: 0 | O97: 0 | P97: 10127.5625 | Q97: 10127.5625 | R97: 10128 | S97: 0.4375
A98: 1935 | B98: Stores Equipment | D98: =D49 -> 0 | E98: =C98-D98 -> 0 | H98: 0 | J98: ='[56]App.2-C_DepExp 2013'!J93 -> 0 | K98: 0 | L98: 0 | M98: 0 | N98: 0 | O98: 0 | P98: 0 | Q98: 0 | S98: 0
A99: 1940 | B99: Tools, Shop & Garage Equipment | C99: =C50 -> 1961496.07 | D99: 1467290.827 | E99: 494205.2425 | F99: =I50 -> 77672.09 | H99: 77672.09 | I99: ='App.2-BA_Fixed Asset Cont'!F108 -> 85031.51 | J99: =E99/SUM('[37]Other GSH Assets'!$Y$25:$Y$33) -> 5.958708284 | K99: 0.167821607 | L99: 10 | M99: 0.1 | N99: 82938.318 | O99: 7767.209 | P99: 4251.5755 | Q99: 94957.1025 | R99: =-'App.2-BA_Fixed Asset Cont'!K108 -> 94957.1025 | S99: 0
A100: 1945 | B100: Measurement & Testing Equipment | C100: 0 | D100: 0 | E100: 0 | F100: =I52 -> 0 | H100: 0 | I100: ='App.2-BA_Fixed Asset Cont'!F109 -> 0 | J100: ='[56]App.2-C_DepExp 2013'!J95 -> 0 | K100: 0 | L100: 0 | M100: 0 | N100: 0 | O100: 0 | P100: 0 | Q100: 0 | R100: =-'App.2-BA_Fixed Asset Cont'!K109 -> 0 | S100: 0
A101: 1950 | B101: Power Operated Equipment | C101: 0 | D101: 0 | E101: 0 | H101: 0 | I101: ='App.2-BA_Fixed Asset Cont'!F110 -> 0 | J101: ='[56]App.2-C_DepExp 2013'!J96 -> 0 | K101: 0 | L101: 0 | M101: 0 | N101: 0 | O101: 0 | P101: 0 | Q101: 0 | R101: =-'App.2-BA_Fixed Asset Cont'!K110 -> 0 | S101: 0
A102: 1955 | B102: Communications Equipment | C102: 2262458.79 | D102: 1307813.078 | E102: 954645.712 | F102: =I53 -> 912 | H102: 912 | I102: ='App.2-BA_Fixed Asset Cont'!F111 -> 64352.36 | J102: =E102/(SUM('[37]Wires-fibre'!$R$5:$R$14)+SUM([37]SubSecurity!$R$9:$R$16)) -> 12.22123174 | K102: =IF(J102=0,0,1/J102) -> 0.08182481283 | L102: 10 | M102: 0.1 | N102: 78113.7067 | O102: 91.2 | P102: 3217.618 | Q102: 81422.5247 | R102: =-'App.2-BA_Fixed Asset Cont'!K111 -> 81422.5247 | S102: 0
A103: 1955 | B103: Communication Equipment (Smart Meters) | C103: 0 | D103: 0 | E103: 0 | F103: =I54 -> 0 | H103: 0 | I103: ='App.2-BA_Fixed Asset Cont'!F112 -> 0 | J103: ='[56]App.2-C_DepExp 2013'!J98 -> 0 | K103: 0 | L103: 0 | M103: 0 | N103: 0 | O103: 0 | P103: 0 | Q103: 0 | R103: =-'App.2-BA_Fixed Asset Cont'!K114 -> 0 | S103: 0
A104: 1960 | B104: Miscellaneous Equipment | C104: 0 | D104: 0 | E104: 0 | F104: =I55 -> 0 | H104: 0 | I104: ='App.2-BA_Fixed Asset Cont'!F113 -> 0 | J104: ='[56]App.2-C_DepExp 2013'!J99 -> 0 | K104: 0 | L104: 0 | M104: 0 | N104: 0 | O104: 0 | P104: 0 | Q104: 0 | R104: =-'App.2-BA_Fixed Asset Cont'!K115 -> 0 | S104: 0
A105: 1970 | B105: Load Management Controls Customer Premises | C105: 0 | D105: 0 | E105: =C105-D105 -> 0 | F105: =I57 -> 0 | H105: 0 | I105: ='App.2-BA_Fixed Asset Cont'!F114 -> 0 | J105: ='[56]App.2-C_DepExp 2013'!J100 -> 0 | K105: 0 | L105: 0 | M105: 0 | N105: 0 | O105: 0 | P105: 0 | Q105: 0 | S105: 0
A106: 1975 | B106: Load Management Controls Utility Premises | C106: 0 | D106: 0 | E106: 0 | H106: 0 | I106: ='App.2-BA_Fixed Asset Cont'!F115 -> 0 | J106: ='[56]App.2-C_DepExp 2013'!J101 -> 0 | K106: 0 | L106: 0 | M106: 0 | N106: 0 | O106: 0 | P106: 0 | Q106: 0 | R106: =-'App.2-BA_Fixed Asset Cont'!K117 -> 0 | S106: 0
A107: 1980 | B107: System Supervisor Equipment | C107: 1573528.65 | D107: 1274629.688 | E107: 298898.9624 | F107: =I58 -> 59389.24 | H107: 59389.24 | I107: ='App.2-BA_Fixed Asset Cont'!F116 -> 94893.97 | J107: =J58 -> 12.81074915 | K107: 0.07805944745 | L107: 20 | M107: 0.05 | N107: 23331.88785 | O107: 2969.462 | P107: 2372.34925 | Q107: 28673.6991 | R107: =-'App.2-BA_Fixed Asset Cont'!K116 -> 28749.83915 | S107: 76.14005128
A108: 1985 | B108: Miscellaneous Fixed Assets | C108: 42116.86 | D108: 42116.858 | E108: 0.001999999993 | F108: =I60 -> 0 | H108: =F108-G108 -> 0 | I108: ='App.2-BA_Fixed Asset Cont'!F119 -> 0 | J108: ='[56]App.2-C_DepExp 2013'!J103 -> 0 | K108: 0 | L108: 0 | M108: 0 | N108: 0 | O108: 0 | P108: 0 | Q108: 0 | S108: 0
A109: 1990 | B109: Other Tangible Property | C109: 0 | D109: 0 | E109: 0 | F109: =I61 -> 0 | H109: =F109-G109 -> 0 | I109: ='[56]App.2-BA_Fixed Asset Cont 2014'!E98 -> 0 | J109: ='[56]App.2-C_DepExp 2013'!J104 -> 0 | K109: 0 | L109: 0 | M109: 0 | N109: 0 | O109: 0 | P109: 0 | Q109: 0 | R109: =-'App.2-BA_Fixed Asset Cont'!K120 -> 0 | S109: 0
A110: 1995 | B110: Contributions & Grants | E110: 0 | H110: =F110-G110 -> 0 | I110: ='[56]App.2-BA_Fixed Asset Cont 2014'!E99 -> 0 | J110: ='[56]App.2-C_DepExp 2013'!J105 -> 0 | K110: 0 | L110: 0 | M110: 0 | N110: 0 | O110: 0 | P110: 0 | Q110: 0 | S110: 0
A111: 2440 | B111: Deferred Revenue | E111: 0 | H111: =F111-G111 -> 0 | I111: ='App.2-BA_Fixed Asset Cont'!F120 -> -898556.67 | K111: 0 | M111: 0 | N111: 0 | O111: 0 | P111: 0 | Q111: 0 | S111: 0
B112: Other Non Rate Regulated Assets | C112: =C63 -> -129739 | D112: =D63+R63 -> -90229 | E112: -39510 | J112: =-E112/'App.2-BA_Fixed Asset Cont'!K126 -> 1.522660706 | K112: =IF(J112=0,0,1/J112) -> 0.6567451278 | M112: 0 | N112: -25948 | O112: 0 | P112: 0 | Q112: -25948 | R112: =-'App.2-BA_Fixed Asset Cont'!K126 -> -25948 | S112: 0
B113: Total | C113: =SUM(C71:C112) -> 184254678.6 | D113: =SUM(D71:D112) -> 123496232.8 | E113: =SUM(E71:E112) -> 60758445.81 | F113: =SUM(F71:F112) -> 7461115.58 | G113: =SUM(G71:G110) -> 0 | H113: =SUM(H71:H112) -> 7461115.58 | I113: =SUM(I71:I112) -> 7452058.42 | N113: =SUM(N71:N112) -> 3369194.437 | O113: =SUM(O71:O112) -> 311636.0575 | P113: 157142.5236 | Q113: 3837973.018 | R113: 3836095.264 | S113: -1877.754237
A116: 2015 | C116: Book Values | J116: Service Lives | N116: Depreciation Expense | Y116: 2018
A117: Account | B117: Description | C117: Opening Net Book Value of Existing Assets as at Date of Policy Change (Jan. 1) 1 | D117: Less Fully Depreciated 7 | E117: Net Amount of Existing Assets Before Policy Change to be Depreciated | F117: Opening Gross Book Value of Assets Acquired After Policy Change 2 | G117: Less Fully Depreciated 8 | H117: Net Amount of Assets Acquired After Policy Change to be Depreciated | I117: Current Year Additions | J117: Average Remaining Life of Assets Existing Before Policy Change 3 | K117: Depreciation Rate Assets Acquired After Policy Change | L117: Life of Assets Acquired After Policy Change 4 | M117: Depreciation Rate on New Additions | N117: Depreciation Expense on Assets Existing Before Policy Change | O117: Depreciation Expense on Assets Acquired After Policy Change | P117: Depreciation Expense on Current Year Additions 5 | Q117: Total Current Year Depreciation Expense | R117: Depreciation Expense per Appendix 2-BA Fixed Assets, Column J | S117: Variance 6
C118: a | D118: b | E118: c = a-b | F118: d | G118: e | H118: f = d- e | I118: g | J118: h | K118: i = 1/h | L118: j | M118: k = 1/j | N118: l = c/h | O118: m = f/j | P118: n = g*0.5/j | Q118: o = l+m+n | R118: p | S118: q = p-o
A119: 1611 | B119: Computer Software (Formally known as Account 1925) | C119: =C71 -> 2651922.59 | D119: 2124828.796 | E119: =C119-D119 -> 527093.794 | F119: =F71+I71 -> 150092.81 | H119: =F119-G119 -> 150092.81 | I119: ='App.2-BA_Fixed Asset Cont'!E145 -> 114872.93 | J119: =E119/SUM('[39]Other GSH Assets'!$Z$256:$Z$258) -> 3.566095297 | K119: =IF(J119=0,0,1/J119) -> 0.2804187541 | L119: 5 | M119: =IF(L119=0,0,1/L119) -> 0.2 | N119: =IF(J119=0,0,+E119/J119) -> 147806.985 | O119: =IF(L119=0,0,+H119/L119) -> 30018.562 | P119: =IF(L119=0,0,+(I119*0.5)/L119) -> 11487.293 | Q119: =IF(ISERROR(+N119+O119+P119), 0, +N119+O119+P119) -> 189312.84 | R119: =-'App.2-BA_Fixed Asset Cont'!J145 -> 189312.84 | S119: =IF(ISERROR(+R119-122), 0, +R119-Q119) -> 0
A120: 1612 | B120: Land Rights (Formally known as Account 1906) | C120: 0 | D120: 0 | E120: =C120-D120 -> 0 | F120: 22699.18 | H120: =F120-G120 -> 22699.18 | I120: ='App.2-BA_Fixed Asset Cont'!E146 -> 13433.49 | J120: ='[56]App.2-C_DepExp 2014'!J115 -> 0 | K120: =IF(J120=0,0,1/J120) -> 0 | L120: 0 | M120: =IF(L120=0,0,1/L120) -> 0 | N120: =IF(J120=0,0,+E120/J120) -> 0 | O120: =IF(L120=0,0,+H120/L120) -> 0 | P120: =IF(L120=0,0,+(I120*0.5)/L120) -> 0 | Q120: =IF(ISERROR(+N120+O120+P120), 0, +N120+O120+P120) -> 0 | R120: =-'App.2-BA_Fixed Asset Cont'!J146 -> 0 | S120: =IF(ISERROR(+R120-122), 0, +R120-Q120) -> 0
A121: 1805 | B121: Land | C121: 858551.46 | D121: 0 | E121: 858551.46 | F121: 49472.75 | H121: 49472.75 | I121: ='App.2-BA_Fixed Asset Cont'!E147 -> 32054.59 | J121: ='[56]App.2-C_DepExp 2014'!J116 -> 0 | K121: 0 | L121: 0 | M121: 0 | N121: 0 | O121: 0 | P121: 0 | Q121: 0 | R121: =-'App.2-BA_Fixed Asset Cont'!J147 -> 0 | S121: 0
A122: 1808 | B122: Buildings Renos | C122: 10129356.54 | D122: 9390523.526 | E122: 738833.0143 | F122: 1710981.09 | H122: 1710981.09 | J122: =E122/('[39]Substations Depn 2012,13,14,15'!$AH$412-'[39]Substations Depn 2012,13,14,15'!$AH$417) -> 2.896581072 | K122: =IF(J122=0,0,1/J122) -> 0.3452345973 | L122: 15 | M122: 0.06666666667 | N122: 255070.7182 | O122: 114065.406 | P122: 0 | Q122: 369136.1242 | R122: =-'App.2-BA_Fixed Asset Cont'!J148-26200-110 -> 352316.4554 | S122: -16819.66879
A123: 1808 | B123: Buildings Renos | C123: 0 | D123: 0 | F123: 0 | I123: ='App.2-BA_Fixed Asset Cont'!E148-10998 -> 1309995.71 | J123: =E123/('[39]Substations Depn 2012,13,14,15'!$AH$412-'[39]Substations Depn 2012,13,14,15'!$AH$417) -> 0 | K123: 0 | L123: 25 | M123: 0.04 | N123: 0 | O123: 0 | P123: 26199.9142 | Q123: 26199.9142 | R123: 26200 | S123: 0.0858
A124: 1808 | B124: Buildings | C124: 0 | D124: 0 | F124: 0 | I124: 10998 | K124: 0 | L124: 50 | M124: 0.02 | N124: 0 | O124: 0 | P124: 109.98 | Q124: 109.98 | R124: 110 | S124: 0.02
A125: 1810 | B125: Leasehold Improvements | F125: ` | K125: 0 | L125: 0 | M125: 0 | N125: 0 | O125: 0 | P125: 0 | Q125: 0 | S125: 0
A126: 1815 | B126: Transformer Station Equipment >50 kV | J126: ='[56]App.2-C_DepExp 2014'!J118 -> 0 | K126: 0 | L126: 0 | M126: =IF(L126=0,0,1/L126) -> 0 | N126: 0 | O126: 0 | P126: 0 | Q126: 0 | S126: 0
A127: 1820 | B127: Distribution Station Equipment <50 kV | C127: =C77 -> 17547705.69 | D127: =D77 -> 11226787.93 | E127: =C127-D127 -> 6320917.764 | F127: =F77+I77 -> 763862.78 | H127: =F127-G126 -> 763862.78 | I127: ='App.2-BA_Fixed Asset Cont'!E151-71291 -> 92091.27 | J127: =E127/'[39]Substations Depn 2012,13,14,15'!$AH$437 -> 17.9539547 | K127: =IF(J127=0,0,1/J127) -> 0.05569803515 | L127: 45 | M127: 0.02222222222 | N127: 352062.6998 | O127: 16974.72844 | P127: 1023.236333 | Q127: 370060.6646 | R127: =-'App.2-BA_Fixed Asset Cont'!J151-1782 -> 370028.8159 | S127: -31.84869596
A128: 1820 | B128: Distribution Station Equipment <50 kV | H128: =F128-G127 -> 0 | I128: 71291 | K128: 0 | L128: 20 | M128: 0.05 | N128: 0 | O128: 0 | P128: 1782.275 | Q128: =IF(ISERROR(+N128+O128+P128), 0, +N128+O128+P128) -> 1782.275 | R128: 1782 | S128: -0.275
A129: 1825 | B129: Storage Battery Equipment | K129: 0 | L129: 0 | M129: 0 | N129: 0 | O129: 0 | P129: 0 | Q129: 0 | S129: 0
A130: 1830 | B130: Poles, Towers & Fixtures | C130: =C79 -> 19238774.11 | D130: 9065588.333 | E130: =C130-D130 -> 10173185.78 | F130: =F79+I79 -> 2452717.11 | H130: =F130-G130 -> 2452717.11 | I130: ='App.2-BA_Fixed Asset Cont'!E153 -> 1620239.18 | J130: =J79 -> 29.3188219 | K130: 0.03410778248 | L130: 40 | M130: 0.025 | N130: 346984.8077 | O130: 61317.92775 | P130: 20252.98975 | Q130: 428555.7252 | R130: =-'App.2-BA_Fixed Asset Cont'!J153 -> 428839.5029 | S130: 283.7776948
A131: 1835 | B131: Overhead Conductors & Devices (40 yr) | C131: 29187086.48 | D131: 21602233.69 | E131: 7584852.786 | F131: 1038618.78 | H131: 1038618.78 | I131: ='[39]Cont''y WIRES 2015'!$M$15 -> 394521.88 | J131: =J80 -> 22.08664309 | K131: 0.04527623305 | L131: 40 | M131: 0.025 | N131: 343413.5624 | O131: 25965.4695 | P131: 4931.5235 | Q131: 374310.5554 | R131: =-'App.2-BA_Fixed Asset Cont'!J154-113118 -> 373486.7445 | S131: -823.8108965
A132: 1835 | B132: Overhead Conductors & Devices (50 yr) | C132: 9768757 | D132: 6712011.325 | E132: 3056745.675 | F132: 719450.29 | H132: 719450.29 | I132: ='[39]Cont''y WIRES 2015'!$M$13 -> 329269.47 | J132: =E132/SUM('[39]Distribution System Amort Sch'!$K$4:$K$10) -> 32.02912273 | K132: 0.03122158569 | L132: 50 | M132: 0.02 | N132: 95436.44702 | O132: 14389.0058 | P132: 3292.6947 | Q132: 113118.1475 | R132: 113118 | S132: -0.147523532
A133: 1840 | B133: Underground Conduit | C133: 20841499.54 | D133: 12176064.9 | E133: 8665434.643 | F133: 1304442.71 | H133: 1304442.71 | I133: ='App.2-BA_Fixed Asset Cont'!E155 -> 576755.81 | J133: =J82 -> 38.14426415 | K133: 0.0262162614 | L133: 50 | M133: 0.02 | N133: 227175.2998 | O133: 26088.8542 | P133: 5767.5581 | Q133: 259031.7121 | R133: =-'App.2-BA_Fixed Asset Cont'!J155 -> 259530.2445 | S133: 498.5324701
A134: 1845 | B134: Underground Conductors & Devices | C134: 15719869.67 | D134: 11662374.44 | E134: 4057495.226 | F134: 1291548.09 | H134: 1291548.09 | I134: ='App.2-BA_Fixed Asset Cont'!E156 -> 615640.24 | J134: =J83 -> 17.22755022 | K134: 0.05804655841 | L134: 40 | M134: 0.025 | N134: 235523.6337 | O134: 32288.70225 | P134: 7695.503 | Q134: 275507.8389 | R134: =-'App.2-BA_Fixed Asset Cont'!J156 -> 278978.2688 | S134: 3470.429868
A135: 1850 | B135: Line Transformers | C135: 25892036.77 | D135: 17956843.74 | E135: 7935193.025 | F135: 2427826.04 | H135: 2427826.04 | I135: ='App.2-BA_Fixed Asset Cont'!E157 -> 1362816.64 | J135: =J84 -> 22.88670569 | K135: 0.04369348798 | L135: 40 | M135: 0.025 | N135: 346716.2611 | O135: 60695.651 | P135: 17035.208 | Q135: 424447.1201 | R135: =-'App.2-BA_Fixed Asset Cont'!J157 -> 416435.2957 | S135: -8011.824407
A136: 1855 | B136: Services (Overhead & Underground) | C136: 12342929.8 | D136: 6500462.136 | E136: 5842467.664 | F136: 2146745.76 | H136: 2146745.76 | I136: ='App.2-BA_Fixed Asset Cont'!E158 -> 1147044.94 | J136: =J85 -> 29.25886688 | K136: 0.03417767352 | L136: 40 | M136: 0.025 | N136: 199681.9524 | O136: 53668.644 | P136: 14338.06175 | Q136: 267688.6581 | R136: =-'App.2-BA_Fixed Asset Cont'!J158 -> 268102.7087 | S136: 414.0505723
A137: 1860 | B137: Meters | C137: 8900387.993 | D137: 6817799.923 | E137: 2082588.071 | F137: 189303.4 | H137: 189303.4 | I137: ='App.2-BA_Fixed Asset Cont'!E159-I138-I139 -> 51973.28 | J137: =E137/(SUM('[42]1860 Meters for Continuity'!$P$27:$P$43)+SUM('[42]1860 Meters for Continuity'!$P$71:$P$91)+SUM('[42]1860 Meters for Continuity'!$P$110:$P$141)+SUM('[42]1860 Meters for Continuity'!$P$161:$P$165)) -> 4.343542594 | K137: =IF(J137=0,0,1/J137) -> 0.2302268202 | L137: 15 | M137: 0.06666666667 | N137: 479467.6294 | O137: 12620.22667 | P137: 1732.442667 | Q137: 493820.2987 | R137: =-'App.2-BA_Fixed Asset Cont'!J159-879-613 -> 493440.9342 | S137: -379.3644782
A138: 1860 | B138: Meters | C138: =C89 -> 0 | D138: =D89 -> 0 | E138: 0 | F138: =F89+I89 -> 0 | H138: 0 | I138: 79083 | J138: =J87 -> 0 | K138: 0 | L138: 45 | M138: 0.02222222222 | N138: 0 | O138: 0 | P138: 878.7 | Q138: 878.7 | R138: 879 | S138: 0.3
A139: 1860 | B139: Meters | C139: =C90 -> 0 | D139: =D90 -> 0 | E139: 0 | F139: =F90+I90 -> 0 | H139: 0 | I139: 30628 | J139: =J88 -> 0 | K139: 0 | L139: 25 | M139: 0.04 | N139: 0 | O139: 0 | P139: 612.56 | Q139: 612.56 | R139: 613 | S139: 0.44
A140: 1905 | B140: Land | H140: =F140-G140 -> 0 | I140: ='App.2-BA_Fixed Asset Cont'!E165 -> 0 | K140: 0 | L140: 0 | M140: 0 | N140: 0 | O140: 0 | P140: 0 | Q140: 0 | S140: 0
A141: 1908 | B141: Buildings & Fixtures | H141: 0 | I141: ='App.2-BA_Fixed Asset Cont'!E166 -> 0 | J141: ='[56]App.2-C_DepExp 2014'!J131 -> 0 | K141: 0 | L141: 0 | M141: 0 | N141: 0 | O141: 0 | P141: 0 | Q141: 0 | S141: 0
A142: 1910 | B142: Leasehold Improvements | H142: 0 | I142: ='App.2-BA_Fixed Asset Cont'!E167 -> 0 | J142: ='[56]App.2-C_DepExp 2014'!J132 -> 0 | K142: 0 | L142: 0 | M142: 0 | N142: 0 | O142: 0 | P142: 0 | Q142: 0 | S142: 0
A143: 1915 | B143: Office Furniture & Equipment (10 years) | C143: =C91 -> 44314.56 | D143: 41713.5695 | E143: =C143-D143 -> 2600.9905 | F143: =F91+I91 -> 31740 | H143: =F143-G143 -> 31740 | I143: ='App.2-BA_Fixed Asset Cont'!E168 -> 0 | J143: =E143/'[39]Other GSH Assets'!$Y$129 -> 3.129063828 | K143: 0.3195844045 | L143: 10 | M143: 0.1 | N143: 831.236 | O143: 3174 | P143: 0 | Q143: 4005.236 | R143: =-'App.2-BA_Fixed Asset Cont'!J164 -> 4005.236 | S143: 0
A144: 1915 | B144: Office Furniture & Equipment (5 years) | C144: 0 | D144: 0 | E144: 0 | F144: 0 | H144: 0 | J144: =E147/'[39]Other GSH Assets'!$Y$129 -> 0 | K144: 0 | L144: 0 | M144: 0 | N144: 0 | O144: 0 | P144: 0 | Q144: 0 | R144: =-'App.2-BA_Fixed Asset Cont'!J165 -> 0 | S144: 0
A145: 1920 | B145: Computer Equipment - Hardware | C145: 162987.72 | D145: 47096.116 | E145: 115891.604 | F145: 370511.74 | H145: 370511.74 | J145: =E145/SUM('[39]Other GSH Assets'!$Z$211:$Z$213) -> 2.170968493 | K145: 0.460623912 | L145: 5 | M145: 0.2 | N145: 53382.444 | O145: 74102.348 | P145: 0 | Q145: 127484.792 | R145: =-'App.2-BA_Fixed Asset Cont'!J166 -> 127484.792 | S145: -1.455191523e-11
A146: 1920 | B146: Computer Equip.-Hardware(Post Mar. 22/04) | C146: 0 | D146: 0 | E146: 0 | F146: 0 | H146: 0 | J146: =E149/SUM('[39]Other GSH Assets'!$Z$211:$Z$213) -> 0 | K146: 0 | L146: 0 | M146: 0 | N146: 0 | O146: 0 | P146: 0 | Q146: 0 | R146: =-'App.2-BA_Fixed Asset Cont'!J167 -> 0 | S146: 0
A147: 1920 | B147: Computer Equip.-Hardware(Post Mar. 19/07) | C147: 0 | D147: 0 | E147: 0 | F147: 0 | H147: 0 | J147: ='[56]App.2-C_DepExp 2014'!J137 -> 0 | K147: 0 | L147: 0 | M147: 0 | N147: 0 | O147: 0 | P147: 0 | Q147: 0 | R147: =-'App.2-BA_Fixed Asset Cont'!J168 -> 0 | S147: 0
A148: 1930 | B148: Transportation Equipment (12 yr) | C148: 5258637.36 | D148: 4170282.966 | E148: 1088354.394 | F148: 597425.97 | H148: 597425.97 | I148: ='App.2-BA_Fixed Asset Cont'!E169-I149 -> 637437.45 | J148: =E148/SUM('[39]Veh 2015'!$J$10:$J$102) -> 6.757671072 | K148: =IF(J148=0,0,1/J148) -> 0.1479799755 | L148: 12 | M148: 0.08333333333 | N148: 161054.6566 | O148: 49785.4975 | P148: 26559.89375 | Q148: 237400.0478 | R148: =-'App.2-BA_Fixed Asset Cont'!J169-27717 -> 241110.2601 | S148: 3710.212259
A149: 1930 | B149: Transportation Equipment (8 yr) | C149: 0 | D149: 0 | E149: 0 | F149: 162041 | H149: 162041 | I149: 119397 | J149: =E152/SUM('[39]Veh 2015'!$J$10:$J$102) -> 0 | K149: 0 | L149: 8 | M149: 0.125 | N149: 0 | O149: 20255.125 | P149: 7462.3125 | Q149: 27717.4375 | R149: 27717 | S149: -0.4375
A150: 1935 | B150: Stores Equipment | C150: 0 | D150: 0 | E150: 0 | F150: 0 | H150: 0 | J150: ='[56]App.2-C_DepExp 2014'!J140 -> 0 | K150: 0 | L150: 0 | M150: 0 | N150: 0 | O150: 0 | P150: 0 | Q150: 0 | S150: 0
A151: 1940 | B151: Tools, Shop & Garage Equipment | C151: 1961496.07 | D151: 1467290.827 | E151: 494205.2425 | F151: 162703.6 | H151: 162703.6 | I151: ='App.2-BA_Fixed Asset Cont'!E171 -> 69666.34 | J151: =E151/SUM('[39]Other GSH Assets'!$Z$26:$Z$33) -> 6.358456137 | K151: 0.1572708812 | L151: 10 | M151: 0.1 | N151: 77724.094 | O151: 16270.36 | P151: 3483.317 | Q151: 97477.771 | R151: =-'App.2-BA_Fixed Asset Cont'!J171 -> 97477.771 | S151: 0
A152: 1945 | B152: Measurement & Testing Equipment | C152: 0 | D152: 0 | E152: 0 | F152: 0 | H152: 0 | I152: ='App.2-BA_Fixed Asset Cont'!E172 -> 0 | J152: =E155/SUM('[39]Other GSH Assets'!$Z$26:$Z$33) -> 0 | K152: 0 | L152: 0 | M152: 0 | N152: 0 | O152: 0 | P152: 0 | Q152: 0 | R152: =-'App.2-BA_Fixed Asset Cont'!J173 -> 0 | S152: 0
A153: 1950 | B153: Power Operated Equipment | C153: 0 | D153: 0 | E153: 0 | F153: 0 | H153: 0 | I153: ='App.2-BA_Fixed Asset Cont'!E173 -> 0 | J153: ='[56]App.2-C_DepExp 2014'!J143 -> 0 | K153: 0 | L153: 0 | M153: 0 | N153: 0 | O153: 0 | P153: 0 | Q153: 0 | S153: 0
A154: 1955 | B154: Communications Equipment | C154: 2262458.79 | D154: 1307813.078 | E154: 954645.712 | F154: 65264.36 | H154: 65264.36 | I154: ='App.2-BA_Fixed Asset Cont'!E174 -> 5085.73 | J154: =J102 -> 12.22123174 | K154: 0.08182481283 | L154: 10 | M154: 0.1 | N154: 78113.7067 | O154: 6526.436 | P154: 254.2865 | Q154: 84894.4292 | R154: =-'App.2-BA_Fixed Asset Cont'!J174 -> 84894.4292 | S154: -1.455191523e-11
A155: 1955 | B155: Communication Equipment (Smart Meters) | C155: 0 | D155: 0 | E155: 0 | F155: 0 | H155: 0 | I155: ='App.2-BA_Fixed Asset Cont'!E176 -> 0 | J155: ='[56]App.2-C_DepExp 2014'!J145 -> 0 | K155: 0 | L155: 0 | M155: 0 | N155: 0 | O155: 0 | P155: 0 | Q155: 0 | R155: =-'App.2-BA_Fixed Asset Cont'!J176 -> 0 | S155: 0
A156: 1960 | B156: Miscellaneous Equipment | C156: 0 | D156: 0 | E156: 0 | F156: 0 | H156: 0 | I156: ='App.2-BA_Fixed Asset Cont'!E177 -> 0 | J156: ='[56]App.2-C_DepExp 2014'!J146 -> 0 | K156: 0 | L156: 0 | M156: 0 | N156: 0 | O156: 0 | P156: 0 | Q156: 0 | R156: =-'App.2-BA_Fixed Asset Cont'!J177 -> 0 | S156: 0
A157: 1970 | B157: Load Management Controls Customer Premises | C157: 0 | D157: 0 | E157: 0 | F157: 0 | H157: 0 | I157: ='App.2-BA_Fixed Asset Cont'!E178 -> 0 | J157: ='[56]App.2-C_DepExp 2014'!J147 -> 0 | K157: 0 | L157: 0 | M157: 0 | N157: 0 | O157: 0 | P157: 0 | Q157: 0 | R157: =-'App.2-BA_Fixed Asset Cont'!J178 -> 0 | S157: 0
A158: 1975 | B158: Load Management Controls Utility Premises | C158: 0 | D158: 0 | E158: 0 | F158: 0 | H158: 0 | J158: ='[56]App.2-C_DepExp 2014'!J149 -> 0 | K158: 0 | L158: 0 | M158: 0 | N158: 0 | O158: 0 | P158: 0 | Q158: 0 | S158: 0
A159: 1980 | B159: System Supervisor Equipment | C159: 1573528.65 | D159: 1274629.688 | E159: 298898.9624 | F159: 154283.21 | H159: 154283.21 | I159: ='App.2-BA_Fixed Asset Cont'!E179 -> 207501.11 | J159: =J107 -> 12.81074915 | K159: =IF(J159=0,0,1/J159) -> 0.07805944745 | L159: 20 | M159: 0.05 | N159: 23331.88785 | O159: 7714.1605 | P159: 5187.52775 | Q159: 36233.5761 | R159: =-'App.2-BA_Fixed Asset Cont'!J179 -> 36309.71615 | S159: 76.14005128
A160: 1985 | B160: Miscellaneous Fixed Assets | C160: 42116.86 | D160: 42116.858 | E160: 0.001999999993 | F160: 0 | H160: 0 | J160: ='[56]App.2-C_DepExp 2014'!J151 -> 0 | K160: 0 | L160: 0 | M160: 0 | N160: 0 | O160: 0 | P160: 0 | Q160: 0 | R160: =-'App.2-BA_Fixed Asset Cont'!J181 -> 0 | S160: 0
A161: 1990 | B161: Other Tangible Property | E161: 0 | F161: =F116+I116 -> 0 | H161: 0 | J161: ='[56]App.2-C_DepExp 2014'!J152 -> 0 | K161: 0 | L161: 0 | M161: 0 | N161: 0 | O161: 0 | P161: 0 | Q161: 0 | S161: 0
A162: 1995 | B162: Contributions & Grants | E162: 0 | H162: 0 | J162: ='[56]App.2-C_DepExp 2014'!J153 -> 0 | K162: 0 | L162: 0 | M162: 0 | N162: 0 | O162: 0 | P162: 0 | Q162: 0 | S162: 0
A163: 2440 | B163: Deferred Revenue | E163: 0 | F163: =I111 -> -898556.67 | H163: -898556.67 | I163: ='App.2-BA_Fixed Asset Cont'!E183 -> -1327041.44 | K163: =IF(J163=0,0,1/J163) -> 0 | L163: =-(H163+(I163/2))/'App.2-BA_Fixed Asset Cont'!J183 -> 29.27168862 | M163: 0.03416270284 | N163: 0 | O163: -30697.12451 | P163: -22667.66119 | Q163: -53364.78569 | R163: =-'App.2-BA_Fixed Asset Cont'!J183 -> -53364.78569 | S163: 0
B164: Other Non Rate Regulated Assets | C164: =C112 -> -129739 | D164: =D112+R112 -> -116177 | E164: -13562 | H164: 0 | J164: =-E164/'App.2-BA_Fixed Asset Cont'!J189 -> 1 | K164: 1 | M164: 0 | N164: =IF(J164=0,0,+E164/J164) -> -13562 | O164: =IF(L164=0,0,+H164/L164) -> 0 | P164: 0 | Q164: -13562 | R164: =-'App.2-BA_Fixed Asset Cont'!J189 -> -13562 | S164: 0
B165: Total | C165: =SUM(C119:C164) -> 184254678.6 | D165: =SUM(D119:D164) -> 123470284.8 | E165: =SUM(E119:E164) -> 60784393.81 | F165: =SUM(F119:F164) -> 14913174 | G165: =SUM(G119:G162) -> 0 | H165: =SUM(H119:H164) -> 14913174 | I165: =SUM(I119:I164) -> 7564755.62 | N165: =SUM(N119:N164) -> 3410216.021 | O165: =SUM(O119:O164) -> 595223.9801 | P165: 137419.6163 | Q165: 4142859.618 | R165: 4125246.229 | S165: -17613.38858
A168: 2016 | C168: Book Values | J168: Service Lives | N168: Depreciation Expense | Y168: 2018
A169: Account | B169: Description | C169: Opening Net Book Value of Existing Assets as at Date of Policy Change (Jan. 1) 1 | D169: Less Fully Depreciated 7 | E169: Net Amount of Existing Assets Before Policy Change to be Depreciated | F169: Opening Gross Book Value of Assets Acquired After Policy Change 2 | G169: Less Fully Depreciated 8 | H169: Net Amount of Assets Acquired After Policy Change to be Depreciated | I169: Current Year Additions | J169: Average Remaining Life of Assets Existing Before Policy Change 3 | K169: Depreciation Rate Assets Acquired After Policy Change | L169: Life of Assets Acquired After Policy Change 4 | M169: Depreciation Rate on New Additions | N169: Depreciation Expense on Assets Existing Before Policy Change | O169: Depreciation Expense on Assets Acquired After Policy Change | P169: Depreciation Expense on Current Year Additions 5 | Q169: Total Current Year Depreciation Expense | R169: Depreciation Expense per Appendix 2-BA Fixed Assets, Column J | S169: Variance 6
C170: a | D170: b | E170: c = a-b | F170: d | G170: e | H170: f = d- e | I170: g | J170: h | K170: i = 1/h | L170: j | M170: k = 1/j | N170: l = c/h | O170: m = f/j | P170: n = g*0.5/j | Q170: o = l+m+n | R170: p | S170: q = p-o
A171: 1611 | B171: Computer Software (Formally known as Account 1925) | C171: =391465.09 -> 391465.09 | D171: 338863.06 | E171: =C171-D171 -> 52602.03 | F171: =F119+I119 -> 264965.74 | H171: =F171-G171 -> 264965.74 | I171: ='App.2-BA_Fixed Asset Cont'!E209 -> 13239.43 | J171: =E171/SUM('[42]Other GSH Assets'!$AA$272:$AA$273) -> 1.146656478 | K171: =IF(J171=0,0,1/J171) -> 0.8721007725 | L171: 5 | M171: =IF(L171=0,0,1/L171) -> 0.2 | N171: =IF(J171=0,0,+E171/J171) -> 45874.271 | O171: =IF(L171=0,0,+H171/L171) -> 52993.148 | P171: =IF(L171=0,0,+(I171*0.5)/L171) -> 1323.943 | Q171: =IF(ISERROR(+N171+O171+P171), 0, +N171+O171+P171) -> 100191.362 | R171: =-'App.2-BA_Fixed Asset Cont'!I209 -> 100191.39 | S171: =IF(ISERROR(+R171-122), 0, +R171-Q171) -> 0.02800000001
A172: 1612 | B172: Land Rights (Formally known as Account 1906) | C172: =C120 -> 0 | D172: ='[56]App.2-C_DepExp 2015'!D166 -> 0 | E172: =C172-D172 -> 0 | F172: 36132.67 | H172: =F172-G172 -> 36132.67 | I172: ='App.2-BA_Fixed Asset Cont'!E210 -> 9045.7 | J172: ='[56]App.2-C_DepExp 2015'!J166 -> 0 | K172: =IF(J172=0,0,1/J172) -> 0 | L172: 0 | M172: =IF(L172=0,0,1/L172) -> 0 | N172: =IF(J172=0,0,+E172/J172) -> 0 | O172: =IF(L172=0,0,+H172/L172) -> 0 | P172: =IF(L172=0,0,+(I172*0.5)/L172) -> 0 | Q172: =IF(ISERROR(+N172+O172+P172), 0, +N172+O172+P172) -> 0 | R172: =-'App.2-BA_Fixed Asset Cont'!I210 -> 0 | S172: =IF(ISERROR(+R172-122), 0, +R172-Q172) -> 0
A173: 1805 | B173: Land | C173: 858551.46 | D173: =D121 -> 0 | E173: 858551.46 | F173: 81527.34 | H173: 81527.34 | I173: ='App.2-BA_Fixed Asset Cont'!E211 -> 0 | J173: ='[56]App.2-C_DepExp 2015'!J167 -> 0 | K173: 0 | L173: 0 | M173: 0 | N173: 0 | O173: 0 | P173: 0 | Q173: 0 | R173: =-'App.2-BA_Fixed Asset Cont'!I211 -> 0 | S173: 0
A174: 1808 | B174: Buildings | C174: 10129356.54 | D174: 9390523.526 | E174: 738833.0143 | F174: 1710981.09 | H174: 1710981.09 | I174: ='App.2-BA_Fixed Asset Cont'!E212-291420-1105590 -> 0.08000000007 | J174: =E174/'[42]Substations Depn'!$AS$430 -> 3.908392454 | K174: 0.2558596691 | L174: 15 | M174: 0.06666666667 | N174: 189037.5706 | O174: 114065.406 | P174: 0.002666666669 | Q174: 303102.9792 | R174: =-'App.2-BA_Fixed Asset Cont'!I212-58228-11276 -> 312157.11 | S174: =IF(ISERROR(+R174-122), 0, +R174-Q174) -> 9054.130751
A175: 1808 | B175: Buildings | C175: 0 | D175: 0 | E175: 0 | F175: 1309995.71 | H175: 1309995.71 | I175: 291420 | J175: ='[56]App.2-C_DepExp 2015'!J169 -> 0 | K175: 0 | L175: 25 | M175: 0.04 | N175: 0 | O175: 52399.8284 | P175: 5828.4 | Q175: 58228.2284 | R175: 58228 | S175: -0.2284
A176: 1808 | B176: Buildings | C176: 0 | D176: 0 | E176: 0 | F176: 10998 | H176: 10998 | I176: 1105590 | J176: ='[56]App.2-C_DepExp 2015'!J170 -> 0 | K176: 0 | L176: 50 | M176: 0.02 | N176: 0 | O176: 219.96 | P176: 11055.9 | Q176: 11275.86 | R176: 11276 | S176: 0.14
A177: 1810 | B177: Leasehold Improvements | C177: 0 | D177: 0 | E177: 0 | H177: 0 | J177: ='[56]App.2-C_DepExp 2015'!J171 -> 0 | K177: 0 | L177: 0 | M177: 0 | N177: 0 | O177: 0 | P177: 0 | Q177: 0 | S177: 0
A178: 1815 | B178: Transformer Station Equipment >50 kV | C178: 0 | D178: 0 | E178: 0 | F178: =F126+I126 -> 0 | H178: 0 | J178: ='[56]App.2-C_DepExp 2015'!J172 -> 0 | K178: 0 | L178: 0 | M178: 0 | N178: 0 | O178: 0 | P178: 0 | Q178: 0 | S178: 0
A179: 1820 | B179: Distribution Station Equipment <50 kV | C179: 17547705.69 | D179: 11226787.93 | E179: 6320917.764 | F179: =F127+I127 -> 855954.05 | H179: 855954.05 | I179: ='App.2-BA_Fixed Asset Cont'!E215-105370-77687 -> 381588.04 | J179: =J127 -> 17.9539547 | K179: 0.05569803515 | L179: 45 | M179: 0.02222222222 | N179: 352062.6998 | O179: 19021.20111 | P179: 4239.867111 | Q179: 375323.768 | R179: =-'App.2-BA_Fixed Asset Cont'!I215-6199-1554 -> 365997.38 | S179: -9326.388009
A180: 1820 | B180: Distribution Station Equipment <50 kV | C180: 0 | D180: 0 | E180: 0 | F180: =F128+I128 -> 71291 | H180: 71291 | I180: 105370 | J180: ='[56]App.2-C_DepExp 2015'!J174 -> 0 | K180: 0 | L180: 20 | M180: 0.05 | N180: 0 | O180: 3564.55 | P180: 2634.25 | Q180: =IF(ISERROR(+N180+O180+P180), 0, +N180+O180+P180) -> 6198.8 | R180: 6199 | S180: 0.2
A181: 1820 | B181: Distribution Station Equipment <50 kV | C181: 0 | D181: 0 | E181: 0 | F181: =F129+I129 -> 0 | G181: 0 | H181: 0 | I181: 77687 | J181: 0 | K181: 0 | L181: 25 | M181: 0.04 | N181: 0 | O181: 0 | P181: 1553.74 | Q181: =IF(ISERROR(+N181+O181+P181), 0, +N181+O181+P181) -> 1553.74 | R181: 1554 | S181: 0.26
A182: 1825 | B182: Storage Battery Equipment | E182: 0 | H182: 0 | K182: 0 | L182: 0 | M182: 0 | N182: 0 | O182: 0 | P182: 0 | Q182: 0 | S182: 0
A183: 1830 | B183: Poles, Towers & Fixtures | C183: =C130 -> 19238774.11 | D183: 9065588.333 | E183: 10173185.78 | F183: =F130+I130 -> 4072956.29 | H183: 4072956.29 | I183: ='App.2-BA_Fixed Asset Cont'!E217 -> 1421202.44 | J183: =E183/(SUM('[42]Distribution System Amort Sch'!$O$238:$O$242)+SUM('[42]Distribution System Amort Sch'!$O$264:$O$268)) -> 31.08041009 | K183: 0.03217460764 | L183: 40 | M183: 0.025 | N183: 327318.2608 | O183: 101823.9072 | P183: 17765.0305 | Q183: 446907.1986 | R183: =-'App.2-BA_Fixed Asset Cont'!I217 -> 442627.62 | S183: -4279.578593
A184: 1835 | B184: Overhead Conductors & Devices | C184: 29187086.48 | D184: 21602233.69 | E184: 7584852.786 | F184: 1433140.66 | H184: 1433140.66 | I184: ='App.2-BA_Fixed Asset Cont'!E218 -> 1328907.5 | J184: =E184/[57]Sheet1!$B$71 -> 22.44166513 | K184: 0.04455997334 | L184: 40 | M184: 0.025 | N184: 337980.838 | O184: 35828.5165 | P184: 16611.34375 | Q184: 390420.6982 | R184: =-'App.2-BA_Fixed Asset Cont'!I218-171857 -> 383767.7343 | S184: -6652.963885
A185: 1835 | B185: Overhead Conductors & Devices | C185: 9768757 | D185: 6712011.325 | E185: 3056745.675 | F185: 1048719.76 | H185: 1048719.76 | J185: =E185/SUM('[42]Distribution System Amort Sch'!$O$5:$O$10) -> 20.98844536 | K185: 0.04764526303 | L185: 40 | M185: 0.025 | N185: 145639.4517 | O185: 26217.994 | P185: 0 | Q185: 171857.4457 | R185: 171857 | S185: -0.4456879675
A186: 1840 | B186: Underground Conduit | C186: 20841499.54 | D186: 12176064.9 | E186: 8665434.643 | F186: 1881198.52 | H186: 1881198.52 | I186: ='App.2-BA_Fixed Asset Cont'!E219 -> 637497.64 | J186: =J133 -> 38.14426415 | K186: 0.0262162614 | L186: 50 | M186: 0.02 | N186: 227175.2998 | O186: 37623.9704 | P186: 6374.9764 | Q186: 271174.2466 | R186: =-'App.2-BA_Fixed Asset Cont'!I219 -> 271383.24 | S186: 208.9934444
A187: 1845 | B187: Underground Conductors & Devices | C187: 15719869.67 | D187: 11662374.44 | E187: 4057495.226 | F187: 1907188.33 | H187: 1907188.33 | I187: ='App.2-BA_Fixed Asset Cont'!E220 -> 588883.16 | J187: =E187/[57]Sheet1!$B$46 -> 22.8682559 | K187: 0.04372873927 | L187: 40 | M187: 0.025 | N187: 177429.1509 | O187: 47679.70825 | P187: =IF(L187=0,0,+(I187*0.5)/L187) -> 7361.0395 | Q187: 232469.8986 | R187: =-'App.2-BA_Fixed Asset Cont'!I220 -> 227520.4705 | S187: -4949.42807
A188: 1850 | B188: Line Transformers | C188: 25892036.77 | D188: 17956843.74 | E188: 7935193.025 | F188: 3790642.68 | H188: 3790642.68 | I188: ='App.2-BA_Fixed Asset Cont'!E221 -> 1580394.95 | J188: =E188/[57]Sheet1!$B$59 -> 27.675199 | K188: 0.03613343484 | L188: 40 | M188: 0.025 | N188: 286725.7801 | O188: 94766.067 | P188: 19754.93687 | Q188: 401246.784 | R188: =-'App.2-BA_Fixed Asset Cont'!I221 -> 391233.3736 | S188: -10013.41042
A189: 1855 | B189: Services (Overhead & Underground) | C189: 12342929.8 | D189: 6500462.136 | E189: 5842467.664 | F189: 3293790.7 | H189: 3293790.7 | I189: ='App.2-BA_Fixed Asset Cont'!E222 -> 487741.62 | J189: =J136 -> 29.25886688 | K189: 0.03417767352 | L189: 40 | M189: 0.025 | N189: 199681.9524 | O189: 82344.7675 | P189: 6096.77025 | Q189: 288123.4901 | R189: =-'App.2-BA_Fixed Asset Cont'!I222 -> 281720.46 | S189: -6403.030135
A190: 1860 | B190: Meters | C190: 8900387.993 | D190: 6817799.923 | E190: 2082588.071 | F190: 241276.68 | H190: 241276.68 | I190: ='App.2-BA_Fixed Asset Cont'!E223-12560-106659 -> 57461.88 | J190: =E190/(SUM('[42]1860 Meters for Continuity'!$P$27:$P$34)+SUM('[42]1860 Meters for Continuity'!$P$71:$P$91)+SUM('[42]1860 Meters for Continuity'!$P$110:$P$141)+SUM('[42]1860 Meters for Continuity'!$P$161:$P$165)) -> 4.343542594 | K190: =IF(J190=0,0,1/J190) -> 0.2302268202 | L190: 15 | M190: 0.06666666667 | N190: 479467.6294 | O190: 16085.112 | P190: 1915.396 | Q190: 497468.1374 | R190: =-'App.2-BA_Fixed Asset Cont'!I223-1897-3358 -> 494824.8072 | S190: -2643.330152
A191: 1860 | B191: Meters | C191: 0 | D191: 0 | E191: 0 | F191: 79083 | H191: 79083 | I191: 12560 | J191: =E191/(SUM('[42]1860 Meters for Continuity'!$P$27:$P$34)+SUM('[42]1860 Meters for Continuity'!$P$71:$P$91)+SUM('[42]1860 Meters for Continuity'!$P$110:$P$141)+SUM('[42]1860 Meters for Continuity'!$P$161:$P$165)) -> 0 | K191: 0 | L191: 45 | M191: 0.02222222222 | N191: 0 | O191: 1757.4 | P191: 139.5555556 | Q191: 1896.955556 | R191: 1897 | S191: 0.04444444444
A192: 1860 | B192: Meters | C192: 0 | D192: 0 | E192: 0 | F192: 30628 | H192: 30628 | I192: 106659 | J192: ='[56]App.2-C_DepExp 2015'!J184 -> 0 | K192: 0 | L192: 25 | M192: 0.04 | N192: 0 | O192: 1225.12 | P192: 2133.18 | Q192: 3358.3 | R192: 3358 | S192: -0.3
A193: 1905 | B193: Land | C193: =C141 -> 0 | D193: =D141 -> 0 | E193: 0 | F193: =F141+I141 -> 0 | H193: 0 | I193: ='App.2-BA_Fixed Asset Cont'!E229 -> 0 | K193: 0 | L193: 0 | M193: 0 | N193: 0 | O193: 0 | P193: =IF(L193=0,0,+(#REF!*0.5)/L193) -> 0 | Q193: 0 | S193: 0
A194: 1908 | B194: Buildings & Fixtures | C194: =C142 -> 0 | D194: =D142 -> 0 | E194: 0 | F194: =F142+I142 -> 0 | H194: 0 | J194: ='[56]App.2-C_DepExp 2015'!J187 -> 0 | K194: 0 | L194: 0 | M194: 0 | N194: 0 | O194: 0 | P194: 0 | Q194: 0 | S194: 0
A195: 1910 | B195: Leasehold Improvements | E195: 0 | H195: 0 | K195: 0 | L195: 0 | M195: 0 | N195: 0 | O195: 0 | P195: 0 | Q195: 0 | S195: 0
A196: 1915 | B196: Office Furniture & Equipment (10 years) | C196: =C143 -> 44314.56 | D196: =D143 -> 41713.5695 | E196: 2600.9905 | F196: =F143+I143 -> 31740 | H196: 31740 | J196: ='[56]App.2-C_DepExp 2015'!J188 -> 0 | K196: 0 | L196: 10 | M196: 0.1 | N196: 0 | O196: 3174 | P196: 0 | Q196: 3174 | R196: =-'App.2-BA_Fixed Asset Cont'!I228 -> 3174 | S196: 0
A197: 1915 | B197: Office Furniture & Equipment (5 years) | C197: =C144 -> 0 | D197: =D144 -> 0 | E197: 0 | F197: 0 | H197: 0 | J197: 0 | K197: 0 | L197: 0 | M197: 0 | N197: 0 | O197: 0 | P197: 0 | Q197: 0 | R197: =-'App.2-BA_Fixed Asset Cont'!I229 -> 0 | S197: 0
A198: 1920 | B198: Computer Equipment - Hardware | C198: =C145 -> 162987.72 | D198: 142422 | E198: 20565.72 | F198: 370511.74 | H198: 370511.74 | I198: ='App.2-BA_Fixed Asset Cont'!E230 -> 24167.79 | J198: =E198/SUM('[42]Other GSH Assets'!$AA$223:$AA$224) -> 0.9999974715 | K198: =IF(J198=0,0,1/J198) -> 1.000002528 | L198: 5 | M198: 0.2 | N198: 20565.772 | O198: 74102.348 | P198: 2416.779 | Q198: 97084.899 | R198: =-'App.2-BA_Fixed Asset Cont'!I230 -> 97084.89 | S198: -0.009000000005
A199: 1920 | B199: Computer Equip.-Hardware(Post Mar. 22/04) | C199: 0 | D199: =D146 -> 0 | E199: 0 | F199: 0 | H199: 0 | J199: =E199/SUM('[42]Other GSH Assets'!$AA$223:$AA$224) -> 0 | K199: 0 | L199: 0 | M199: 0 | N199: 0 | O199: 0 | P199: 0 | Q199: 0 | R199: =-'App.2-BA_Fixed Asset Cont'!I231 -> 0 | S199: 0
A200: 1920 | B200: Computer Equip.-Hardware(Post Mar. 19/07) | C200: 0 | D200: 0 | E200: 0 | F200: 0 | H200: 0 | I200: ='App.2-BA_Fixed Asset Cont'!E232 -> 0 | J200: ='[56]App.2-C_DepExp 2015'!J192 -> 0 | K200: 0 | L200: 0 | M200: 0 | N200: 0 | O200: 0 | P200: 0 | Q200: 0 | R200: =-'App.2-BA_Fixed Asset Cont'!I232 -> 0 | S200: 0
A201: 1930 | B201: Transportation Equipment | C201: 5258637.36 | D201: 4170282.966 | E201: 1088354.394 | F201: 1234863.42 | H201: 1234863.42 | I201: ='App.2-BA_Fixed Asset Cont'!E233-150359 -> 52049.42 | J201: =E201/SUM('[42]Veh 2016'!$M$10:$M$99) -> 6.757671072 | K201: =IF(J201=0,0,1/J201) -> 0.1479799755 | L201: 12 | M201: 0.08333333333 | N201: 161054.6566 | O201: 102905.285 | P201: 2168.725833 | Q201: 266128.6674 | R201: =-'App.2-BA_Fixed Asset Cont'!I233-9397.4 -> 308498.74 | S201: 42370.07261
A202: 1930 | B202: Transportation Equipment | C202: 0 | D202: 0 | E202: 0 | F202: 281438 | H202: 281438 | I202: 150359 | J202: =E202/SUM('[42]Veh 2016'!$M$10:$M$99) -> 0 | K202: 0 | L202: 8 | M202: 0.125 | N202: 0 | O202: =IF(L202=0,0,+H202/L202) -> 35179.75 | P202: 9397.4375 | Q202: 44577.1875 | R202: 9397.4 | S202: -35179.7875
A203: 1935 | B203: Stores Equipment | C203: 0 | D203: 0 | E203: 0 | F203: 0 | H203: 0 | I203: ='App.2-BA_Fixed Asset Cont'!E234 -> 0 | J203: ='[56]App.2-C_DepExp 2015'!J195 -> 0 | K203: 0 | L203: 0 | M203: 0 | N203: 0 | O203: 0 | P203: 0 | Q203: 0 | S203: 0
A204: 1940 | B204: Tools, Shop & Garage Equipment | C204: 1961496.07 | D204: 1467290.827 | E204: 494205.2425 | F204: 232369.94 | H204: 232369.94 | I204: ='App.2-BA_Fixed Asset Cont'!E235 -> 116135.34 | J204: =E204/SUM('[42]Other GSH Assets'!$AA$27:$AA$33) -> 7.110594652 | K204: 0.1406352139 | L204: 10 | M204: 0.1 | N204: 69502.66 | O204: 23236.994 | P204: 5806.767 | Q204: 98546.421 | R204: =-'App.2-BA_Fixed Asset Cont'!I235 -> 98546.74 | S204: 0.319
A205: 1945 | B205: Measurement & Testing Equipment | C205: 0 | D205: 0 | E205: 0 | F205: 0 | H205: 0 | I205: ='App.2-BA_Fixed Asset Cont'!E236 -> 0 | J205: =E205/SUM('[42]Other GSH Assets'!$AA$27:$AA$33) -> 0 | K205: 0 | L205: 0 | M205: 0 | N205: 0 | O205: 0 | P205: 0 | Q205: 0 | R205: =-'App.2-BA_Fixed Asset Cont'!I237 -> 0 | S205: 0
A206: 1950 | B206: Power Operated Equipment | C206: 0 | D206: 0 | E206: 0 | F206: 0 | H206: 0 | I206: ='App.2-BA_Fixed Asset Cont'!E237 -> 0 | J206: ='[56]App.2-C_DepExp 2015'!J198 -> 0 | K206: 0 | L206: 0 | M206: 0 | N206: 0 | O206: 0 | P206: 0 | Q206: 0 | S206: 0
A207: 1955 | B207: Communications Equipment | C207: 2262458.79 | D207: 1307813.078 | E207: 954645.712 | F207: 70350.09 | H207: 70350.09 | I207: ='App.2-BA_Fixed Asset Cont'!E238 -> 14532.6 | J207: =E207/(SUM('[42]Wires-fibre'!$T$5:$T$14)+SUM([42]SubSecurity!$T$11:$T$16)) -> 12.20427999 | K207: =IF(J207=0,0,1/J207) -> 0.08193846756 | L207: 10 | M207: 0.1 | N207: 78222.2067 | O207: 7035.009 | P207: 726.63 | Q207: 85983.8457 | R207: =-'App.2-BA_Fixed Asset Cont'!I238 -> 85983.9 | S207: 0.05429999999
A208: 1955 | B208: Communication Equipment (Smart Meters) | C208: 0 | D208: 0 | E208: 0 | F208: 0 | H208: 0 | I208: ='App.2-BA_Fixed Asset Cont'!E242 -> 0 | J208: =E208/(SUM('[42]Wires-fibre'!$T$5:$T$14)+SUM([42]SubSecurity!$T$11:$T$16)) -> 0 | K208: 0 | L208: 0 | M208: 0 | N208: 0 | O208: 0 | P208: 0 | Q208: 0 | S208: 0
A209: 1960 | B209: Miscellaneous Equipment | C209: 0 | D209: 0 | E209: 0 | F209: 0 | H209: 0 | J209: ='[56]App.2-C_DepExp 2015'!J201 -> 0 | K209: 0 | L209: 0 | M209: 0 | N209: 0 | O209: 0 | P209: 0 | Q209: 0 | S209: 0
A210: 1970 | B210: Load Management Controls Customer Premises | C210: 0 | D210: 0 | E210: 0 | F210: 0 | H210: 0 | J210: ='[56]App.2-C_DepExp 2015'!J202 -> 0 | K210: 0 | L210: 0 | M210: 0 | N210: 0 | O210: 0 | P210: 0 | Q210: 0 | S210: 0
... 225 more rows

Sheet App.2-D_Overhead
K1: File Number: | L1: =EBNUMBER -> EB-2019-0037
K2: Exhibit: | L2: 2
K3: Tab: | L3: 2
K4: Schedule: | L4: 4
K5: Page: | L5: 1
K7: Date: | L7: October 31 ,2019
A9: Appendix 2-D
A10: Overhead Expense
A12: Applicants are to provide a breakdown of OM&A before capitalization in the below table. OM&A before capitalization may be broken down by cost center, program, drivers or another format best suited to focus on capitalized vs. uncapitalized OM&A.
A14: OM&A Before Capitalization
B15: =G15-4 -> 2013 | C15: 2013 | D15: =H15-4 -> 2014 | E15: 2015 | F15: =J15-4 -> 2016 | G15: =J15-3 -> 2017 | H15: =J15-2 -> 2018 | I15: =J15-1 -> 2019 | J15: =TestYear -> 2020
B16: Board Approved | C16: Historical Year | D16: Historical Year | E16: Historical Year | F16: Historical Year | G16: Historical Year | H16: Historical Year | I16: Bridge Year | J16: Test Year
A17: Administration and general expenses | B17: ='App.2-JA_OM&A_Summary_Analys'!B21 -> 3835190 | C17: ='App.2-JA_OM&A_Summary_Analys'!C21 -> 4502706.57 | D17: ='App.2-JA_OM&A_Summary_Analys'!F21 -> 4942813.47 | E17: ='App.2-JA_OM&A_Summary_Analys'!G21 -> 4910477.76 | F17: ='App.2-JA_OM&A_Summary_Analys'!H21 -> 5313722.81 | G17: ='App.2-JA_OM&A_Summary_Analys'!I21 -> 4935241.97 | H17: ='App.2-JA_OM&A_Summary_Analys'!J21 -> 4922433.05 | I17: ='App.2-JA_OM&A_Summary_Analys'!K21 -> 5659695 | J17: ='App.2-JA_OM&A_Summary_Analys'!L21 -> 5632977
A18: Billing and Collecting | B18: ='App.2-JA_OM&A_Summary_Analys'!B19 -> 2114055 | C18: ='App.2-JA_OM&A_Summary_Analys'!C19 -> 1866995.2 | D18: ='App.2-JA_OM&A_Summary_Analys'!F19 -> 2075374.24 | E18: ='App.2-JA_OM&A_Summary_Analys'!G19 -> 1839665.28 | F18: ='App.2-JA_OM&A_Summary_Analys'!H19 -> 2305885.46 | G18: ='App.2-JA_OM&A_Summary_Analys'!I19 -> 2043286.83 | H18: ='App.2-JA_OM&A_Summary_Analys'!J19 -> 2431549.84 | I18: ='App.2-JA_OM&A_Summary_Analys'!K19 -> 2567289 | J18: ='App.2-JA_OM&A_Summary_Analys'!L19 -> 2614941
A19: Community | B19: ='App.2-JA_OM&A_Summary_Analys'!B20 -> 0 | C19: ='App.2-JA_OM&A_Summary_Analys'!C20 -> 524978.46 | D19: ='App.2-JA_OM&A_Summary_Analys'!F20 -> 39448 | E19: ='App.2-JA_OM&A_Summary_Analys'!G20 -> 65137.14 | F19: ='App.2-JA_OM&A_Summary_Analys'!H20 -> -0.0100000002 | G19: ='App.2-JA_OM&A_Summary_Analys'!I20 -> 2217.41 | H19: ='App.2-JA_OM&A_Summary_Analys'!J20 -> 9126.17 | I19: ='App.2-JA_OM&A_Summary_Analys'!K20 -> 3682 | J19: ='App.2-JA_OM&A_Summary_Analys'!L20 -> 0
A20: Distribution Maintenance | B20: ='App.2-JA_OM&A_Summary_Analys'!B15 -> 1994623 | C20: ='App.2-JA_OM&A_Summary_Analys'!C15 -> 2614037.37 | D20: ='App.2-JA_OM&A_Summary_Analys'!F15 -> 1787401.3 | E20: ='App.2-JA_OM&A_Summary_Analys'!G15 -> 2011057.5 | F20: ='App.2-JA_OM&A_Summary_Analys'!H15 -> 2165932.54 | G20: ='App.2-JA_OM&A_Summary_Analys'!I15 -> 1815396.23 | H20: ='App.2-JA_OM&A_Summary_Analys'!J15 -> 1840611.48 | I20: ='App.2-JA_OM&A_Summary_Analys'!K15 -> 1752730 | J20: ='App.2-JA_OM&A_Summary_Analys'!L15 -> 2054449
A21: Distribution operations | B21: ='App.2-JA_OM&A_Summary_Analys'!B14 -> 5993671 | C21: ='App.2-JA_OM&A_Summary_Analys'!C14 -> 4735948.34 | D21: ='App.2-JA_OM&A_Summary_Analys'!F14 -> 4884928.07 | E21: ='App.2-JA_OM&A_Summary_Analys'!G14 -> 5487597.14 | F21: ='App.2-JA_OM&A_Summary_Analys'!H14 -> 5377304.04 | G21: ='App.2-JA_OM&A_Summary_Analys'!I14 -> 5851329.99 | H21: ='App.2-JA_OM&A_Summary_Analys'!J14 -> 5738060.17 | I21: ='App.2-JA_OM&A_Summary_Analys'!K14 -> 6137704 | J21: ='App.2-JA_OM&A_Summary_Analys'!L14 -> 7086590
A23: Labour burden (Capitalized) | B23: 423500 | C23: =SUM('[34]TL overheads DO NOT CHANGE'!$K$170:$K$232) -> 472213.87 | D23: =SUM('[34]TL overheads DO NOT CHANGE'!$J$170:$J$232) -> 615272.92 | E23: =SUM('[34]TL overheads DO NOT CHANGE'!$I$170:$I$232) -> 643837.87 | F23: =SUM('[34]TL overheads DO NOT CHANGE'!$H$170:$H$232) -> 643159.24 | G23: =SUM('[34]TL overheads DO NOT CHANGE'!$G$170:$G$232) -> 609743.73 | H23: =SUM('[34]TL overheads DO NOT CHANGE'!$F$170:$F$232) -> 642318.73 | I23: =SUM('[34]TL overheads DO NOT CHANGE'!$D$170:$D$232) -> 680578 | J23: =SUM('[34]TL overheads DO NOT CHANGE'!$C$170:$C$232) -> 659915
A24: Vehicle Burden (Capitalized) | B24: =[60]Sheet1!$C$4 -> 650020.29 | C24: =SUM('[34]TL overheads DO NOT CHANGE'!$K$93:$K$131) -> 482101.93 | D24: =SUM('[34]TL overheads DO NOT CHANGE'!$J$93:$J$131) -> 477567.5 | E24: =SUM('[34]TL overheads DO NOT CHANGE'!$I$93:$I$131) -> 500287.08 | F24: =SUM('[34]TL overheads DO NOT CHANGE'!$H$93:$H$131) -> 522478.28 | G24: =SUM('[34]TL overheads DO NOT CHANGE'!$G$93:$G$131) -> 535337.95 | H24: =SUM('[34]TL overheads DO NOT CHANGE'!$F$93:$F$131) -> 596189.53 | I24: =SUM('[34]TL overheads DO NOT CHANGE'!$D$93:$D$131) -> 764456 | J24: =SUM('[34]TL overheads DO NOT CHANGE'!$C$93:$C$131) -> 658317
A25: Materials burden (Capitalized) | B25: =[60]Sheet1!$C$3 -> 205657.49 | C25: ='[34]TL overheads DO NOT CHANGE'!$K$70 -> 170954.9427 | D25: ='[34]TL overheads DO NOT CHANGE'!$J$70 -> 165870.8035 | E25: ='[34]TL overheads DO NOT CHANGE'!$I$70 -> 170868.5189 | F25: ='[34]TL overheads DO NOT CHANGE'!$H$70 -> 179079.4004 | G25: ='[34]TL overheads DO NOT CHANGE'!$G$70 -> 230944.2574 | H25: ='[34]TL overheads DO NOT CHANGE'!$F$70 -> 269120.6253 | I25: ='[34]TL overheads DO NOT CHANGE'!$D$70 -> 252744.6323 | J25: ='[34]TL overheads DO NOT CHANGE'!$C$70 -> 241847.191
A26: Operations Supervision (Capitalized) | B26: =[60]Sheet1!$C$5 -> 196770.81 | C26: =SUM('[34]TL overheads DO NOT CHANGE'!$K$264:$K$303) -> 183357.08 | D26: =SUM('[34]TL overheads DO NOT CHANGE'!$J$264:$J$303) -> 186200.66 | E26: =SUM('[34]TL overheads DO NOT CHANGE'!$I$264:$I$303) -> 156701.29 | F26: =SUM('[34]TL overheads DO NOT CHANGE'!$H$264:$H$303) -> 226468.24 | G26: =SUM('[34]TL overheads DO NOT CHANGE'!$G$264:$G$303) -> 227863.99 | H26: =SUM('[34]TL overheads DO NOT CHANGE'!$F$264:$F$303) -> 332763.62 | I26: =SUM('[34]TL overheads DO NOT CHANGE'!$D$264:$D$303) -> 293492 | J26: =SUM('[34]TL overheads DO NOT CHANGE'!$C$264:$C$303) -> 253075
A27: Engineering Burden (Capitalized) | B27: =[60]Sheet1!$C$6 -> 161475.9976 | C27: =SUM('[34]TL overheads DO NOT CHANGE'!$G$329:$G$366) -> 151648.9 | D27: =SUM('[34]TL overheads DO NOT CHANGE'!$F$329:$F$366) -> 129879.94 | E27: =SUM('[34]TL overheads DO NOT CHANGE'!$E$329:$E$366) -> 230521.25 | F27: =SUM('[34]TL overheads DO NOT CHANGE'!$D$329:$D$366) -> 202696.47
A28: Total OM&A Before Capitalization (B) | B28: =SUM(B17:B27) -> 15574963.59 | C28: 15704942.66 | D28: 15304756.9 | E28: 16016150.83 | F28: 16936726.47 | G28: 16251362.36 | H28: 16782173.22 | I28: 18112370.63 | J28: 19202111.19
A30: Applicants are to provide a breakdown of capitalized OM&A in the below table. Capitalized OM&A may be broken down using the categories listed in the table below if possible. Otherwise, applicants are to provide its own break down of capitalized OM&A.
A32: Capitalized OM&A | K32: Directly | L32: Explanation for Change in Overhead Capitalized
B33: =G33-4 -> 2013 | C33: 2013 | D33: =H33-4 -> 2014 | E33: =I33-4 -> 2015 | F33: =J33-4 -> 2016 | G33: =J33-3 -> 2017 | H33: =J33-2 -> 2018 | I33: =J33-1 -> 2019 | J33: =TestYear -> 2020 | K33: Attributable?
B34: approved | C34: Historical Year | D34: Historical Year | E34: Historical Year | F34: Historical Year | G34: Historical Year | H34: Historical Year | I34: Bridge Year | J34: Test Year | K34: (Yes/No)
A35: Labour burden | B35: =B23 -> 423500 | C35: =C23 -> 472213.87 | D35: 615272.92 | E35: 643837.87 | F35: 643159.24 | G35: 609743.73 | H35: 642318.73 | I35: 680578 | J35: 659915 | K35: Yes | L35: N/A
A36: Vehicle Burden | B36: =B24 -> 650020.29 | C36: =C24 -> 482101.93 | D36: 477567.5 | E36: 500287.08 | F36: 522478.28 | G36: 535337.95 | H36: 596189.53 | I36: 764456 | J36: 658317 | K36: Yes | L36: N/A
A37: Materials burden | B37: =B25 -> 205657.49 | C37: =C25 -> 170954.9427 | D37: 165870.8035 | E37: 170868.5189 | F37: 179079.4004 | G37: 230944.2574 | H37: 269120.6253 | I37: 252744.6323 | J37: 241847.191 | K37: Yes | L37: N/A
A38: Operations Supervision | B38: =B26 -> 196770.81 | C38: =C26 -> 183357.08 | D38: 186200.66 | E38: 156701.29 | F38: 226468.24 | G38: 227863.99 | H38: 332763.62 | I38: 293492 | J38: 253075 | K38: Yes | L38: N/A
A39: Engineering Burden | B39: =B27 -> 161475.9976 | C39: =C27 -> 151648.9 | D39: 129879.94 | E39: 230521.25 | F39: 202696.47 | G39: 0 | H39: 0 | I39: 0 | J39: 0 | K39: Yes | L39: Time now tracked directly to capital jobs, not charged through burden
A48: Total Capitalized OM&A (A) | B48: =SUM(B35:B47) -> 1637424.588 | C48: 1460276.723 | D48: 1574791.824 | E48: 1702216.009 | F48: =SUM(F35:F47) -> 1773881.63 | G48: =SUM(G35:G47) -> 1603889.927 | H48: =SUM(H35:H47) -> 1840392.505 | I48: =SUM(I35:I47) -> 1991270.632 | J48: =SUM(J35:J47) -> 1813154.191
A50: % of Capitalized OM&A (=A/B) | B50: =IF(ISERROR(B48/B28),"0%",B48/B28) -> 0.1051318405 | C50: =IF(ISERROR(C48/C28),"0%",C48/C28) -> 0.0929819837 | D50: 0.102895579 | E50: 0.1062812174 | F50: =IF(ISERROR(F48/F28),"0%",F48/F28) -> 0.104735802 | G50: =IF(ISERROR(G48/G28),"0%",G48/G28) -> 0.09869264448 | H50: =IF(ISERROR(H48/H28),"0%",H48/H28) -> 0.1096635389 | I50: =IF(ISERROR(I48/I28),"0%",I48/I28) -> 0.1099398126 | J50: =IF(ISERROR(J48/J28),"0%",J48/J28) -> 0.09442473137

Sheet App.2-EA_Account 1575 (2015)
K1: File Number: | L1: =EBNUMBER -> EB-2019-0037
K2: Exhibit: | L2: 9
K3: Tab: | L3: 2
K4: Schedule: | L4: 1
K5: Page: | L5: 1
K7: Date: | L7: 2019-10-31
A9: Appendix 2-EA
A10: Account 1575 - IFRS-CGAAP Transitional PP&E Amounts
A11: 2015 Adopters of IFRS for Financial Reporting Purposes
A13: For applicants that adopted IFRS on January 1, 2015 for financial reporting purposes
B17: =TestYear-7 -> 2013 | C17: =TestYear-6 -> 2014 | D17: =TestYear-5 -> 2015 | E17: =TestYear-4 -> 2016 | F17: =TestYear-3 -> 2017 | G17: =TestYear-2 -> 2018 | H17: =CONCATENATE(TestYear-1," Bridge Year") -> 2019 Bridge Year | I17: =CONCATENATE(TestYear," Rebasing Year") -> 2020 Rebasing Year
A18: Reporting Basis | B18: CGAAP w/ MIFRS Dep'n & Capitalization | C18: MIFRS | D18: MIFRS | E18: MIFRS | F18: MIFRS | G18: MIFRS | H18: MIFRS | I18: MIFRS
B19: Actual | C19: Actual | D19: Actual | E19: Actual | F19: Actual | G19: Actual | H19: Forecast | I19: Forecast
G20: $ | H20: $
A21: PP&E Values under CGAAP
A22: Opening net PP&E - Note 1 | B22: 68358254 | C22: =+B25 -> 75948147 | D22: 79204054 | E22: =+D25 -> 82494816 | F22: 86632342 | G22: 91480812 | H22: =+G25 -> 96853505
A23: Net Additions - Note 4 | B23: 6522886 | C23: 6746694 | D23: 7416008 | E23: 8239046 | F23: 8969843 | G23: 9670171 | H23: 10296309
A24: Net Depreciation (amounts should be negative) - Note 4 | B24: 1067007 | C24: -3490787 | D24: -4125246 | E24: -4101520 | F24: -4121373 | G24: -4297478 | H24: -4516949
A25: Closing net PP&E (1) | B25: =SUM(B22:B24) -> 75948147 | C25: 79204054 | D25: 82494816 | E25: 86632342 | F25: 91480812 | G25: 96853505 | H25: =SUM(H22:H24) -> 102632865
A27: PP&E Values under MIFRS (Starts from 2014, the transition year)
A28: Opening net PP&E - Note 1 | B28: =B22 -> 68358254 | C28: =+B31 -> 75948147 | D28: 79204054 | E28: 80938784 | F28: 84401032 | G28: 88740882 | H28: =+G31 -> 93461959
A29: Net Additions - Note 4 | B29: =B23 -> 6522886 | C29: =C23 -> 6746694 | D29: 3131750 | E29: 4845339 | F29: 6490834 | G29: 5754803 | H29: 7215377
A30: Net Depreciation (amounts should be negative) - Note 4 | B30: =B24 -> 1067007 | C30: =C24 -> -3490787 | D30: -1397020 | E30: -1383091 | F30: -2150984 | G30: -1033726 | H30: -2000707
A31: Closing net PP&E (2) | B31: =SUM(B28:B30) -> 75948147 | C31: 79204054 | D31: 80938784 | E31: 84401032 | F31: 88740882 | G31: 93461959 | H31: =SUM(H28:H30) -> 98676629
A33: Other adjustments (items affecting net PP&E, but not deferred)
A34: Opening other adjustments | E34: =D36 -> -565450 | F34: =E36 -> -606556 | G34: =F36 -> -653326 | H34: =G36 -> -680220
A35: Other adjustments - Note 5 | D35: -565450 | E35: -41106 | F35: -46770 | G35: -26894 | H35: 0
A36: Closing other adjustments | D36: =D34+D35 -> -565450 | E36: =E34+E35 -> -606556 | F36: =F34+F35 -> -653326 | G36: =G34+G35 -> -680220 | H36: =H34+H35 -> -680220
A38: Difference in Closing net PP&E, former CGAAP vs. revised CGAAP | B38: =B25-B31+B34 -> 0 | C38: =C25-C31+C34 -> 0 | D38: =D25-D31+D36 -> 990582 | E38: =E25-E31+E36 -> 1624754 | F38: =F25-F31+F36 -> 2086604 | G38: =G25-G31+G36 -> 2711326 | H38: =H25-H31+H36 -> 3276016
A41: Effect on Deferral and Variance Account Rate Riders
A42: Closing balance in Account 1575 | I42: =IF(ISERROR(H38), 0, H38) -> 3276016 | K42: WACC | L42: 0.0602
A43: Return on Rate Base Associated with Account 1575 balance at WACC - Note 2 | I43: =H38*L42*L43 -> 986080.816 | J43: # of years of rate rider disposition period | L43: 5
A44: Amount included in Deferral and Variance Account Rate Rider Calculation | I44: =I42+I43 -> 4262096.816
A46: Notes:
A47: 1 For an applicant that adopted IFRS on January 1, 2015, the PP&E values as of January 1, 2014 under both CGAAP and MIFRS should be the same.
A48: 2 Return on rate base associated with deferred balance is calculated as:
A49: the deferral account closing balance as of 2017 x WACC X # of years of rate rider disposition period
A50: * Please note that the calculation should be adjusted once WACC is updated and finalized in the rate application.
A51: 3 The PP&E deferral account is cleared by including the total balance in the deferral and variance account rate rider calculation.
A52: 4 Net additions are additions net of disposals; Net depreciation is additions to depreciation net of disposals.
A53: 5 See Exhibit 9, Tab 2, Schedule 1 for discussion pertaining other adjustments in this appendix.

Sheet App.2-EB_Account 1576 (2012) (hidden)
K1: File Number: | L1: =EBNUMBER -> EB-2019-0037
K2: Exhibit:
K3: Tab:
K4: Schedule:
K5: Page:
K7: Date:
A9: Appendix 2-EB
A10: Account 1576 - Accounting Changes under CGAAP
A11: 2012 Changes in Accounting Policies under CGAAP
A13: For applicants with a balance in Account 1576 and made capitalization and depreciation expense accounting policy changes under CGAAP effective January 1, 2012. This is the first time the applicant is rebasing with changes in these accounting policies.
B17: Prior Years Rebasing | C17: 2012 | D17: 2013 | E17: 2014 | F17: 2015 | G17: 2016 | H17: 2017 | I17: 2018 Rebasing Year
A18: Reporting Basis | B18: CGAAP | C18: CGAAP | D18: CGAAP | E18: CGAAP | F18: MIFRS - Note 5 | G18: MIFRS | H18: MIFRS | I18: MIFRS
B19: Forecast | C19: Actual | D19: Actual | E19: Actual | F19: Actual | G19: Actual | H19: Forecast | I19: Forecast
C20: $ | D20: $ | E20: $ | F20: $ | G20: $ | H20: $
A21: PP&E Values under former CGAAP
A22: Opening net PP&E - Note 1 | D22: =+C25 -> 0 | E22: =+D25 -> 0 | F22: =+E25 -> 0 | G22: =+F25 -> 0 | H22: =+G25 -> 0
A23: Net Additions - Note 4
A24: Net Depreciation (amounts should be negative) - Note 4
A25: Closing net PP&E (1) | C25: =C22+C23+C24 -> 0 | D25: 0 | E25: 0 | F25: 0 | G25: 0 | H25: 0
A27: PP&E Values under revised CGAAP (Starts from 2012)
A28: Opening net PP&E - Note 1 | D28: =+C31 -> 0 | E28: =+D31 -> 0 | F28: =+E31 -> 0 | G28: =+F31 -> 0 | H28: =+G31 -> 0
A29: Net Additions - Note 4
A30: Net Depreciation (amounts should be negative) - Note 4
A31: Closing net PP&E (2) | C31: =SUM(C28:C30) -> 0 | D31: 0 | E31: 0 | F31: 0 | G31: 0 | H31: 0
A33: Difference in Closing net PP&E, former CGAAP vs. revised CGAAP | C33: =C25-C31 -> 0 | D33: 0 | E33: 0 | F33: 0 | G33: 0 | H33: 0
A36: Effect on Deferral and Variance Account Rate Riders
A37: Closing balance in Account 1576 | I37: =IF(ISERROR(H33), 0, H33) -> 0 | K37: WACC
A38: Return on Rate Base Associated with Account 1576 balance at WACC - Note 2 | I38: =H33*L37*L38 -> 0 | J38: # of years of rate rider disposition period
A39: Amount included in Deferral and Variance Account Rate Rider Calculation | I39: =I37+I38 -> 0
A41: Notes:
A42: 1 For an applicant that made the capitalization and depreciation expense accounting policy changes on January 1, 2012, the PP&E values as of January 1, 2012 under both former CGAAP and revised CGAAP should be the same.
A43: 2 Return on rate base associated with Account 1576 balance is calculated as:
A44: the variance account ending balance as of 2017 x WACC X # of years of rate rider disposition period
A45: * Please note that the calculation should be adjusted once WACC is updated and finalized in the rate application.
A46: 3 Account 1576 is cleared by including the total balance in the deferral and variance account rate rider calculation.
A47: 4 Net additions are additions net of disposals; Net depreciation is additions to depreciation net of disposals.
A48: 5 Differences due to the adoption of MIFRS are to be shown separately in Account 1575 in Appendix 2-EA as Accounts 1575 and 1576 cannot be used interchangably.

Sheet App.2-EC_Account 1576 (2013) (hidden)
J1: File Number: | K1: =EBNUMBER -> EB-2019-0037
J2: Exhibit:
J3: Tab:
J4: Schedule:
J5: Page:
J7: Date:
A9: Appendix 2-EC
A10: Account 1576 - Accounting Changes under CGAAP
A11: 2013 Changes in Accounting Policies under CGAAP
A13: For applicants with a balance in Account 1576 and made capitalization and depreciation expense accounting policy changes under CGAAP effective January 1, 2013. This is the first time the applicant is rebasing with changes in these accounting policies.
B17: Prior Years Rebasing | C17: 2013 | D17: 2014 | E17: 2015 | F17: 2016 | G17: 2017 | H17: 2018 Rebasing Year
A18: Reporting Basis | B18: CGAAP | C18: CGAAP | D18: CGAAP | E18: MIFRS - Note 5 | F18: MIFRS | G18: MIFRS | H18: MIFRS
B19: Actual | C19: Actual | D19: Actual | E19: Actual | F19: Actual | G19: Forecast | H19: Forecast
C20: $ | D20: $ | F20: $
A21: PP&E Values under former CGAAP
A22: Opening net PP&E - Note 1 | D22: =+C25 -> 0 | E22: =+D25 -> 0 | F22: =+E25 -> 0 | G22: =+F25 -> 0
A23: Net Additions - Note 4
A24: Net Depreciation (amounts should be negative) - Note 4
A25: Closing net PP&E (1) | C25: =C22+C23+C24 -> 0 | D25: =D22+D23+D24 -> 0 | E25: =E22+E23+E24 -> 0 | F25: =F22+F23+F24 -> 0 | G25: =G22+G23+G24 -> 0
A27: PP&E Values under revised CGAAP (Starts from 2012)
A28: Opening net PP&E - Note 1 | D28: =+C31 -> 0 | E28: =+D31 -> 0 | F28: =+E31 -> 0 | G28: =+F31 -> 0
A29: Net Additions - Note 4
A30: Net Depreciation (amounts should be negative) - Note 4
A31: Closing net PP&E (2) | C31: =SUM(C28:C30) -> 0 | D31: =SUM(D28:D30) -> 0 | E31: =SUM(E28:E30) -> 0 | F31: =SUM(F28:F30) -> 0 | G31: =SUM(G28:G30) -> 0
A33: Difference in Closing net PP&E, former CGAAP vs. revised CGAAP | C33: =C25-C31 -> 0 | D33: =D25-D31 -> 0 | E33: =E25-E31 -> 0 | F33: =F25-F31 -> 0 | G33: =G25-G31 -> 0
A36: Effect on Deferral and Variance Account Rate Riders
A37: Closing balance in Account 1576 | H37: =IF(ISERROR(G33), 0, G33) -> 0 | J37: WACC
A38: Return on Rate Base Associated with Account 1576 balance at WACC - Note 2 | H38: =G33*K37*K38 -> 0 | I38: # of years of rate rider disposition period
A39: Amount included in Deferral and Variance Account Rate Rider Calculation | H39: =H37+H38 -> 0
A41: Notes:
A42: 1 For an applicant that made the capitalization and depreciation expense accounting policy changes on January 1, 2013, the PP&E values as of January 1, 2013 under both former CGAAP and revised CGAAP should be the same.
A43: 2 Return on rate base associated with Account 1576 balance is calculated as:
A44: the variance account ending balance as of 2017 x WACC X # of years of rate rider disposition period
A45: * Please note that the calculation should be adjusted once WACC is updated and finalized in the rate application.
A46: 3 Account 1576 is cleared by including the total balance in the deferral and variance account rate rider calculation.
A47: 4 Net additions are additions net of disposals; Net depreciation is additions to depreciation net of disposals.
A48: 5 Differences due to the adoption of MIFRS are to be shown separately in Account 1575 in Appendix 2-EA as Accounts 1575 and 1576 cannot be used interchangably.

Sheet App.2-FA Proposed REG Invest.
K1: File Number: | L1: =EBNUMBER -> EB-2019-0037
K2: Exhibit:
K3: Tab:
A4: TO BE UPDATED AT DRAFT RATE ORDER STAGE | K4: Schedule:
K5: Page:
K7: Date:
A9: Appendix 2-FA
A10: Renewable Generation Connection Investment Summary (past investments or over the future rate setting period)
A12: Enter the details of the Renewable Generation Connection projects as described in the appropriate section of the Filing Requirements.
A13: All costs entered on this page will be transferred to the appropriate cells in the appendices that follow.
A14: For Part A, Renewable Enabling Improvements (REI), these amounts will be transferred to Appendix 2 - FB
A15: For Part B, Expansions, these amounts will be transferred to Appendix 2 - FC
A17: If there are more than five projects proposed to be in-service in a certain year, please amend the tables below and ensure that the formulae for the Total Amounts in any given rate year are updated.
A18: Based on the current methodology and allocation, amounts allocated represent 6% for REI Connection Investments and 17% for Expansion Investments. (EB-2009-0349, 6-10-2010, p. 15, note 9)
A20: There are two scenarios described below. Separate sets of spreadsheets (2-FA, 2-FB, 2-FC) should be submited for each scenario as required.
A21: Scenario 1: | B21: Past Investments with No Recovery. The distributor has made investments in the past (during the IRM Years), but has not received approval for these projects and therefore did not receive
B22: revenue from the IESO under Regulation 330/09 and did not receive ratepayer revenue for the direct benefit portion of the investment.
B23: The WCA percentage, debt percentages, interest rates, kWh, tax rates, amortization period, CCA Class and percentage should correspond to the distributor's last Cost of Service approval.
B24: The Direct Benefit portion of the calculated Revenue Requirement for each year should be summed and can be applied for recovery from the distributor's ratepayers through a rate rider.
B25: The Provincial Recovery portion of the calculated Revenue Requirement for each year should be summed and can be applied for recovery from the IESO through a separate order.
A27: Scenario 2: | B27: ="Investments in the Test Year and Beyond. Distributor plans to make investments in " & TestYear & " and/or beyond. These investments should be added to 2-FA in the appropriate year." -> Investments in the Test Year and Beyond. Distributor plans to make investments in 2020 and/or beyond. These investments should be added to 2-FA in the appropriate year.
B28: The WCA percentage, debt percentages, interest rates, kWh, tax rates, amortization period, CCA Class and percentage should correspond to the distributor's current application.
A30: Part A | C30: =IF(C31=TestYear, "Test Year", "") ->  | H30: Test Year
A31: REI Investments (Direct Benefit at 6%) | C31: =D31-1 -> 2015 | D31: =E31-1 -> 2016 | E31: =F31-1 -> 2017 | F31: =G31-1 -> 2018 | G31: =H31-1 -> 2019 | H31: =TestYear -> 2020 | I31: =H31+1 -> 2021 | J31: =I31+1 -> 2022 | K31: =J31+1 -> 2023 | L31: =K31+1 -> 2024
A32: Project 1
A33: Name: REI Connection Project
A34: Capital Costs | C34: 0 | D34: 0 | E34: 0 | F34: 0 | G34: 0 | H34: 0 | I34: 0 | J34: 0 | K34: 0 | L34: 0
A35: OM&A (Start-Up) | C35: 0 | D35: 0 | E35: 0 | F35: 0 | G35: 0 | H35: 0 | I35: 0 | J35: 0 | K35: 0 | L35: 0
A36: OM&A (Ongoing) | C36: 0 | D36: 0 | E36: 0 | F36: 0 | G36: 0 | H36: 0 | I36: 0 | J36: 0 | K36: 0 | L36: 0
A38: Project 2
A39: Name: REI Connection Project
A40: Capital Costs | C40: 0 | D40: 0 | E40: 0 | F40: 0 | G40: 0 | H40: 0 | I40: 0 | J40: 0 | K40: 0 | L40: 0
A41: OM&A (Start-Up) | C41: 0 | D41: 0 | E41: 0 | F41: 0 | G41: 0 | H41: 0 | I41: 0 | J41: 0 | K41: 0 | L41: 0
A42: OM&A (Ongoing) | C42: 0 | D42: 0 | E42: 0 | F42: 0 | G42: 0 | H42: 0 | I42: 0 | J42: 0 | K42: 0 | L42: 0
A44: Project 3
A45: Name: REI Connection Project
A46: Capital Costs | C46: 0 | D46: 0 | E46: 0 | F46: 0 | G46: 0 | H46: 0 | I46: 0 | J46: 0 | K46: 0 | L46: 0
A47: OM&A (Start-Up) | C47: 0 | D47: 0 | E47: 0 | F47: 0 | G47: 0 | H47: 0 | I47: 0 | J47: 0 | K47: 0 | L47: 0
A48: OM&A (Ongoing) | C48: 0 | D48: 0 | E48: 0 | F48: 0 | G48: 0 | H48: 0 | I48: 0 | J48: 0 | K48: 0 | L48: 0
A50: Project 4
A51: Name: REI Connection Project
A52: Capital Costs | C52: 0 | D52: 0 | E52: 0 | F52: 0 | G52: 0 | H52: 0 | I52: 0 | J52: 0 | K52: 0 | L52: 0
A53: OM&A (Start-Up) | C53: 0 | D53: 0 | E53: 0 | F53: 0 | G53: 0 | H53: 0 | I53: 0 | J53: 0 | K53: 0 | L53: 0
A54: OM&A (Ongoing) | C54: 0 | D54: 0 | E54: 0 | F54: 0 | G54: 0 | H54: 0 | I54: 0 | J54: 0 | K54: 0 | L54: 0
A56: Project 5
A57: Name: REI Connection Project
A58: Capital Costs | C58: 0 | D58: 0 | E58: 0 | F58: 0 | G58: 0 | H58: 0 | I58: 0 | J58: 0 | K58: 0 | L58: 0
A59: OM&A (Start-Up) | C59: 0 | D59: 0 | E59: 0 | F59: 0 | G59: 0 | H59: 0 | I59: 0 | J59: 0 | K59: 0 | L59: 0
A60: OM&A (Ongoing) | C60: 0 | D60: 0 | E60: 0 | F60: 0 | G60: 0 | H60: 0 | I60: 0 | J60: 0 | K60: 0 | L60: 0
A62: Total Capital Costs | C62: =SUM(C58,C52,C46,C40,C34) -> 0 | D62: =SUM(D58,D52,D46,D40,D34) -> 0 | E62: 0 | F62: 0 | G62: 0 | H62: =SUM(H58,H52,H46,H40,H34) -> 0 | I62: =SUM(I58,I52,I46,I40,I34) -> 0 | J62: 0 | K62: 0 | L62: 0
A63: Total OM&A (Start-Up) | C63: =SUM(C59,C53,C47,C41,C35) -> 0 | D63: 0 | E63: 0 | F63: 0 | G63: 0 | H63: =SUM(H59,H53,H47,H41,H35) -> 0 | I63: 0 | J63: 0 | K63: 0 | L63: 0
A64: Total OM&A (Ongoing) | C64: =SUM(C60,C54,C48,C42,C36) -> 0 | D64: 0 | E64: 0 | F64: 0 | G64: 0 | H64: =SUM(H60,H54,H48,H42,H36) -> 0 | I64: 0 | J64: 0 | K64: 0 | L64: 0
A67: Part B | C67: =IF(C68=TestYear, "Test Year", "") ->  | H67: Test Year
A68: Expansion Investments (Direct Benefit at 17%) | C68: =D68-1 -> 2015 | D68: =E68-1 -> 2016 | E68: =F68-1 -> 2017 | F68: =G68-1 -> 2018 | G68: =H68-1 -> 2019 | H68: =TestYear -> 2020 | I68: =H68+1 -> 2021 | J68: =I68+1 -> 2022 | K68: =J68+1 -> 2023 | L68: =K68+1 -> 2024
A69: Project 1
A70: Name: Expansion Connection Project
A71: Capital Costs | C71: 0 | D71: 0 | E71: 0 | F71: 0 | G71: 0 | H71: 0 | I71: 0 | J71: 0 | K71: 0 | L71: 0
A72: OM&A (Start-Up) | C72: 0 | D72: 0 | E72: 0 | F72: 0 | G72: 0 | H72: 0 | I72: 0 | J72: 0 | K72: 0 | L72: 0
A73: OM&A (Ongoing) | C73: 0 | D73: 0 | E73: 0 | F73: 0 | G73: 0 | H73: 0 | I73: 0 | J73: 0 | K73: 0 | L73: 0
A75: Project 2
A76: Name: Expansion Connection Project
A77: Capital Costs | C77: 0 | D77: 0 | E77: 0 | F77: 0 | G77: 0 | H77: 0 | I77: 0 | J77: 0 | K77: 0 | L77: 0
A78: OM&A (Start-Up) | C78: 0 | D78: 0 | E78: 0 | F78: 0 | G78: 0 | H78: 0 | I78: 0 | J78: 0 | K78: 0 | L78: 0
A79: OM&A (Ongoing) | C79: 0 | D79: 0 | E79: 0 | F79: 0 | G79: 0 | H79: 0 | I79: 0 | J79: 0 | K79: 0 | L79: 0
A81: Project 3
A82: Name: Expansion Connection Project
A83: Capital Costs | C83: 0 | D83: 0 | E83: 0 | F83: 0 | G83: 0 | H83: 0 | I83: 0 | J83: 0 | K83: 0 | L83: 0
A84: OM&A (Start-Up) | C84: 0 | D84: 0 | E84: 0 | F84: 0 | G84: 0 | H84: 0 | I84: 0 | J84: 0 | K84: 0 | L84: 0
A85: OM&A (Ongoing) | C85: 0 | D85: 0 | E85: 0 | F85: 0 | G85: 0 | H85: 0 | I85: 0 | J85: 0 | K85: 0 | L85: 0
A87: Project 4
A88: Name: Expansion Connection Project
A89: Capital Costs | C89: 0 | D89: 0 | E89: 0 | F89: 0 | G89: 0 | H89: 0 | I89: 0 | J89: 0 | K89: 0 | L89: 0
A90: OM&A (Start-Up) | C90: 0 | D90: 0 | E90: 0 | F90: 0 | G90: 0 | H90: 0 | I90: 0 | J90: 0 | K90: 0 | L90: 0
A91: OM&A (Ongoing) | C91: 0 | D91: 0 | E91: 0 | F91: 0 | G91: 0 | H91: 0 | I91: 0 | J91: 0 | K91: 0 | L91: 0
A93: Project 5
A94: Name: Expansion Connection Project
A95: Capital Costs | C95: 0 | D95: 0 | E95: 0 | F95: 0 | G95: 0 | H95: 0 | I95: 0 | J95: 0 | K95: 0 | L95: 0
A96: OM&A (Start-Up) | C96: 0 | D96: 0 | E96: 0 | F96: 0 | G96: 0 | H96: 0 | I96: 0 | J96: 0 | K96: 0 | L96: 0
A97: OM&A (Ongoing) | C97: 0 | D97: 0 | E97: 0 | F97: 0 | G97: 0 | H97: 0 | I97: 0 | J97: 0 | K97: 0 | L97: 0
A99: Total Capital Costs | C99: =SUM(C95,C89,C83,C77,C71) -> 0 | D99: =SUM(D95,D89,D83,D77,D71) -> 0 | E99: 0 | F99: 0 | G99: 0 | H99: =SUM(H95,H89,H83,H77,H71) -> 0 | I99: =SUM(I95,I89,I83,I77,I71) -> 0 | J99: 0 | K99: 0 | L99: 0
A100: Total OM&A (Start-Up) | C100: =SUM(C96,C90,C84,C78,C72) -> 0 | D100: 0 | E100: 0 | F100: 0 | G100: 0 | H100: =SUM(H96,H90,H84,H78,H72) -> 0 | I100: 0 | J100: 0 | K100: 0 | L100: 0
A101: Total OM&A (Ongoing) | C101: =SUM(C97,C91,C85,C79,C73) -> 0 | D101: 0 | E101: 0 | F101: 0 | G101: 0 | H101: =SUM(H97,H91,H85,H79,H73) -> 0 | I101: 0 | J101: 0 | K101: 0 | L101: 0

Sheet Hidden_REG Invest. (hidden)
A1: Utility Name | B1: EB Number | C1: Test Year | D1: Bridge Year | E1: Last Rebasing Year | F1: Renewable Generation Connection Investment Summary | G1: Year | H1: Amount
A2: ='LDC Info'!$E$14 -> Greater Sudbury Hydro Inc. | B2: =EBNUMBER -> EB-2019-0037 | C2: =TestYear -> 2020 | D2: =BridgeYear -> 2019 | E2: =RebaseYear -> 2013 | F2: REI Investments_A_Total Capital Costs | G2: ='App.2-FA Proposed REG Invest.'!C31 -> 2015 | H2: ='App.2-FA Proposed REG Invest.'!C62 -> 0
A3: ='LDC Info'!$E$14 -> Greater Sudbury Hydro Inc. | B3: EB-2019-0037 | C3: 2020 | D3: 2019 | E3: 2013 | F3: REI Investments_A_Total OM&A Start-Up | G3: ='App.2-FA Proposed REG Invest.'!C31 -> 2015 | H3: ='App.2-FA Proposed REG Invest.'!C63 -> 0
A4: ='LDC Info'!$E$14 -> Greater Sudbury Hydro Inc. | B4: EB-2019-0037 | C4: 2020 | D4: 2019 | E4: 2013 | F4: REI Investments_A_Total OM&A Ongoing | G4: ='App.2-FA Proposed REG Invest.'!C31 -> 2015 | H4: ='App.2-FA Proposed REG Invest.'!C64 -> 0
A5: ='LDC Info'!$E$14 -> Greater Sudbury Hydro Inc. | B5: EB-2019-0037 | C5: 2020 | D5: 2019 | E5: 2013 | F5: REI Investments_A_Total Capital Costs | G5: ='App.2-FA Proposed REG Invest.'!D31 -> 2016 | H5: ='App.2-FA Proposed REG Invest.'!D62 -> 0
A6: ='LDC Info'!$E$14 -> Greater Sudbury Hydro Inc. | B6: EB-2019-0037 | C6: 2020 | D6: 2019 | E6: 2013 | F6: REI Investments_A_Total OM&A Start-Up | G6: ='App.2-FA Proposed REG Invest.'!D31 -> 2016 | H6: ='App.2-FA Proposed REG Invest.'!D63 -> 0
A7: ='LDC Info'!$E$14 -> Greater Sudbury Hydro Inc. | B7: EB-2019-0037 | C7: 2020 | D7: 2019 | E7: 2013 | F7: REI Investments_A_Total OM&A Ongoing | G7: ='App.2-FA Proposed REG Invest.'!D31 -> 2016 | H7: ='App.2-FA Proposed REG Invest.'!D64 -> 0
A8: ='LDC Info'!$E$14 -> Greater Sudbury Hydro Inc. | B8: EB-2019-0037 | C8: 2020 | D8: 2019 | E8: 2013 | F8: REI Investments_A_Total Capital Costs | G8: ='App.2-FA Proposed REG Invest.'!E31 -> 2017 | H8: ='App.2-FA Proposed REG Invest.'!E62 -> 0
A9: ='LDC Info'!$E$14 -> Greater Sudbury Hydro Inc. | B9: EB-2019-0037 | C9: 2020 | D9: 2019 | E9: 2013 | F9: REI Investments_A_Total OM&A Start-Up | G9: ='App.2-FA Proposed REG Invest.'!E31 -> 2017 | H9: ='App.2-FA Proposed REG Invest.'!E63 -> 0
A10: ='LDC Info'!$E$14 -> Greater Sudbury Hydro Inc. | B10: EB-2019-0037 | C10: 2020 | D10: 2019 | E10: 2013 | F10: REI Investments_A_Total OM&A Ongoing | G10: ='App.2-FA Proposed REG Invest.'!E31 -> 2017 | H10: ='App.2-FA Proposed REG Invest.'!E64 -> 0
A11: ='LDC Info'!$E$14 -> Greater Sudbury Hydro Inc. | B11: EB-2019-0037 | C11: 2020 | D11: 2019 | E11: 2013 | F11: REI Investments_A_Total Capital Costs | G11: ='App.2-FA Proposed REG Invest.'!F31 -> 2018 | H11: ='App.2-FA Proposed REG Invest.'!F62 -> 0
A12: ='LDC Info'!$E$14 -> Greater Sudbury Hydro Inc. | B12: EB-2019-0037 | C12: 2020 | D12: 2019 | E12: 2013 | F12: REI Investments_A_Total OM&A Start-Up | G12: ='App.2-FA Proposed REG Invest.'!F31 -> 2018 | H12: ='App.2-FA Proposed REG Invest.'!F63 -> 0
A13: ='LDC Info'!$E$14 -> Greater Sudbury Hydro Inc. | B13: EB-2019-0037 | C13: 2020 | D13: 2019 | E13: 2013 | F13: REI Investments_A_Total OM&A Ongoing | G13: ='App.2-FA Proposed REG Invest.'!F31 -> 2018 | H13: ='App.2-FA Proposed REG Invest.'!F64 -> 0
A14: ='LDC Info'!$E$14 -> Greater Sudbury Hydro Inc. | B14: EB-2019-0037 | C14: 2020 | D14: 2019 | E14: 2013 | F14: REI Investments_A_Total Capital Costs | G14: ='App.2-FA Proposed REG Invest.'!G31 -> 2019 | H14: ='App.2-FA Proposed REG Invest.'!G62 -> 0
A15: ='LDC Info'!$E$14 -> Greater Sudbury Hydro Inc. | B15: EB-2019-0037 | C15: 2020 | D15: 2019 | E15: 2013 | F15: REI Investments_A_Total OM&A Start-Up | G15: ='App.2-FA Proposed REG Invest.'!G31 -> 2019 | H15: ='App.2-FA Proposed REG Invest.'!G63 -> 0
A16: ='LDC Info'!$E$14 -> Greater Sudbury Hydro Inc. | B16: EB-2019-0037 | C16: 2020 | D16: 2019 | E16: 2013 | F16: REI Investments_A_Total OM&A Ongoing | G16: ='App.2-FA Proposed REG Invest.'!G31 -> 2019 | H16: ='App.2-FA Proposed REG Invest.'!G64 -> 0
A17: ='LDC Info'!$E$14 -> Greater Sudbury Hydro Inc. | B17: EB-2019-0037 | C17: 2020 | D17: 2019 | E17: 2013 | F17: REI Investments_A_Total Capital Costs | G17: ='App.2-FA Proposed REG Invest.'!H31 -> 2020 | H17: ='App.2-FA Proposed REG Invest.'!H62 -> 0
A18: ='LDC Info'!$E$14 -> Greater Sudbury Hydro Inc. | B18: EB-2019-0037 | C18: 2020 | D18: 2019 | E18: 2013 | F18: REI Investments_A_Total OM&A Start-Up | G18: ='App.2-FA Proposed REG Invest.'!H31 -> 2020 | H18: ='App.2-FA Proposed REG Invest.'!H63 -> 0
A19: ='LDC Info'!$E$14 -> Greater Sudbury Hydro Inc. | B19: EB-2019-0037 | C19: 2020 | D19: 2019 | E19: 2013 | F19: REI Investments_A_Total OM&A Ongoing | G19: ='App.2-FA Proposed REG Invest.'!H31 -> 2020 | H19: ='App.2-FA Proposed REG Invest.'!H64 -> 0
A20: ='LDC Info'!$E$14 -> Greater Sudbury Hydro Inc. | B20: EB-2019-0037 | C20: 2020 | D20: 2019 | E20: 2013 | F20: REI Investments_A_Total Capital Costs | G20: ='App.2-FA Proposed REG Invest.'!I31 -> 2021 | H20: ='App.2-FA Proposed REG Invest.'!I62 -> 0
A21: ='LDC Info'!$E$14 -> Greater Sudbury Hydro Inc. | B21: EB-2019-0037 | C21: 2020 | D21: 2019 | E21: 2013 | F21: REI Investments_A_Total OM&A Start-Up | G21: ='App.2-FA Proposed REG Invest.'!I31 -> 2021 | H21: ='App.2-FA Proposed REG Invest.'!I63 -> 0
A22: ='LDC Info'!$E$14 -> Greater Sudbury Hydro Inc. | B22: EB-2019-0037 | C22: 2020 | D22: 2019 | E22: 2013 | F22: REI Investments_A_Total OM&A Ongoing | G22: ='App.2-FA Proposed REG Invest.'!I31 -> 2021 | H22: ='App.2-FA Proposed REG Invest.'!I64 -> 0
A23: ='LDC Info'!$E$14 -> Greater Sudbury Hydro Inc. | B23: EB-2019-0037 | C23: 2020 | D23: 2019 | E23: 2013 | F23: REI Investments_A_Total Capital Costs | G23: ='App.2-FA Proposed REG Invest.'!J31 -> 2022 | H23: ='App.2-FA Proposed REG Invest.'!J62 -> 0
A24: ='LDC Info'!$E$14 -> Greater Sudbury Hydro Inc. | B24: EB-2019-0037 | C24: 2020 | D24: 2019 | E24: 2013 | F24: REI Investments_A_Total OM&A Start-Up | G24: ='App.2-FA Proposed REG Invest.'!J31 -> 2022 | H24: ='App.2-FA Proposed REG Invest.'!J63 -> 0
A25: ='LDC Info'!$E$14 -> Greater Sudbury Hydro Inc. | B25: EB-2019-0037 | C25: 2020 | D25: 2019 | E25: 2013 | F25: REI Investments_A_Total OM&A Ongoing | G25: ='App.2-FA Proposed REG Invest.'!J31 -> 2022 | H25: ='App.2-FA Proposed REG Invest.'!J64 -> 0
A26: ='LDC Info'!$E$14 -> Greater Sudbury Hydro Inc. | B26: EB-2019-0037 | C26: 2020 | D26: 2019 | E26: 2013 | F26: REI Investments_A_Total Capital Costs | G26: ='App.2-FA Proposed REG Invest.'!K31 -> 2023 | H26: ='App.2-FA Proposed REG Invest.'!K62 -> 0
A27: ='LDC Info'!$E$14 -> Greater Sudbury Hydro Inc. | B27: EB-2019-0037 | C27: 2020 | D27: 2019 | E27: 2013 | F27: REI Investments_A_Total OM&A Start-Up | G27: ='App.2-FA Proposed REG Invest.'!K31 -> 2023 | H27: ='App.2-FA Proposed REG Invest.'!K63 -> 0
A28: ='LDC Info'!$E$14 -> Greater Sudbury Hydro Inc. | B28: EB-2019-0037 | C28: 2020 | D28: 2019 | E28: 2013 | F28: REI Investments_A_Total OM&A Ongoing | G28: ='App.2-FA Proposed REG Invest.'!K31 -> 2023 | H28: ='App.2-FA Proposed REG Invest.'!K64 -> 0
A29: ='LDC Info'!$E$14 -> Greater Sudbury Hydro Inc. | B29: EB-2019-0037 | C29: 2020 | D29: 2019 | E29: 2013 | F29: REI Investments_A_Total Capital Costs | G29: ='App.2-FA Proposed REG Invest.'!L31 -> 2024 | H29: ='App.2-FA Proposed REG Invest.'!L62 -> 0
A30: ='LDC Info'!$E$14 -> Greater Sudbury Hydro Inc. | B30: EB-2019-0037 | C30: 2020 | D30: 2019 | E30: 2013 | F30: REI Investments_A_Total OM&A Start-Up | G30: ='App.2-FA Proposed REG Invest.'!L31 -> 2024 | H30: ='App.2-FA Proposed REG Invest.'!L63 -> 0
A31: ='LDC Info'!$E$14 -> Greater Sudbury Hydro Inc. | B31: EB-2019-0037 | C31: 2020 | D31: 2019 | E31: 2013 | F31: REI Investments_A_Total OM&A Ongoing | G31: ='App.2-FA Proposed REG Invest.'!L31 -> 2024 | H31: ='App.2-FA Proposed REG Invest.'!L64 -> 0
A32: ='LDC Info'!$E$14 -> Greater Sudbury Hydro Inc. | B32: EB-2019-0037 | C32: 2020 | D32: 2019 | E32: 2013 | F32: Expansion Investments_B_Total Capital Costs | G32: ='App.2-FA Proposed REG Invest.'!C31 -> 2015 | H32: ='App.2-FA Proposed REG Invest.'!C99 -> 0
A33: ='LDC Info'!$E$14 -> Greater Sudbury Hydro Inc. | B33: EB-2019-0037 | C33: 2020 | D33: 2019 | E33: 2013 | F33: Expansion Investments_B_Total OM&A Start-Up | G33: ='App.2-FA Proposed REG Invest.'!C31 -> 2015 | H33: ='App.2-FA Proposed REG Invest.'!C100 -> 0
A34: ='LDC Info'!$E$14 -> Greater Sudbury Hydro Inc. | B34: EB-2019-0037 | C34: 2020 | D34: 2019 | E34: 2013 | F34: Expansion Investments_B_Total OM&A Ongoing | G34: ='App.2-FA Proposed REG Invest.'!C31 -> 2015 | H34: ='App.2-FA Proposed REG Invest.'!C101 -> 0
A35: ='LDC Info'!$E$14 -> Greater Sudbury Hydro Inc. | B35: EB-2019-0037 | C35: 2020 | D35: 2019 | E35: 2013 | F35: Expansion Investments_B_Total Capital Costs | G35: ='App.2-FA Proposed REG Invest.'!D31 -> 2016 | H35: ='App.2-FA Proposed REG Invest.'!D99 -> 0
A36: ='LDC Info'!$E$14 -> Greater Sudbury Hydro Inc. | B36: EB-2019-0037 | C36: 2020 | D36: 2019 | E36: 2013 | F36: Expansion Investments_B_Total OM&A Start-Up | G36: ='App.2-FA Proposed REG Invest.'!D31 -> 2016 | H36: ='App.2-FA Proposed REG Invest.'!D100 -> 0
A37: ='LDC Info'!$E$14 -> Greater Sudbury Hydro Inc. | B37: EB-2019-0037 | C37: 2020 | D37: 2019 | E37: 2013 | F37: Expansion Investments_B_Total OM&A Ongoing | G37: ='App.2-FA Proposed REG Invest.'!D31 -> 2016 | H37: ='App.2-FA Proposed REG Invest.'!D101 -> 0
A38: ='LDC Info'!$E$14 -> Greater Sudbury Hydro Inc. | B38: EB-2019-0037 | C38: 2020 | D38: 2019 | E38: 2013 | F38: Expansion Investments_B_Total Capital Costs | G38: ='App.2-FA Proposed REG Invest.'!E31 -> 2017 | H38: ='App.2-FA Proposed REG Invest.'!E99 -> 0
A39: ='LDC Info'!$E$14 -> Greater Sudbury Hydro Inc. | B39: EB-2019-0037 | C39: 2020 | D39: 2019 | E39: 2013 | F39: Expansion Investments_B_Total OM&A Start-Up | G39: ='App.2-FA Proposed REG Invest.'!E31 -> 2017 | H39: ='App.2-FA Proposed REG Invest.'!E100 -> 0
A40: ='LDC Info'!$E$14 -> Greater Sudbury Hydro Inc. | B40: EB-2019-0037 | C40: 2020 | D40: 2019 | E40: 2013 | F40: Expansion Investments_B_Total OM&A Ongoing | G40: ='App.2-FA Proposed REG Invest.'!E31 -> 2017 | H40: ='App.2-FA Proposed REG Invest.'!E101 -> 0
A41: ='LDC Info'!$E$14 -> Greater Sudbury Hydro Inc. | B41: EB-2019-0037 | C41: 2020 | D41: 2019 | E41: 2013 | F41: Expansion Investments_B_Total Capital Costs | G41: ='App.2-FA Proposed REG Invest.'!F31 -> 2018 | H41: ='App.2-FA Proposed REG Invest.'!F99 -> 0
A42: ='LDC Info'!$E$14 -> Greater Sudbury Hydro Inc. | B42: EB-2019-0037 | C42: 2020 | D42: 2019 | E42: 2013 | F42: Expansion Investments_B_Total OM&A Start-Up | G42: ='App.2-FA Proposed REG Invest.'!F31 -> 2018 | H42: ='App.2-FA Proposed REG Invest.'!F100 -> 0
A43: ='LDC Info'!$E$14 -> Greater Sudbury Hydro Inc. | B43: EB-2019-0037 | C43: 2020 | D43: 2019 | E43: 2013 | F43: Expansion Investments_B_Total OM&A Ongoing | G43: ='App.2-FA Proposed REG Invest.'!F31 -> 2018 | H43: ='App.2-FA Proposed REG Invest.'!F101 -> 0
A44: ='LDC Info'!$E$14 -> Greater Sudbury Hydro Inc. | B44: EB-2019-0037 | C44: 2020 | D44: 2019 | E44: 2013 | F44: Expansion Investments_B_Total Capital Costs | G44: ='App.2-FA Proposed REG Invest.'!G31 -> 2019 | H44: ='App.2-FA Proposed REG Invest.'!G99 -> 0
A45: ='LDC Info'!$E$14 -> Greater Sudbury Hydro Inc. | B45: EB-2019-0037 | C45: 2020 | D45: 2019 | E45: 2013 | F45: Expansion Investments_B_Total OM&A Start-Up | G45: ='App.2-FA Proposed REG Invest.'!G31 -> 2019 | H45: ='App.2-FA Proposed REG Invest.'!G100 -> 0
A46: ='LDC Info'!$E$14 -> Greater Sudbury Hydro Inc. | B46: EB-2019-0037 | C46: 2020 | D46: 2019 | E46: 2013 | F46: Expansion Investments_B_Total OM&A Ongoing | G46: ='App.2-FA Proposed REG Invest.'!G31 -> 2019 | H46: ='App.2-FA Proposed REG Invest.'!G101 -> 0
A47: ='LDC Info'!$E$14 -> Greater Sudbury Hydro Inc. | B47: EB-2019-0037 | C47: 2020 | D47: 2019 | E47: 2013 | F47: Expansion Investments_B_Total Capital Costs | G47: ='App.2-FA Proposed REG Invest.'!H31 -> 2020 | H47: ='App.2-FA Proposed REG Invest.'!H99 -> 0
A48: ='LDC Info'!$E$14 -> Greater Sudbury Hydro Inc. | B48: EB-2019-0037 | C48: 2020 | D48: 2019 | E48: 2013 | F48: Expansion Investments_B_Total OM&A Start-Up | G48: ='App.2-FA Proposed REG Invest.'!H31 -> 2020 | H48: ='App.2-FA Proposed REG Invest.'!H100 -> 0
A49: ='LDC Info'!$E$14 -> Greater Sudbury Hydro Inc. | B49: EB-2019-0037 | C49: 2020 | D49: 2019 | E49: 2013 | F49: Expansion Investments_B_Total OM&A Ongoing | G49: ='App.2-FA Proposed REG Invest.'!H31 -> 2020 | H49: ='App.2-FA Proposed REG Invest.'!H101 -> 0
A50: ='LDC Info'!$E$14 -> Greater Sudbury Hydro Inc. | B50: EB-2019-0037 | C50: 2020 | D50: 2019 | E50: 2013 | F50: Expansion Investments_B_Total Capital Costs | G50: ='App.2-FA Proposed REG Invest.'!I31 -> 2021 | H50: ='App.2-FA Proposed REG Invest.'!I99 -> 0
A51: ='LDC Info'!$E$14 -> Greater Sudbury Hydro Inc. | B51: EB-2019-0037 | C51: 2020 | D51: 2019 | E51: 2013 | F51: Expansion Investments_B_Total OM&A Start-Up | G51: ='App.2-FA Proposed REG Invest.'!I31 -> 2021 | H51: ='App.2-FA Proposed REG Invest.'!I100 -> 0
A52: ='LDC Info'!$E$14 -> Greater Sudbury Hydro Inc. | B52: EB-2019-0037 | C52: 2020 | D52: 2019 | E52: 2013 | F52: Expansion Investments_B_Total OM&A Ongoing | G52: ='App.2-FA Proposed REG Invest.'!I31 -> 2021 | H52: ='App.2-FA Proposed REG Invest.'!I101 -> 0
A53: ='LDC Info'!$E$14 -> Greater Sudbury Hydro Inc. | B53: EB-2019-0037 | C53: 2020 | D53: 2019 | E53: 2013 | F53: Expansion Investments_B_Total Capital Costs | G53: ='App.2-FA Proposed REG Invest.'!J31 -> 2022 | H53: ='App.2-FA Proposed REG Invest.'!J99 -> 0
A54: ='LDC Info'!$E$14 -> Greater Sudbury Hydro Inc. | B54: EB-2019-0037 | C54: 2020 | D54: 2019 | E54: 2013 | F54: Expansion Investments_B_Total OM&A Start-Up | G54: ='App.2-FA Proposed REG Invest.'!J31 -> 2022 | H54: ='App.2-FA Proposed REG Invest.'!J100 -> 0
A55: ='LDC Info'!$E$14 -> Greater Sudbury Hydro Inc. | B55: EB-2019-0037 | C55: 2020 | D55: 2019 | E55: 2013 | F55: Expansion Investments_B_Total OM&A Ongoing | G55: ='App.2-FA Proposed REG Invest.'!J31 -> 2022 | H55: ='App.2-FA Proposed REG Invest.'!J101 -> 0
A56: ='LDC Info'!$E$14 -> Greater Sudbury Hydro Inc. | B56: EB-2019-0037 | C56: 2020 | D56: 2019 | E56: 2013 | F56: Expansion Investments_B_Total Capital Costs | G56: ='App.2-FA Proposed REG Invest.'!K31 -> 2023 | H56: ='App.2-FA Proposed REG Invest.'!K99 -> 0
A57: ='LDC Info'!$E$14 -> Greater Sudbury Hydro Inc. | B57: EB-2019-0037 | C57: 2020 | D57: 2019 | E57: 2013 | F57: Expansion Investments_B_Total OM&A Start-Up | G57: ='App.2-FA Proposed REG Invest.'!K31 -> 2023 | H57: ='App.2-FA Proposed REG Invest.'!K100 -> 0
A58: ='LDC Info'!$E$14 -> Greater Sudbury Hydro Inc. | B58: EB-2019-0037 | C58: 2020 | D58: 2019 | E58: 2013 | F58: Expansion Investments_B_Total OM&A Ongoing | G58: ='App.2-FA Proposed REG Invest.'!K31 -> 2023 | H58: ='App.2-FA Proposed REG Invest.'!K101 -> 0
A59: ='LDC Info'!$E$14 -> Greater Sudbury Hydro Inc. | B59: EB-2019-0037 | C59: 2020 | D59: 2019 | E59: 2013 | F59: Expansion Investments_B_Total Capital Costs | G59: ='App.2-FA Proposed REG Invest.'!L31 -> 2024 | H59: ='App.2-FA Proposed REG Invest.'!L99 -> 0
A60: ='LDC Info'!$E$14 -> Greater Sudbury Hydro Inc. | B60: EB-2019-0037 | C60: 2020 | D60: 2019 | E60: 2013 | F60: Expansion Investments_B_Total OM&A Start-Up | G60: ='App.2-FA Proposed REG Invest.'!L31 -> 2024 | H60: ='App.2-FA Proposed REG Invest.'!L100 -> 0
A61: ='LDC Info'!$E$14 -> Greater Sudbury Hydro Inc. | B61: EB-2019-0037 | C61: 2020 | D61: 2019 | E61: 2013 | F61: Expansion Investments_B_Total OM&A Ongoing | G61: ='App.2-FA Proposed REG Invest.'!L31 -> 2024 | H61: ='App.2-FA Proposed REG Invest.'!L101 -> 0

Sheet App.2-FB Calc of REG Improvemnt
Q1: File Number: | R1: =EBNUMBER -> EB-2019-0037
Q2: Exhibit:
Q3: Tab:
A4: TO BE UPDATED AT DRAFT RATE ORDER STAGE | Q4: Schedule:
Q5: Page:
Q7: Date:
A9: Appendix 2-FB
A10: Calculation of Renewable Generation Connection Direct Benefits/Provincial Amount: Renewable Enabling Improvement Investments
A12: This table will calculate the distributor/provincial shares of the investments entered in Part A of Appendix 2-FA.
A13: Enter values in green shaded cells: WCA percentage, debt percentages, interest rates, kWh, tax rates, amortization period, CCA Class and percentage.
A14: ="For historical investments, enter these variables that were approved in your last cost of service test year. For " & TestYear & " and beyond, enter variables as in the application." -> For historical investments, enter these variables that were approved in your last cost of service test year. For 2020 and beyond, enter variables as in the application.
A15: Rate Riders are not calculated for the Test Year as these assets and costs are already in the distributor's rate base/revenue requirement.
C17: =F17-1 -> 2015 | F17: =I17-1 -> 2016 | I17: =L17-1 -> 2017 | L17: =O17-1 -> 2018 | O17: =BridgeYear -> 2019 | R17: =CONCATENATE(TestYear," Test Year") -> 2020 Test Year | U17: =TestYear+1 -> 2021 | X17: =U17+1 -> 2022 | Y17: 2016 | AA17: =X17+1 -> 2023 | AD17: =AA17+1 -> 2024
D18: Direct Benefit | E18: Provincial | G18: Direct Benefit | H18: Provincial | J18: Direct Benefit | K18: Provincial | M18: Direct Benefit | N18: Provincial | P18: Direct Benefit | Q18: Provincial | S18: Direct Benefit | T18: Provincial | V18: Direct Benefit | W18: Provincial | Y18: Direct Benefit | Z18: Provincial | AB18: Direct Benefit | AC18: Provincial | AE18: Direct Benefit | AF18: Provincial
C19: Total | D19: 0.06 | E19: 0.94 | F19: Total | G19: 0.06 | H19: 0.94 | I19: Total | J19: 0.06 | K19: 0.94 | L19: Total | M19: 0.06 | N19: 0.94 | O19: Total | P19: 0.06 | Q19: 0.94 | R19: Total | S19: 0.06 | T19: 0.94 | U19: Total | V19: 0.06 | W19: 0.94 | X19: Total | Y19: 0.06 | Z19: 0.94 | AA19: Total | AB19: 0.06 | AC19: 0.94 | AD19: Total | AE19: 0.06 | AF19: 0.94
A20: Net Fixed Assets (average) | C20: =F82 ->  | D20: =C20*D19 ->  | E20: =C20*E19 ->  | F20: =G82 ->  | G20: =F20*G19 ->  | H20: =F20*H19 ->  | I20: =H82 ->  | J20: =I20*J19 ->  | K20: =I20*K19 ->  | L20: =I82 ->  | M20: =L20*M19 ->  | N20: =L20*N19 ->  | O20: =J82 ->  | P20: =O20*P19 ->  | Q20: =O20*Q19 ->  | R20: =K82 ->  | S20: =R20*S19 ->  | T20: =R20*T19 ->  | U20: =L82 ->  | V20: =U20*V19 ->  | W20: =U20*W19 ->  | X20: =M82 ->  | Y20: =X20*Y19 ->  | Z20: =X20*Z19 ->  | AA20: =N82 ->  | AB20: =AA20*AB19 ->  | AC20: =AA20*AC19 ->  | AD20: =O82 ->  | AE20: =AD20*AE19 ->  | AF20: =AD20*AF19 -> 
A21: Incremental OM&A (on-going, N/A for Provincial Recovery) | C21: ='App.2-FA Proposed REG Invest.'!C64 -> 0 | D21: =C21 -> 0 | F21: ='App.2-FA Proposed REG Invest.'!D64 -> 0 | G21: =F21 -> 0 | I21: ='App.2-FA Proposed REG Invest.'!E64 -> 0 | J21: =I21 -> 0 | L21: ='App.2-FA Proposed REG Invest.'!F64 -> 0 | M21: =L21 -> 0 | O21: ='App.2-FA Proposed REG Invest.'!G64 -> 0 | P21: =O21 -> 0 | R21: ='App.2-FA Proposed REG Invest.'!H64 -> 0 | S21: =R21 -> 0 | U21: ='App.2-FA Proposed REG Invest.'!I64 -> 0 | V21: =U21 -> 0 | X21: ='App.2-FA Proposed REG Invest.'!J64 -> 0 | Y21: =X21 -> 0 | AA21: ='App.2-FA Proposed REG Invest.'!K64 -> 0 | AB21: =AA21 -> 0 | AD21: ='App.2-FA Proposed REG Invest.'!L64 -> 0 | AE21: =AD21 -> 0
A22: Incremental OM&A (start-up, applicable for Provincial Recovery) | C22: ='App.2-FA Proposed REG Invest.'!C63 -> 0 | D22: =C22*D19 -> 0 | E22: =C22*E19 -> 0 | F22: ='App.2-FA Proposed REG Invest.'!D63 -> 0 | G22: =F22*G19 -> 0 | H22: =F22*H19 -> 0 | I22: ='App.2-FA Proposed REG Invest.'!E63 -> 0 | J22: =I22*J19 -> 0 | K22: =I22*K19 -> 0 | L22: ='App.2-FA Proposed REG Invest.'!F63 -> 0 | M22: =L22*M19 -> 0 | N22: =L22*N19 -> 0 | O22: ='App.2-FA Proposed REG Invest.'!G63 -> 0 | P22: =O22*P19 -> 0 | Q22: =O22*Q19 -> 0 | R22: ='App.2-FA Proposed REG Invest.'!H63 -> 0 | S22: =R22*S19 -> 0 | T22: =R22*T19 -> 0 | U22: ='App.2-FA Proposed REG Invest.'!I63 -> 0 | V22: =U22*V19 -> 0 | W22: =U22*W19 -> 0 | X22: ='App.2-FA Proposed REG Invest.'!J63 -> 0 | Y22: =X22*Y19 -> 0 | Z22: =X22*Z19 -> 0 | AA22: ='App.2-FA Proposed REG Invest.'!K63 -> 0 | AB22: =AA22*AB19 -> 0 | AC22: =AA22*AC19 -> 0 | AD22: ='App.2-FA Proposed REG Invest.'!L63 -> 0 | AE22: =AD22*AE19 -> 0 | AF22: =AD22*AF19 -> 0
A23: WCA | D23: =(D21+D22)*$B$23 -> 0 | E23: =E22*$B$23 -> 0 | G23: =(G21+G22)*$B$23 -> 0 | H23: =H22*$B$23 -> 0 | J23: =(J21+J22)*$B$23 -> 0 | K23: =K22*$B$23 -> 0 | M23: =(M21+M22)*$B$23 -> 0 | N23: =N22*$B$23 -> 0 | P23: =(P21+P22)*$B$23 -> 0 | Q23: =Q22*$B$23 -> 0 | S23: =(S21+S22)*$B$23 -> 0 | T23: =T22*$B$23 -> 0 | V23: =(V21+V22)*$B$23 -> 0 | W23: =W22*$B$23 -> 0 | Y23: =(Y21+Y22)*$B$23 -> 0 | Z23: =Z22*$B$23 -> 0 | AB23: =(AB21+AB22)*$B$23 -> 0 | AC23: =AC22*$B$23 -> 0 | AE23: =(AE21+AE22)*$B$23 -> 0 | AF23: =AF22*$B$23 -> 0
A24: Rate Base | D24: =SUM(D20+D23) ->  | E24: =SUM(E20+E23) ->  | G24: =SUM(G20+G23) ->  | H24: =SUM(H20+H23) ->  | J24: =SUM(J20+J23) ->  | K24: =SUM(K20+K23) ->  | M24: =SUM(M20+M23) ->  | N24: =SUM(N20+N23) ->  | P24: =SUM(P20+P23) ->  | Q24: =SUM(Q20+Q23) ->  | S24: =SUM(S20+S23) ->  | T24: =SUM(T20+T23) ->  | V24: =SUM(V20+V23) ->  | W24: =SUM(W20+W23) ->  | Y24: =SUM(Y20+Y23) ->  | Z24: =SUM(Z20+Z23) ->  | AB24: =SUM(AB20+AB23) ->  | AC24: =SUM(AC20+AC23) ->  | AE24: =SUM(AE20+AE23) ->  | AF24: =SUM(AF20+AF23) -> 
A27: Deemed ST Debt | D27: =D24*$B$27 ->  | E27: =E24*$B$27 ->  | G27: =G24*$B$27 ->  | H27: =H24*$B$27 ->  | J27: =J24*$B$27 ->  | K27: =K24*$B$27 ->  | M27: =M24*$B$27 ->  | N27: =N24*$B$27 ->  | P27: =P24*$B$27 ->  | Q27: =Q24*$B$27 ->  | S27: =S24*$B$27 ->  | T27: =T24*$B$27 ->  | V27: =V24*$B$27 ->  | W27: =W24*$B$27 ->  | Y27: =Y24*$B$27 ->  | Z27: =Z24*$B$27 ->  | AB27: =AB24*$B$27 ->  | AC27: =AC24*$B$27 ->  | AE27: =AE24*$B$27 ->  | AF27: =AF24*$B$27 -> 
A28: Deemed LT Debt | D28: =D24*$B$28 ->  | E28: =E24*$B$28 ->  | G28: =G24*$B$28 ->  | H28: =H24*$B$28 ->  | J28: =J24*$B$28 ->  | K28: =K24*$B$28 ->  | M28: =M24*$B$28 ->  | N28: =N24*$B$28 ->  | P28: =P24*$B$28 ->  | Q28: =Q24*$B$28 ->  | S28: =S24*$B$28 ->  | T28: =T24*$B$28 ->  | V28: =V24*$B$28 ->  | W28: =W24*$B$28 ->  | Y28: =Y24*$B$28 ->  | Z28: =Z24*$B$28 ->  | AB28: =AB24*$B$28 ->  | AC28: =AC24*$B$28 ->  | AE28: =AE24*$B$28 ->  | AF28: =AF24*$B$28 -> 
A29: Deemed Equity | D29: =D24*$B$29 ->  | E29: =E24*$B$29 ->  | G29: =G24*$B$29 ->  | H29: =H24*$B$29 ->  | J29: =J24*$B$29 ->  | K29: =K24*$B$29 ->  | M29: =M24*$B$29 ->  | N29: =N24*$B$29 ->  | P29: =P24*$B$29 ->  | Q29: =Q24*$B$29 ->  | S29: =S24*$B$29 ->  | T29: =T24*$B$29 ->  | V29: =V24*$B$29 ->  | W29: =W24*$B$29 ->  | Y29: =Y24*$B$29 ->  | Z29: =Z24*$B$29 ->  | AB29: =AB24*$B$29 ->  | AC29: =AC24*$B$29 ->  | AE29: =AE24*$B$29 ->  | AF29: =AF24*$B$29 -> 
A31: ST Interest | D31: =D27*$B31 ->  | G31: =G27*$B31 ->  | J31: =J27*$B31 ->  | M31: =M27*$B31 ->  | P31: =P27*$B31 ->  | S31: =S27*$B31 ->  | V31: =V27*$B31 ->  | Y31: =Y27*$B31 ->  | AB31: =AB27*$B31 ->  | AE31: =AE27*$B31 -> 
A32: LT Interest | D32: =D28*$B32 -> 
A33: ROE | D33: =D29*$B33 -> 
A34: Cost of Capital Total | D34: =SUM(D31:D33) ->  | E34: =SUM(E31:E33) ->  | G34: =SUM(G31:G33) ->  | H34: =SUM(H31:H33) ->  | J34: =SUM(J31:J33) ->  | K34: =SUM(K31:K33) ->  | M34: =SUM(M31:M33) ->  | N34: =SUM(N31:N33) ->  | P34: =SUM(P31:P33) ->  | Q34: =SUM(Q31:Q33) ->  | S34: =SUM(S31:S33) ->  | T34: =SUM(T31:T33) ->  | V34: =SUM(V31:V33) ->  | W34: =SUM(W31:W33) ->  | Y34: =SUM(Y31:Y33) ->  | Z34: =SUM(Z31:Z33) ->  | AB34: =SUM(AB31:AB33) ->  | AC34: =SUM(AC31:AC33) ->  | AE34: =SUM(AE31:AE33) ->  | AF34: =SUM(AF31:AF33) -> 
A36: OM&A | D36: =D21+D22 -> 0 | E36: =E22 -> 0 | G36: =G21+G22 -> 0 | H36: =H22 -> 0 | J36: =J21+J22 -> 0 | K36: =K22 -> 0 | M36: =M21+M22 -> 0 | N36: =N22 -> 0 | P36: =P21+P22 -> 0 | Q36: =Q22 -> 0 | S36: =S21+S22 -> 0 | T36: =T22 -> 0 | V36: =V21+V22 -> 0 | W36: =W22 -> 0 | Y36: =Y21+Y22 -> 0 | Z36: =Z22 -> 0 | AB36: =AB21+AB22 -> 0 | AC36: =AC22 -> 0 | AE36: =AE21+AE22 -> 0 | AF36: =AF22 -> 0
A37: Amortization | C37: =D77 -> 0 | D37: =C37*D$19 -> 0 | E37: =C37*E$19 -> 0 | F37: =G77 ->  | G37: =F37*G$19 ->  | H37: =F37*H$19 ->  | I37: =H77 ->  | J37: =I37*J$19 ->  | K37: =I37*K$19 ->  | L37: =I77 ->  | M37: =L37*M$19 ->  | N37: =L37*N$19 ->  | O37: =J77 ->  | P37: =O37*P$19 ->  | Q37: =O37*Q$19 ->  | R37: =K77 ->  | S37: =R37*S$19 ->  | T37: =R37*T$19 ->  | U37: =L76+L77 ->  | V37: =U37*V$19 ->  | W37: =U37*W$19 ->  | X37: =M76+M77 ->  | Y37: =X37*Y$19 ->  | Z37: =X37*Z$19 ->  | AA37: =N76+N77 ->  | AB37: =AA37*AB$19 ->  | AC37: =AA37*AC$19 ->  | AD37: =O76+O77 ->  | AE37: =AD37*AE$19 ->  | AF37: =AD37*AF$19 -> 
A38: Grossed-up PILs | D38: =D65 ->  | E38: =E65 ->  | G38: =G65 ->  | H38: =H65 ->  | J38: =J65 ->  | K38: =K65 ->  | M38: =M65 ->  | N38: =N65 ->  | P38: =P65 ->  | Q38: =Q65 ->  | S38: =S65 ->  | T38: =T65 ->  | V38: =V65 ->  | W38: =W65 ->  | Y38: =Y65 ->  | Z38: =Z65 ->  | AB38: =AB65 ->  | AC38: =AC65 ->  | AE38: =AE65 ->  | AF38: =AF65 -> 
A40: Revenue Requirement | D40: =SUM(D34:D38) ->  | E40: =SUM(E34:E38) ->  | G40: =SUM(G34:G38) ->  | H40: =SUM(H34:H38) ->  | J40: =SUM(J34:J38) ->  | K40: =SUM(K34:K38) ->  | M40: =SUM(M34:M38) ->  | N40: =SUM(N34:N38) ->  | P40: =SUM(P34:P38) ->  | Q40: =SUM(Q34:Q38) ->  | S40: =SUM(S34:S38) ->  | T40: =SUM(T34:T38) ->  | V40: =SUM(V34:V38) ->  | W40: =SUM(W34:W38) ->  | Y40: =SUM(Y34:Y38) ->  | Z40: =SUM(Z34:Z38) ->  | AB40: =SUM(AB34:AB38) ->  | AC40: =SUM(AC34:AC38) ->  | AE40: =SUM(AE34:AE38) ->  | AF40: =SUM(AF34:AF38) -> 
A43: Provincial Rate Protection | E43: =E40 ->  | H43: =H40 ->  | K43: =K40 ->  | N43: =N40 ->  | Q43: =Q40 ->  | T43: =T40 ->  | W43: =W40 ->  | Z43: =Z40 ->  | AC43: =AC40 ->  | AF43: =AF40 -> 
A45: Monthly Amount Paid by IESO | E45: =E43/12 ->  | H45: =H43/12 ->  | K45: =K43/12 ->  | N45: =N43/12 ->  | Q45: =Q43/12 ->  | T45: =T43/12 ->  | W45: =W43/12 ->  | Z45: =Z43/12 ->  | AC45: =AC43/12 ->  | AF45: =AF43/12 -> 
A47: Note 1: The distributor should follow the regulatory accounting set out in the Accounting Procedure Handbook Guidance FAQs issued in March 2015. Q10 of the APH FAQs states that: “For approved eligible investments as defined under O.Reg. 330/09 under the OEB Act, a variance account will continue to be used for the purpose of recording variances between the revenue requirement based on actual costs of approved eligible investments and the revenue received from the IESO.” The answer for Q10 provides the accounting guidance for this variance account: “Distributors that have included eligible investments to connect qualifying facilities in their DS plans are to establish the variance Account 1533 Renewable Generation Connection Funding Adder Deferral Account, Sub-account Provincial Rate Protection Payment Variances following OEB approval for investments forecast to enter service beyond the test year for purposes of implementing rate protection pursuant to O.Reg. 330/09. The purpose of this variance account is to track the variance between the distributor’s revenue requirement associated with the portion of the actual capital and/or operating costs that are eligible for rate protection, as incurred by the distributor for eligible renewable enabling and expansion investments, and the rate protection payments collected from the IESO.” The answer further provides the journal entries to record the variances. Distributors should follow the instructions in the answer for recording the journal entries in the variance account 1533.
A49: Note 2: For the Test Year, Costs and Revenues of the Direct Benefit are to be included in the test year applicant Rate Base and Revenues.
A51: PILs Calculation
D52: =F17-1 -> 2015 | G52: =F17 -> 2016 | J52: =I17 -> 2017 | M52: =L17 -> 2018 | P52: =O17 -> 2019 | S52: =R17 -> 2020 Test Year | V52: =U17 -> 2021 | Y52: =X17 -> 2022 | AB52: =AA17 -> 2023 | AE52: =AD17 -> 2024
A53: Income Tax | D53: Direct Benefit | E53: Provincial | G53: Direct Benefit | H53: Provincial | J53: Direct Benefit | K53: Provincial | M53: Direct Benefit | N53: Provincial | P53: Direct Benefit | Q53: Provincial | S53: Direct Benefit | T53: Provincial | V53: Direct Benefit | W53: Provincial | Y53: Direct Benefit | Z53: Provincial | AB53: Direct Benefit | AC53: Provincial | AE53: Direct Benefit | AF53: Provincial
AA54: Total | AD54: Total
A55: Net Income - ROE on Rate Base | D55: =D33 ->  | E55: =E33 ->  | G55: =G33 ->  | H55: =H33 ->  | J55: =J33 ->  | K55: =K33 ->  | M55: =M33 ->  | N55: =N33 ->  | P55: =P33 ->  | Q55: =Q33 ->  | S55: =S33 ->  | T55: =T33 ->  | V55: =V33 ->  | W55: =W33 ->  | Y55: =Y33 ->  | Z55: =Z33 ->  | AB55: =AB33 ->  | AC55: =AC33 ->  | AE55: =AE33 ->  | AF55: =AF33 -> 
A56: Amortization (6% DB and 94% P) | D56: =D37 -> 0 | E56: =E37 -> 0 | G56: =G37 ->  | H56: =H37 ->  | J56: =J37 ->  | K56: =K37 ->  | M56: =M37 ->  | N56: =N37 ->  | P56: =P37 ->  | Q56: =Q37 ->  | S56: =S37 ->  | T56: =T37 ->  | V56: =V37 ->  | W56: =W37 ->  | Y56: =Y37 ->  | Z56: =Z37 ->  | AB56: =AB37 ->  | AC56: =AC37 ->  | AE56: =AE37 ->  | AF56: =AF37 -> 
A57: CCA (6% DB and 94% P) | D57: =-D94*D$19 -> 0 | E57: =-D94*E$19 -> 0 | G57: =-G94*G$19 -> 0 | H57: =-G94*H$19 -> 0 | J57: =-H94*J19 -> 0 | K57: =-H94*K$19 -> 0 | M57: =-I94*M$19 -> 0 | N57: =-I94*N$19 -> 0 | P57: =-J94*P$19 -> 0 | Q57: =-J94*Q$19 -> 0 | S57: =-K94*S$19 -> 0 | T57: =-K94*T$19 -> 0 | V57: =-L94*V$19 -> 0 | W57: =-L94*W$19 -> 0 | Y57: =-M94*Y$19 -> 0 | Z57: =-M94*Z$19 -> 0 | AB57: =-N94*AB$19 -> 0 | AC57: =-N94*AC$19 -> 0 | AE57: =-O94*AE$19 -> 0 | AF57: =-O94*AF$19 -> 0
A58: Taxable income | D58: =SUM(D55:D57) ->  | E58: =SUM(E55:E57) ->  | G58: =SUM(G55:G57) ->  | H58: =SUM(H55:H57) ->  | J58: =SUM(J55:J57) ->  | K58: =SUM(K55:K57) ->  | M58: =SUM(M55:M57) ->  | N58: =SUM(N55:N57) ->  | P58: =SUM(P55:P57) ->  | Q58: =SUM(Q55:Q57) ->  | S58: =SUM(S55:S57) ->  | T58: =SUM(T55:T57) ->  | V58: =SUM(V55:V57) ->  | W58: =SUM(W55:W57) ->  | Y58: =SUM(Y55:Y57) ->  | Z58: =SUM(Z55:Z57) ->  | AB58: =SUM(AB55:AB57) ->  | AC58: =SUM(AC55:AC57) ->  | AE58: =SUM(AE55:AE57) ->  | AF58: =SUM(AF55:AF57) -> 
A60: Tax Rate (to be entered)
A62: Income Taxes Payable | D62: =D58*D60 ->  | E62: =E58*E60 ->  | G62: =G58*G60 ->  | H62: =H58*H60 ->  | J62: =J58*J60 ->  | K62: =K58*K60 ->  | M62: =M58*M60 ->  | N62: =N58*N60 ->  | P62: =P58*P60 ->  | Q62: =Q58*Q60 ->  | S62: =S58*S60 ->  | T62: =T58*T60 ->  | V62: =V58*V60 ->  | W62: =W58*W60 ->  | Y62: =Y58*Y60 ->  | Z62: =Z58*Z60 ->  | AB62: =AB58*AB60 ->  | AC62: =AC58*AC60 ->  | AE62: =AE58*AE60 ->  | AF62: =AF58*AF60 -> 
A63: Gross Up
A64: Income Taxes Payable | D64: =D62/(1-D60) ->  | E64: =E62/(1-E60) ->  | G64: =G62/(1-G60) ->  | H64: =H62/(1-H60) ->  | J64: =J62/(1-J60) ->  | K64: =K62/(1-K60) ->  | M64: =M62/(1-M60) ->  | N64: =N62/(1-N60) ->  | P64: =P62/(1-P60) ->  | Q64: =Q62/(1-Q60) ->  | S64: =S62/(1-S60) ->  | T64: =T62/(1-T60) ->  | V64: =V62/(1-V60) ->  | W64: =W62/(1-W60) ->  | Y64: =Y62/(1-Y60) ->  | Z64: =Z62/(1-Z60) ->  | AB64: =AB62/(1-AB60) ->  | AC64: =AC62/(1-AC60) ->  | AE64: =AE62/(1-AE60) ->  | AF64: =AF62/(1-AF60) -> 
A65: Grossed Up PILs | D65: =SUM(D64:D64) ->  | E65: =SUM(E64:E64) ->  | G65: =SUM(G64:G64) ->  | H65: =SUM(H64:H64) ->  | J65: =SUM(J64:J64) ->  | K65: =SUM(K64:K64) ->  | M65: =SUM(M64:M64) ->  | N65: =SUM(N64:N64) ->  | P65: =SUM(P64:P64) ->  | Q65: =SUM(Q64:Q64) ->  | S65: =SUM(S64:S64) ->  | T65: =SUM(T64:T64) ->  | V65: =SUM(V64:V64) ->  | W65: =SUM(W64:W64) ->  | Y65: =SUM(Y64:Y64) ->  | Z65: =SUM(Z64:Z64) ->  | AB65: =SUM(AB64:AB64) ->  | AC65: =SUM(AC64:AC64) ->  | AE65: =SUM(AE64:AE64) ->  | AF65: =SUM(AF64:AF64) -> 
F68: =G68-1 -> 2015 | G68: =H68-1 -> 2016 | H68: =I68-1 -> 2017 | I68: =J68-1 -> 2018 | J68: =K68-1 -> 2019 | K68: =TestYear -> 2020 | L68: =K68+1 -> 2021 | M68: =L68+1 -> 2022 | N68: =M68+1 -> 2023 | O68: =N68+1 -> 2024
A69: Net Fixed Assets
B70: Enter applicable amortization in years:
A71: Opening Gross Fixed Assets | G71: =F73 -> 0 | H71: =G73 -> 0 | I71: 0 | J71: 0 | K71: 0 | L71: 0 | M71: 0 | N71: 0 | O71: 0
A72: Gross Capital Additions | F72: ='App.2-FA Proposed REG Invest.'!C62 -> 0 | G72: ='App.2-FA Proposed REG Invest.'!D62 -> 0 | H72: ='App.2-FA Proposed REG Invest.'!E62 -> 0 | I72: ='App.2-FA Proposed REG Invest.'!F62 -> 0 | J72: ='App.2-FA Proposed REG Invest.'!G62 -> 0 | K72: ='App.2-FA Proposed REG Invest.'!H62 -> 0 | L72: ='App.2-FA Proposed REG Invest.'!I62 -> 0 | M72: ='App.2-FA Proposed REG Invest.'!J62 -> 0 | N72: ='App.2-FA Proposed REG Invest.'!K62 -> 0 | O72: ='App.2-FA Proposed REG Invest.'!L62 -> 0
A73: Closing Gross Fixed Assets | F73: =SUM(F71:F72) -> 0 | G73: =SUM(G71:G72) -> 0 | H73: 0 | I73: 0 | J73: 0 | K73: 0 | L73: 0 | M73: 0 | N73: 0 | O73: 0
A75: Opening Accumulated Amortization | H75: =+G78 ->  | I75: =H78 -> 
A76: Current Year Amortization (before additions) | F76: =IF(ISERROR(F71/$C$70), 0, F71/$C$70) -> 0 | G76: 0 | H76: 0 | I76: 0 | J76: 0 | K76: 0 | L76: 0 | M76: 0 | N76: 0 | O76: 0
A77: Additions (half year) | F77: =F72/$C$70/2 ->  | L77: =L72/C70/2 ->  | M77: =M72/C70/2 ->  | N77: =N72/C70/2 ->  | O77: =O72/C70/2 -> 
A78: Closing Accumulated Amortization | F78: =SUM(F75+F76+F77) ->  | L78: =SUM(L75:L77) ->  | M78: =SUM(M75:M77) ->  | N78: =SUM(N75:N77) ->  | O78: =SUM(O75:O77) -> 
A80: Opening Net Fixed Assets | F80: =F71-F75 -> 0 | G80: 0 | L80: =K81 ->  | M80: =L81 ->  | N80: =M81 ->  | O80: =N81 -> 
A81: Closing Net Fixed Assets | F81: =F73-F78 ->  | G81: =G73-G78 -> 
A82: Average Net Fixed Assets | F82: =SUM(F80:F81)/2 ->  | G82: =SUM(G80:G81)/2 -> 
A84: UCC for PILs Calculation
F85: =F68 -> 2015 | G85: =G68 -> 2016 | H85: =H68 -> 2017 | I85: 2018 | J85: 2019 | K85: 2020 | L85: 2021 | M85: 2022 | N85: 2023 | O85: 2024
A87: Opening UCC | G87: =F95 -> 0 | H87: =G95 -> 0 | I87: 0 | J87: 0 | K87: 0 | L87: 0 | M87: 0 | N87: 0 | O87: 0
A88: Capital Additions (from Appendix 2-FA) | F88: =F72 -> 0 | G88: =G72 -> 0 | H88: 0 | I88: 0 | J88: 0 | K88: 0 | L88: 0 | M88: 0 | N88: 0 | O88: 0
A89: UCC Before Half Year Rule | F89: =SUM(F87:F88) -> 0 | G89: =SUM(G87:G88) -> 0 | H89: 0 | I89: 0 | J89: 0 | K89: 0 | L89: 0 | M89: 0 | N89: 0 | O89: 0
A90: Half Year Rule (1/2 Additions - Disposals) | F90: =F88/2 -> 0 | G90: =G88/2 -> 0 | H90: 0 | I90: 0 | J90: 0 | K90: 0 | L90: 0 | M90: 0 | N90: 0 | O90: 0
A91: Reduced UCC | F91: =F89-F90 -> 0 | G91: =G89-G90 -> 0 | H91: 0 | I91: 0 | J91: 0 | K91: 0 | L91: 0 | M91: 0 | N91: 0 | O91: 0
A92: CCA Rate Class (to be entered) | F92: =C92 -> 0 | G92: =C92 -> 0 | H92: =G92 -> 0 | I92: 0 | J92: 0 | K92: 0 | L92: 0 | M92: 0 | N92: 0 | O92: 0
A93: CCA Rate (to be entered) | F93: =C93 -> 0 | G93: =C93 -> 0 | H93: 0 | I93: 0 | J93: 0 | K93: 0 | L93: 0 | M93: 0 | N93: 0 | O93: 0
A94: CCA | F94: =F91*F93 -> 0 | G94: =G91*G93 -> 0 | H94: 0 | I94: 0 | J94: 0 | K94: 0 | L94: 0 | M94: 0 | N94: 0 | O94: 0
A95: Closing UCC | F95: =F89-F94 -> 0 | G95: =G89-G94 -> 0 | H95: 0 | I95: 0 | J95: 0 | K95: 0 | L95: 0 | M95: 0 | N95: 0 | O95: 0

Sheet Hidden_REG Improvement (hidden)
A1: Utility Name | B1: EB Number | C1: Test Year | D1: Bridge Year | E1: Last Rebasing Year | F1: Renewable Generation Connection Direct Benefits/Provincial Amount Renewable Enabling Improvement Investments | G1: Year | H1: Amount
A2: ='LDC Info'!$E$14 -> Greater Sudbury Hydro Inc. | B2: =EBNUMBER -> EB-2019-0037 | C2: =TestYear -> 2020 | D2: =BridgeYear -> 2019 | E2: =RebaseYear -> 2013 | F2: Provincial Rate Protection | G2: ='App.2-FB Calc of REG Improvemnt'!C17 -> 2015 | H2: ='App.2-FB Calc of REG Improvemnt'!E43 -> 
A3: ='LDC Info'!$E$14 -> Greater Sudbury Hydro Inc. | B3: EB-2019-0037 | C3: 2020 | D3: 2019 | E3: 2013 | F3: Provincial Rate Protection | G3: ='App.2-FB Calc of REG Improvemnt'!F17 -> 2016 | H3: ='App.2-FB Calc of REG Improvemnt'!H43 -> 
A4: ='LDC Info'!$E$14 -> Greater Sudbury Hydro Inc. | B4: EB-2019-0037 | C4: 2020 | D4: 2019 | E4: 2013 | F4: Provincial Rate Protection | G4: ='App.2-FB Calc of REG Improvemnt'!I17 -> 2017 | H4: ='App.2-FB Calc of REG Improvemnt'!K43 -> 
A5: ='LDC Info'!$E$14 -> Greater Sudbury Hydro Inc. | B5: EB-2019-0037 | C5: 2020 | D5: 2019 | E5: 2013 | F5: Provincial Rate Protection | G5: ='App.2-FB Calc of REG Improvemnt'!L17 -> 2018 | H5: ='App.2-FB Calc of REG Improvemnt'!N43 -> 
A6: ='LDC Info'!$E$14 -> Greater Sudbury Hydro Inc. | B6: EB-2019-0037 | C6: 2020 | D6: 2019 | E6: 2013 | F6: Provincial Rate Protection | G6: ='App.2-FB Calc of REG Improvemnt'!O17 -> 2019 | H6: ='App.2-FB Calc of REG Improvemnt'!Q43 -> 
A7: ='LDC Info'!$E$14 -> Greater Sudbury Hydro Inc. | B7: EB-2019-0037 | C7: 2020 | D7: 2019 | E7: 2013 | F7: Provincial Rate Protection | G7: =LEFT('App.2-FB Calc of REG Improvemnt'!R17,4) -> 2020 | H7: ='App.2-FB Calc of REG Improvemnt'!T43 -> 
A8: ='LDC Info'!$E$14 -> Greater Sudbury Hydro Inc. | B8: EB-2019-0037 | C8: 2020 | D8: 2019 | E8: 2013 | F8: Provincial Rate Protection | G8: ='App.2-FB Calc of REG Improvemnt'!U17 -> 2021 | H8: ='App.2-FB Calc of REG Improvemnt'!W43 -> 
A9: ='LDC Info'!$E$14 -> Greater Sudbury Hydro Inc. | B9: EB-2019-0037 | C9: 2020 | D9: 2019 | E9: 2013 | F9: Provincial Rate Protection | G9: ='App.2-FB Calc of REG Improvemnt'!X17 -> 2022 | H9: ='App.2-FB Calc of REG Improvemnt'!Z43 -> 
A10: ='LDC Info'!$E$14 -> Greater Sudbury Hydro Inc. | B10: EB-2019-0037 | C10: 2020 | D10: 2019 | E10: 2013 | F10: Provincial Rate Protection | G10: ='App.2-FB Calc of REG Improvemnt'!AA17 -> 2023 | H10: ='App.2-FB Calc of REG Improvemnt'!AC43 -> 
A11: ='LDC Info'!$E$14 -> Greater Sudbury Hydro Inc. | B11: EB-2019-0037 | C11: 2020 | D11: 2019 | E11: 2013 | F11: Provincial Rate Protection | G11: ='App.2-FB Calc of REG Improvemnt'!AD17 -> 2024 | H11: ='App.2-FB Calc of REG Improvemnt'!AF43 -> 

Sheet App.2-FC Calc of REG Expansion
Q1: File Number: | R1: =EBNUMBER -> EB-2019-0037
Q2: Exhibit:
Q3: Tab:
A4: TO BE UPDATED AT THE DRAFT RATE ORDER STAGE | Q4: Schedule:
Q5: Page:
Q7: Date:
A9: Appendix 2-FC
A10: Calculation of Renewable Generation Connection Direct Benefits/Provincial Amount: Renewable Expansion Investments
A12: This table will calculate the distributor/provincial shares of the investments entered in Part B of Appendix 2-FA.
A13: Enter values in green shaded cells: WCA percentage, debt percentages, interest rates, kWh, tax rates, amortization period, CCA Class and percentage.
A14: ="For historical investments, enter these variables that were approved your last cost of service test year. For " & TestYear & " and beyond, enter variables as in the application." -> For historical investments, enter these variables that were approved your last cost of service test year. For 2020 and beyond, enter variables as in the application.
A15: Rate Riders are not calculated for the Test Year as these assets and costs are already in the distributor's rate base.
D18: =G18-1 -> 2015 | G18: =J18-1 -> 2016 | J18: =M18-1 -> 2017 | M18: =P18-1 -> 2018 | P18: =BridgeYear -> 2019 | S18: =CONCATENATE(TestYear," Test Year") -> 2020 Test Year | V18: =TestYear+1 -> 2021 | W18: 2016 | Y18: =V18+1 -> 2022 | AB18: =Y18+1 -> 2023 | AE18: =AB18+1 -> 2024
E19: Direct Benefit | F19: Provincial | H19: Direct Benefit | I19: Provincial | K19: Direct Benefit | L19: Provincial | N19: Direct Benefit | O19: Provincial | Q19: Direct Benefit | R19: Provincial | T19: Direct Benefit | U19: Provincial | W19: Direct Benefit | X19: Provincial | Z19: Direct Benefit | AA19: Provincial | AC19: Direct Benefit | AD19: Provincial | AF19: Direct Benefit | AG19: Provincial
D20: Total | E20: 0.17 | F20: 0.83 | G20: Total | H20: 0.17 | I20: 0.83 | J20: Total | K20: 0.17 | L20: 0.83 | M20: Total | N20: 0.17 | O20: 0.83 | P20: Total | Q20: 0.17 | R20: 0.83 | S20: Total | T20: 0.17 | U20: 0.83 | V20: Total | W20: 0.17 | X20: 0.83 | Y20: Total | Z20: 0.17 | AA20: 0.83 | AB20: Total | AC20: 0.17 | AD20: 0.83 | AE20: Total | AF20: 0.17 | AG20: 0.83
A21: Net Fixed Assets (average) | D21: =J82 ->  | E21: =D21*E20 ->  | F21: =D21*F20 ->  | G21: =G82 ->  | H21: =G21*H20 ->  | I21: =G21*I20 ->  | J21: =H82 ->  | K21: =J21*K20 ->  | L21: =J21*L20 ->  | M21: =I82 ->  | N21: =M21*N20 ->  | O21: =M21*O20 ->  | P21: =J82 ->  | Q21: =P21*Q20 ->  | R21: =P21*R20 ->  | S21: =K82 ->  | T21: =S21*T20 ->  | U21: =S21*U20 ->  | V21: =L82 ->  | W21: =V21*W20 ->  | X21: =V21*X20 ->  | Y21: =M82 ->  | Z21: =Y21*Z20 ->  | AA21: =Y21*AA20 ->  | AB21: =N82 ->  | AC21: =AB21*AC20 ->  | AD21: =AB21*AD20 ->  | AE21: =O82 ->  | AF21: =AE21*AF20 ->  | AG21: =AE21*AG20 -> 
A22: Incremental OM&A (on-going, N/A for Provincial Recovery) | D22: ='App.2-FA Proposed REG Invest.'!C$101 -> 0 | E22: =D22 -> 0 | G22: ='App.2-FA Proposed REG Invest.'!D$101 -> 0 | H22: =G22 -> 0 | J22: ='App.2-FA Proposed REG Invest.'!E$101 -> 0 | K22: =J22 -> 0 | M22: ='App.2-FA Proposed REG Invest.'!F$101 -> 0 | N22: =M22 -> 0 | P22: ='App.2-FA Proposed REG Invest.'!G$101 -> 0 | Q22: =P22 -> 0 | S22: ='App.2-FA Proposed REG Invest.'!H$101 -> 0 | T22: =S22 -> 0 | V22: ='App.2-FA Proposed REG Invest.'!I$101 -> 0 | W22: =V22 -> 0 | Y22: ='App.2-FA Proposed REG Invest.'!J$101 -> 0 | Z22: =Y22 -> 0 | AB22: ='App.2-FA Proposed REG Invest.'!K$101 -> 0 | AC22: =AB22 -> 0 | AE22: ='App.2-FA Proposed REG Invest.'!L$101 -> 0 | AF22: =AE22 -> 0
A23: Incremental OM&A (start-up, applicable for Provincial Recovery) | D23: ='App.2-FA Proposed REG Invest.'!C$100 -> 0 | E23: =D23*E20 -> 0 | F23: =D23*F20 -> 0 | G23: ='App.2-FA Proposed REG Invest.'!D$100 -> 0 | H23: =G23*H20 -> 0 | I23: =G23*I20 -> 0 | J23: ='App.2-FA Proposed REG Invest.'!E$100 -> 0 | K23: =J23*K20 -> 0 | L23: =J23*L20 -> 0 | M23: ='App.2-FA Proposed REG Invest.'!F$100 -> 0 | N23: =M23*N20 -> 0 | O23: =M23*O20 -> 0 | P23: ='App.2-FA Proposed REG Invest.'!G$100 -> 0 | Q23: =P23*Q20 -> 0 | R23: =P23*R20 -> 0 | S23: ='App.2-FA Proposed REG Invest.'!H$100 -> 0 | T23: =S23*T20 -> 0 | U23: =S23*U20 -> 0 | V23: ='App.2-FA Proposed REG Invest.'!I$100 -> 0 | W23: =V23*W20 -> 0 | X23: =V23*X20 -> 0 | Y23: ='App.2-FA Proposed REG Invest.'!J$100 -> 0 | Z23: =Y23*Z20 -> 0 | AA23: =Y23*AA20 -> 0 | AB23: ='App.2-FA Proposed REG Invest.'!K$100 -> 0 | AC23: =AB23*AC20 -> 0 | AD23: =AB23*AD20 -> 0 | AE23: ='App.2-FA Proposed REG Invest.'!L$100 -> 0 | AF23: =AE23*AF20 -> 0 | AG23: =AE23*AG20 -> 0
A24: WCA | E24: =(E22+E23)*$B$24 -> 0 | F24: =F23*$B$24 -> 0 | H24: =(H22+H23)*$B$24 -> 0 | I24: =I23*$B$24 -> 0 | K24: =(K22+K23)*$B$24 -> 0 | L24: =L23*$B$24 -> 0 | N24: =(N22+N23)*$B$24 -> 0 | O24: =O23*$B$24 -> 0 | Q24: =(Q22+Q23)*$B$24 -> 0 | R24: =R23*$B$24 -> 0 | T24: =(T22+T23)*$B$24 -> 0 | U24: =U23*$B$24 -> 0 | W24: =(W22+W23)*$B$24 -> 0 | X24: =X23*$B$24 -> 0 | Z24: =(Z22+Z23)*$B$24 -> 0 | AA24: =AA23*$B$24 -> 0 | AC24: =(AC22+AC23)*$B$24 -> 0 | AD24: =AD23*$B$24 -> 0 | AF24: =(AF22+AF23)*$B$24 -> 0 | AG24: =AG23*$B$24 -> 0
A25: Rate Base | E25: =SUM(E21+E24) ->  | F25: =SUM(F21+F24) ->  | H25: =SUM(H21+H24) ->  | I25: =SUM(I21+I24) ->  | K25: =SUM(K21+K24) ->  | L25: =SUM(L21+L24) ->  | N25: =SUM(N21+N24) ->  | O25: =SUM(O21+O24) ->  | Q25: =SUM(Q21+Q24) ->  | R25: =SUM(R21+R24) ->  | T25: =SUM(T21+T24) ->  | U25: =SUM(U21+U24) ->  | W25: =SUM(W21+W24) ->  | X25: =SUM(X21+X24) ->  | Z25: =SUM(Z21+Z24) ->  | AA25: =SUM(AA21+AA24) ->  | AC25: =SUM(AC21+AC24) ->  | AD25: =SUM(AD21+AD24) ->  | AF25: =SUM(AF21+AF24) ->  | AG25: =SUM(AG21+AG24) -> 
A28: Deemed ST Debt | E28: =E25*$B$28 ->  | F28: =F25*$B$28 ->  | H28: =H25*$B$28 ->  | I28: =I25*$B$28 ->  | K28: =K25*$B$28 ->  | L28: =L25*$B$28 ->  | N28: =N25*$B$28 ->  | O28: =O25*$B$28 ->  | Q28: =Q25*$B$28 ->  | R28: =R25*$B$28 ->  | T28: =T25*$B$28 ->  | U28: =U25*$B$28 ->  | W28: =W25*$B$28 ->  | X28: =X25*$B$28 ->  | Z28: =Z25*$B$28 ->  | AA28: =AA25*$B$28 ->  | AC28: =AC25*$B$28 ->  | AD28: =AD25*$B$28 ->  | AF28: =AF25*$B$28 ->  | AG28: =AG25*$B$28 -> 
A29: Deemed LT Debt | E29: =E25*$B$29 ->  | F29: =F25*$B$29 ->  | H29: =H25*$B$29 ->  | I29: =I25*$B$29 ->  | K29: =K25*$B$29 ->  | L29: =L25*$B$29 ->  | N29: =N25*$B$29 ->  | O29: =O25*$B$29 ->  | Q29: =Q25*$B$29 ->  | R29: =R25*$B$29 ->  | T29: =T25*$B$29 ->  | U29: =U25*$B$29 ->  | W29: =W25*$B$29 ->  | X29: =X25*$B$29 ->  | Z29: =Z25*$B$29 ->  | AA29: =AA25*$B$29 ->  | AC29: =AC25*$B$29 ->  | AD29: =AD25*$B$29 ->  | AF29: =AF25*$B$29 ->  | AG29: =AG25*$B$29 -> 
A30: Deemed Equity | E30: =E25*$B$30 ->  | F30: =F25*$B$30 ->  | H30: =H25*$B$30 ->  | I30: =I25*$B$30 ->  | K30: =K25*$B$30 ->  | L30: =L25*$B$30 ->  | N30: =N25*$B$30 ->  | O30: =O25*$B$30 ->  | Q30: =Q25*$B$30 ->  | R30: =R25*$B$30 ->  | T30: =T25*$B$30 ->  | U30: =U25*$B$30 ->  | W30: =W25*$B$30 ->  | X30: =X25*$B$30 ->  | Z30: =Z25*$B$30 ->  | AA30: =AA25*$B$30 ->  | AC30: =AC25*$B$30 ->  | AD30: =AD25*$B$30 ->  | AF30: =AF25*$B$30 ->  | AG30: =AG25*$B$30 -> 
A32: ST Interest | E32: =E28*$B$32 ->  | F32: =F28*$B$32 ->  | H32: =H28*$B$32 ->  | I32: =I28*$B$32 ->  | K32: =K28*$B$32 ->  | L32: =L28*$B$32 ->  | N32: =N28*$B$32 ->  | O32: =O28*$B$32 ->  | Q32: =Q28*$B$32 ->  | R32: =R28*$B$32 ->  | T32: =T28*$B$32 ->  | U32: =U28*$B$32 ->  | W32: =W28*$B$32 ->  | X32: =X28*$B$32 ->  | Z32: =Z28*$B$32 ->  | AA32: =AA28*$B$32 ->  | AC32: =AC28*$B$32 ->  | AD32: =AD28*$B$32 ->  | AF32: =AF28*$B$32 ->  | AG32: =AG28*$B$32 -> 
A33: LT Interest | E33: =E29*$B$33 ->  | F33: =F29*$B$33 ->  | H33: =H29*$B$33 ->  | I33: =I29*$B$33 ->  | K33: =K29*$B$33 ->  | L33: =L29*$B$33 ->  | N33: =N29*$B$33 ->  | O33: =O29*$B$33 ->  | Q33: =Q29*$B$33 ->  | R33: =R29*$B$33 ->  | T33: =T29*$B$33 ->  | U33: =U29*$B$33 ->  | W33: =W29*$B$33 ->  | X33: =X29*$B$33 ->  | Z33: =Z29*$B$33 ->  | AA33: =AA29*$B$33 ->  | AC33: =AC29*$B$33 ->  | AD33: =AD29*$B$33 ->  | AF33: =AF29*$B$33 ->  | AG33: =AG29*$B$33 -> 
A34: ROE | E34: =E30*$B$34 ->  | F34: =F30*$B$34 ->  | H34: =H30*$B$34 ->  | I34: =I30*$B$34 ->  | K34: =K30*$B$34 ->  | L34: =L30*$B$34 ->  | N34: =N30*$B$34 ->  | O34: =O30*$B$34 ->  | Q34: =Q30*$B$34 ->  | R34: =R30*$B$34 ->  | T34: =T30*$B$34 ->  | U34: =U30*$B$34 ->  | W34: =W30*$B$34 ->  | X34: =X30*$B$34 ->  | Z34: =Z30*$B$34 ->  | AA34: =AA30*$B$34 ->  | AC34: =AC30*$B$34 ->  | AD34: =AD30*$B$34 ->  | AF34: =AF30*$B$34 ->  | AG34: =AG30*$B$34 -> 
A35: Cost of Capital Total | E35: =SUM(E32:E34) ->  | F35: =SUM(F32:F34) ->  | H35: =SUM(H32:H34) ->  | I35: =SUM(I32:I34) ->  | K35: =SUM(K32:K34) ->  | L35: =SUM(L32:L34) ->  | N35: =SUM(N32:N34) ->  | O35: =SUM(O32:O34) ->  | Q35: =SUM(Q32:Q34) ->  | R35: =SUM(R32:R34) ->  | T35: =SUM(T32:T34) ->  | U35: =SUM(U32:U34) ->  | W35: =SUM(W32:W34) ->  | X35: =SUM(X32:X34) ->  | Z35: =SUM(Z32:Z34) ->  | AA35: =SUM(AA32:AA34) ->  | AC35: =SUM(AC32:AC34) ->  | AD35: =SUM(AD32:AD34) ->  | AF35: =SUM(AF32:AF34) ->  | AG35: =SUM(AG32:AG34) -> 
A37: OM&A | E37: =E22+E23 -> 0 | F37: =F23 -> 0 | H37: =H22+H23 -> 0 | I37: =I23 -> 0 | K37: =K22+K23 -> 0 | L37: =L23 -> 0 | N37: =N22+N23 -> 0 | O37: =O23 -> 0 | Q37: =Q22+Q23 -> 0 | R37: =R23 -> 0 | T37: =T22+T23 -> 0 | U37: =U23 -> 0 | W37: =W22+W23 -> 0 | X37: =X23 -> 0 | Z37: =Z22+Z23 -> 0 | AA37: =AA23 -> 0 | AC37: =AC22+AC23 -> 0 | AD37: =AD23 -> 0 | AF37: =AF22+AF23 -> 0 | AG37: =AG23 -> 0
A38: Amortization | D38: =D78 -> 0 | E38: =D38*E$20 -> 0 | F38: =D38*F$20 -> 0 | G38: =G78 ->  | H38: =G38*H$20 ->  | I38: =G38*I$20 ->  | J38: =H78 ->  | K38: =J38*K$20 ->  | L38: =J38*L$20 ->  | M38: =I78 ->  | N38: =M38*N$20 ->  | O38: =M38*O$20 ->  | P38: =J78 ->  | Q38: =P38*Q$20 ->  | R38: =P38*R$20 ->  | S38: =K76+K77 ->  | T38: =S38*T$20 ->  | U38: =S38*U$20 ->  | V38: =L76+L77 ->  | W38: =V38*W$20 ->  | X38: =V38*X$20 ->  | Y38: =M76+M77 ->  | Z38: =Y38*Z$20 ->  | AA38: =Y38*AA$20 ->  | AB38: =N76+N77 ->  | AC38: =AB38*AC$20 ->  | AD38: =AB38*AD$20 ->  | AE38: =O76+O77 ->  | AF38: =AE38*AF$20 ->  | AG38: =AE38*AG$20 -> 
A39: Grossed-up PILs | E39: =E66 ->  | F39: =F66 ->  | H39: =H66 ->  | I39: =I66 ->  | K39: =K66 ->  | L39: =L66 ->  | N39: =N66 ->  | O39: =O66 ->  | Q39: =Q66 ->  | R39: =R66 ->  | T39: =T66 ->  | U39: =U66 ->  | W39: =W66 ->  | X39: =X66 ->  | Z39: =Z66 ->  | AA39: =AA66 ->  | AC39: =AC66 ->  | AD39: =AD66 ->  | AF39: =AF66 ->  | AG39: =AG66 -> 
A41: Revenue Requirement | E41: =SUM(E35:E39) ->  | F41: =SUM(F35:F39) ->  | H41: =SUM(H35:H39) ->  | I41: =SUM(I35:I39) ->  | K41: =SUM(K35:K39) ->  | L41: =SUM(L35:L39) ->  | N41: =SUM(N35:N39) ->  | O41: =SUM(O35:O39) ->  | Q41: =SUM(Q35:Q39) ->  | R41: =SUM(R35:R39) ->  | T41: =SUM(T35:T39) ->  | U41: =SUM(U35:U39) ->  | W41: =SUM(W35:W39) ->  | X41: =SUM(X35:X39) ->  | Z41: =SUM(Z35:Z39) ->  | AA41: =SUM(AA35:AA39) ->  | AC41: =SUM(AC35:AC39) ->  | AD41: =SUM(AD35:AD39) ->  | AF41: =SUM(AF35:AF39) ->  | AG41: =SUM(AG35:AG39) -> 
A44: Provincial Rate Protection | F44: =F41 ->  | I44: =I41 ->  | L44: =L41 ->  | O44: =O41 ->  | R44: =R41 ->  | U44: =U41 ->  | X44: =X41 ->  | AA44: =AA41 ->  | AD44: =AD41 ->  | AG44: =AG41 -> 
A46: Monthly Amount Paid by IESO | F46: =F44/12 ->  | I46: =I44/12 ->  | L46: =L44/12 ->  | O46: =O44/12 ->  | R46: =R44/12 ->  | U46: =U44/12 ->  | X46: =X44/12 ->  | AA46: =AA44/12 ->  | AD46: =AD44/12 ->  | AG46: =AG44/12 -> 
A48: Note 1: The distributor should follow the regulatory accounting set out in the Accounting Procedure Handbook Guidance FAQs issued in March 2015. Q10 of the APH FAQs states that: “For approved eligible investments as defined under O.Reg. 330/09 under the OEB Act, a variance account will continue to be used for the purpose of recording variances between the revenue requirement based on actual costs of approved eligible investments and the revenue received from the IESO.” The answer for Q10 provides the accounting guidance for this variance account: “Distributors that have included eligible investments to connect qualifying facilities in their DS plans are to establish the variance Account 1533 Renewable Generation Connection Funding Adder Deferral Account, Sub-account Provincial Rate Protection Payment Variances following OEB approval for investments forecast to enter service beyond the test year for purposes of implementing rate protection pursuant to O.Reg. 330/09. The purpose of this variance account is to track the variance between the distributor’s revenue requirement associated with the portion of the actual capital and/or operating costs that are eligible for rate protection, as incurred by the distributor for eligible renewable enabling and expansion investments, and the rate protection payments collected from the IESO.” The answer further provides the journal entries to record the variances. Distributors should follow the instructions in the answer for recording the journal entries in the variance account 1533.
A50: Note 2: For the Test Year, Costs and Revenues of the Direct Benefit are to be included in the test year applicant Rate Base and Revenues.
A52: PILs Calculation
E53: =D18 -> 2015 | H53: =G18 -> 2016 | K53: =J18 -> 2017 | N53: =M18 -> 2018 | Q53: =P18 -> 2019 | T53: =S18 -> 2020 Test Year | W53: =V18 -> 2021 | Z53: =Y18 -> 2022 | AC53: =AB18 -> 2023 | AF53: =AE18 -> 2024
A54: Income Tax | E54: Direct Benefit | F54: Provincial | H54: Direct Benefit | I54: Provincial | K54: Direct Benefit | L54: Provincial | N54: Direct Benefit | O54: Provincial | Q54: Direct Benefit | R54: Provincial | T54: Direct Benefit | U54: Provincial | W54: Direct Benefit | X54: Provincial | Z54: Direct Benefit | AA54: Provincial | AC54: Direct Benefit | AD54: Provincial | AF54: Direct Benefit | AG54: Provincial
Y55: Total | AB55: Total | AE55: Total
A56: Net Income - ROE on Rate Base | E56: =E34 ->  | F56: =F34 ->  | H56: =H34 ->  | I56: =I34 ->  | K56: =K34 ->  | L56: =L34 ->  | N56: =N34 ->  | O56: =O34 ->  | Q56: =Q34 ->  | R56: =R34 ->  | T56: =T34 ->  | U56: =U34 ->  | W56: =W34 ->  | X56: =X34 ->  | Z56: =Z34 ->  | AA56: =AA34 ->  | AC56: =AC34 ->  | AD56: =AD34 ->  | AF56: =AF34 ->  | AG56: =AG34 -> 
A57: Amortization (17% DB and 83% P) | E57: =E38 -> 0 | F57: =F38 -> 0 | H57: =H38 ->  | I57: =I38 ->  | K57: =K38 ->  | L57: =L38 ->  | N57: =N38 ->  | O57: =O38 ->  | Q57: =Q38 ->  | R57: =R38 ->  | T57: =T38 ->  | U57: =U38 ->  | W57: =W38 ->  | X57: =X38 ->  | Z57: =Z38 ->  | AA57: =AA38 ->  | AC57: =AC38 ->  | AD57: =AD38 ->  | AF57: =AF38 ->  | AG57: =AG38 -> 
